Workbook

Sheet indice (hidden)
A2: AUX1
A3: AUX2
A4: Pob
A6: AltJuB
A7: BajJub
A8: NJub
A9: PmAltJub
A10: PMBajJub
A11: PmJub
A13: Iter_Consol
A16: Sintesis

Sheet AUX1 (hidden)
A1: indice
B2: VAR. AUXILIARES
A3: año | B3: Revaloriz | C3: PIBn | D3: Var % | E3: Empleo EETC | F3: Deflactor C | G3: IPC
A4: =A5-1 -> 1990 | B4: 0.08 | G4: 6.708521328
A5: =A6-1 -> 1991 | B5: 0.067 | D5: =100*(C5/C4-1) ->  | G5: 5.929473435
A6: =A7-1 -> 1992 | B6: 0.057 | G6: 5.920291991
A7: =A8-1 -> 1993 | B7: 0.051 | G7: 4.595522194
A8: =A9-1 -> 1994 | B8: 0.035 | G8: 4.673365732
A9: 1995 | B9: 0.044 | C9: 459337 | E9: 10590.475 | G9: 4.693576337
A10: =A9+1 -> 1996 | B10: 0.044 | C10: 487992 | D10: 6.238339171 | E10: 10812.075 | G10: 3.53578869
A11: =A10+1 -> 1997 | B11: 0.026 | C11: 518049 | D11: 6.159322284 | E11: 11402.7 | G11: 1.997882186
A12: 1998 | B12: 0.021 | C12: 554042 | D12: 6.947798374 | E12: 11942.325 | G12: 1.860362903
A13: 1999 | B13: 0.018 | C13: 594316 | D13: 7.269124001 | E13: 12594.35 | G13: 2.277340297
A14: 2000 | B14: 0.029 | C14: 646250 | D14: 8.738448906 | E14: 13283.475 | G14: 3.434326046
A15: 2001 | B15: 0.041 | C15: 699528 | D15: 8.24417795 | E15: 13813.3 | G15: 3.5945556
A16: 2002 | B16: 0.027 | C16: 749288 | D16: 7.113367871 | E16: 14246.425 | G16: 3.53624264
A17: 2003 | B17: 0.039 | C17: 803472 | D17: 7.231398341 | E17: 14744.525 | G17: 3.039233684
A18: 2004 | B18: 0.028 | C18: 861420 | D18: 7.212199056 | E18: 15202.55 | G18: 3.03920165
A19: 2005 | B19: 0.035 | C19: 930566 | D19: 8.02697871 | E19: 15831.9 | G19: 3.368453988
A20: 2006 | B20: 0.034 | C20: 1007974 | D20: 8.318378277 | E20: 16505.55 | G20: 3.515374911
A21: 2007 | B21: 0.026 | C21: 1080807 | D21: 7.225682408 | E21: 17116.45 | G21: 2.787030473
A22: 2008 | B22: 0.041 | C22: 1116207 | D22: 3.275330378 | E22: 17160.9 | G22: 4.075660764
A23: 2009 | B23: 0.024 | C23: 1079034 | D23: -3.330296262 | E23: 16132.025 | G23: -0.287996835
A24: 2010 | B24: 0.01 | C24: 1080913 | D24: 0.1741372376 | E24: 15739.85 | G24: 1.79988133
A25: 2011 | B25: 0.013 | C25: 1070400 | D25: -0.9726037156 | E25: 15303.3 | G25: 3.196146412
A26: 2012 | B26: 0.01 | C26: 1039800 | D26: -2.858744395 | E26: 14462.82625 | G26: 2.446000185
A27: 2013 | B27: 0.02 | C27: 1025600 | D27: -1.36564724 | E27: 13883.353 | G27: 1.408546292
A28: =A27+1 -> 2014 | B28: 0.0025 | C28: 1037000 | D28: 1.111544462 | E28: 14068.1985 | F28: 0.15113117 | G28: -0.150870313
A29: 2015 | B29: 0.0025 | C29: 1075600 | D29: 3.722275796 | E29: 14537.83825 | F29: -0.2118504731 | G29: -0.500461321
A30: 2016 | B30: 0.0025 | C30: 1113900 | D30: 3.560803273 | E30: 14984.5385 | F30: -0.2135837707 | G30: -0.202671741
A31: 2017 | B31: =B30 -> 0.0025 | C31: =Datos!C22 -> 1165014.565 | D31: 4.588793024 | E31: 15377.5309 | F31: 1.95785301 | G31: =+F31 -> 1.95785301
A32: 2018 | B32: =B31 -> 0.0025 | C32: =Datos!C23 -> 1216154.27 | D32: 4.389619361 | E32: 15758.38043 | F32: 1.823861434 | G32: =+F32 -> 1.823861434
A33: 2019 | B33: 0.0025 | C33: =Datos!C24 -> 1268224.584 | D33: 4.281554978 | E33: 16115.37584 | F33: 1.879889436 | G33: =+F33 -> 1.879889436
A34: 2020 | B34: 0.0025 | C34: =Datos!C25 -> 1321219.09 | D34: 4.178637322 | E34: 16437.99725 | F34: 1.876871596 | G34: =+F34 -> 1.876871596
A35: 2021 | B35: 0.0025 | C35: =Datos!C26 -> 1371776.649 | D35: 3.826584079 | E35: 16914.69917 | F35: 2 | G35: =+F35 -> 2
A36: 2022 | B36: 0.0025 | C36: =Datos!C27 -> 1419377.243 | D36: 3.469995909 | F36: =F35 -> 2 | G36: 1.8
A37: 2023 | B37: 0.0025 | C37: =Datos!C28 -> 1465751.702 | D37: 3.267239856 | F37: =F36 -> 2 | G37: 1.8
A38: 2024 | B38: 0.0025 | C38: =Datos!C29 -> 1513641.326 | D38: 3.267239856 | F38: 2 | G38: 1.8
A39: 2025 | B39: 0.0025 | C39: =Datos!C30 -> 1563095.618 | D39: 3.267239856 | F39: 2 | G39: 1.8
A40: 2026 | B40: 0.0025 | C40: =Datos!C31 -> 1614165.701 | D40: 3.267239856 | F40: 2 | G40: 1.8
A41: 2027 | B41: 0.0025 | C41: =Datos!C32 -> 1666904.367 | D41: 3.267239856 | F41: 2 | G41: 1.8
A42: 2028 | B42: 0.0025 | C42: =Datos!C33 -> 1721366.13 | D42: 3.267239856 | F42: 2 | G42: 1.8
A43: 2029 | B43: 0.0025 | C43: =Datos!C34 -> 1777607.291 | D43: 3.267239856 | F43: 2 | G43: 1.8
A44: 2030 | B44: =B43 -> 0.0025 | C44: =Datos!C35 -> 1835685.984 | D44: 3.267239856 | F44: 2 | G44: 1.8
A45: 2031 | C45: =C44*'AUX2'!D45/'AUX2'!D44 -> 1895662.249 | D45: 3.267239856 | F45: 2 | G45: 1.8
A46: 2032 | C46: =C45*'AUX2'!D46/'AUX2'!D45 -> 1957598.081 | D46: 3.267239856 | F46: 2 | G46: 1.8
A47: 2033 | C47: =C46*'AUX2'!D47/'AUX2'!D46 -> 2021557.506 | D47: 3.267239856 | F47: 2 | G47: 1.8
A48: 2034 | C48: =C47*'AUX2'!D48/'AUX2'!D47 -> 2087606.638 | D48: 3.267239856 | F48: 2 | G48: 1.8
A49: 2035 | C49: =C48*'AUX2'!D49/'AUX2'!D48 -> 2155813.755 | D49: 3.267239856 | F49: 2 | G49: 1.8
A50: 2036 | C50: =C49*'AUX2'!D50/'AUX2'!D49 -> 2226249.361 | D50: 3.267239856 | F50: 2 | G50: 1.8
A51: 2037 | C51: =C50*'AUX2'!D51/'AUX2'!D50 -> 2298986.267 | D51: 3.267239856 | F51: 2 | G51: 1.8
A52: 2038 | C52: =C51*'AUX2'!D52/'AUX2'!D51 -> 2374099.663 | D52: 3.267239856 | F52: 2 | G52: 1.8
A53: 2039 | C53: =C52*'AUX2'!D53/'AUX2'!D52 -> 2451667.193 | D53: 3.267239856 | F53: 2 | G53: 1.8
A54: 2040 | C54: =C53*'AUX2'!D54/'AUX2'!D53 -> 2531769.041 | D54: 3.267239856 | F54: 2 | G54: 1.8
A55: 2041 | C55: =C54*'AUX2'!D55/'AUX2'!D54 -> 2614488.008 | D55: 3.267239856 | F55: 2 | G55: 1.8
A56: 2042 | C56: =C55*'AUX2'!D56/'AUX2'!D55 -> 2699909.602 | D56: 3.267239856 | F56: 2 | G56: 1.8
A57: 2043 | C57: =C56*'AUX2'!D57/'AUX2'!D56 -> 2788122.125 | D57: 3.267239856 | F57: 2 | G57: 1.8
A58: 2044 | C58: =C57*'AUX2'!D58/'AUX2'!D57 -> 2879216.762 | D58: 3.267239856 | F58: 2 | G58: 1.8
A59: 2045 | C59: =C58*'AUX2'!D59/'AUX2'!D58 -> 2973287.68 | D59: 3.267239856 | F59: 2 | G59: 1.8
A60: 2046 | C60: =C59*'AUX2'!D60/'AUX2'!D59 ->  | F60: 2 | G60: 1.8
A61: 2047 | C61: =C60*'AUX2'!D61/'AUX2'!D60 ->  | F61: 2 | G61: 1.8
A62: 2048 | C62: =C61*'AUX2'!D62/'AUX2'!D61 ->  | F62: 2 | G62: 1.8
A63: 2049 | C63: =C62*'AUX2'!D63/'AUX2'!D62 ->  | F63: 2 | G63: 1.8
A64: 2050 | C64: =C63*'AUX2'!D64/'AUX2'!D63 ->  | F64: 2 | G64: 1.8

Sheet AUX2 (hidden)
A1: indice | D1: MODELO
B2: AGREGADO | D2: CONSOLIDADO | K2: DGOSS CONSOL | R2: CONSOLIDADO AIREF
B3: Ingresos | C3: G sin pensiones | D3: Ingresos | E3: G pensiones | F3: % var | G3: G sin pensiones | H3: % var | I3: G total | J3: % var | K3: Ingresos | L3: G pensiones | M3: % var | N3: G sin pensiones | O3: % var | P3: G total | Q3: % var | R3: Ingresos | S3: G pensiones | T3: G sin pensiones | U3: G total | V3: Criterios de Proyección:
A14: 2000 | B14: 64615.82 | C14: 9277.09 | D14: 62364.36 | G14: 7025.63 | R14: 62364.36 | T14: 7025.63 | V14: Cotizaciones totales modelos macro hasta 2020 y PIB nominal después
A15: 2001 | B15: 70410.78 | C15: 12593.35 | D15: 67941.79 | G15: 10124.36 | R15: 67941.79 | T15: 10124.36 | V15: Cotizaciones cese de actividad como el empleo
A16: 2002 | B16: 74847.21 | C16: 11754.89 | D16: 72387.68 | G16: 9295.36 | R16: 72387.68 | T16: 9295.36 | V16: Resto de ingresos como el deflactor del PIB (incluidas TR por complemento a mínimos)
A17: 2003 | B17: 81026.83 | C17: 12264.23 | D17: 78442.15 | G17: 9679.55 | R17: 78442.15 | T17: 9679.55 | V17: Ingresos patrimoniales como del deflactor del PIB una vez agotados los intereses del Fondo de Reserva
A18: 2004 | B18: 87378.82 | C18: 14051.14 | D18: 84442.48 | G18: 11114.8 | R18: 84442.48 | T18: 11114.8 | V18: Eliminaciones como el empleo
A19: 2005 | B19: 94300.91 | C19: 15062.91 | D19: 91323.86 | G19: 12085.86 | R19: 91323.86 | T19: 12085.86 | V19: Gasto en prestaciones contributivas SIN PENSIONES como empleo
A20: 2006 | B20: 102700.9 | C20: 16198.78 | D20: 99600.41 | G20: 13098.29 | R20: 99600.41 | T20: 13098.29 | V20: Resto de gastos como tasa de referencia de la regla de gasto hasta 2020 y PIB nominal después
A21: 2007 | B21: 112418.29 | C21: 18004.49 | D21: 108271.66 | G21: 13857.86 | R21: 108271.66 | T21: 13857.86
A22: 2008 | B22: 119459.63 | C22: 20106.33 | D22: 114213.96 | G22: 14860.66 | R22: 114213.96 | T22: 14860.66 | V22: Z:\DIVISIÓN ANÁLISIS PRESUPUESTARIO\7 - ADMON CENTRAL Y SS\SEGURIDAD SOCIAL\00- Indice revalorizacion pensiones\2017
A23: 2009 | B23: 117379.79 | C23: 18819.67 | D23: 112987.32 | G23: 14427.2 | R23: 112987.32 | T23: 14427.2
A24: 2010 | B24: 116385.41 | C24: 17926.23 | D24: 112301.8 | G24: 13842.62 | R24: 112301.8 | T24: 13842.62 | W24: DGOSS otros I | Y24: AIREF otros I | AA24: DGOSS otros G | AC24: AIReF otros G
A25: 2011 | B25: 116078.6 | C25: 16844.74 | D25: =K25 -> 112368.69 | E25: =Iter_Consol!S25 -> 100777.527 | G25: 13131.91 | K25: 112368.69 | R25: 112365.77 | S25: 99533.71 | T25: 13131.91 | U25: =S25+T25 -> 112665.62 | W25: 4362.77 | AA25: =N25 -> 0 | AC25: =G25 -> 13131.91
A26: 2012 | B26: 113132.8 | C26: 15499.86 | D26: 109581.52 | E26: =Iter_Consol!S26 -> 105562.1046 | G26: =I26-E26 -> 9729.995392 | I26: =P26 -> 115292.1 | K26: 109581.52 | L26: 103503.79 | N26: 11788.31 | P26: =L26+N26 -> 115292.1 | R26: 109580.33 | S26: 103503.79 | T26: 11947.39 | U26: 115451.18 | W26: 4856.04 | X26: =((W26/W25)-1)*100 -> 11.30634895 | Y26: 4854.86 | AA26: =N26 -> 11788.31 | AC26: =G26 -> 9729.995392
A27: 2013 | B27: 113573.94 | C27: 14749.96 | D27: 109838.87 | E27: =Iter_Consol!S27 -> 110573.2721 | F27: =100*(E27/E26-1) -> 4.747127304 | G27: =I27-E27 -> 9308.487901 | H27: =100*(G27/G26-1) -> -4.33204204 | I27: 119881.76 | J27: 3.980897217 | K27: 109838.87 | L27: 108630.07 | M27: =100*(L27/L26-1) -> 4.952746175 | N27: 11251.69 | O27: =100*(N27/N26-1) -> -4.55213682 | P27: 119881.76 | Q27: =100*(P27/P26-1) -> 3.980897217 | R27: 110210.11 | S27: 108564.3 | T27: 11386.13 | U27: 119950.43 | W27: 4238.28 | X27: =((W27/W26)-1)*100 -> -12.72147676 | Y27: 4246.95 | Z27: -12.52167931 | AA27: 11251.69 | AB27: -4.55213682 | AC27: 9308.487901 | AD27: =((AC27/AC26)-1)*100 -> -4.33204204
A28: 2014 | B28: 113986.44 | C28: 15247.71 | D28: 110514.87 | E28: =Iter_Consol!S28 -> 114012.5498 | F28: =100*(E28/E27-1) -> 3.110406002 | G28: 9923.000209 | H28: 6.60163406 | I28: 123935.55 | J28: 3.381490228 | K28: 110514.87 | L28: 112170.4 | M28: 3.259069979 | N28: 11765.15 | O28: 4.563403364 | P28: 123935.55 | Q28: 3.381490228 | R28: 110489.66 | S28: 112170.4 | T28: 11750.93 | U28: 123921.33 | W28: 3984 | X28: -5.999603613 | Y28: 3902.55 | Z28: -8.109349062 | AA28: 11765.15 | AB28: 4.563403364 | AC28: 9923.000209 | AD28: 6.60163406
A29: 2015 | B29: 117946.9438 | C29: 19283.908 | D29: 111342.24 | E29: =Iter_Consol!S29 -> 117080.1428 | F29: =100*(E29/E28-1) -> 2.69057488 | G29: 10870.39718 | H29: 9.547485192 | I29: 127950.54 | J29: 3.239578959 | K29: 111342.24 | L29: 115515.5 | M29: 2.982159286 | N29: 12435.04 | O29: 5.693850057 | P29: 127950.54 | Q29: 3.239578959 | R29: 111230.6008 | S29: 115533 | T29: 12567.565 | U29: 128100.565 | W29: 3616.21 | X29: -9.231676707 | Y29: 3443.116919 | Z29: -11.77263791 | AA29: 12435.04 | AB29: 5.693850057 | AC29: 10870.39718 | AD29: 9.547485192
A30: 2016 | B30: 117933.6313 | C30: 17323.66 | D30: =K30 -> 113551.49 | E30: =Iter_Consol!S30 -> 120754.8136 | F30: =100*(E30/E29-1) -> 3.138594357 | G30: 11495.15643 | H30: 5.747345138 | I30: 132249.97 | J30: 3.360228101 | K30: 113551.49 | L30: 119069.86 | M30: 3.076955041 | N30: 13180.11 | O30: 5.991697654 | P30: 132249.97 | Q30: 3.360228101 | R30: 113481.5813 | S30: 119077.63 | T30: 12871.61 | U30: 131949.24 | W30: 2891.71 | X30: -20.0347878 | Y30: 2666.39 | Z30: -22.55883078 | AA30: 13180.11 | AB30: 5.991697654 | AC30: 11495.15643 | AD30: 5.747345138
A31: 2017 | B31: 121189.2445 | C31: 18201.75801 | D31: =+Datos!H22 -> 118762.1329 | E31: =Iter_Consol!S31 -> 124378.3024 | F31: =100*(E31/E30-1) -> 3.000699315 | G31: =I31-E31 -> 12362.10756 | H31: 7.541882022 | I31: =P31 -> 136740.41 | J31: =100*(I31/I30-1) -> 3.39541854 | K31: 120034.13 | L31: 122777.09 | M31: =100*(L31/L30-1) -> 3.113491525 | N31: 13963.32 | O31: =100*(N31/N30-1) -> 5.942363152 | P31: 136740.41 | Q31: =100*(P31/P30-1) -> 3.39541854 | R31: 117086.3345 | S31: 122828.5791 | T31: 14098.84801 | U31: =S31+T31 -> 136927.4271 | W31: 2438.19 | X31: -15.68345373 | Y31: 2330.61472 | Z31: -12.59287951 | AA31: 13963.32 | AB31: 5.942363152 | AC31: 12362.10756 | AD31: 7.541882022
A32: 2018 | B32: 125832.4679 | C32: 18645.25093 | D32: =+Datos!H23 -> 123975.3384 | E32: =Iter_Consol!S32 -> 128075.8375 | F32: =100*(E32/E31-1) -> 2.972813552 | G32: =G31*T32/T31 -> 12661.85954 | H32: =100*(G32/G31-1) -> 2.424764338 | I32: =E32+G32 -> 140737.697 | J32: 2.923266799 | K32: 124471.3 | L32: 126128.83 | M32: =100*(L32/L31-1) -> 2.729939275 | N32: 14165 | O32: =100*(N32/N31-1) -> 1.44435564 | P32: 140293.83 | Q32: =100*(P32/P31-1) -> 2.598661215 | R32: 121627.9288 | T32: 14440.71185 | W32: 1802.72 | X32: -26.06318622 | Y32: 2050.618415 | Z32: -12.0138392 | AA32: 14165 | AB32: 1.44435564 | AC32: 12661.85954 | AD32: 2.424764338
A33: 2019 | B33: 130873.0031 | C33: 19077.56865 | D33: =+Datos!H24 -> 129283.4107 | E33: =Iter_Consol!S33 -> 131801.2449 | F33: =100*(E33/E32-1) -> 2.908751191 | G33: 12957.42127 | H33: 2.334267955 | I33: 144758.6662 | J33: 2.857066204 | K33: 129264.65 | L33: 129453.09 | M33: 2.635606784 | N33: 14362.85 | O33: 1.396752559 | P33: 143815.94 | Q33: 2.510523806 | R33: 126573.2312 | T33: 14777.79676 | W33: 1563.04 | X33: -13.29546463 | Y33: 2085.478928 | Z33: 1.7 | AA33: 14362.85 | AB33: 1.396752559 | AC33: 12957.42127 | AD33: 2.334267955
A34: 2020 | B34: 136033.0383 | C34: 19489.95474 | D34: =+Datos!H25 -> 134685.6956 | E34: =Iter_Consol!S34 -> 135556.239 | F34: =100*(E34/E33-1) -> 2.848982225 | G34: 13243.53069 | H34: 2.208073763 | I34: 148799.7696 | J34: 2.791614185 | K34: 134487.35 | L34: 132889.69 | M34: 2.654706813 | N34: 14559.67 | O34: 1.370340845 | P34: 147449.36 | Q34: 2.526437612 | R34: 131647.185 | T34: 15104.10142 | W34: 1620.96 | X34: 3.705599345 | Y34: 2120.93207 | Z34: 1.7 | AA34: 14559.67 | AB34: 1.370340845 | AC34: 13243.53069 | AD34: 2.208073763
A35: 2021 | B35: 140896.1986 | C35: 19895.34946 | D35: =+Datos!H26 -> 139839.5569 | E35: =Iter_Consol!S35 -> 139380.8672 | F35: =100*(E35/E34-1) -> 2.82143283 | G35: 13538.57339 | H35: 2.227825116 | I35: 152919.4406 | J35: 2.768600343 | K35: 139139.55 | L35: 136475.12 | M35: 2.698049789 | N35: 14714.69 | O35: 1.064721934 | P35: 151189.81 | Q35: 2.536769234 | R35: 136441.4435 | T35: 15440.59438 | W35: 1672.72 | X35: 3.19316948 | Y35: 2159.108847 | Z35: 1.8 | AA35: 14714.69 | AB35: 1.064721934 | AC35: 13538.57339 | AD35: 2.227825116
A36: 2022 | B36: 145490.7052 | C36: 20243.77089 | D36: =+Datos!H27 -> 144691.9838 | E36: =Iter_Consol!S36 -> 143328.767 | F36: =100*(E36/E35-1) -> 2.832454617 | G36: 13795.82967 | H36: 1.900172719 | I36: =E36+G36 -> 157124.5967 | J36: 2.74991595 | K36: 143288.6 | L36: 140181.28 | M36: 2.715630512 | N36: 14826.49 | O36: 0.7597849496 | P36: =L36+N36 -> 155007.77 | Q36: 2.525276009 | R36: 140980.9266 | T36: 15733.99234 | W36: 1719.09 | X36: 2.772131618 | Y36: 2197.972807 | Z36: 1.8 | AA36: 14826.49 | AB36: 0.7597849496 | AC36: 13795.82967 | AD36: =((AC36/AC35)-1)*100 -> 1.900172719
A37: 2023 | B37: 149968.9463 | C37: 20560.15095 | D37: =+Datos!H28 -> 149419.418 | G37: 14032.15237 | R37: 145412.3111 | T37: 16003.51579
A38: 2024 | B38: 154478.24 | C38: 20867.19834 | D38: =+Datos!H29 -> 154301.3088 | G38: 14262.97241 | R38: 149877.8052 | T38: 16266.76351
A39: 2025 | B39: 159127.7442 | C39: 21180.79652 | D39: =+Datos!H30 -> 159342.7026 | G39: 14499.14076 | R39: 154483.0586 | T39: 16536.11092
A40: 2026 | B40: 163980.8335 | C40: 21509.41815 | D40: =+Datos!H31 -> 164548.8109 | G40: 14746.49426 | R40: 159289.6302 | T40: 16818.21488
A41: 2027 | B41: 169062.6691 | C41: 21855.7166 | D41: =+Datos!H32 -> 169925.0153 | G41: 15006.91091 | R41: 164322.1697 | T41: 17115.2172
A42: 2028 | B42: 174373.5488 | C42: 22218.77854 | D42: =+Datos!H33 -> 175476.8731 | G42: 15279.82857 | R42: 169581.2471 | T42: 17426.47681
A43: 2029 | B43: 179901.9118 | C43: 22596.13892 | D43: =+Datos!H34 -> 181210.1234 | G43: 15563.61365 | R43: 175055.9035 | T43: 17750.13058
A44: 2030 | B44: 185634.0539 | C44: 22985.18593 | D44: =+Datos!H35 -> 187130.6928 | G44: 15856.5215 | R44: 180733.0567 | T44: 18084.18875
A45: 2031 | B45: 191559.833 | C45: 23383.92014 | D45: =+Datos!H36 -> 193244.7014 | G45: 16157.21965 | R45: 186603.0446 | T45: 18427.1317
A46: 2032 | B46: 197674.9161 | C46: 23791.20138 | D46: =+Datos!H37 -> 199558.4693 | G46: 16464.96179 | R46: 192661.8229 | T46: 18778.10824
A47: 2033 | B47: 203980.6522 | C47: 24206.67211 | D47: =+Datos!H38 -> 206078.5231 | G47: 16779.53918 | R47: 198910.8604 | T47: 19136.8803
A48: 2034 | B48: 210482.7073 | C48: 24630.53128 | D48: =+Datos!H39 -> 212811.6028 | G48: 17101.12792 | R48: 205355.8248 | T48: 19503.64872
A49: 2035 | B49: 217189.3597 | C49: 25063.28483 | D49: =+Datos!H40 -> 219764.6683 | G49: 17430.1186 | R49: 212004.9339 | T49: 19878.85899
A50: 2036 | B50: 224110.0216 | C50: 25505.54439 | D50: =+Datos!H41 -> 226944.9071 | G50: 17766.9779 | R50: 218867.5205 | T50: 20263.04332
A51: 2037 | B51: 231254.2363 | C51: 25957.89967 | D51: =+Datos!H42 -> 234359.7416 | G51: 18112.16018 | R51: 225953.0566 | T51: 20656.71992
A52: 2038 | B52: 238631.171 | C52: 26420.85998 | D52: =+Datos!H43 -> 242016.8364 | G52: 18466.0665 | R52: 233270.6572 | T52: 21060.3462
A53: 2039 | B53: 246249.4963 | C53: 26894.84567 | D53: =+Datos!H44 -> 249924.107 | G53: 18829.03828 | R53: 240828.9622 | T53: 21474.31153
A54: 2040 | B54: 254117.5035 | C54: 27380.20768 | D54: =+Datos!H45 -> 258089.727 | G54: 19201.37041 | R54: 248636.2481 | T54: 21898.95224
A55: 2041 | B55: 262243.3222 | C55: 27877.25686 | D55: =+Datos!H46 -> 266522.1374 | G55: 19583.33143 | R55: 256700.64 | T55: 22334.57459
A56: 2042 | B56: 270635.1415 | C56: 28386.29133 | D56: =+Datos!H47 -> 275230.0549 | G56: 19975.18261 | R56: 265030.3268 | T56: 22781.47656
A57: 2043 | B57: 279301.3831 | C57: 28907.61645 | D57: =+Datos!H48 -> 284222.481 | G57: 20377.19186 | R57: 273633.7303 | T57: 23239.9637
A58: 2044 | B58: 288250.8089 | C58: 29441.55601 | D58: =+Datos!H49 -> 293508.7112 | G58: 20789.64171 | R58: 282519.6112 | T58: 23710.35823
A59: 2045 | B59: 297492.572 | C59: 29988.45646 | D59: =+Datos!H50 -> 303098.3448 | G59: 21212.8324 | R59: 291697.1181 | T59: 24193.00256
A60: 2046 | B60: 307036.2252 | C60: 30548.6865 | D60: =+Supuestos!#REF! ->  | G60: 21647.08167 | R60: 301175.7978 | T60: 24688.25908
A61: 2047 | B61: 316891.7104 | C61: 31122.63445 | D61: =+Supuestos!#REF! ->  | G61: 22092.72309 | R61: 310965.5842 | T61: 25196.50824
A62: 2048 | B62: 327063.5446 | C62: 31707.36572 | D62: =+Supuestos!#REF! ->  | G62: 22547.53879 | R62: 321073.5898 | T62: 25715.22055
A63: 2049 | B63: 337561.8821 | C63: 32303.0829 | D63: =+Supuestos!#REF! ->  | G63: 23011.71763 | R63: 331510.1584 | T63: 26244.61143
A64: 2050 | B64: 348397.2034 | C64: 32909.99241 | D64: =+Supuestos!#REF! ->  | G64: 23485.45237 | R64: 342285.97 | T64: 26784.9007

Sheet Pob (hidden)
A1: indice
A2: Proyecciones de población 2016-2066
A3: Resultados nacionales
A5: Población residente en España a 1 de enero, por sexo, edad y año
A6: Unidades: personas
B8: =C8-1 -> 1990 | C8: 1991 | D8: 1992 | E8: 1993 | F8: 1994 | G8: 1995 | H8: 1996 | I8: 1997 | J8: 1998 | K8: 1999 | L8: 2000 | M8: 2001 | N8: =O8-1 -> 2002 | O8: 2003 | P8: 2004 | Q8: 2005 | R8: 2006 | S8: 2007 | T8: 2008 | U8: 2009 | V8: 2010 | W8: 2011 | X8: 2012 | Y8: 2013 | Z8: 2014 | AA8: =AB8-1 -> 2015 | AB8: 2016 | AC8: 2017 | AD8: 2018 | AE8: 2019 | AF8: 2020 | AG8: 2021 | AH8: 2022 | AI8: 2023 | AJ8: 2024 | AK8: 2025 | AL8: 2026 | AM8: 2027 | AN8: 2028 | AO8: 2029 | AP8: 2030 | AQ8: 2031 | AR8: 2032 | AS8: 2033 | AT8: 2034 | AU8: 2035 | AV8: 2036 | AW8: 2037 | AX8: 2038 | AY8: 2039 | AZ8: 2040 | BA8: 2041 | BB8: 2042 | BC8: 2043 | BD8: 2044 | BE8: 2045 | BF8: 2046 | BG8: 2047 | BH8: 2048 | BI8: 2049 | BJ8: 2050 | BK8: 2051 | BL8: 2052 | BM8: 2053 | BN8: 2054 | BO8: 2055 | BP8: 2056 | BQ8: 2057 | BR8: 2058 | BS8: 2059 | BT8: 2060 | BU8: 2061 | BV8: 2062 | BW8: 2063 | BX8: 2064 | BY8: 2065 | BZ8: 2066
A9: Total | B9: 38853226.92 | C9: 38881415.63 | D9: 39051336.19 | E9: 39264034.42 | F9: 39458488.79 | G9: 39639726.46 | H9: 39808373.93 | I9: 39971328.68 | J9: 40143449.02 | K9: 40303567.58 | L9: 40470181.73 | M9: 40665544.97 | N9: 41035270.86 | O9: 41827835.63 | P9: 42547454.18 | Q9: 43296335.06 | R9: 44009968.6 | S9: 44784658.8 | T9: 45668938.28 | U9: 46239270.7 | V9: 46486621.01 | W9: 46667174.57 | X9: 46818215.79 | Y9: 46727890.06 | Z9: 46512198.94 | AA9: 46449564.79 | AB9: 46445827.95 | AC9: 46443249.44 | AD9: 46439791.15 | AE9: 46427974.71 | AF9: 46408170.87 | AG9: 46380938.43 | AH9: 46347104.87 | AI9: 46307561.9 | AJ9: 46263361.41 | AK9: 46215418.15 | AL9: 46164576.61 | AM9: 46111531.21 | AN9: 46056817.8 | AO9: 46000857.71 | AP9: 45943951.55 | AQ9: 45886176.93 | AR9: 45827810.23 | AS9: 45768636.34 | AT9: 45708547.71 | AU9: 45647623 | AV9: 45585655.19 | AW9: 45522041.03 | AX9: 45456971.09 | AY9: 45390119.81 | AZ9: 45321186.92 | BA9: 45247159.86 | BB9: 45168873.31 | BC9: 45085045.43 | BD9: 44993982.6 | BE9: 44895206.61 | BF9: 44787906.53 | BG9: 44672133.41 | BH9: 44547230.42 | BI9: 44412284.5 | BJ9: 44268081.12 | BK9: 44115209.13 | BL9: 43953623.85 | BM9: 43783125.37 | BN9: 43604483.17 | BO9: 43418584.18 | BP9: 43225660.07 | BQ9: 43026345.23 | BR9: 42820765.78 | BS9: 42610025.57 | BT9: 42395138.21 | BU9: 42176904.02 | BV9: 41956735.09 | BW9: 41735272.5 | BX9: 41513017.46 | BY9: 41290170.33 | BZ9: 41068643.33
A10: 0 años | B10: 401255 | C10: 390639 | D10: 390956.0469 | E10: 395546.6102 | F10: 384355.1321 | G10: 368535.2979 | H10: 362924.8049 | I10: 361026.2857 | J10: 367200.5862 | K10: 365367.2174 | L10: 379648.5882 | M10: 395790.0909 | N10: 411693.1766 | O10: 419433.457 | P10: 443075.9615 | Q10: 455203.8532 | R10: 466983.6387 | S10: 483683.2079 | T10: 493917.5266 | U10: 519524.9152 | V10: 493973.8663 | W10: 484003.6351 | X10: 475602.773 | Y10: 453294.3938 | Z10: 424880.5613 | AA10: 426459.0326 | AB10: 419394.5423 | AC10: 405220.1564 | AD10: 394879.9404 | AE10: 384870.5836 | AF10: 375498.8032 | AG10: 366968.9581 | AH10: 359399.7773 | AI10: 352869.49 | AJ10: 347424.5511 | AK10: 343026.9304 | AL10: 339608.6416 | AM10: 337123.5685 | AN10: 335529.4471 | AO10: 334752.7104 | AP10: 334739.1589 | AQ10: 335457.0409 | AR10: 336807.0462 | AS10: 338673.1478 | AT10: 340939.4183 | AU10: 343464.4154 | AV10: 346095.6327 | AW10: 348627.3078 | AX10: 350845.9214 | AY10: 352655.0807 | AZ10: 353892.5332 | BA10: 354385.9415 | BB10: 354117.1304 | BC10: 353029.4795 | BD10: 351076.7283 | BE10: 348419.8327 | BF10: 345137.915 | BG10: 341293.548 | BH10: 337126.0024 | BI10: 332749.592 | BJ10: 328276.1166 | BK10: 323875.5837 | BL10: 319624.6553 | BM10: 315599.8643 | BN10: 311888.6657 | BO10: 308514.3525 | BP10: 305493.2043 | BQ10: 302848.4488 | BR10: 300594.3738 | BS10: 298740.2913 | BT10: 297271.3561 | BU10: 296171.8985 | BV10: 295418.1384 | BW10: 294983.1402 | BX10: 294835.3534 | BY10: 294931.4893 | BZ10: 295222.6543
A11: 1 año | B11: 404169.2105 | C11: 396615 | D11: 390591.7344 | E11: 391798.7031 | F11: 396256.2203 | G11: 384692.2642 | H11: 368961.5957 | I11: 363677.6098 | J11: 361470.5714 | K11: 367272.1724 | L11: 367441.4348 | M11: 381203.1765 | N11: 398109.9809 | O11: 417814.8409 | P11: 425499.0544 | Q11: 448586.9706 | R11: 461564.5257 | S11: 473622.0605 | T11: 490146.1867 | U11: 498193.8412 | V11: 520784.8775 | W11: 494926.8334 | X11: 483549.0434 | Y11: 475616.5776 | Z11: 453015.5404 | AA11: 426471.2022 | AB11: 429529.7639 | AC11: 418893.9969 | AD11: 406233.6352 | AE11: 395969.7909 | AF11: 386033.472 | AG11: 376729.3055 | AH11: 368260.4486 | AI11: 360744.9259 | AJ11: 354260.4731 | AK11: 348853.3672 | AL11: 344486.0359 | AM11: 341091.4224 | AN11: 338623.9556 | AO11: 337041.675 | AP11: 336271.8032 | AQ11: 336260.8775 | AR11: 336977.6531 | AS11: 338323.4064 | AT11: 340182.6701 | AU11: 342440.1969 | AV11: 344955.2057 | AW11: 347575.9542 | AX11: 350097.4969 | AY11: 352306.9469 | AZ11: 354108.3654 | BA11: 355339.9999 | BB11: 355830.0674 | BC11: 355560.5556 | BD11: 354474.8935 | BE11: 352526.9614 | BF11: 349877.2215 | BG11: 346604.4589 | BH11: 342771.0516 | BI11: 338615.4964 | BJ11: 334251.6786 | BK11: 329791.036 | BL11: 325403.0531 | BM11: 321164.1236 | BN11: 317150.5329 | BO11: 313449.4703 | BP11: 310084.1572 | BQ11: 307070.8185 | BR11: 304432.6233 | BS11: 302183.8289 | BT11: 300333.7259 | BU11: 298867.5261 | BV11: 297769.6202 | BW11: 297016.3133 | BX11: 296580.7615 | BY11: 296431.5219 | BZ11: 296525.4487
A12: 2 años | B12: 414876.08 | C12: 398517.3158 | D12: 397716.3906 | E12: 392577.0156 | F12: 392994.3594 | G12: 397347.8305 | H12: 385343.3962 | I12: 369645.8936 | J12: 364683.4146 | K12: 362150.8571 | L12: 367586.7586 | M12: 369738.6522 | N12: 384738.1613 | O12: 406441.4229 | P12: 424036.6226 | Q12: 430776.6016 | R12: 454642.2294 | S12: 468035.6778 | T12: 480227.7714 | U12: 494118.1686 | V12: 499803.3199 | W12: 520875.4789 | X12: 494158.0188 | Y12: 481415.0391 | Z12: 472651.8087 | AA12: 452559.8349 | AB12: 427406.4133 | AC12: 430248.3807 | AD12: 419527.6488 | AE12: 407076.504 | AF12: 396883.7173 | AG12: 387015.5204 | AH12: 377774.4765 | AI12: 369362.5373 | AJ12: 361897.0063 | AK12: 355455.1061 | AL12: 350082.9081 | AM12: 345743.2551 | AN12: 342369.9632 | AO12: 339917.9679 | AP12: 338345.5861 | AQ12: 337580.7895 | AR12: 337570.8134 | AS12: 338284.8888 | AT12: 339624.8591 | AU12: 341475.8038 | AV12: 343723.14 | AW12: 346226.7405 | AX12: 348835.6197 | AY12: 351345.6532 | AZ12: 353544.6041 | BA12: 355336.991 | BB12: 356561.578 | BC12: 357047.1549 | BD12: 356775.8759 | BE12: 355691.2361 | BF12: 353747.268 | BG12: 351103.9303 | BH12: 347839.6726 | BI12: 344016.675 | BJ12: 339872.6402 | BK12: 335521.0166 | BL12: 331072.8686 | BM12: 326697.1376 | BN12: 322469.9387 | BO12: 318467.2994 | BP12: 314776.1291 | BQ12: 311419.5711 | BR12: 308413.7906 | BS12: 305781.8909 | BT12: 303538.093 | BU12: 301691.6608 | BV12: 300227.8619 | BW12: 299131.1455 | BX12: 298377.9023 | BY12: 297941.3803 | BZ12: 297790.2467
A13: 3 años | B13: 425083.9032 | C13: 412231.44 | D13: 399805.9219 | E13: 399941.8594 | F13: 394623.2969 | G13: 394258.0156 | H13: 398494.4407 | I13: 385997.5283 | J13: 370382.1915 | K13: 365718.2195 | L13: 362863.1429 | M13: 367937.3448 | N13: 373696.7476 | O13: 393825.2422 | P13: 414086.9058 | Q13: 429194.8501 | R13: 436170.7083 | S13: 461357.8267 | T13: 475054.1221 | U13: 484408.2923 | V13: 496163.9722 | W13: 501252.5143 | X13: 521120.9534 | Y13: 492831.3417 | Z13: 479519.8705 | AA13: 472390.7497 | AB13: 453586.734 | AC13: 427651.2257 | AD13: 430822.1555 | AE13: 420096.0576 | AF13: 407839.8708 | AG13: 397714.727 | AH13: 387911.4278 | AI13: 378730.5488 | AJ13: 370372.8698 | AK13: 362954.992 | AL13: 356553.6387 | AM13: 351214.6726 | AN13: 346901.3241 | AO13: 343548.2265 | AP13: 341110.7894 | AQ13: 339547.5937 | AR13: 338787.3177 | AS13: 338777.8504 | AT13: 339488.8667 | AU13: 340822.759 | AV13: 342665.1437 | AW13: 344902.0826 | AX13: 347394.0924 | AY13: 349990.9307 | AZ13: 352489.2921 | BA13: 354677.6061 | BB13: 356460.8425 | BC13: 357678.2933 | BD13: 358159.3314 | BE13: 357886.2709 | BF13: 356802.6876 | BG13: 354862.77 | BH13: 352225.9632 | BI13: 348970.3834 | BJ13: 345158.0094 | BK13: 341025.7361 | BL13: 336686.5733 | BM13: 332251.2054 | BN13: 327888.0183 | BO13: 323672.8459 | BP13: 319681.4521 | BQ13: 316000.4599 | BR13: 312652.9323 | BS13: 309654.9736 | BT13: 307029.6178 | BU13: 304791.0474 | BV13: 302948.4979 | BW13: 301487.2921 | BX13: 300391.9378 | BY13: 299638.9115 | BZ13: 299201.5546
A14: 4 años | B14: 445275.2432 | C14: 422807.129 | D14: 413533.5 | E14: 402494.8281 | F14: 402204.3281 | G14: 396699.5781 | H14: 395539.6719 | I14: 399656.0508 | J14: 386703.6604 | K14: 371145.4894 | L14: 366787.0244 | M14: 363582.4286 | N14: 370317.7844 | O14: 382556.71 | P14: 401915.4528 | Q14: 420083.6325 | R14: 433996.0199 | S14: 442187.1561 | T14: 467904.061 | U14: 479172.0691 | V14: 485963.4389 | W14: 497390.4126 | X14: 502162.6539 | Y14: 519608.5414 | Z14: 490544.0984 | AA14: 478811.8204 | AB14: 472843.9 | AC14: 453545.5796 | AD14: 428067.4229 | AE14: 431216.9954 | AF14: 420490.8411 | AG14: 408417.3241 | AH14: 398358.2619 | AI14: 388618.4214 | AJ14: 379496.4287 | AK14: 371191.9023 | AL14: 363820.7481 | AM14: 357459.1979 | AN14: 352152.9017 | AO14: 347865.4578 | AP14: 344532.2709 | AQ14: 342109.2017 | AR14: 340555.0893 | AS14: 339799.2867 | AT14: 339790.3009 | AU14: 340498.2238 | AV14: 341825.9916 | AW14: 343659.7618 | AX14: 345886.2347 | AY14: 348366.5773 | AZ14: 350951.2916 | BA14: 353437.9113 | BB14: 355615.5696 | BC14: 357389.6901 | BD14: 358600.1192 | BE14: 359076.8386 | BF14: 358802.3156 | BG14: 357720.2255 | BH14: 355784.9192 | BI14: 353155.3011 | BJ14: 349909.1477 | BK14: 346108.226 | BL14: 341988.5867 | BM14: 337662.7885 | BN14: 333241.119 | BO14: 328891.3812 | BP14: 324689.118 | BQ14: 320709.8191 | BR14: 317039.8069 | BS14: 313702.0609 | BT14: 310712.6223 | BU14: 308094.452 | BV14: 305861.6905 | BW14: 304023.5438 | BX14: 302565.3916 | BY14: 301471.802 | BZ14: 300719.3408
A15: 5 años | B15: 472314.5116 | C15: 443968.8919 | D15: 424377 | E15: 415627.5 | F15: 405203.7344 | G15: 404476.7969 | H15: 398796.8594 | I15: 396842.3281 | J15: 400831.661 | K15: 387423.7925 | L15: 371925.7872 | M15: 367860.8293 | N15: 366191.79 | O15: 379573.7715 | P15: 390405.3054 | Q15: 407838.188 | R15: 426306.6932 | S15: 439707.5059 | T15: 448726.6661 | U15: 471465.5304 | V15: 480714.3413 | W15: 486888.788 | X15: 498183.0803 | Y15: 501018.386 | Z15: 517577.7233 | AA15: 489530.7478 | AB15: 478774.7546 | AC15: 472879.0429 | AD15: 453642.8163 | AE15: 428414.8547 | AF15: 431544.0939 | AG15: 420822.4492 | AH15: 408916.2093 | AI15: 398920.0964 | AJ15: 389240.741 | AK15: 380174.9089 | AL15: 371921.1007 | AM15: 364594.5548 | AN15: 358271.0327 | AO15: 352995.9754 | AP15: 348733.3232 | AQ15: 345419.193 | AR15: 343009.8648 | AS15: 341464.4245 | AT15: 340712.8543 | AU15: 340704.232 | AV15: 341409.0322 | AW15: 342730.7164 | AX15: 344555.9717 | AY15: 346772.1149 | AZ15: 349240.9509 | BA15: 351813.7082 | BB15: 354288.7544 | BC15: 356455.9399 | BD15: 358221.1331 | BE15: 359424.7432 | BF15: 359897.3674 | BG15: 359621.6171 | BH15: 358541.2807 | BI15: 356610.874 | BJ15: 353988.7514 | BK15: 350752.354 | BL15: 346963.2336 | BM15: 342856.5874 | BN15: 338544.5242 | BO15: 334136.9304 | BP15: 329801.0178 | BQ15: 325612.0374 | BR15: 321645.2019 | BS15: 317986.5287 | BT15: 314658.9126 | BU15: 311678.332 | BV15: 309067.6724 | BW15: 306841.0307 | BX15: 305007.5823 | BY15: 303552.7639 | BZ15: 302461.2039
A16: 6 años | B16: 483157.7143 | C16: 473030.9302 | D16: 445668.8906 | E16: 426724 | F16: 417742.5 | G16: 407910.6406 | H16: 406770.2656 | I16: 400905.1406 | J16: 398151.9844 | K16: 402036.2712 | L16: 388165.9245 | M16: 372719.0851 | N16: 370600.9047 | O16: 375546.5701 | P16: 387904.5907 | Q16: 396321.5189 | R16: 414286.3681 | S16: 433376.2164 | T16: 446111.3541 | U16: 452558.2426 | V16: 472615.4604 | W16: 481639.3775 | X16: 487772.5761 | Y16: 497160.6363 | Z16: 499065.6413 | AA16: 516353.9835 | AB16: 489084.4864 | AC16: 478723.8504 | AD16: 472977.6962 | AE16: 453701.3117 | AF16: 428706.6473 | AG16: 431816.5542 | AH16: 421102.6393 | AI16: 409350.6135 | AJ16: 399414.445 | AK16: 389792.7149 | AL16: 380780.4151 | AM16: 372574.9736 | AN16: 365290.9892 | AO16: 359003.7743 | AP16: 353758.566 | AQ16: 349519.6238 | AR16: 346223.7262 | AS16: 343827.5443 | AT16: 342290.3995 | AU16: 341542.8634 | AV16: 341534.5434 | AW16: 342236.2678 | AX16: 343552.0033 | AY16: 345368.9521 | AZ16: 347575.0238 | BA16: 350032.6445 | BB16: 352593.7469 | BC16: 355057.518 | BD16: 357214.5258 | BE16: 358971.0714 | BF16: 360168.1249 | BG16: 360636.8959 | BH16: 360360.131 | BI16: 359281.7403 | BJ16: 357356.4035 | BK16: 354741.9254 | BL16: 351515.4189 | BM16: 347738.2209 | BN16: 343644.6797 | BO16: 339346.4606 | BP16: 334953.0516 | BQ16: 330631.0742 | BR16: 326455.4913 | BS16: 322501.2403 | BT16: 318854.0343 | BU16: 315536.6846 | BV16: 312565.1069 | BW16: 309962.1111 | BX16: 307741.7501 | BY16: 305913.1685 | BZ16: 304461.8591
A17: 7 años | B17: 516087.4364 | C17: 483689.8163 | D17: 474259.7188 | E17: 447953.3594 | F17: 429068 | G17: 419868.5 | H17: 410647.5469 | I17: 409054.7344 | J17: 403013.4219 | K17: 399473.6406 | L17: 403224.8814 | M17: 388902.0566 | N17: 375154.5201 | O17: 378948.219 | P17: 383478.627 | Q17: 394121.6486 | R17: 402373.3392 | S17: 421495.5474 | T17: 441275.3622 | U17: 449676.9483 | V17: 453929.9251 | W17: 473198.9186 | X17: 482425.2588 | Y17: 486932.0837 | Z17: 495565.0812 | AA17: 498243.124 | AB17: 515810.0953 | AC17: 488902.7625 | AD17: 478759.2469 | AE17: 473088.5393 | AF17: 453779.7829 | AG17: 429002.5055 | AH17: 432094.0922 | AI17: 421389.5043 | AJ17: 409780.1121 | AK17: 399900.5594 | AL17: 390333.2775 | AM17: 381371.5801 | AN17: 373211.8755 | AO17: 365968.1543 | AP17: 359715.3035 | AQ17: 354498.3643 | AR17: 350281.893 | AS17: 347003.2828 | AT17: 344619.5694 | AU17: 343090.2968 | AV17: 342346.5871 | AW17: 342338.5398 | AX17: 343037.3111 | AY17: 344347.3477 | AZ17: 346156.3447 | BA17: 348352.7754 | BB17: 350799.6603 | BC17: 353349.6052 | BD17: 355802.5859 | BE17: 357949.8693 | BF17: 359698.17 | BG17: 360889.0033 | BH17: 361354.1725 | BI17: 361076.551 | BJ17: 360000.1717 | BK17: 358079.8733 | BL17: 355472.9263 | BM17: 352256.1279 | BN17: 348490.6062 | BO17: 344409.886 | BP17: 340125.2051 | BQ17: 335745.6645 | BR17: 331437.3131 | BS17: 327274.8348 | BT17: 323332.9005 | BU17: 319696.9279 | BV17: 316389.6467 | BW17: 313426.9127 | BX17: 310831.462 | BY17: 308617.3042 | BZ17: 306793.554
A18: 8 años | B18: 539244.4811 | C18: 516966.4909 | D18: 485578.625 | E18: 475628.7812 | F18: 450258.8281 | G18: 431410 | H18: 421996.5 | I18: 413376.4531 | J18: 411384.2031 | K18: 405130.7031 | L18: 400815.2969 | M18: 404425.4915 | N18: 391292.5765 | O18: 383427.0661 | P18: 386144.2862 | Q18: 389470.3841 | R18: 400716.5891 | S18: 409288.622 | T18: 429546.9112 | U18: 446353.9437 | V18: 450795.4071 | W18: 454669.113 | X18: 473952.6945 | Y18: 481848.2404 | Z18: 485609.2425 | AA18: 495017.7319 | AB18: 498218.0796 | AC18: 515618.0053 | AD18: 488869.4743 | AE18: 478850.1786 | AF18: 473249.7117 | AG18: 453913.5416 | AH18: 429339.6779 | AI18: 432414.0003 | AJ18: 421719.3466 | AK18: 410242.8335 | AL18: 400416.6841 | AM18: 390900.7687 | AN18: 381986.8182 | AO18: 373870.2767 | AP18: 366664.5605 | AQ18: 360444.1553 | AR18: 355253.9158 | AS18: 351058.6768 | AT18: 347796.4055 | AU18: 345424.4788 | AV18: 343902.6513 | AW18: 343162.5605 | AX18: 343154.7661 | AY18: 343850.7297 | AZ18: 345155.3524 | BA18: 346956.7977 | BB18: 349144.0718 | BC18: 351580.7605 | BD18: 354120.1082 | BE18: 356562.8424 | BF18: 358700.9001 | BG18: 360441.3885 | BH18: 361626.3453 | BI18: 362088.1416 | BJ18: 361809.7698 | BK18: 360735.383 | BL18: 358819.9721 | BM18: 356220.2953 | BN18: 353012.8495 | BO18: 349258.5627 | BP18: 345190.1718 | BQ18: 340918.5063 | BR18: 336552.2977 | BS18: 332257.0459 | BT18: 328107.1687 | BU18: 324177.082 | BV18: 320551.9206 | BW18: 317254.3366 | BX18: 314300.1282 | BY18: 311711.9606 | BZ18: 309503.8021
A19: 9 años | B19: 567695.5158 | C19: 538112.3544 | D19: 518949.4219 | E19: 487734.375 | F19: 476987.8438 | G19: 452564.2969 | H19: 433758 | I19: 424137.5 | J19: 416123.3594 | K19: 413683.6719 | L19: 407257.9844 | M19: 402145.9531 | N19: 407157.511 | O19: 399665.733 | P19: 390930.3733 | Q19: 391740.4209 | R19: 396125.5165 | S19: 408301.8852 | T19: 416963.5887 | U19: 435094.9195 | V19: 448594.1205 | W19: 451443.5752 | X19: 455476.1106 | Y19: 473571.7832 | Z19: 480680.5539 | AA19: 485230.5399 | AB19: 495316.284 | AC19: 498422.2164 | AD19: 515608.7975 | AE19: 488955.0218 | AF19: 479051.213 | AG19: 473516.0063 | AH19: 454155.5775 | AI19: 429771.4085 | AJ19: 432829.4801 | AK19: 422144.6128 | AL19: 410791.7287 | AM19: 401015.5518 | AN19: 391547.7095 | AO19: 382678.4492 | AP19: 374602.3098 | AQ19: 367432.1686 | AR19: 361242.1345 | AS19: 356076.8863 | AT19: 351901.5184 | AU19: 348654.5324 | AV19: 346293.6236 | AW19: 344778.7431 | AX19: 344042.0103 | AY19: 344034.4128 | AZ19: 344727.6969 | BA19: 346027.19 | BB19: 347821.496 | BC19: 350000.1215 | BD19: 352427.184 | BE19: 354956.5281 | BF19: 357389.5904 | BG19: 359518.9411 | BH19: 361252.0571 | BI19: 362431.4696 | BJ19: 362890.0866 | BK19: 362611.0119 | BL19: 361538.5133 | BM19: 359627.7256 | BN19: 357034.9231 | BO19: 353836.3197 | BP19: 350092.6543 | BQ19: 346035.9193 | BR19: 341776.5594 | BS19: 337422.9565 | BT19: 333140.0919 | BU19: 329002.132 | BV19: 325083.2519 | BW19: 321468.3188 | BX19: 318179.9112 | BY19: 315233.7732 | BZ19: 312652.5029
A20: 10 años | B20: 595179.7502 | C20: 567571.5023 | D20: 540575 | E20: 521159.3281 | F20: 489893.125 | G20: 478356.9062 | H20: 454883.7656 | I20: 436128 | J20: 426269.5 | K20: 418861.2656 | L20: 415984.1406 | M20: 409385.2656 | N20: 404988.2289 | O20: 415433.2294 | P20: 407175.3779 | Q20: 396609.1444 | R20: 397749.0135 | S20: 403548.606 | T20: 416754.0622 | U20: 422324.4197 | V20: 437683.4491 | W20: 450232.8252 | X20: 452070.3892 | Y20: 454993.4666 | Z20: 472464.368 | AA20: 480429.642 | AB20: 485583.3846 | AC20: 495588.0608 | AD20: 498765.8889 | AE20: 515754.8393 | AF20: 489190.4034 | AG20: 479394.0854 | AH20: 473919.6569 | AI20: 454538.0603 | AJ20: 430330.8038 | AK20: 433373.7525 | AL20: 422698.6428 | AM20: 411460.815 | AN20: 401731.4832 | AO20: 392308.7054 | AP20: 383481.3415 | AQ20: 375443.083 | AR20: 368306.303 | AS20: 362144.7585 | AT20: 357002.9638 | AU20: 352846.2556 | AV20: 349613.6342 | AW20: 347263.0918 | AX20: 345754.7643 | AY20: 345021.2201 | AZ20: 345013.8464 | BA20: 345704.6541 | BB20: 346999.3705 | BC20: 348787.013 | BD20: 350957.5571 | BE20: 353375.6198 | BF20: 355895.6087 | BG20: 358319.6268 | BH20: 360440.8414 | BI20: 362167.0762 | BJ20: 363341.3273 | BK20: 363797.008 | BL20: 363517.3257 | BM20: 362446.6576 | BN20: 360540.2736 | BO20: 357953.9921 | BP20: 354763.761 | BQ20: 351030.141 | BR20: 346984.4236 | BS20: 342736.6917 | BT20: 338394.9982 | BU20: 334123.8359 | BV20: 329997.1351 | BW20: 326088.8438 | BX20: 322483.5777 | BY20: 319203.8461 | BZ20: 316265.3422
A21: 11 años | B21: 629063.4872 | C21: 595963.8215 | D21: 570665 | E21: 543778 | F21: 523362.2344 | G21: 492067.875 | H21: 479727.9688 | I21: 457199.2344 | J21: 438499 | K21: 428402.5 | L21: 421594.1719 | M21: 418299.6094 | N21: 412798.6866 | O21: 413237.5948 | P21: 422931.8411 | Q21: 412872.656 | R21: 402784.9199 | S21: 404686.9517 | T21: 411978.2116 | U21: 422972.9092 | V21: 424808.1546 | W21: 439362.4177 | X21: 451616.5698 | Y21: 451692.9358 | Z21: 453946.7487 | AA21: 471933.3095 | AB21: 480591.4902 | AC21: 486155.7606 | AD21: 496132.5938 | AE21: 499280.3388 | AF21: 516086.3601 | AG21: 489606.0087 | AH21: 479909.3655 | AI21: 474491.3184 | AJ21: 455091.5638 | AK21: 431048.7718 | AL21: 434077.6557 | AM21: 423412.2502 | AN21: 412281.1122 | AO21: 402595.5594 | AP21: 393214.897 | AQ21: 384426.6897 | AR21: 376423.8375 | AS21: 369318.2426 | AT21: 363183.3341 | AU21: 358063.4727 | AV21: 353924.2205 | AW21: 350705.041 | AX21: 348364.2028 | AY21: 346862.0146 | AZ21: 346131.4628 | BA21: 346124.3055 | BB21: 346812.7992 | BC21: 348103.0452 | BD21: 349884.4489 | BE21: 352047.4245 | BF21: 354457.0572 | BG21: 356968.2822 | BH21: 359383.8283 | BI21: 361497.4256 | BJ21: 363217.2227 | BK21: 364386.6537 | BL21: 364839.6073 | BM21: 364559.3876 | BN21: 363490.4758 | BO21: 361588.2692 | BP21: 359008.1562 | BQ21: 355825.8357 | BR21: 352101.7003 | BS21: 348066.3819 | BT21: 343829.6232 | BU21: 339499.1678 | BV21: 335239.0483 | BW21: 331122.973 | BX21: 327224.6767 | BY21: 323628.5378 | BZ21: 320357.0006
A22: 12 años | B22: 641856.501 | C22: 630239.641 | D22: 598954 | E22: 574419 | F22: 546996 | G22: 525580.1406 | H22: 494242.625 | I22: 481083.0312 | J22: 459502.7031 | K22: 440860 | L22: 430526.5 | M22: 424341.0781 | N22: 421913.9493 | O22: 420730.3905 | P22: 420914.4635 | Q22: 428597.6397 | R22: 419074.1125 | S22: 409473.3888 | T22: 412643.5931 | U22: 418191.9751 | V22: 425854.474 | W22: 426368.5241 | X22: 440863.1108 | Y22: 451288.3997 | Z22: 450926.6885 | AA22: 453983.2683 | AB22: 472347.5779 | AC22: 481304.4985 | AD22: 486914.2485 | AE22: 496870.3622 | AF22: 499990.3914 | AG22: 516627.4389 | AH22: 490226.5913 | AI22: 480622.249 | AJ22: 475256.4546 | AK22: 455841.9184 | AL22: 431952.009 | AM22: 434967.851 | AN22: 424312.3888 | AO22: 413280.0776 | AP22: 403635.5793 | AQ22: 394294.4143 | AR22: 385542.9365 | AS22: 377573.3046 | AT22: 370496.9806 | AU22: 364387.0877 | AV22: 359287.8427 | AW22: 355165.0182 | AX22: 351958.5076 | AY22: 349626.8372 | AZ22: 348130.4775 | BA22: 347402.8044 | BB22: 347395.92 | BC22: 348082.3087 | BD22: 349368.4228 | BE22: 351144.0323 | BF22: 353299.9626 | BG22: 355701.7392 | BH22: 358204.7925 | BI22: 360612.4409 | BJ22: 362718.9465 | BK22: 364432.7633 | BL22: 365597.7387 | BM22: 366048.2106 | BN22: 365767.5725 | BO22: 364700.4051 | BP22: 362802.2257 | BQ22: 360228.0165 | BR22: 357053.2414 | BS22: 353338.1345 | BT22: 349312.7047 | BU22: 345086.3746 | BV22: 340766.5954 | BW22: 336516.9656 | BX22: 332410.9841 | BY22: 328522.1846 | BZ22: 324934.7216
A23: 13 años | B23: 668060.2865 | C23: 642475.0716 | D23: 633589.8438 | E23: 602342 | F23: 578164 | G23: 550196 | H23: 527768.0469 | I23: 496399.375 | J23: 482451.0938 | K23: 461818.1719 | L23: 443230 | M23: 432666.5 | N23: 428317.5091 | O23: 429943.9641 | P23: 427951.2847 | Q23: 426752.0894 | R23: 434623.1504 | S23: 425798.0038 | T23: 417355.0688 | U23: 418279.5892 | V23: 421234.1245 | W23: 428100.4055 | X23: 428021.3443 | Y23: 440837.4635 | Z23: 450406.4399 | AA23: 451132.7535 | AB23: 454806.0846 | AC23: 473295.477 | AD23: 482311.6921 | AE23: 487907.2696 | AF23: 497843.9503 | AG23: 500938.786 | AH23: 517420.4386 | AI23: 491094.8112 | AJ23: 481575.8051 | AK23: 476258.3788 | AL23: 456832.2952 | AM23: 433084.147 | AN23: 436087.9431 | AO23: 425442.619 | AP23: 414501.5656 | AQ23: 404895.4614 | AR23: 395591.2286 | AS23: 386874.0933 | AT23: 378935.5231 | AU23: 371886.5705 | AV23: 365800.0744 | AW23: 360720.118 | AX23: 356612.6699 | AY23: 353418.022 | AZ23: 351094.9395 | BA23: 349604.0452 | BB23: 348879.0762 | BC23: 348872.4532 | BD23: 349556.8713 | BE23: 350839.1111 | BF23: 352609.2851 | BG23: 354758.6036 | BH23: 357153.0051 | BI23: 359648.3847 | BJ23: 362048.6156 | BK23: 364148.4632 | BL23: 365856.6676 | BM23: 367017.4675 | BN23: 367465.6245 | BO23: 367184.6156 | BP23: 366119.117 | BQ23: 364224.7598 | BR23: 361656.1422 | BS23: 358488.5077 | BT23: 354781.9405 | BU23: 350765.8617 | BV23: 346549.3924 | BW23: 342239.7082 | BX23: 337999.9971 | BY23: 333903.5609 | BZ23: 330023.7434
A24: 14 años | B24: 673527.9907 | C24: 669210.0409 | D24: 645976.4062 | E24: 637383.6562 | F24: 605737 | G24: 581877 | H24: 553388 | I24: 529947.9531 | J24: 498539.125 | K24: 483805.1562 | L24: 464121.6406 | M24: 445563 | N24: 436065.9709 | O24: 436638.6111 | P24: 437249.6322 | Q24: 433533.0395 | R24: 432873.0217 | S24: 441224.171 | T24: 433766.1348 | U24: 422987.2538 | V24: 420873.3624 | W24: 423345.4837 | X24: 429966.61 | Y24: 427889.6651 | Z24: 440098.4891 | AA24: 450530.2948 | AB24: 452107.4575 | AC24: 456110.0574 | AD24: 474637.1446 | AE24: 483596.4628 | AF24: 489178.7377 | AG24: 499096.9006 | AH24: 502168.7854 | AI24: 518507.3693 | AJ24: 492253.4538 | AK24: 482813.4531 | AL24: 477540.8758 | AM24: 458106.6934 | AN24: 434490.3878 | AO24: 437483.05 | AP24: 426848.3007 | AQ24: 415991.6937 | AR24: 406421.7323 | AS24: 397152.2643 | AT24: 388467.4599 | AU24: 380558.1384 | AV24: 373534.9692 | AW24: 367470.5262 | AX24: 362408.7677 | AY24: 358315.8454 | AZ24: 355132.4215 | BA24: 352817.4843 | BB24: 351331.8001 | BC24: 350609.4424 | BD24: 350603.1279 | BE24: 351285.7467 | BF24: 352564.3887 | BG24: 354329.4901 | BH24: 356472.6229 | BI24: 358860.116 | BJ24: 361348.3025 | BK24: 363741.5809 | BL24: 365835.1961 | BM24: 367538.1582 | BN24: 368695.0776 | BO24: 369141.1189 | BP24: 368859.8365 | BQ24: 367795.9993 | BR24: 365905.3462 | BS24: 363342.1103 | BT24: 360181.3266 | BU24: 356482.9367 | BV24: 352475.8033 | BW24: 348268.7619 | BX24: 343968.7263 | BY24: 339738.4945 | BZ24: 335651.1815
A25: 15 años | B25: 670179.4065 | C25: 674420.8558 | D25: 672370.6562 | E25: 650045.0938 | F25: 641126.4688 | G25: 609107 | H25: 585567 | I25: 556553 | J25: 532103.8594 | K25: 500650.875 | L25: 485134.2188 | M25: 466391.1094 | N25: 449249.9281 | O25: 444274.1182 | P25: 444591.9992 | Q25: 443543.2221 | R25: 439755.5613 | S25: 439839.5661 | T25: 449269.7427 | U25: 439812.4033 | V25: 425869.618 | W25: 422657.7723 | X25: 425477.713 | Y25: 430215.4314 | Z25: 427036.0265 | AA25: 440337.8114 | AB25: 451531.9861 | AC25: 453783.6314 | AD25: 457827.5817 | AE25: 476311.6952 | AF25: 485218.8979 | AG25: 490788.9456 | AH25: 500689.6905 | AI25: 503740.8901 | AJ25: 519947.4794 | AK25: 493762.4091 | AL25: 484395.9533 | AM25: 479165.2067 | AN25: 459726.1146 | AO25: 436232.9265 | AP25: 439215.2723 | AQ25: 428591.5169 | AR25: 417813.3448 | AS25: 408277.5326 | AT25: 399040.9016 | AU25: 390386.6311 | AV25: 382504.9316 | AW25: 375506.1135 | AX25: 369462.5037 | AY25: 364417.9436 | AZ25: 360338.7576 | BA25: 357165.9533 | BB25: 354858.7281 | BC25: 353377.9841 | BD25: 352658.11 | BE25: 352652.0978 | BF25: 353333.0194 | BG25: 354608.2569 | BH25: 356368.5536 | BI25: 358505.8233 | BJ25: 360886.7656 | BK25: 363368.1281 | BL25: 365754.8097 | BM25: 367842.5138 | BN25: 369540.507 | BO25: 370693.7554 | BP25: 371137.8084 | BQ25: 370856.2931 | BR25: 369794.0691 | BS25: 367906.9785 | BT25: 365348.9052 | BU25: 362194.6865 | BV25: 358504.1279 | BW25: 354505.5587 | BX25: 350307.5427 | BY25: 346016.7436 | BZ25: 341795.5869
A26: 16 años | B26: 662786.4965 | C26: 670681.9152 | D26: 677200.7344 | E26: 675914.8438 | F26: 654070.7812 | G26: 644879.2812 | H26: 612447 | I26: 589224 | J26: 559671 | K26: 534207.7656 | L26: 502715.625 | M26: 486409.2812 | N26: 469882.6431 | O26: 457474.7076 | P26: 452095.8523 | Q26: 451087.8721 | R26: 450136.0388 | S26: 446659.5665 | T26: 448683.5867 | U26: 456013.6262 | V26: 443250.441 | W26: 428008.922 | X26: 424446.8855 | Y26: 426017.2382 | Z26: 429583.7983 | AA26: 427394.4814 | AB26: 441429.666 | AC26: 453449.8426 | AD26: 455865.2127 | AE26: 459937.2454 | AF26: 478379.9809 | AG26: 487239.0693 | AH26: 492797.7734 | AI26: 502681.9595 | AJ26: 505714.5319 | AK26: 521798.1529 | AL26: 495680.4145 | AM26: 486383.3697 | AN26: 481192.2378 | AO26: 461751.6034 | AP26: 438374.9408 | AQ26: 441347.7251 | AR26: 430735.7254 | AS26: 420031.3662 | AT26: 410528.3899 | AU26: 401323.3204 | AV26: 392698.3955 | AW26: 384843.2466 | AX26: 377867.8444 | AY26: 371844.2832 | AZ26: 366816.2948 | BA26: 362750.3688 | BB26: 359587.8398 | BC26: 357288.1042 | BD26: 355812.1954 | BE26: 355094.8008 | BF26: 355089.1727 | BG26: 355768.554 | BH26: 357040.6074 | BI26: 358796.3718 | BJ26: 360928.0884 | BK26: 363302.8129 | BL26: 365777.6913 | BM26: 368158.1042 | BN26: 370240.2006 | BO26: 371933.4927 | BP26: 373083.2911 | BQ26: 373525.5178 | BR26: 373243.8684 | BS26: 372183.2921 | BT26: 370299.7305 | BU26: 367746.7295 | BV26: 364598.9361 | BW26: 360916.024 | BX26: 356925.8068 | BY26: 352736.5863 | BZ26: 348454.7848
A27: 17 años | B27: 668569.2708 | C27: 663154.4995 | D27: 673421.2969 | E27: 680304.0156 | F27: 679395.0312 | G27: 658042.4688 | H27: 648533.0938 | I27: 615723 | J27: 592834 | K27: 562731 | L27: 536292.6719 | M27: 504748.375 | N27: 489405.6066 | O27: 478118.8636 | P27: 465850.3312 | Q27: 459840.1323 | R27: 459281.8544 | S27: 458670.6339 | T27: 456920.9129 | U27: 456417.2636 | V27: 460327.0479 | W27: 446187.709 | X27: 430624.3129 | Y27: 425121.1828 | Z27: 425640.211 | AA27: 430208.5443 | AB27: 428671.4962 | AC27: 443781.2579 | AD27: 455896.0102 | AE27: 458390.013 | AF27: 462488.5668 | AG27: 480891.085 | AH27: 489705.4173 | AI27: 495253.5896 | AJ27: 505121.9843 | AK27: 508137.761 | AL27: 524105.459 | AM27: 498054.4489 | AN27: 488823.8577 | AO27: 483670.8033 | AP27: 464231.7242 | AQ27: 440966.8049 | AR27: 443930.6583 | AS27: 433331.2538 | AT27: 422697.2949 | AU27: 413226.3107 | AV27: 404051.9757 | AW27: 395455.6224 | AX27: 387626.3253 | AY27: 380673.7306 | AZ27: 374669.7113 | BA27: 369657.8957 | BB27: 365604.9339 | BC27: 362452.4742 | BD27: 360160.105 | BE27: 358688.9884 | BF27: 357974.0988 | BG27: 357968.9373 | BH27: 358646.9107 | BI27: 359915.9537 | BJ27: 361667.3935 | BK27: 363793.7883 | BL27: 366162.5407 | BM27: 368631.1833 | BN27: 371005.5669 | BO27: 373082.2772 | BP27: 374771.0652 | BQ27: 375917.579 | BR27: 376358.105 | BS27: 376076.4044 | BT27: 375017.5155 | BU27: 373137.4778 | BV27: 370589.5058 | BW27: 367448.0615 | BX27: 363772.6898 | BY27: 359790.6997 | BZ27: 355610.1378
A28: 18 años | B28: 659320.7279 | C28: 668824.3244 | D28: 665457.0156 | E28: 676592.4531 | F28: 683430.2969 | G28: 682889.2188 | H28: 661981.1562 | I28: 652145.9062 | J28: 618954 | K28: 596383 | L28: 565763 | M28: 538310.5781 | N28: 508931.2225 | O28: 500141.6474 | P28: 488242.1019 | Q28: 475809.3196 | R28: 470525.9959 | S28: 471564.4504 | T28: 473860.6999 | U28: 466841.0127 | V28: 462413.3832 | W28: 464552.4986 | X28: 450268.0866 | Y28: 432387.8488 | Z28: 425659.2112 | AA28: 427490.4609 | AB28: 433196.7432 | AC28: 431463.1286 | AD28: 446656.2418 | AE28: 458818.6715 | AF28: 461387.5677 | AG28: 465511.1032 | AH28: 483873.7361 | AI28: 492645.5121 | AJ28: 498183.4066 | AK28: 508036.1985 | AL28: 511036.3112 | AM28: 526892.8841 | AN28: 500908.3619 | AO28: 491741.9628 | AP28: 486625.7236 | AQ28: 467190.7284 | AR28: 444034.1944 | AS28: 446989.3704 | AT28: 436403.2588 | AU28: 425837.2143 | AV28: 416397.649 | AW28: 407253.4932 | AX28: 398685.1956 | AY28: 390881.286 | AZ28: 383951.0935 | BA28: 377966.2763 | BB28: 372970.3617 | BC28: 368930.1566 | BD28: 365787.6131 | BE28: 363502.5067 | BF28: 362036.1259 | BG28: 361323.7243 | BH28: 361319.0438 | BI28: 361995.6492 | BJ28: 363261.7431 | BK28: 365008.9368 | BL28: 367130.1003 | BM28: 369492.9784 | BN28: 371955.4844 | BO28: 374323.9347 | BP28: 376395.3496 | BQ28: 378079.7156 | BR28: 379223.0162 | BS28: 379661.9 | BT28: 379380.1921 | BU28: 378323.0209 | BV28: 376446.5232 | BW28: 373903.5839 | BX28: 370768.4824 | BY28: 367100.6355 | BZ28: 363126.8511
A29: 19 años | B29: 654926.9971 | C29: 659432.104 | D29: 670607.2031 | E29: 668176.2344 | F29: 679701.6094 | G29: 686519.5781 | H29: 686318.4062 | I29: 665891.8438 | J29: 655740.7188 | K29: 622172 | L29: 599898 | M29: 568786 | N29: 543489.1608 | O29: 522083.0966 | P29: 512367.097 | Q29: 500936.9459 | R29: 489288.7911 | S29: 486619.5519 | T29: 490892.3345 | U29: 484267.8748 | V29: 472476.3296 | W29: 466679.6078 | X29: 468594.7396 | Y29: 451867.1371 | Z29: 432651.1348 | AA29: 427864.1976 | AB29: 430799.8283 | AC29: 436371.3008 | AD29: 434866.5037 | AE29: 449992.8625 | AF29: 462199.4276 | AG29: 464840.1479 | AH29: 468987.1567 | AI29: 487309.1462 | AJ29: 496039.4772 | AK29: 501566.8547 | AL29: 511403.6324 | AM29: 514388.6647 | AN29: 530136.7979 | AO29: 504219.6509 | AP29: 495116.1077 | AQ29: 490035.9125 | AR29: 470607.6773 | AS29: 447558.053 | AT29: 450504.5627 | AU29: 439932.6931 | AV29: 429433.2049 | AW29: 420025.0438 | AX29: 410911.0579 | AY29: 402370.8137 | AZ29: 394592.2959 | BA29: 387684.5171 | BB29: 381718.9213 | BC29: 376738.934 | BD29: 372711.5175 | BE29: 369578.9229 | BF29: 367301.1104 | BG29: 365839.4954 | BH29: 365129.6074 | BI29: 365125.425 | BJ29: 365800.6685 | BK29: 367063.8085 | BL29: 368806.743 | BM29: 370922.6543 | BN29: 373279.6321 | BO29: 375735.9725 | BP29: 378098.4627 | BQ29: 380164.5653 | BR29: 381844.5035 | BS29: 382984.6024 | BT29: 383421.8777 | BU29: 383140.2179 | BV29: 382084.8448 | BW29: 380211.9937 | BX29: 377674.2145 | BY29: 374545.6023 | BZ29: 370885.4435
A30: 20 años | B30: 647058.0086 | C30: 654271.4282 | D30: 661208.4062 | E30: 672708.0469 | F30: 670861.4531 | G30: 682885.7656 | H30: 689594.8594 | I30: 689751.5938 | J30: 669754.5312 | K30: 659360.5312 | L30: 625378 | M30: 603430 | N30: 575443.3073 | O30: 560141.1542 | P30: 536828.4859 | Q30: 527756.7949 | R30: 516610.9247 | S30: 507844.6444 | T30: 508931.8457 | U30: 502908.9852 | V30: 489985.8333 | W30: 477383.1503 | X30: 471225.0909 | Y30: 470393.873 | Z30: 451986.4092 | AA30: 435372.0971 | AB30: 431466.3686 | AC30: 434341.4126 | AD30: 440095.1706 | AE30: 438669.3184 | AF30: 453728.5558 | AG30: 465975.1612 | AH30: 468684.4053 | AI30: 472852.9248 | AJ30: 491131.9167 | AK30: 499820.6494 | AL30: 505336.4705 | AM30: 515155.8835 | AN30: 518125.7053 | AO30: 533766.0529 | AP30: 507918.5284 | AQ30: 498877.181 | AR30: 493832.5788 | AS30: 474414.3969 | AT30: 451472.0532 | AU30: 454409.5837 | AV30: 443853.335 | AW30: 433420.0362 | AX30: 424043.8819 | AY30: 414960.6658 | AZ30: 406449.0511 | BA30: 398696.4612 | BB30: 391811.5819 | BC30: 385865.6368 | BD30: 380901.945 | BE30: 376887.6241 | BF30: 373765.2238 | BG30: 371494.8898 | BH30: 370038.1663 | BI30: 369330.861 | BJ30: 369327.1894 | BK30: 370001.0259 | BL30: 371261.117 | BM30: 372999.6566 | BN30: 375110.1476 | BO30: 377461.0364 | BP30: 379911.0143 | BQ30: 382267.3575 | BR30: 384327.9917 | BS30: 386003.3851 | BT30: 387140.2194 | BU30: 387575.8942 | BV30: 387294.3617 | BW30: 386240.9435 | BX30: 384371.9777 | BY30: 381839.6634 | BZ30: 378717.904
A31: 21 años | B31: 643911.4584 | C31: 646212.1441 | D31: 655858.0156 | E31: 663394.0938 | F31: 674877.8906 | G31: 673601.6719 | H31: 686053.9219 | I31: 692644.1406 | J31: 693176.7812 | K31: 673610.2188 | L31: 662931.3438 | M31: 628538 | N31: 611067.5717 | O31: 594196.2925 | P31: 576966.2516 | Q31: 554207.9815 | R31: 545161.8639 | S31: 535670.9038 | T31: 531805.7205 | U31: 521792.8119 | V31: 508399.2398 | W31: 495028.3819 | X31: 482019.5857 | Y31: 472820.5269 | Z31: 470140.7532 | AA31: 454361.6837 | AB31: 438875.3144 | AC31: 435191.5374 | AD31: 438300.4249 | AE31: 444093.0561 | AF31: 442744.0989 | AG31: 457734.4371 | AH31: 470016.4244 | AI31: 472791.1746 | AJ31: 476979.3478 | AK31: 495211.6716 | AL31: 503858.0531 | AM31: 509361.1505 | AN31: 519161.2834 | AO31: 522115.7496 | AP31: 537647.6706 | AQ31: 511874.6726 | AR31: 502896.0578 | AS31: 497887.3848 | AT31: 478484.3761 | AU31: 455652.1081 | AV31: 458580.3195 | AW31: 448042.1488 | AX31: 437675.8806 | AY31: 428333.3506 | AZ31: 419282.4779 | BA31: 410800.9769 | BB31: 403075.6781 | BC31: 396214.9231 | BD31: 390289.7038 | BE31: 385343.2252 | BF31: 381342.7648 | BG31: 378231.1775 | BH31: 375968.7993 | BI31: 374517.3104 | BJ31: 373812.8047 | BK31: 373809.7397 | BL31: 374482.1467 | BM31: 375739.0632 | BN31: 377472.9983 | BO31: 379577.7934 | BP31: 381922.2747 | BQ31: 384365.553 | BR31: 386715.428 | BS31: 388770.3264 | BT31: 390440.9762 | BU31: 391574.4441 | BV31: 392008.5431 | BW31: 391727.2908 | BX31: 390676.1193 | BY31: 388811.477 | BZ31: 386285.1834
A32: 22 años | B32: 653565.4304 | C32: 642789.2083 | D32: 648039.5469 | E32: 657928.2344 | F32: 665630.7812 | G32: 677066.7344 | H32: 676321.8906 | I32: 689206.0781 | J32: 695720.4219 | K32: 696560.9688 | L32: 677452.9062 | M32: 666509.1562 | N32: 636434.6569 | O32: 632142.0083 | P32: 612446.4866 | Q32: 596798.8944 | R32: 572865.4354 | S32: 565834.2545 | T32: 560746.1738 | U32: 545265.025 | V32: 526664.9706 | W32: 512590.9706 | X32: 499445.1049 | Y32: 483688.1915 | Z32: 471979.9472 | AA32: 472175.3785 | AB32: 457814.6483 | AC32: 442749.012 | AD32: 439213.9914 | AE32: 442405.0663 | AF32: 448232.7131 | AG32: 446958.0366 | AH32: 461876.3509 | AI32: 474187.7474 | AJ32: 477024.1062 | AK32: 481229.3676 | AL32: 499409.823 | AM32: 508012.1699 | AN32: 513500.6345 | AO32: 523278.4914 | AP32: 526216.8571 | AQ32: 541638.527 | AR32: 515946.3306 | AS32: 507031.0938 | AT32: 502058.6121 | AU32: 482677.0611 | AV32: 459958.8292 | AW32: 462876.9054 | AX32: 452359.7928 | AY32: 442061.7426 | AZ32: 432754.8704 | BA32: 423738.3294 | BB32: 415288.8186 | BC32: 407592.5286 | BD32: 400757.4288 | BE32: 394854.2608 | BF32: 389926.1034 | BG32: 385940.3985 | BH32: 382840.3147 | BI32: 380586.3853 | BJ32: 379140.4342 | BK32: 378438.8541 | BL32: 378436.3513 | BM32: 379107.1172 | BN32: 380360.5024 | BO32: 382089.3581 | BP32: 384187.8903 | BQ32: 386525.3382 | BR32: 388961.2676 | BS32: 391304.0522 | BT32: 393352.6741 | BU32: 395018.1441 | BV32: 396147.955 | BW32: 396580.3769 | BX32: 396299.496 | BY32: 395250.8704 | BZ32: 393391.0707
A33: 23 años | B33: 645363.6664 | C33: 651626.6329 | D33: 644685.6406 | E33: 650467.2031 | F33: 660067.4531 | G33: 667896.4688 | H33: 679257.5781 | I33: 679030.1094 | J33: 692405.2344 | K33: 698730.7031 | L33: 699971.1562 | M33: 681317.5938 | N33: 675214.5632 | O33: 659215.3322 | P33: 651701.6171 | Q33: 633485.5072 | R33: 616983.7496 | S33: 594073.3745 | T33: 591803.4863 | U33: 574630.2632 | V33: 550030.7396 | W33: 530194.9761 | X33: 516939.9778 | Y33: 500066.6908 | Z33: 482901.9142 | AA33: 473646.6399 | AB33: 475743.5725 | AC33: 461549.9016 | AD33: 446626.5029 | AE33: 443216.3522 | AF33: 446484.2574 | AG33: 452342.603 | AH33: 451139.7046 | AI33: 465982.0655 | AJ33: 478315.6491 | AK33: 481209.4553 | AL33: 485429.1583 | AM33: 503551.2744 | AN33: 512107.6947 | AO33: 517579.6352 | AP33: 527331.6951 | AQ33: 530253.4802 | AR33: 545562.6152 | AS33: 519960.4037 | AT33: 511110.1602 | AU33: 506174.8222 | AV33: 486823.4982 | AW33: 464225.3397 | AX33: 467132.5127 | AY33: 456640.7826 | AZ33: 446413.0176 | BA33: 437144.8603 | BB33: 428165.6172 | BC33: 419750.8837 | BD33: 412086.1495 | BE33: 405278.9769 | BF33: 399399.8353 | BG33: 394491.6629 | BH33: 390522.0754 | BI33: 387434.569 | BJ33: 385189.8852 | BK33: 383750.0046 | BL33: 383051.6361 | BM33: 383049.7463 | BN33: 383718.6923 | BO33: 384968.168 | BP33: 386691.4035 | BQ33: 388783.0042 | BR33: 391112.6674 | BS33: 393540.4616 | BT33: 395875.401 | BU33: 397917.0956 | BV33: 399576.8692 | BW33: 400702.6949 | BX33: 401133.3574 | BY33: 400853.0161 | BZ33: 399807.3754
A34: 24 años | B34: 644034.2332 | C34: 641624.6666 | D34: 653389.5156 | E34: 647243.6094 | F34: 652974.8594 | G34: 662207.6719 | H34: 670097.1562 | I34: 681429.4219 | J34: 681808.3281 | K34: 695575.3906 | L34: 701774.9844 | M34: 703350.3438 | N34: 690461.8411 | O34: 699218.6778 | P34: 680087.1541 | Q34: 674411.7633 | R34: 654444.4035 | S34: 639089.3288 | T34: 620073.6233 | U34: 606204.3004 | V34: 578951.6947 | W34: 553069.4253 | X34: 534183.2165 | Y34: 516665.928 | Z34: 497607.5571 | AA34: 483744.36 | AB34: 476731.4851 | AC34: 479116.6414 | AD34: 465178.53 | AE34: 450344.8727 | AF34: 447054.1085 | AG34: 450392.0421 | AH34: 456275.6466 | AI34: 455141.0576 | AJ34: 469902.827 | AK34: 482249.8231 | AL34: 485195.7271 | AM34: 489426.4672 | AN34: 507482.6101 | AO34: 515990.7681 | AP34: 521443.7745 | AQ34: 531165.7391 | AR34: 534070.1879 | AS34: 549264.2269 | AT34: 523762.2945 | AU34: 514978.5464 | AV34: 510081.1722 | AW34: 490770.1305 | AX34: 468298.6511 | AY34: 471193.8925 | AZ34: 460732.4354 | BA34: 450577.0564 | BB34: 441350.9919 | BC34: 432412.3321 | BD34: 424035.4669 | BE34: 416405.1138 | BF34: 409628.387 | BG34: 403775.4573 | BH34: 398889.1044 | BI34: 394937.1275 | BJ34: 391863.3655 | BK34: 389628.7795 | BL34: 388195.5207 | BM34: 387500.6342 | BN34: 387499.3589 | BO34: 388166.2231 | BP34: 389411.2987 | BQ34: 391128.2372 | BR34: 393212.0838 | BS34: 395533.0455 | BT34: 397951.7484 | BU34: 400277.9253 | BV34: 402311.8981 | BW34: 403965.3386 | BX34: 405086.764 | BY34: 405515.5406 | BZ34: 405235.9057
A35: 25 años | B35: 652729.624 | C35: 641087.4619 | D35: 643181.6094 | E35: 655862.7344 | F35: 649815.5781 | G35: 655454.5156 | H35: 664319.8906 | I35: 672305.8438 | J35: 683623.2656 | K35: 684517.5469 | L35: 698753.5469 | M35: 704778.2656 | N35: 712159.2661 | O35: 715101.9104 | P35: 720640.1216 | Q35: 703213.0527 | R35: 696048.9159 | S35: 676476.3445 | T35: 665323.1823 | U35: 634831.917 | V35: 609716.6539 | W35: 580841.4397 | X35: 555641.3606 | Y35: 532641.0162 | Z35: 512335.5026 | AA35: 497426.9206 | AB35: 486560.0051 | AC35: 479696.8865 | AD35: 482317.791 | AE35: 468518.4907 | AF35: 453778.7286 | AG35: 450601.0554 | AH35: 454001.5099 | AI35: 459904.5397 | AJ35: 458834.268 | AK35: 473511.1087 | AL35: 485861.9462 | AM35: 488853.9922 | AN35: 493092.0852 | AO35: 511074.4091 | AP35: 519532.0924 | AQ35: 524963.739 | AR35: 534651.1113 | AS35: 537537.5518 | AT35: 552614.4096 | AU35: 527223.449 | AV35: 518507.4717 | AW35: 513648.737 | AX35: 494388.7454 | AY35: 472050.4177 | AZ35: 474932.6375 | BA35: 464506.6222 | BB35: 454425.4645 | BC35: 445244.9151 | BD35: 436350.167 | BE35: 428014.3004 | BF35: 420421.1881 | BG35: 413677.4541 | BH35: 407852.9432 | BI35: 402990.2585 | BJ35: 399057.3918 | BK35: 395998.5394 | BL35: 393774.8932 | BM35: 392348.7894 | BN35: 391657.6288 | BO35: 391656.9338 | BP35: 392321.4097 | BQ35: 393561.5416 | BR35: 395271.4465 | BS35: 397346.6507 | BT35: 399657.9251 | BU35: 402066.5106 | BV35: 404382.9395 | BW35: 406408.3342 | BX35: 408054.7508 | BY35: 409171.3174 | BZ35: 409598.052
A36: 26 años | B36: 625943.8563 | C36: 649106.3749 | D36: 642688.5625 | E36: 645856.1406 | F36: 658377.9531 | G36: 652424.5469 | H36: 657872.1719 | I36: 666458.1094 | J36: 674578.5312 | K36: 685833.1094 | L36: 687274.7656 | M36: 701888.7031 | N36: 713286.4282 | O36: 736992.0551 | P36: 735973.019 | Q36: 743964.8027 | R36: 724177.8289 | S36: 717795.619 | T36: 702789.7544 | U36: 679558.9543 | V36: 637614.5369 | W36: 610791.0344 | X36: 582468.0967 | Y36: 552537.7957 | Z36: 526425.3977 | AA36: 511371.5143 | AB36: 499355.3229 | AC36: 489018.9201 | AD36: 482500.4686 | AE36: 485135.9338 | AF36: 471474.4377 | AG36: 456832.2347 | AH36: 453760.3357 | AI36: 457215.086 | AJ36: 463131.321 | AK36: 462120.8516 | AL36: 476708.8494 | AM36: 489053.5245 | AN36: 492085.4579 | AO36: 496327.1748 | AP36: 514228.0888 | AQ36: 522633.4585 | AR36: 528041.6191 | AS36: 537690.118 | AT36: 540558.2458 | AU36: 555516.7002 | AV36: 530247.5731 | AW36: 521600.6226 | AX36: 516781.2982 | AY36: 497583.5917 | AZ36: 475384.6572 | BA36: 478253.0282 | BB36: 467867.8967 | BC36: 457862.6464 | BD36: 448731.125 | BE36: 439883.6997 | BF36: 431592.0418 | BG36: 424039.1097 | BH36: 417330.9978 | BI36: 411537.2004 | BJ36: 406700.1277 | BK36: 402787.9742 | BL36: 399745.307 | BM36: 397533.5607 | BN36: 396115.2709 | BO36: 395428.2131 | BP36: 395428.2041 | BQ36: 396090.1313 | BR36: 397324.928 | BS36: 399027.219 | BT36: 401093.0523 | BU36: 403393.8146 | BV36: 405791.4164 | BW36: 408097.268 | BX36: 410113.3772 | BY36: 411752.2197 | BZ36: 412863.5983
A37: 27 años | B37: 604867.957 | C37: 622277.8366 | D37: 651050.125 | E37: 645236.4375 | F37: 648531.6719 | G37: 660847.1719 | H37: 654953.5156 | I37: 660336.8281 | J37: 668653.3281 | K37: 676836.2188 | L37: 688049.9531 | M37: 689992.9844 | N37: 710457.9692 | O37: 736946.6393 | P37: 757135.3753 | Q37: 758535.2076 | R37: 763803.0318 | S37: 744887.1014 | T37: 743321.3228 | U37: 715830.3576 | V37: 681832.889 | W37: 637916.81 | X37: 611130.8181 | Y37: 577925.0248 | Z37: 545446.5114 | AA37: 524168.0518 | AB37: 512283.2138 | AC37: 500948.1285 | AD37: 491198.9645 | AE37: 484903.925 | AF37: 487550.4138 | AG37: 474023.876 | AH37: 459481.1131 | AI37: 456506.724 | AJ37: 460007.3593 | AK37: 465930.7418 | AL37: 464974.8707 | AM37: 479471.4741 | AN37: 491800.6049 | AO37: 494865.9038 | AP37: 499107.4513 | AQ37: 516920.7888 | AR37: 525272.4892 | AS37: 530655.2022 | AT37: 540261.0281 | AU37: 543110.453 | AV37: 557950.5692 | AW37: 532811.3306 | AX37: 524233.3495 | AY37: 519453.3112 | AZ37: 500327.1476 | BA37: 478271.3067 | BB37: 481124.9306 | BC37: 470784.9407 | BD37: 460855.9281 | BE37: 451775.8225 | BF37: 442978.051 | BG37: 434732.8002 | BH37: 427222.0598 | BI37: 420551.3631 | BJ37: 414789.8336 | BK37: 409979.674 | BL37: 406089.2866 | BM37: 403063.6163 | BN37: 400864.3467 | BO37: 399454.2228 | BP37: 398771.4069 | BQ37: 398772.0159 | BR37: 399431.1209 | BS37: 400660.1294 | BT37: 402354.2079 | BU37: 404409.9565 | BV37: 406699.4191 | BW37: 409085.219 | BX37: 411379.7075 | BY37: 413385.8478 | BZ37: 415016.5629
A38: 28 años | B38: 594369.0836 | C38: 601313.1367 | D38: 623901.375 | E38: 654049.875 | F38: 647748.3125 | G38: 651150.2031 | H38: 663293.3906 | I38: 657497.4844 | J38: 662808.4844 | K38: 670795.5469 | L38: 679101.9062 | M38: 690248.7969 | N38: 697917.0364 | O38: 733699.8499 | P38: 756307.816 | Q38: 777936.7113 | R38: 777732.4673 | S38: 783370.2296 | T38: 768770.6719 | U38: 755908.0407 | V38: 716715.063 | W38: 681192.2261 | X38: 637173.2178 | Y38: 605870.8066 | Z38: 568986.2576 | AA38: 542542.3754 | AB38: 524105.8323 | AC38: 513384.5956 | AD38: 502488.8327 | AE38: 492991.1753 | AF38: 486899.1511 | AG38: 489553.3471 | AH38: 476157.9464 | AI38: 461715.5858 | AJ38: 458830.3039 | AK38: 462368.8395 | AL38: 468293.8853 | AM38: 467387.4623 | AN38: 481791.4226 | AO38: 494096.7197 | AP38: 497189.3428 | AQ38: 501427.4834 | AR38: 519148.7061 | AS38: 527446.2638 | AT38: 532802.2826 | AU38: 542362.639 | AV38: 545193.4808 | AW38: 559916.7991 | AX38: 534913.813 | AY38: 526404.3372 | AZ38: 521663.3439 | BA38: 502616.7162 | BB38: 480706.1263 | BC38: 483544.5646 | BD38: 473253.3684 | BE38: 463400.308 | BF38: 454373.4637 | BG38: 445627.1451 | BH38: 437430.0021 | BI38: 429963.0175 | BJ38: 423331.1419 | BK38: 417603.115 | BL38: 412820.9225 | BM38: 408953.178 | BN38: 405945.2076 | BO38: 403758.9483 | BP38: 402357.3622 | BQ38: 401679.0058 | BR38: 401680.2988 | BS38: 402336.4961 | BT38: 403559.4989 | BU38: 405245.0398 | BV38: 407290.2932 | BW38: 409567.9902 | BX38: 411941.4984 | BY38: 414224.1561 | BZ38: 416219.9341
A39: 29 años | B39: 602283.569 | C39: 591265.8691 | D39: 603027.4375 | E39: 626589.625 | F39: 657032.625 | G39: 650199.1875 | H39: 653734.7344 | I39: 665693.6094 | J39: 660095.4531 | K39: 665308.1406 | L39: 672952.7656 | M39: 681363.5938 | N39: 697524.0958 | O39: 719515.1215 | P39: 752103.6119 | Q39: 776084.987 | R39: 796093.6767 | S39: 795992.7813 | T39: 805977.0134 | U39: 780100.1763 | V39: 756406.5907 | W39: 715182.6222 | X39: 679500.681 | Y39: 630658.5074 | Z39: 596113.979 | AA39: 564830.6002 | AB39: 541861.7428 | AC39: 524292.2486 | AD39: 514280.0348 | AE39: 503712.2599 | AF39: 494443.0333 | AG39: 488534.0787 | AH39: 491193.3815 | AI39: 477923.8729 | AJ39: 463581.1581 | AK39: 460776.5679 | AL39: 464345.8255 | AM39: 470267.9578 | AN39: 469405.8146 | AO39: 483717.6253 | AP39: 495992.5571 | AQ39: 499106.9718 | AR39: 503338.9796 | AS39: 520965.8007 | AT39: 529209.5782 | AU39: 534538.2022 | AV39: 544051.3725 | AW39: 546863.8815 | AX39: 561473.4785 | AY39: 536609.5657 | AZ39: 528166.9136 | BA39: 523463.9568 | BB39: 504502.0115 | BC39: 482735.9142 | BD39: 485558.8984 | BE39: 475318.5884 | BF39: 465539.8451 | BG39: 456566.7872 | BH39: 447872.4452 | BI39: 439723.9134 | BJ39: 432301.1519 | BK39: 425708.5197 | BL39: 420014.3671 | BM39: 415260.4578 | BN39: 411415.6154 | BO39: 408425.5432 | BP39: 406252.4302 | BQ39: 404859.458 | BR39: 404185.577 | BS39: 404187.5061 | BT39: 404840.681 | BU39: 406057.5041 | BV39: 407734.2856 | BW39: 409768.7834 | BX39: 412034.4297 | BY39: 414395.3507 | BZ39: 416665.895
A40: 30 años | B40: 585784.0974 | C40: 600359.367 | D40: 592944.2812 | E40: 605675.5625 | F40: 629228.875 | G40: 659916.375 | H40: 652632.0625 | I40: 656202.2656 | J40: 668208.8281 | K40: 662756.4219 | L40: 667783.7969 | M40: 675127.9844 | N40: 688493.2103 | O40: 718536.0927 | P40: 736868.7181 | Q40: 771188.9055 | R40: 792818.635 | S40: 813429.2716 | T40: 817295.4638 | U40: 816375.1115 | V40: 779875.7911 | W40: 754073.0686 | X40: 712602.4172 | Y40: 671705.3819 | Z40: 619820.2923 | AA40: 591236.501 | AB40: 563691.5945 | AC40: 541281.7501 | AD40: 524603.2414 | AE40: 514936.0453 | AF40: 504662.1609 | AG40: 495599.2702 | AH40: 489854.583 | AI40: 492516.9188 | AJ40: 479367.5025 | AK40: 465122.8344 | AL40: 462391.1103 | AM40: 465985.0122 | AN40: 471900.7006 | AO40: 471078.2098 | AP40: 485299.7493 | AQ40: 497539.5808 | AR40: 500671.2561 | AS40: 504895.2902 | AT40: 522427.4313 | AU40: 530618.7746 | AV40: 535920.1781 | AW40: 545385.7343 | AX40: 548180.7331 | AY40: 562681.0881 | AZ40: 537957.0135 | BA40: 529579.2229 | BB40: 524913.2803 | BC40: 506039.373 | BD40: 484415.401 | BE40: 487223.224 | BF40: 477035.0731 | BG40: 467328.4948 | BH40: 458409.1297 | BI40: 449766.6797 | BJ40: 441666.692 | BK40: 434288.1077 | BL40: 427734.697 | BM40: 422074.424 | BN40: 417348.8309 | BO40: 413526.949 | BP40: 410554.8511 | BQ40: 408394.9749 | BR40: 407010.7212 | BS40: 406341.4287 | BT40: 406344.1095 | BU40: 406994.3756 | BV40: 408205.1298 | BW40: 409873.2607 | BX40: 411897.1083 | BY40: 414150.8068 | BZ40: 416499.2409
A41: 31 años | B41: 578213.4309 | C41: 584061.0139 | D41: 602110.7656 | E41: 595627.2188 | F41: 608462.6875 | G41: 631800.125 | H41: 662762.125 | I41: 654997.9375 | J41: 658911.7969 | K41: 670781.0469 | L41: 665411.3906 | M41: 670281.4531 | N41: 681850.8722 | O41: 708183.7591 | P41: 734696.8203 | Q41: 753884.6413 | R41: 787082.9157 | S41: 808438.2739 | T41: 833064.6527 | U41: 827313.7052 | V41: 816108.7548 | W41: 777432.2226 | X41: 750842.4934 | Y41: 704228.7241 | Z41: 660077.4123 | AA41: 614534.0683 | AB41: 589301.281 | AC41: 562879.8664 | AD41: 541089.3416 | AE41: 524784.3996 | AF41: 515423.4346 | AG41: 505411.8678 | AH41: 496534.5243 | AI41: 490936.6773 | AJ41: 493600.6309 | AK41: 480564.4964 | AL41: 466414.7641 | AM41: 463748.526 | AN41: 467362.0906 | AO41: 473268.8466 | AP41: 472481.6631 | AQ41: 486616.311 | AR41: 498818.2128 | AS41: 501963.4133 | AT41: 506178.2566 | AU41: 523617.5508 | AV41: 531758.5405 | AW41: 537033.4505 | AX41: 546452.0372 | AY41: 549230.4902 | AZ41: 563627.2766 | BA41: 539040.6101 | BB41: 530724.8021 | BC41: 526094.2833 | BD41: 507309.0343 | BE41: 485822.3624 | BF41: 488615.5141 | BG41: 478479.3465 | BH41: 468841.7311 | BI41: 459974.8112 | BJ41: 451383.0511 | BK41: 443330.4902 | BL41: 435995.0745 | BM41: 429480.0001 | BN41: 423852.8552 | BO41: 419154.9654 | BP41: 415355.5634 | BQ41: 412401.078 | BR41: 410254.1871 | BS41: 408878.5061 | BT41: 408213.7496 | BU41: 408217.2119 | BV41: 408864.6739 | BW41: 410069.5279 | BX41: 411729.2291 | BY41: 413742.6865 | BZ41: 415984.7224
A42: 32 años | B42: 568269.4202 | C42: 576225.3473 | D42: 585898.2344 | E42: 604530.4844 | F42: 598240.1562 | G42: 611174.8125 | H42: 634323.375 | I42: 665529.875 | J42: 657589.8125 | K42: 661630.3281 | L42: 673377.2656 | M42: 668072.3594 | N42: 676974.6287 | O42: 701000.3884 | P42: 723599.4469 | Q42: 751511.0976 | R42: 768653.3536 | S42: 802094.8496 | T42: 826739.4232 | U42: 841948.0692 | V42: 827030.4841 | W42: 813588.568 | X42: 774154.4715 | Y42: 742006.5169 | Z42: 692694.5095 | AA42: 654106.9024 | AB42: 612556.1041 | AC42: 587822.0593 | AD42: 562234.8132 | AE42: 540869.7711 | AF42: 524898.0594 | AG42: 515808.042 | AH42: 506029.8227 | AI42: 497318.5735 | AJ42: 491851.5136 | AK42: 494516.0174 | AL42: 481585.4993 | AM42: 467526.2249 | AN42: 464918.5019 | AO42: 468547.608 | AP42: 474443.7526 | AQ42: 473687.8033 | AR42: 487739.9347 | AS42: 499902.663 | AT42: 503058.2608 | AU42: 507263.165 | AV42: 524613.0261 | AW42: 532706.244 | AX42: 537955.7196 | AY42: 547328.7971 | AZ42: 550091.6897 | BA42: 564391.3428 | BB42: 539937.0541 | BC42: 531679.6142 | BD42: 527082.4601 | BE42: 508384.2028 | BF42: 487028.0913 | BG42: 489807.1905 | BH42: 479721.6197 | BI42: 470148.9815 | BJ42: 461332.3347 | BK42: 452789.1696 | BL42: 444782.0806 | BM42: 437488.0583 | BN42: 431009.7482 | BO42: 425414.3779 | BP42: 420743.0648 | BQ42: 416965.2331 | BR42: 414027.6492 | BS42: 411893.2199 | BT42: 410525.7661 | BU42: 409865.3606 | BV42: 409869.5651 | BW42: 410514.3203 | BX42: 411713.4884 | BY42: 413365.0701 | BZ42: 415368.5209
A43: 33 años | B43: 531512.7843 | C43: 566732.6315 | D43: 577837.2344 | E43: 588471.5156 | F43: 606960.2031 | G43: 600797.0938 | H43: 613827.9375 | I43: 636870.625 | J43: 668499.625 | K43: 660237.6875 | L43: 664331.8594 | M43: 675945.4844 | N43: 674740.4926 | O43: 694740.3163 | P43: 715855.7264 | Q43: 739071.3037 | R43: 765587.03 | S43: 782579.054 | T43: 819874.3701 | U43: 835057.9237 | V43: 841398.7457 | W43: 824678.9135 | X43: 810100.842 | Y43: 765298.009 | Z43: 729807.0725 | AA43: 686418.2898 | AB43: 651483.4809 | AC43: 610648.477 | AD43: 586744.0342 | AE43: 561635.1489 | AF43: 540649.2497 | AG43: 524974.8497 | AH43: 516124.7721 | AI43: 506554.3306 | AJ43: 497991.8691 | AK43: 492641.5283 | AL43: 495306.0688 | AM43: 482473.707 | AN43: 468500.1063 | AO43: 465944.8624 | AP43: 469586.4473 | AQ43: 475471.2198 | AR43: 474743.1408 | AS43: 488717.8784 | AT43: 500841.6079 | AU43: 504005.358 | AV43: 508200.251 | AW43: 525465.3081 | AX43: 533513.8949 | AY43: 538739.5037 | AZ43: 548069.3568 | BA43: 550817.9805 | BB43: 565027.5047 | BC43: 540699.3113 | BD43: 532496.574 | BE43: 527930.7793 | BF43: 509316.5902 | BG43: 488083.4833 | BH43: 490849.4677 | BI43: 480812.5373 | BJ43: 471300.7172 | BK43: 462531.807 | BL43: 454034.783 | BM43: 446070.8728 | BN43: 438816.1631 | BO43: 432372.7787 | BP43: 426807.6072 | BQ43: 422161.5692 | BR43: 418404.2703 | BS43: 415482.7943 | BT43: 413360.264 | BU43: 412000.6959 | BV43: 411344.5002 | BW43: 411349.4904 | BX43: 411991.7566 | BY43: 413185.6072 | BZ43: 414829.5605
A44: 34 años | B44: 518988.6885 | C44: 530289.9692 | D44: 568238.5938 | E44: 580100.5156 | F44: 591010.7969 | G44: 609357.9219 | H44: 603269.0312 | I44: 616477.0625 | J44: 639574.875 | K44: 671606.375 | L44: 662841.5625 | M44: 667076.3906 | N44: 682113.2906 | O44: 691553.172 | P44: 708990.4945 | Q44: 731267.3678 | R44: 752318.8915 | S44: 778834.8764 | T44: 798411.5075 | U44: 827876.4351 | V44: 834601.6817 | W44: 839112.3929 | X44: 821755.9015 | Y44: 801538.5585 | Z44: 753808.4154 | AA44: 723568.3243 | AB44: 683371.4357 | AC44: 648814.0248 | AD44: 609264.6686 | AE44: 585783.5982 | AF44: 561101.3988 | AG44: 540453.8528 | AH44: 525045.2016 | AI44: 516408.1916 | AJ44: 507023.1784 | AK44: 498594.2624 | AL44: 493348.3727 | AM44: 496013.0099 | AN44: 483271.4402 | AO44: 469378.3285 | AP44: 466870.2846 | AQ44: 470522.1915 | AR44: 476395.5379 | AS44: 475692.3964 | AT44: 489595.4675 | AU44: 501681.4331 | AV44: 504851.7488 | AW44: 509036.9323 | AX44: 526222.7126 | AY44: 534230.0245 | AZ44: 539433.5635 | BA44: 548722.9211 | BB44: 551458.5734 | BC44: 565585.1797 | BD44: 541375.4414 | BE44: 533223.4697 | BF44: 528686.8334 | BG44: 510152.4617 | BH44: 489033.9205 | BI44: 491787.7489 | BJ44: 481796.8156 | BK44: 472341.3197 | BL44: 463617.1146 | BM44: 455163.2972 | BN44: 447239.8185 | BO44: 440021.9205 | BP44: 433611.2419 | BQ44: 428074.3536 | BR44: 423451.9926 | BS44: 419713.934 | BT44: 416807.557 | BU44: 414696.1858 | BV44: 413344.0202 | BW44: 412691.7851 | BX44: 412697.5278 | BY44: 413337.4774 | BZ44: 414526.3597
A45: 35 años | B45: 499076.2398 | C45: 517827.8126 | D45: 531711.3438 | E45: 570302.9062 | F45: 582344.7969 | G45: 593519.0781 | H45: 611619.6406 | I45: 605758.9688 | J45: 619325.1875 | K45: 642406.125 | L45: 674719.125 | M45: 665495.4375 | N45: 673199.3893 | O45: 698022.3382 | P45: 705260.3506 | Q45: 723475.6816 | R45: 744364.2749 | S45: 764980.3114 | T45: 794161.6848 | U45: 805521.7289 | V45: 827660.2349 | W45: 832655.5405 | X45: 836294.5223 | Y45: 813390.7962 | Z45: 790449.8066 | AA45: 747764.8369 | AB45: 720138.4646 | AC45: 680553.6009 | AD45: 646882.5028 | AE45: 608030.5948 | AF45: 584927.4536 | AG45: 560626.7421 | AH45: 540281.8337 | AI45: 525111.3632 | AJ45: 516664.1815 | AK45: 507445.1916 | AL45: 499136.5122 | AM45: 493984.4642 | AN45: 496649.4235 | AO45: 483991.8753 | AP45: 470174.2772 | AQ45: 467708.9117 | AR45: 471369.5517 | AS45: 477231.7948 | AT45: 476551.1715 | AU45: 490388.184 | AV45: 502438.1201 | AW45: 505613.8928 | AX45: 509789.9297 | AY45: 526902.0558 | AZ45: 534871.4465 | BA45: 540054.7951 | BB45: 549306.5399 | BC45: 552030.5619 | BD45: 566081.1767 | BE45: 541982.3117 | BF45: 533877.4513 | BG45: 529367.9712 | BH45: 510908.9733 | BI45: 489896.8552 | BJ45: 492639.5637 | BK45: 482691.9563 | BL45: 473288.5652 | BM45: 464606.1201 | BN45: 456192.6557 | BO45: 448306.9366 | BP45: 441123.4199 | BQ45: 434743.2932 | BR45: 429232.8342 | BS45: 424632.61 | BT45: 420912.5542 | BU45: 418020.3199 | BV45: 415919.4193 | BW45: 414574.2231 | BX45: 413925.7491 | BY45: 413932.2611 | BZ45: 414570.1173
A46: 36 años | B46: 503237.6825 | C46: 498136.0343 | D46: 519082.2656 | E46: 533686.1562 | F46: 572367.2188 | G46: 584551.0781 | H46: 595886.3594 | I46: 613935.3594 | J46: 608471.9062 | K46: 622220.3125 | L46: 645220.375 | M46: 677742.875 | N46: 671268.1008 | O46: 687227.9826 | P46: 710695.7816 | Q46: 719260.4381 | R46: 735530.6772 | S46: 756614.7328 | T46: 779757.3456 | U46: 801263.5128 | V46: 805443.2395 | W46: 826069.7171 | X46: 830178.6594 | Y46: 828437.8635 | Z46: 803226.4819 | AA46: 784375.4425 | AB46: 744485.6062 | AC46: 716681.2447 | AD46: 678352.7154 | AE46: 645149.8529 | AF46: 606921.2689 | AG46: 584157.3455 | AH46: 560199.4642 | AI46: 540126.6509 | AJ46: 525170.7815 | AK46: 516893.6881 | AL46: 507824.1679 | AM46: 499624.3535 | AN46: 494557.1284 | AO46: 497222.8299 | AP46: 484643.2633 | AQ46: 470896.6002 | AR46: 468470.0831 | AS46: 472138.3101 | AT46: 477989.983 | AU46: 477329.8498 | AV46: 491106.085 | AW46: 503121.8984 | AX46: 506302.3377 | AY46: 510469.8683 | AZ46: 527513.7119 | BA46: 535448.3035 | BB46: 540613.246 | BC46: 549830.1357 | BD46: 552543.7591 | BE46: 566524.73 | BF46: 542529.4846 | BG46: 534468.3575 | BH46: 529984.1736 | BI46: 511596.1446 | BJ46: 490682.8235 | BK46: 493415.3649 | BL46: 483508.471 | BM46: 474153.2716 | BN46: 465509.7807 | BO46: 457133.9502 | BP46: 449283.4439 | BQ46: 442131.9901 | BR46: 435780.3588 | BS46: 430294.5565 | BT46: 425714.9935 | BU46: 422011.751 | BV46: 419132.7368 | BW46: 417041.6377 | BX46: 415702.9842 | BY46: 415058.0659 | BZ46: 415065.3474
A47: 37 años | B47: 506296.4361 | C47: 502760.2404 | D47: 499241.9688 | E47: 520814.9844 | F47: 535590.9688 | G47: 574400.5312 | H47: 586718.3594 | I47: 598317.6406 | J47: 616433.0781 | K47: 611256.8438 | L47: 625078.4375 | M47: 647949.625 | N47: 683751.0352 | O47: 684583.3047 | P47: 698474.3837 | Q47: 723475.9229 | R47: 731033.1089 | S47: 747159.9229 | T47: 770936.3213 | U47: 786314.1826 | V47: 801499.7631 | W47: 804343.3243 | X47: 823812.9062 | Y47: 822595.5162 | Z47: 818130.8842 | AA47: 797239.8465 | AB47: 781076.897 | AC47: 741414.7976 | AD47: 714083.8169 | AE47: 676366.9503 | AF47: 643585.9752 | AG47: 605916.372 | AH47: 583457.8136 | AI47: 559808.952 | AJ47: 539981.4924 | AK47: 525219.5025 | AL47: 517095.2321 | AM47: 508160.6202 | AN47: 500059.5681 | AO47: 495069.1418 | AP47: 497735.7546 | AQ47: 485228.5715 | AR47: 471548.4719 | AS47: 469157.3214 | AT47: 472832.0524 | AU47: 478673.5515 | AV47: 478032.0177 | AW47: 491752.0618 | AX47: 503735.4314 | AY47: 506919.7874 | AZ47: 511079.2903 | BA47: 528059.5695 | BB47: 535962.0163 | BC47: 541110.0364 | BD47: 550294.444 | BE47: 552998.6524 | BF47: 566915.4822 | BG47: 543017.2348 | BH47: 534996.7693 | BI47: 530536.1567 | BJ47: 512215.011 | BK47: 491393.6414 | BL47: 494116.8006 | BM47: 484248.2064 | BN47: 474937.6907 | BO47: 466330.6024 | BP47: 457989.9367 | BQ47: 450172.3318 | BR47: 443050.8375 | BS47: 436725.8353 | BT47: 431263.0794 | BU47: 426702.8348 | BV47: 423015.3205 | BW47: 420148.6812 | BX47: 418066.7662 | BY47: 416734.256 | BZ47: 416092.6927
A48: 38 años | B48: 475499.8655 | C48: 505763.0623 | D48: 503812.9844 | E48: 500732.5312 | F48: 522545.7031 | G48: 537433.7812 | H48: 576343.8438 | I48: 588847.6406 | J48: 600840.9219 | K48: 618913.7969 | L48: 614023.7812 | M48: 627910.5625 | N48: 653426.2905 | O48: 696514.7845 | P48: 695158.1279 | Q48: 709421.7004 | R48: 734692.7643 | S48: 742378.2919 | T48: 760709.2778 | U48: 777260.987 | V48: 786487.5039 | W48: 800305.0747 | X48: 802219.2142 | Y48: 816751.4977 | Z48: 813312.5623 | AA48: 812507.4429 | AB48: 793894.946 | AC48: 777700.4099 | AD48: 738697.2882 | AE48: 711712.142 | AF48: 674546.9952 | AG48: 642149.0772 | AH48: 604984.2105 | AI48: 582802.5728 | AJ48: 559434.2515 | AK48: 539829.6572 | AL48: 525244.0763 | AM48: 517258.0352 | AN48: 508446.0285 | AO48: 500435.2373 | AP48: 495514.8317 | AQ48: 498182.5256 | AR48: 485743.0722 | AS48: 472125.93 | AT48: 469767.211 | AU48: 473447.5164 | AV48: 479279.1444 | AW48: 478654.5948 | AX48: 492322.2829 | AY48: 504274.5369 | AZ48: 507462.1624 | BA48: 511614.0068 | BB48: 528534.6234 | BC48: 536407.1144 | BD48: 541539.4443 | BE48: 550693.3088 | BF48: 553388.917 | BG48: 567246.1893 | BH48: 543439.4666 | BI48: 535457.1046 | BJ48: 531018.6222 | BK48: 512761.0114 | BL48: 492025.9133 | BM48: 494740.3279 | BN48: 484908.0529 | BO48: 475639.2931 | BP48: 467066.4949 | BQ48: 458758.95 | BR48: 450972.3337 | BS48: 443879.0585 | BT48: 437579.1412 | BU48: 432138.0999 | BV48: 427596.0633 | BW48: 423923.3802 | BX48: 421068.4173 | BY48: 418995.1769 | BZ48: 417668.4802
A49: 39 años | B49: 470928.222 | C49: 474481.6951 | D49: 506596.8281 | E49: 505169.7656 | F49: 502196.0938 | G49: 524195.4219 | H49: 539261.5938 | I49: 578319.1562 | J49: 591078.9219 | K49: 603415.2031 | L49: 621345.5156 | M49: 616763.7188 | N49: 633222.0162 | O49: 665035.2211 | P49: 706500.7639 | Q49: 705497.1825 | R49: 718824.0824 | S49: 745137.2477 | T49: 755776.1502 | U49: 766951.1092 | V49: 777182.4763 | W49: 785994.3066 | X49: 798714.1098 | Y49: 795946.0146 | Z49: 807650.1174 | AA49: 807902.5506 | AB49: 809422.747 | AC49: 790597.7282 | AD49: 774711.0194 | AE49: 736161.3415 | AF49: 709493.8965 | AG49: 672831.3012 | AH49: 640785.1567 | AI49: 604080.7045 | AJ49: 582153.0806 | AK49: 559042.331 | AL49: 539642.651 | AM49: 525219.515 | AN49: 517359.9494 | AO49: 508660.7593 | AP49: 500733.6782 | AQ49: 495878.0585 | AR49: 498547.348 | AS49: 486172.4337 | AT49: 472615.9736 | AU49: 470287.6243 | AV49: 473973.0045 | AW49: 479795.2104 | AX49: 479186.593 | AY49: 492805.2315 | AZ49: 504727.4969 | BA49: 507918.1366 | BB49: 512062.8467 | BC49: 528927.0652 | BD49: 536771.5722 | BE49: 541889.4755 | BF49: 551014.5271 | BG49: 553702.4665 | BH49: 567504.0854 | BI49: 543784.9725 | BJ49: 535838.9532 | BK49: 531421.6972 | BL49: 513225.3374 | BM49: 492572.2619 | BN49: 495278.608 | BO49: 485481.33 | BP49: 476252.155 | BQ49: 467712.1524 | BR49: 459436.2748 | BS49: 451679.2851 | BT49: 444612.9918 | BU49: 438337.067 | BV49: 432916.8067 | BW49: 428392.2116 | BX49: 424733.7548 | BY49: 421890.0143 | BZ49: 419825.1383
A50: 40 años | B50: 489459.4037 | C50: 469614.6031 | D50: 475108.7656 | E50: 507645.4219 | F50: 506476.5469 | G50: 503586.6562 | H50: 525769.1406 | I50: 540994.4062 | J50: 580263.4688 | K50: 593301.2031 | L50: 605892.4844 | M50: 623709.2344 | N50: 621518.7158 | O50: 643990.1671 | P50: 674205.529 | Q50: 716342.6164 | R50: 714420.3747 | S50: 727666.677 | T50: 757737.5531 | U50: 761227.0724 | V50: 767255.9563 | W50: 776260.966 | X50: 784673.0059 | Y50: 792697.3682 | Z50: 787984.1395 | AA50: 802552.3553 | AB50: 804457.7566 | AC50: 805929.3154 | AD50: 787516.1969 | AE50: 771906.7815 | AF50: 733774.4107 | AG50: 707400.0248 | AH50: 671197.2821 | AI50: 639475.6469 | AJ50: 603193.1887 | AK50: 581499.6321 | AL50: 558626.5026 | AM50: 539416.1229 | AN50: 525143.2832 | AO50: 517399.9517 | AP50: 508805.0532 | AQ50: 500955.9578 | AR50: 496160.5524 | AS50: 498831.7731 | AT50: 486518.6513 | AU50: 473020.9221 | AV50: 470721.1376 | AW50: 474411.0931 | AX50: 480224.2175 | AY50: 479630.6376 | AZ50: 493202.9813 | BA50: 505096.1888 | BB50: 508289.5956 | BC50: 512427.625 | BD50: 529238.188 | BE50: 537056.4156 | BF50: 542160.9813 | BG50: 551258.7166 | BH50: 553939.8212 | BI50: 567689.1366 | BJ50: 544054.4246 | BK50: 536143.317 | BL50: 531746.5847 | BM50: 513609.6468 | BN50: 493035.0764 | BO50: 495733.9883 | BP50: 485970.6653 | BQ50: 476779.3026 | BR50: 468270.9005 | BS50: 460025.5285 | BT50: 452297.0788 | BU50: 445256.7845 | BV50: 439003.9903 | BW50: 433603.7817 | BX50: 429096.0385 | BY50: 425451.3541 | BZ50: 422618.5086
A51: 41 años | B51: 518720.9827 | C51: 488668.0577 | D51: 469902.0469 | E51: 476064.4844 | F51: 508679.0156 | G51: 507757.3281 | H51: 504914.2188 | I51: 527290.8594 | J51: 542773.2188 | K51: 582245.7812 | L51: 595511.4844 | M51: 608304.7656 | N51: 628254.7364 | O51: 631165.0894 | P51: 652581.709 | Q51: 683079.6036 | R51: 724752.1081 | S51: 722793.2525 | T51: 737540.2779 | U51: 762945.3169 | V51: 761391.4516 | W51: 766630.4648 | X51: 774612.5526 | Y51: 778723.4099 | Z51: 784778.2916 | AA51: 783091.8604 | AB51: 799100.9316 | AC51: 801137.2118 | AD51: 802879.2258 | AE51: 784616.8257 | AF51: 769261.5461 | AG51: 731514.8013 | AH51: 705411.8379 | AI51: 669631.641 | AJ51: 638210.6601 | AK51: 602316.6603 | AL51: 580839.7431 | AM51: 558186.7809 | AN51: 539152.0818 | AO51: 525018.9158 | AP51: 517382.912 | AQ51: 508884.8814 | AR51: 501108.8021 | AS51: 496369.6431 | AT51: 499043.1865 | AU51: 486789.4212 | AV51: 473348.6797 | AW51: 471075.942 | AX51: 474770.1688 | AY51: 480574.6224 | AZ51: 479995.3392 | BA51: 493524.0055 | BB51: 505389.1191 | BC51: 508585.2205 | BD51: 512717.0683 | BE51: 529476.6071 | BF51: 537270.1637 | BG51: 542362.482 | BH51: 551434.3531 | BI51: 554109.4542 | BJ51: 567809.5881 | BK51: 544256.3221 | BL51: 536378.8856 | BM51: 532002.0942 | BN51: 513922.8599 | BO51: 493423.5886 | BP51: 496115.6998 | BQ51: 486385.3823 | BR51: 477230.2447 | BS51: 468752.363 | BT51: 460536.4449 | BU51: 452835.5516 | BV51: 445820.3678 | BW51: 439589.927 | BX51: 434209.1153 | BY51: 429717.6992 | BZ51: 426086.3884
A52: 42 años | B52: 476394.8635 | C52: 517221.569 | D52: 489212.1719 | E52: 470464.7031 | F52: 476907.2031 | G52: 509616.6094 | H52: 508979.1094 | I52: 506180.7812 | J52: 528876.5781 | K52: 544535.0312 | L52: 584136.0938 | M52: 597604.7656 | N52: 612575.5454 | O52: 637416.7502 | P52: 638834.568 | Q52: 660948.0774 | R52: 690794.0864 | S52: 733006.4877 | T52: 732263.4209 | U52: 742485.5269 | V52: 763192.257 | W52: 760698.0885 | X52: 765406.4993 | Y52: 768528.5611 | Z52: 771101.4333 | AA52: 780072.5059 | AB52: 779976.0322 | AC52: 795790.6334 | AD52: 798173.934 | AE52: 800016.6733 | AF52: 781896.2386 | AG52: 766774.1459 | AH52: 729383.7596 | AI52: 703532.1334 | AJ52: 668140.4768 | AK52: 636997.9574 | AL52: 601461.7155 | AM52: 580185.2462 | AN52: 557736.2294 | AO52: 538864.4452 | AP52: 524861.0016 | AQ52: 517324.1105 | AR52: 508915.9967 | AS52: 501208.1345 | AT52: 496521.4121 | AU52: 499197.4998 | AV52: 487000.3566 | AW52: 473614.4481 | AX52: 471367.1901 | AY52: 475065.3829 | AZ52: 480861.5467 | BA52: 480295.7383 | BB52: 493783.2768 | BC52: 505621.3587 | BD52: 508820.0548 | BE52: 512946.1437 | BF52: 529657.3256 | BG52: 537427.7077 | BH52: 542508.7563 | BI52: 551556.1727 | BJ52: 554225.9551 | BK52: 567879.9076 | BL52: 544404.7247 | BM52: 536559.5619 | BN52: 532201.9919 | BO52: 514178.3617 | BP52: 493750.9481 | BQ52: 496436.8154 | BR52: 486738.3393 | BS52: 477617.7326 | BT52: 469169.1412 | BU52: 460981.484 | BV52: 453307.0325 | BW52: 446315.9505 | BX52: 440106.9765 | BY52: 434744.8089 | BZ52: 430269.1074
A53: 43 años | B53: 456479.7967 | C53: 475139.6948 | D53: 517471.7344 | E53: 489926.5781 | F53: 470957.3594 | G53: 477744.9219 | H53: 510507.2031 | I53: 510090.8906 | J53: 507501.3438 | K53: 530436.2969 | L53: 546211.8438 | M53: 585931.4062 | N53: 601529.7428 | O53: 621007.9853 | P53: 644697.6177 | Q53: 646360.5932 | R53: 667937.0023 | S53: 697957.5755 | T53: 741792.8533 | U53: 736506.848 | V53: 742499.2338 | W53: 762814.1212 | X53: 759410.6612 | Y53: 760504.0201 | Z53: 761183.6937 | AA53: 767032.8541 | AB53: 776895.8921 | AC53: 777082.848 | AD53: 792876.8137 | AE53: 795334.263 | AF53: 797270.1736 | AG53: 779285.4261 | AH53: 764379.9275 | AI53: 727323.0244 | AJ53: 701707.3033 | AK53: 666677.0119 | AL53: 635795.8563 | AM53: 600592.9551 | AN53: 579504.5395 | AO53: 557247.0045 | AP53: 538528.538 | AQ53: 524647.4324 | AR53: 517203.5833 | AS53: 508880.4002 | AT53: 501237.5969 | AU53: 496600.8977 | AV53: 499280.5026 | AW53: 487138.5699 | AX53: 473806.5663 | AY53: 471584.1853 | AZ53: 475286.7797 | BA53: 481075.631 | BB53: 480523.2613 | BC53: 493972.5029 | BD53: 505785.0882 | BE53: 508986.9846 | BF53: 513108.3356 | BG53: 529774.1284 | BH53: 537523.2858 | BI53: 542594.5787 | BJ53: 551619.4245 | BK53: 554285.1236 | BL53: 567896.1837 | BM53: 544496.6221 | BN53: 536683.032 | BO53: 532344.566 | BP53: 514375.0635 | BQ53: 494016.7953 | BR53: 496697.3889 | BS53: 487030.0646 | BT53: 477942.821 | BU53: 469522.7331 | BV53: 461362.5597 | BW53: 453713.8239 | BX53: 446746.1972 | BY53: 440558.1422 | BZ53: 435214.1825
A54: 44 años | B54: 489320.4611 | C54: 455190.5424 | D54: 475132.9688 | E54: 518059.0156 | F54: 490622.9844 | G54: 471378.0156 | H54: 478487.6406 | I54: 511331.7969 | J54: 511133.6719 | K54: 508727.9062 | L54: 531854.0156 | M54: 547808.6562 | N54: 589369.2003 | O54: 609372.6498 | P54: 627787.8004 | Q54: 651739.1066 | R54: 652985.2012 | S54: 674885.5346 | T54: 705995.86 | U54: 745554.6855 | V54: 736718.6291 | W54: 741818.861 | X54: 761984.7695 | Y54: 754215.5984 | Z54: 753771.5599 | AA54: 756918.3946 | AB54: 764383.2581 | AC54: 774153.4771 | AD54: 774387.3107 | AE54: 790098.3358 | AF54: 792624.6233 | AG54: 794646.797 | AH54: 776791.1446 | AI54: 762086.5114 | AJ54: 725340.896 | AK54: 699946.0172 | AL54: 665251.4972 | AM54: 634615.0049 | AN54: 599722.3131 | AO54: 578809.9175 | AP54: 556731.8043 | AQ54: 538157.1964 | AR54: 524391.2031 | AS54: 517034.5851 | AT54: 508791.4487 | AU54: 501210.4212 | AV54: 496621.2864 | AW54: 499305.1007 | AX54: 487216.5224 | AY54: 473936.9374 | AZ54: 471738.663 | BA54: 475445.9699 | BB54: 481228.4303 | BC54: 480689.3641 | BD54: 494103.0645 | BE54: 505891.8306 | BF54: 509097.4045 | BG54: 513214.9652 | BH54: 529838.412 | BI54: 537568.259 | BJ54: 542631.1866 | BK54: 551635.3663 | BL54: 554298.0867 | BM54: 567869.5259 | BN54: 544542.6175 | BO54: 536759.6825 | BP54: 532440.0461 | BQ54: 514522.7687 | BR54: 494230.5887 | BS54: 496906.85 | BT54: 487269.7473 | BU54: 478214.5599 | BV54: 469822.0202 | BW54: 461688.3963 | BX54: 454064.5065 | BY54: 447119.561 | BZ54: 440951.7648
A55: 45 años | B55: 462485.4509 | C55: 488160.2087 | D55: 455216.4219 | E55: 475365.5312 | F55: 518529.2969 | G55: 491200.3906 | H55: 471763.6719 | I55: 479176.3594 | J55: 512125.3906 | K55: 512192.4531 | L55: 509862.4688 | M55: 533204.7344 | N55: 550914.6099 | O55: 596374.508 | P55: 615403.8387 | Q55: 634458.1645 | R55: 657890.2373 | S55: 659160.4242 | T55: 682709.2774 | U55: 709316.9785 | V55: 745554.4338 | W55: 736244.6866 | X55: 741083.3647 | Y55: 757200.7526 | Z55: 747544.3865 | AA55: 749696.8783 | AB55: 754163.8653 | AC55: 761576.8357 | AD55: 771431.4567 | AE55: 771792.6744 | AF55: 787427.1886 | AG55: 790017.3188 | AH55: 792119.5976 | AI55: 774387.0525 | AJ55: 759869.565 | AK55: 723415.8868 | AL55: 698228.7017 | AM55: 663847.6074 | AN55: 633441.2648 | AO55: 598838.6338 | AP55: 578091.8129 | AQ55: 556182.6342 | AR55: 537743.7205 | AS55: 524086.5892 | AT55: 516812.2131 | AU55: 508644.9459 | AV55: 501122.9378 | AW55: 496579.3165 | AX55: 499268.1193 | AY55: 487231.355 | AZ55: 474002.982 | BA55: 471828.2784 | BB55: 475540.7685 | BC55: 481317.8205 | BD55: 480792.0633 | BE55: 494172.9004 | BF55: 505939.5253 | BG55: 509149.4188 | BH55: 513264.2093 | BI55: 529848.2759 | BJ55: 537560.7031 | BK55: 542616.7176 | BL55: 551602.1422 | BM55: 554263.061 | BN55: 567798.0452 | BO55: 544541.1702 | BP55: 536788.204 | BQ55: 532487.295 | BR55: 514620.5688 | BS55: 494391.7611 | BT55: 497064.6982 | BU55: 487457.0563 | BV55: 478432.831 | BW55: 470067.0539 | BX55: 461959.208 | BY55: 454359.449 | BZ55: 447436.5547
A56: 46 años | B56: 461024.4533 | C56: 461058.7787 | D56: 487728.0938 | E56: 455509.3281 | F56: 475430.0938 | G56: 518767.5781 | H56: 491673.7969 | I56: 472093.3281 | J56: 479810.0781 | K56: 512852.9844 | L56: 513095.2344 | M56: 510935.0312 | N56: 535986.9624 | O56: 557269.5653 | P56: 601999.5682 | Q56: 621523.2139 | R56: 639968.6744 | S56: 663684.7525 | T56: 666103.0392 | U56: 685698.4073 | V56: 709162.6619 | W56: 744772.1802 | X56: 735175.3377 | Y56: 736754.0718 | Z56: 751119.5782 | AA56: 743748.2874 | AB56: 747037.9915 | AC56: 751223.9378 | AD56: 758997.2472 | AE56: 768798.9204 | AF56: 769278.1956 | AG56: 784842.5435 | AH56: 787492.6457 | AI56: 789670.1129 | AJ56: 772055.6708 | AK56: 757713.544 | AL56: 721534.8596 | AM56: 696543.8591 | AN56: 662456.472 | AO56: 632267.4516 | AP56: 597937.0211 | AQ56: 577346.5186 | AR56: 555596.9379 | AS56: 537286.4568 | AT56: 523732.6078 | AU56: 516536.0477 | AV56: 508440.9221 | AW56: 500975.4654 | AX56: 496475.5154 | AY56: 499170.0348 | AZ56: 487183.6294 | BA56: 474005.3033 | BB56: 471853.6844 | BC56: 475571.821 | BD56: 481344.3747 | BE56: 480831.9108 | BF56: 494182.371 | BG56: 505928.4129 | BH56: 509143.2402 | BI56: 513256.1898 | BJ56: 529803.6334 | BK56: 537500.3597 | BL56: 542550.7972 | BM56: 551519.2215 | BN56: 554179.4081 | BO56: 567680.8448 | BP56: 544491.5198 | BQ56: 536767.8748 | BR56: 532485.5853 | BS56: 514667.8046 | BT56: 494499.8312 | BU56: 497170.3682 | BV56: 487591.4582 | BW56: 478597.175 | BX56: 470257.4187 | BY56: 462174.6241 | BZ56: 454598.3228
A57: 47 años | B57: 401303.5355 | C57: 459607.2076 | D57: 460748.3281 | E57: 487426.4062 | F57: 455719.2344 | G57: 475489.6562 | H57: 519019.8594 | I57: 492195.2031 | J57: 472322.9844 | K57: 480399.7969 | L57: 513466.5781 | M57: 513943.0156 | N57: 513340.5733 | O57: 541807.6116 | P57: 562315.4932 | Q57: 607385.8868 | R57: 626760.6264 | S57: 645495.0598 | T57: 670206.9904 | U57: 668816.3457 | V57: 685159.1047 | W57: 708413.9802 | X57: 743770.8791 | Y57: 730876.3214 | Z57: 731379.5004 | AA57: 747477.902 | AB57: 741080.1906 | AC57: 744116.336 | AD57: 748540.0456 | AE57: 756455.605 | AF57: 766208.8203 | AG57: 766796.9028 | AH57: 782295.1943 | AI57: 785001.0528 | AJ57: 787248.4964 | AK57: 769748.0114 | AL57: 755570.8367 | AM57: 719653.2329 | AN57: 694848.99 | AO57: 661039.1321 | AP57: 631057.1852 | AQ57: 596984.5412 | AR57: 576543.0026 | AS57: 554945.717 | AT57: 536758.0256 | AU57: 523303.1796 | AV57: 516180.9018 | AW57: 508155.0666 | AX57: 500744.3884 | AY57: 496286.8243 | AZ57: 498987.6345 | BA57: 487051.0126 | BB57: 473922.4293 | BC57: 471793.7061 | BD57: 475517.8025 | BE57: 481286.5861 | BF57: 480787.6885 | BG57: 494109.4796 | BH57: 505836.0869 | BI57: 509056.3577 | BJ57: 513168.3586 | BK57: 529681.1042 | BL57: 537363.647 | BM57: 542409.6721 | BN57: 551362.593 | BO57: 554023.1426 | BP57: 567493.3448 | BQ57: 544370.5561 | BR57: 536676.1846 | BS57: 532412.8362 | BT57: 514643.5184 | BU57: 494535.1114 | BV57: 497204.2489 | BW57: 487653.999 | BX57: 478689.3349 | BY57: 470375.4772 | BZ57: 462317.6084
A58: 48 años | B58: 371728.0292 | C58: 399824.6479 | D58: 459149.3281 | E58: 460614.9219 | F58: 486960.7188 | G58: 455723.1406 | H58: 475403.2188 | I58: 519215.1406 | J58: 492647.6094 | K58: 472509.6406 | L58: 480859.5156 | M58: 513962.1719 | N58: 515917.8545 | O58: 518233.6134 | P58: 546293.9573 | Q58: 567153.7308 | R58: 611817.829 | S58: 631594.4863 | T58: 651362.7232 | U58: 672438.4492 | V58: 668402.1746 | W58: 684501.4818 | X58: 707417.1173 | Y58: 739628.9035 | Z58: 725474.1001 | AA58: 727994.7707 | AB58: 744856.7514 | AC58: 738098.2886 | AD58: 741420.8291 | AE58: 745869.0848 | AF58: 753913.461 | AG58: 763622.029 | AH58: 764310.9634 | AI58: 779746.7281 | AJ58: 782504.6905 | AK58: 784817.8987 | AL58: 767428.5369 | AM58: 753408.1192 | AN58: 717741.0043 | AO58: 693116.3222 | AP58: 659570.9531 | AQ58: 629788.3047 | AR58: 595961.9539 | AS58: 575663.698 | AT58: 554213.0039 | AU58: 536143.8846 | AV58: 522784.714 | AW58: 515733.8573 | AX58: 507775.0809 | AY58: 500417.9579 | AZ58: 496001.8041 | BA58: 498709.537 | BB58: 486822.6222 | BC58: 473744.0365 | BD58: 471638.2147 | BE58: 475368.6579 | BF58: 481134.24 | BG58: 480649.1593 | BH58: 493943.6605 | BI58: 505651.5156 | BJ58: 508877.8435 | BK58: 512989.652 | BL58: 529469.1185 | BM58: 537138.6403 | BN58: 542181.3426 | BO58: 551119.9022 | BP58: 553781.8532 | BQ58: 567222.6352 | BR58: 544166.2369 | BS58: 536501.4706 | BT58: 532257.596 | BU58: 514536.9015 | BV58: 494487.5989 | BW58: 497156.2338 | BX58: 487634.9609 | BY58: 478699.9468 | BZ58: 470412.1925
A59: 49 años | B59: 466766.6972 | C59: 370339.4327 | D59: 399227.9219 | E59: 458890.9219 | F59: 460433.5156 | G59: 486461.0312 | H59: 455781.0469 | I59: 475209.7812 | J59: 519303.4219 | K59: 492937.0156 | L59: 472540.2969 | M59: 481259.2344 | N59: 515560.2758 | O59: 520308.8522 | P59: 522174.8521 | Q59: 550797.617 | R59: 571165.6723 | S59: 616051.9867 | T59: 636878.3095 | U59: 653313.8667 | V59: 671724.8603 | W59: 667591.0281 | X59: 683535.1303 | Y59: 703717.0433 | Z59: 734348.1616 | AA59: 722090.4918 | AB59: 725754.6613 | AC59: 742074.4838 | AD59: 735282.6084 | AE59: 738708.6856 | AF59: 743179.6856 | AG59: 751340.3647 | AH59: 761007.2182 | AI59: 761789.6758 | AJ59: 777165.3077 | AK59: 779971.8495 | AL59: 782346.7097 | AM59: 765066.4834 | AN59: 751195.7886 | AO59: 715770.8587 | AP59: 691320.0912 | AQ59: 658028.6998 | AR59: 628439.4126 | AS59: 594850.275 | AT59: 574690.9203 | AU59: 553382.4828 | AV59: 535428.7987 | AW59: 522162.7975 | AX59: 515181.0201 | AY59: 507287.5728 | AZ59: 499983.1601 | BA59: 495607.6951 | BB59: 498322.7473 | BC59: 486485.962 | BD59: 473458.1345 | BE59: 471375.2913 | BF59: 475112.229 | BG59: 480874.8715 | BH59: 480403.8801 | BI59: 493671.738 | BJ59: 505360.9852 | BK59: 508593.7651 | BL59: 512705.9124 | BM59: 529152.6816 | BN59: 536809.9543 | BO59: 541850.1169 | BP59: 550775.0184 | BQ59: 553439.2358 | BR59: 566851.7133 | BS59: 543862.605 | BT59: 536228.111 | BU59: 532004.4248 | BV59: 514333.3063 | BW59: 494343.5871 | BX59: 497012.4902 | BY59: 487520.9372 | BZ59: 478616.0451
A60: 50 años | B60: 311135.5304 | C60: 464559.3853 | D60: 369809.5156 | E60: 398746.8281 | F60: 458434.5156 | G60: 460178.1094 | H60: 485791.3438 | I60: 455682.9531 | J60: 474947.3438 | K60: 519305.7031 | L60: 493101.4219 | M60: 472460.9531 | N60: 482608.2578 | O60: 519453.5757 | P60: 523975.2625 | Q60: 526024.6408 | R60: 554329.5137 | S60: 574965.5056 | T60: 620629.4675 | U60: 638317.6395 | V60: 652384.3517 | W60: 670578.7787 | X60: 666359.5156 | Y60: 679545.5374 | Z60: 698440.9723 | AA60: 730730.7328 | AB60: 719687.5562 | AC60: 723107.474 | AD60: 739233.7782 | AE60: 732415.5031 | AF60: 735937.7229 | AG60: 740430.7573 | AH60: 748697.0379 | AI60: 758325.1867 | AJ60: 759195.3049 | AK60: 774512.796 | AL60: 777365.271 | AM60: 779798.341 | AN60: 762626.793 | AO60: 748900.352 | AP60: 713711.9258 | AQ60: 689431.3013 | AR60: 656386.1684 | AS60: 626986.3011 | AT60: 593627.8363 | AU60: 573604.4357 | AV60: 552435.4278 | AW60: 534595.1734 | AX60: 521420.7839 | AY60: 514506.3776 | AZ60: 506677.1344 | BA60: 499425.02 | BB60: 495089.8931 | BC60: 497812.4274 | BD60: 486026.7569 | BE60: 473050.9492 | BF60: 470991.2574 | BG60: 474734.5224 | BH60: 480494.2308 | BI60: 480037.7453 | BJ60: 493278.7865 | BK60: 504949.1756 | BL60: 508188.4361 | BM60: 512301.2607 | BN60: 528715.0424 | BO60: 536360.5514 | BP60: 541398.5499 | BQ60: 550310.1231 | BR60: 552977.2513 | BS60: 566361.8422 | BT60: 543441.8492 | BU60: 535838.4921 | BV60: 531635.8028 | BW60: 514015.9009 | BX60: 494087.031 | BY60: 496756.8383 | BZ60: 487296.0517
A61: 51 años | B61: 356800.6206 | C61: 309516.6472 | D61: 463598.6875 | E61: 369450.7344 | F61: 398205.7344 | G61: 457936.1094 | H61: 459776.7031 | I61: 485019.6562 | J61: 455517.8594 | K61: 474651.9062 | L61: 519180.9844 | M61: 493099.8281 | N61: 473493.0638 | O61: 486122.4604 | P61: 522696.5699 | Q61: 527426.1764 | R61: 529137.6051 | S61: 557659.7672 | T61: 579152.8774 | U61: 621674.3769 | V61: 637505.7461 | W61: 651358.799 | X61: 669301.2057 | Y61: 662720.9928 | Z61: 674746.2582 | AA61: 695017.0133 | AB61: 728122.3316 | AC61: 716985.2964 | AD61: 720452.1734 | AE61: 736326.6691 | AF61: 729489.2287 | AG61: 733100.2868 | AH61: 737614.0278 | AI61: 745975.7218 | AJ61: 755567.2428 | AK61: 756519.3862 | AL61: 771780.0045 | AM61: 774675.6371 | AN61: 777163.6388 | AO61: 760100.369 | AP61: 746513.469 | AQ61: 711557.0487 | AR61: 687443.5173 | AS61: 654638.1811 | AT61: 625424.6956 | AU61: 592291.5646 | AV61: 572401.7613 | AW61: 551369.9185 | AX61: 533641.5897 | AY61: 520557.5361 | AZ61: 513708.9843 | BA61: 505942.9725 | BB61: 498742.8575 | BC61: 494447.7135 | BD61: 497177.8117 | BE61: 485444.273 | BF61: 472521.8216 | BG61: 470485.4187 | BH61: 474234.8091 | BI61: 479991.4027 | BJ61: 479549.6681 | BK61: 492763.5086 | BL61: 504414.4426 | BM61: 507660.1906 | BN61: 511773.8344 | BO61: 528154.0169 | BP61: 535787.918 | BQ61: 540823.9878 | BR61: 549722.2439 | BS61: 552392.7663 | BT61: 565749.5102 | BU61: 542900.7203 | BV61: 535329.4339 | BW61: 531148.5292 | BX61: 513581.6609 | BY61: 493715.1968 | BZ61: 496386.3623
A62: 52 años | B62: 405192.1425 | C62: 354789.8029 | D62: 308853.9375 | E62: 462753.3125 | F62: 368996.9531 | G62: 397605.6406 | H62: 457381.7031 | I62: 459253.2969 | J62: 484123.9688 | K62: 455252.7656 | L62: 474208.4688 | M62: 518996.2656 | N62: 494027.9554 | O62: 476607.1924 | P62: 489125.3101 | Q62: 525714.6392 | R62: 530230.435 | S62: 532021.0864 | T62: 561415.6577 | U62: 579827.3796 | V62: 620660.8096 | W62: 636129.0832 | X62: 650102.1268 | Y62: 665531.7992 | Z62: 658247.7511 | AA62: 671387.5774 | AB62: 692311.3859 | AC62: 725216.4316 | AD62: 714254.0151 | AE62: 717716.5569 | AF62: 733355.0428 | AG62: 726504.5827 | AH62: 730197.5669 | AI62: 734730.394 | AJ62: 743177.947 | AK62: 752734.2098 | AL62: 753762.9062 | AM62: 768967.2559 | AN62: 771903.0741 | AO62: 774442.5976 | AP62: 757486.9227 | AQ62: 744035.0239 | AR62: 709306.4831 | AS62: 685357.1229 | AT62: 652785.7317 | AU62: 623755.8366 | AV62: 590843.2739 | AW62: 571084.8418 | AX62: 550188.0591 | AY62: 532570.2168 | AZ62: 519575.217 | BA62: 512790.9469 | BB62: 505087.1082 | BC62: 497938.5419 | BD62: 493682.8507 | BE62: 496420.2404 | BF62: 484739.6884 | BG62: 471871.7624 | BH62: 469858.5531 | BI62: 473613.5357 | BJ62: 479366.4872 | BK62: 478939.5096 | BL62: 492125.2472 | BM62: 503755.7144 | BN62: 507007.6 | BO62: 511121.8613 | BP62: 527467.2535 | BQ62: 535089.2918 | BR62: 540123.256 | BS62: 549007.7699 | BT62: 551681.8126 | BU62: 565010.1738 | BV62: 542234.8178 | BW62: 534696.3991 | BX62: 530537.878 | BY62: 513025.9416 | BZ62: 493223.6121
A63: 53 años | B63: 460107.1562 | C63: 403024.0204 | D63: 353961.9375 | E63: 308246.0625 | F63: 461749.9375 | G63: 368372.1719 | H63: 396873.5469 | I63: 456601.2969 | J63: 458709.8906 | K63: 483170.2812 | L63: 454798.6719 | M63: 473614.0312 | N63: 519553.2499 | O63: 496760.4093 | P63: 479221.2136 | Q63: 491773.414 | R63: 528150.168 | S63: 532649.7079 | T63: 535167.6522 | U63: 561978.0685 | V63: 578687.6072 | W63: 619243.2935 | X63: 634651.1431 | Y63: 646205.7906 | Z63: 660497.6599 | AA63: 654920.3756 | AB63: 668801.7549 | AC63: 689344.5369 | AD63: 722219.0941 | AE63: 711355.1396 | AF63: 714813.6333 | AG63: 730228.2361 | AH63: 723371.2322 | AI63: 727139.4857 | AJ63: 731689.4844 | AK63: 740213.34 | AL63: 749734.574 | AM63: 750835.0285 | AN63: 765981.9656 | AO63: 768955.2641 | AP63: 771543.2355 | AQ63: 754697.1472 | AR63: 741378.2299 | AS63: 706878.6507 | AT63: 683094.2499 | AU63: 650756.0472 | AV63: 621911.229 | AW63: 589219.4266 | AX63: 569593.1635 | AY63: 548832.4935 | AZ63: 531326.3194 | BA63: 518421.1542 | BB63: 511700.9007 | BC63: 504059.5422 | BD63: 496963.2778 | BE63: 492747.4059 | BF63: 495491.7411 | BG63: 483866.672 | BH63: 471056.1379 | BI63: 469066.541 | BJ63: 472826.3638 | BK63: 478574.7871 | BL63: 478162.9774 | BM63: 491318.3992 | BN63: 502926.4867 | BO63: 506183.9541 | BP63: 510298.4692 | BQ63: 526606.3183 | BR63: 534215.7563 | BS63: 539247.0688 | BT63: 548116.7892 | BU63: 550794.4184 | BV63: 564092.6872 | BW63: 541395.585 | BX63: 533891.7744 | BY63: 529756.8564 | BZ63: 512303.7253
A64: 54 años | B64: 443595.354 | C64: 457231.8795 | D64: 401938.8594 | E64: 353321.0625 | F64: 307545.1875 | G64: 460612.5625 | H64: 367658.3906 | I64: 395981.4531 | J64: 455760.8906 | K64: 457976.4844 | L64: 482056.5938 | M64: 454324.5781 | N64: 473875.3388 | O64: 521814.3661 | P64: 499042.8286 | Q64: 481834.531 | R64: 493814.8343 | S64: 530210.5977 | T64: 535147.2978 | U64: 535368.0672 | V64: 560714.7225 | W64: 577214.0666 | X64: 617872.9177 | Y64: 630954.1152 | Z64: 641439.1399 | AA64: 656941.6204 | AB64: 652136.7738 | AC64: 665879.9356 | AD64: 686367.7444 | AE64: 719083.172 | AF64: 708318.0413 | AG64: 711773.3079 | AH64: 726975.877 | AI64: 720118.4239 | AJ64: 723956.2949 | AK64: 728521.9923 | AL64: 737113.84 | AM64: 746600.5363 | AN64: 747768.5049 | AO64: 762857.3886 | AP64: 765865.7117 | AQ64: 768499.4216 | AR64: 751764.2459 | AS64: 738576.1917 | AT64: 704305.8089 | AU64: 680686.4612 | AV64: 648579.9143 | AW64: 619920.8002 | AX64: 587449.0904 | AY64: 567955.1271 | AZ64: 547330.8741 | BA64: 529936.9103 | BB64: 517121.7727 | BC64: 510464.8918 | BD64: 502885.8703 | BE64: 495842.2085 | BF64: 491666.1098 | BG64: 494416.8767 | BH64: 482849.0812 | BI64: 470098.0854 | BJ64: 468132.1719 | BK64: 471895.964 | BL64: 477638.8223 | BM64: 477242.1946 | BN64: 490365.1917 | BO64: 501948.9124 | BP64: 505211.2268 | BQ64: 509325.3556 | BR64: 525592.9848 | BS64: 533188.8195 | BT64: 538216.6971 | BU64: 547070.3347 | BV64: 549751.2638 | BW64: 563017.5799 | BX64: 540402.6377 | BY64: 532934.6453 | BZ64: 528824.0707
A65: 55 años | B65: 444099.301 | C65: 440920.4791 | D65: 455307.1562 | E65: 401076.8906 | F65: 352577.1875 | G65: 306899.3125 | H65: 459378.1875 | I65: 366844.6094 | J65: 395082.3594 | K65: 454819.4844 | L65: 457044.0781 | M65: 480829.9062 | N65: 454638.3249 | O65: 476260.9901 | P65: 523728.6032 | Q65: 501190.5835 | R65: 483549.5725 | S65: 495689.4978 | T65: 532501.8395 | U65: 535193.6857 | V65: 534068.4492 | W65: 559147.4871 | X65: 575605.7809 | Y65: 614251.276 | Z65: 626464.4027 | AA65: 637967.8832 | AB65: 654229.1766 | AC65: 649368.4037 | AD65: 662963.9512 | AE65: 683347.9864 | AF65: 715906.1941 | AG65: 705238.8947 | AH65: 708692.0348 | AI65: 723694.656 | AJ65: 716841.1389 | AK65: 720743.1107 | AL65: 725322.9568 | AM65: 733975.1345 | AN65: 743427.7217 | AO65: 744658.279 | AP65: 759688.7059 | AQ65: 762728.9367 | AR65: 765404.5436 | AS65: 748778.5866 | AT65: 735716.5024 | AU65: 701670.6446 | AV65: 678212.8056 | AW65: 646332.3136 | AX65: 617855.5251 | AY65: 585599.2497 | AZ65: 566234.8803 | BA65: 545744.5503 | BB65: 528460.7394 | BC65: 515733.8196 | BD65: 509138.2405 | BE65: 501619.9044 | BF65: 494627.6077 | BG65: 490490.0669 | BH65: 493245.8899 | BI65: 481735.3635 | BJ65: 469044.1063 | BK65: 467100.9068 | BL65: 470867.0147 | BM65: 476602.8019 | BN65: 476220.6081 | BO65: 489308.8396 | BP65: 500866.2015 | BQ65: 504131.6902 | BR65: 508244.1486 | BS65: 524468.8069 | BT65: 532049.6361 | BU65: 537072.4753 | BV65: 545908.3334 | BW65: 548591.3973 | BX65: 561823.5672 | BY65: 539292.5682 | BZ65: 531860.2133
A66: 56 años | B66: 464070.2658 | C66: 441117.3287 | D66: 439336.5625 | E66: 453362.3438 | F66: 400082.9219 | G66: 351781.3125 | H66: 306059.4375 | I66: 457944.8125 | J66: 365906.8281 | K66: 393991.2656 | L66: 453674.0781 | M66: 456003.6719 | N66: 480373.2733 | O66: 456558.9259 | P66: 478249.3495 | Q66: 525625.3951 | R66: 502735.2588 | S66: 485139.2325 | T66: 497508.9727 | U66: 532326.8188 | V66: 533598.9431 | W66: 532477.7411 | X66: 557616.2736 | Y66: 572251.785 | Z66: 609658.7792 | AA66: 622817.095 | AB66: 635054.3471 | AC66: 651290.2417 | AD66: 646443.1675 | AE66: 659891.1332 | AF66: 680165.1785 | AG66: 712557.744 | AH66: 701986.3167 | AI66: 705434.4322 | AJ66: 720243.1562 | AK66: 713397.0085 | AL66: 717355.459 | AM66: 721945.3775 | AN66: 730647.7509 | AO66: 740063.619 | AP66: 741351.366 | AQ66: 756319.5151 | AR66: 759387.6593 | AS66: 762101.4372 | AT66: 745586.865 | AU66: 732649.9893 | AV66: 698832.923 | AW66: 675539.2142 | AX66: 643887.1635 | AY66: 615596.7555 | AZ66: 583559.3563 | BA66: 564326.9711 | BB66: 543973.2296 | BC66: 526802.2054 | BD66: 514165.0383 | BE66: 507630.7408 | BF66: 500173.6681 | BG66: 493233.7417 | BH66: 489134.9616 | BI66: 491894.864 | BJ66: 480444.5846 | BK66: 467816.629 | BL66: 465896.3221 | BM66: 469663.4175 | BN66: 475390.2118 | BO66: 475022.2342 | BP66: 488071.9718 | BQ66: 499599.2567 | BR66: 502866.8686 | BS66: 506976.3382 | BT66: 523153.2483 | BU66: 530716.8524 | BV66: 535733.2358 | BW66: 544548.7047 | BX66: 547233.2008 | BY66: 560427.5464 | BZ66: 537987.2387
A67: 57 años | B67: 461776.4723 | C67: 460768.1808 | D67: 439185.3281 | E67: 437685.4375 | F67: 451263.5312 | G67: 398874.9531 | H67: 350812.4375 | I67: 305111.5625 | J67: 456392.4375 | K67: 364879.0469 | L67: 392734.1719 | M67: 452410.6719 | N67: 455715.4308 | O67: 481568.2072 | P67: 458076.4101 | Q67: 480080.1098 | R67: 526959.0518 | S67: 504123.5191 | T67: 486496.1806 | U67: 497196.7296 | V67: 530693.8965 | W67: 531777.4472 | X67: 530778.3559 | Y67: 553959.6289 | Z67: 568208.426 | AA67: 606019.8054 | AB67: 619736.6928 | AC67: 632064.2183 | AD67: 648102.0323 | AE67: 643366.2128 | AF67: 656671.304 | AG67: 676832.3478 | AH67: 709053.5598 | AI67: 698578.591 | AJ67: 702021.2758 | AK67: 716643.6203 | AL67: 709809.8752 | AM67: 713819.012 | AN67: 718416.5868 | AO67: 727160.7207 | AP67: 736538.4176 | AQ67: 737879.0378 | AR67: 752781.9036 | AS67: 755874.9246 | AT67: 758623.4461 | AU67: 742222.5646 | AV67: 729409.8355 | AW67: 695824.8915 | AX67: 672697.384 | AY67: 641275.6279 | AZ67: 613174.7665 | BA67: 581358.9356 | BB67: 562260.3849 | BC67: 542045.4093 | BD67: 524989.1659 | BE67: 512442.9636 | BF67: 505969.7382 | BG67: 498574.2601 | BH67: 491687.3357 | BI67: 487627.3833 | BJ67: 490390.0319 | BK67: 479002.5707 | BL67: 466440.8803 | BM67: 464543.3491 | BN67: 468309.6479 | BO67: 474025.4178 | BP67: 473671.4289 | BQ67: 486678.5795 | BR67: 498172.261 | BS67: 501440.3171 | BT67: 505545.2944 | BU67: 521669.4572 | BV67: 529213.6216 | BW67: 534221.622 | BX67: 543014.0131 | BY67: 545698.833 | BZ67: 558851.4567
A68: 58 años | B68: 443241.5107 | C68: 458268.9246 | D68: 458385.6562 | E68: 437447.9219 | F68: 436050.3125 | G68: 449045.7188 | H68: 397545.9844 | I68: 349705.5625 | J68: 304084.6875 | K68: 454686.0625 | L68: 363589.2656 | M68: 391406.0781 | N68: 451902.7583 | O68: 457052.4533 | P68: 482432.7963 | Q68: 459578.904 | R68: 481367.7291 | S68: 527845.8318 | T68: 505144.2573 | U68: 486039.4649 | V68: 495616.1438 | W68: 528631.5561 | X68: 530112.5006 | Y68: 527648.8287 | Z68: 549898.9787 | AA68: 565024.4342 | AB68: 602863.1656 | AC68: 616532.7038 | AD68: 628901.827 | AE68: 644772.8887 | AF68: 640146.6342 | AG68: 653315.9165 | AH68: 673363.4814 | AI68: 705410.2191 | AJ68: 695034.9371 | AK68: 698474.0728 | AL68: 712919.6862 | AM68: 706105.3383 | AN68: 710161.8165 | AO68: 714766.7571 | AP68: 723546.7453 | AQ68: 732886.9203 | AR68: 734278.2722 | AS68: 749115.2426 | AT68: 752232.0888 | AU68: 755014.0785 | AV68: 738730.3363 | AW68: 726042.2259 | AX68: 692693.3076 | AY68: 669734.7292 | AZ68: 638545.2798 | BA68: 610637.3006 | BB68: 579045.5469 | BC68: 560082.9095 | BD68: 540008.8685 | BE68: 523069.5655 | BF68: 510615.724 | BG68: 504203.8494 | BH68: 496870.6704 | BI68: 490037.7948 | BJ68: 486017.1926 | BK68: 488782.3066 | BL68: 477460.1629 | BM68: 464967.5691 | BN68: 463093.2672 | BO68: 466858.1038 | BP68: 472561.8971 | BQ68: 472222.1465 | BR68: 485184.4802 | BS68: 496642.425 | BT68: 499910.4194 | BU68: 504010.3479 | BV68: 520078.8568 | BW68: 527602.4963 | BX68: 532601.4341 | BY68: 541369.3594 | BZ68: 544054.335
A69: 59 años | B69: 453477.0481 | C69: 439833.6444 | D69: 455462.3594 | E69: 456061.8438 | F69: 435476.5156 | G69: 434135.1875 | H69: 446587.9062 | I69: 395943.0156 | J69: 348511.6875 | K69: 302949.8125 | L69: 452740.6875 | M69: 362284.4844 | N69: 390768.728 | O69: 452707.2697 | P69: 457915.1398 | Q69: 483358.3187 | R69: 460625.7675 | S69: 482381.111 | T69: 528531.4204 | U69: 504289.6853 | V69: 484247.1145 | W69: 493856.2836 | X69: 526710.481 | Y69: 526831.7009 | Z69: 523572.0643 | AA69: 546545.2438 | AB69: 561727.9454 | AC69: 599910.503 | AD69: 613328.934 | AE69: 625611.588 | AF69: 641320.5419 | AG69: 636799.3182 | AH69: 649836.5851 | AI69: 669767.222 | AJ69: 701633.5503 | AK69: 691359.3762 | AL69: 694794.6301 | AM69: 709070.9398 | AN69: 702281.4559 | AO69: 706380.774 | AP69: 710991.4226 | AQ69: 719800.42 | AR69: 729102.5317 | AS69: 730541.9678 | AT69: 745311.5962 | AU69: 748450.625 | AV69: 751264.8618 | AW69: 735102.0177 | AX69: 722539.9437 | AY69: 689432.7421 | AZ69: 666646.9824 | BA69: 635693.2633 | BB69: 607983.0213 | BC69: 576619.3856 | BD69: 557795.7591 | BE69: 537865.7586 | BF69: 521046.6043 | BG69: 508687.1458 | BH69: 502337.3556 | BI69: 495067.6656 | BJ69: 488290.4812 | BK69: 484310.0704 | BL69: 487077.8749 | BM69: 475824.1441 | BN69: 463404.2631 | BO69: 461554.1143 | BP69: 465317.4705 | BQ69: 471008.5963 | BR69: 470683.4761 | BS69: 483599.3288 | BT69: 495019.3342 | BU69: 498287.6531 | BV69: 502382.3365 | BW69: 518392.7353 | BX69: 525894.9074 | BY69: 530884.8807 | BZ69: 539627.2152
A70: 60 años | B70: 428564.7268 | C70: 449312.2926 | D70: 436936.5938 | E70: 452780.3906 | F70: 453441.0312 | G70: 433383.1094 | H70: 431910.0625 | I70: 443944.0938 | J70: 394290.0469 | K70: 347112.8125 | L70: 301614.9375 | M70: 450672.3125 | N70: 361819.6421 | O70: 391579.2665 | P70: 453447.3406 | Q70: 459058.6787 | R70: 483708.7037 | S70: 461470.4717 | T70: 483160.5035 | U70: 527523.2931 | V70: 502561.9413 | W70: 482307.4021 | X70: 492122.5006 | Y70: 523550.2101 | Z70: 522650.0371 | AA70: 520355.9574 | AB70: 543435.032 | AC70: 558683.2816 | AD70: 596694.701 | AE70: 609982.3306 | AF70: 622180.2767 | AG70: 637733.3822 | AH70: 633315.6505 | AI70: 646226.3001 | AJ70: 666038.1817 | AK70: 697719.2679 | AL70: 687549.9402 | AM70: 690982.8773 | AN70: 705098.3422 | AO70: 698340.9177 | AP70: 702480.2684 | AQ70: 707096.534 | AR70: 715929.2883 | AS70: 725194.0165 | AT70: 726680.3191 | AU70: 741382.1567 | AV70: 744543.064 | AW70: 747389.3242 | AX70: 731352.3225 | AY70: 718918.5952 | AZ70: 686059.578 | BA70: 663451.299 | BB70: 632737.5727 | BC70: 605230.4384 | BD70: 574099.5355 | BE70: 555418.5217 | BF70: 535636.1593 | BG70: 518940.7057 | BH70: 506678.1071 | BI70: 500391.6185 | BJ70: 493187.0405 | BK70: 486467.5317 | BL70: 482528.6098 | BM70: 485299.6611 | BN70: 474117.7056 | BO70: 461774.2807 | BP70: 459949.5313 | BQ70: 463711.652 | BR70: 469389.8895 | BS70: 469080.2739 | BT70: 481948.3928 | BU70: 493328.9751 | BV70: 496598.2124 | BW70: 500687.9108 | BX70: 516638.3482 | BY70: 524118.7364 | BZ70: 529100.1739
A71: 61 años | B71: 428943.1079 | C71: 425034.2467 | D71: 445806.5156 | E71: 433913.9062 | F71: 449890.4219 | G71: 450746.2188 | H71: 430983.7031 | I71: 429575.9375 | J71: 441198.2812 | K71: 392426.0781 | L71: 345436.9375 | M71: 300170.0625 | N71: 449450.422 | O71: 362440.8679 | P71: 392194.2963 | Q71: 454119.0135 | R71: 459621.7647 | S71: 483815.9758 | T71: 461855.9588 | U71: 482136.7509 | V71: 525737.9674 | W71: 500564.1251 | X71: 480468.2796 | Y71: 489024.1098 | Z71: 519581.7453 | AA71: 519436.9773 | AB71: 517348.9997 | AC71: 540397.3665 | AD71: 555594.3036 | AE71: 593339.723 | AF71: 606501.5404 | AG71: 618616.8071 | AH71: 634020.3853 | AI71: 629705.5107 | AJ71: 642495.2087 | AK71: 662187.1023 | AL71: 693679.1111 | AM71: 683619.2559 | AN71: 687052.0688 | AO71: 701015.8385 | AP71: 694298.2625 | AQ71: 698476.1218 | AR71: 703098.8865 | AS71: 711951.6456 | AT71: 721180.8446 | AU71: 722714.1677 | AV71: 737349.3984 | AW71: 740533.1102 | AX71: 743412.905 | AY71: 727507.467 | AZ71: 715205.853 | BA71: 682602.3398 | BB71: 660176.9733 | BC71: 629707.8723 | BD71: 602409.7355 | BE71: 571516.3605 | BF71: 552981.9923 | BG71: 533351.0691 | BH71: 516783.2971 | BI71: 504620.3447 | BJ71: 498398.9143 | BK71: 491261.5276 | BL71: 484602.2227 | BM71: 480706.5565 | BN71: 483482.5439 | BO71: 472375.8086 | BP71: 460112.7105 | BQ71: 458315.2631 | BR71: 462077.6589 | BS71: 467743.835 | BT71: 467451.0208 | BU71: 480272.0731 | BV71: 491612.944 | BW71: 494885.1033 | BX71: 498971.0387 | BY71: 514861.7341 | BZ71: 522321.0518
A72: 62 años | B72: 403385.6295 | C72: 424388.5868 | D72: 421447.8281 | E72: 442070.7344 | F72: 430675.2188 | G72: 446763.4531 | H72: 447767.4062 | I72: 428441.2969 | J72: 427020.8125 | K72: 438100.4688 | L72: 390357.1094 | M72: 343717.0625 | N72: 299527.4852 | O72: 449313.5832 | P72: 362843.3169 | Q72: 392665.3729 | R72: 454023.162 | S72: 459879.876 | T72: 483216.9276 | U72: 460692.3114 | V72: 480069.6276 | W72: 523412.6146 | X72: 498623.6455 | Y72: 477357.5819 | Z72: 485115.8261 | AA72: 516159.8172 | AB72: 516191.1045 | AC72: 514519.9982 | AD72: 537310.6561 | AE72: 552371.5204 | AF72: 589844.3226 | AG72: 602884.2045 | AH72: 614917.9181 | AI72: 630177.0687 | AJ72: 625964.1646 | AK72: 638637.6006 | AL72: 658207.5722 | AM72: 689505.7408 | AN72: 679559.7416 | AO72: 682994.2496 | AP72: 696814.4061 | AQ72: 690144.103 | AR72: 694358.8182 | AS72: 698988.7264 | AT72: 707857.6655 | AU72: 717052.797 | AV72: 718633.255 | AW72: 733202.6134 | AX72: 736409.9715 | AY72: 739324.7278 | AZ72: 723556.7926 | BA72: 711391.3288 | BB72: 679051.2919 | BC72: 656814.7384 | BD72: 626595.6217 | BE72: 599512.963 | BF72: 568862.6423 | BG72: 550479.3918 | BH72: 531004.1698 | BI72: 514568.4574 | BJ72: 502508.2467 | BK72: 496353.846 | BL72: 489285.9475 | BM72: 482689.5756 | BN72: 478839.0721 | BO72: 481621.7385 | BP72: 470593.8976 | BQ72: 458415.2543 | BR72: 456647.1253 | BS72: 460411.3835 | BT72: 466066.3282 | BU72: 465791.6601 | BV72: 478566.2766 | BW72: 489867.0432 | BX72: 493144.2526 | BY72: 497227.6749 | BZ72: 513058.7718
A73: 63 años | B73: 408272.5737 | C73: 399171.6614 | D73: 420225.7031 | E73: 417625.4219 | F73: 438106.9531 | G73: 427208.5312 | H73: 443321.4844 | I73: 444511.5938 | J73: 425546.8906 | K73: 424273.6875 | L73: 434803.6562 | M73: 388103.1406 | N73: 342726.6823 | O73: 299707.5539 | P73: 448791.7021 | Q73: 362931.3574 | R73: 392527.5271 | S73: 453581.4568 | T73: 459438.7418 | U73: 481257.6144 | V73: 458353.7638 | W73: 477697.2102 | X73: 520838.197 | Y73: 495147.1321 | Z73: 473601.1286 | AA73: 481700.4448 | AB73: 512764.0854 | AC73: 513231.5868 | AD73: 511473.8982 | AE73: 534071.0485 | AF73: 549003.0434 | AG73: 586201.2411 | AH73: 599127.3117 | AI73: 611084.9253 | AJ73: 626208.6397 | AK73: 622100.8405 | AL73: 634666.2336 | AM73: 654116.3977 | AN73: 685220.5879 | AO73: 675395.5045 | AP73: 678836.5286 | AQ73: 692524.0172 | AR73: 685910.2991 | AS73: 690163.1242 | AT73: 694803.4288 | AU73: 703687.8097 | AV73: 712852.9611 | AW73: 714482.8559 | AX73: 728989.9451 | AY73: 732223.8302 | AZ73: 735176.8817 | BA73: 719552.5044 | BB73: 707527.6039 | BC73: 675457.4266 | BD73: 653414.7165 | BE73: 623449.3214 | BF73: 596586.9997 | BG73: 566183.2631 | BH73: 547954.5624 | BI73: 528638.0837 | BJ73: 512337.7425 | BK73: 500382.6997 | BL73: 494297.1711 | BM73: 487300.7709 | BN73: 480769.7315 | BO73: 476966.2371 | BP73: 479757.8456 | BQ73: 468811.6368 | BR73: 456720.4505 | BS73: 454983.6301 | BT73: 458751.8362 | BU73: 464397.0988 | BV73: 464142.018 | BW73: 476872.2002 | BX73: 488133.7738 | BY73: 491418.4666 | BZ73: 495501.0643
A74: 64 años | B74: 391627.7098 | C74: 403805.3677 | D74: 394648.6719 | E74: 415906.5469 | F74: 413441.0156 | G74: 433939.1719 | H74: 423480.8438 | I74: 439573.5156 | J74: 440958.7812 | K74: 422418.4844 | L74: 420967.5625 | M74: 431147.8438 | N74: 386273.1211 | O74: 342227.6758 | P74: 299606.7464 | Q74: 447912.8493 | R74: 362459.7009 | S74: 391947.497 | T74: 452421.69 | U74: 457590.7147 | V74: 478523.3647 | W74: 455807.8003 | X74: 475189.9125 | Y74: 517209.7866 | Z74: 490943.4822 | AA74: 470183.1828 | AB74: 478566.0319 | AC74: 509639.7603 | AD74: 510028.9232 | AE74: 508267.9209 | AF74: 530672.3876 | AG74: 545479.271 | AH74: 582398.3157 | AI74: 595215.4946 | AJ74: 607099.6255 | AK74: 622093.8288 | AL74: 618092.2153 | AM74: 630555.1765 | AN74: 649885.5697 | AO74: 680793.3998 | AP74: 671094.6162 | AQ74: 674545.4023 | AR74: 688108.6674 | AS74: 681559.3317 | AT74: 685850.411 | AU74: 690503.2122 | AV74: 699401.3542 | AW74: 708539.2896 | AX74: 710220.0827 | AY74: 724667.0447 | AZ74: 727929.5453 | BA74: 730923.2904 | BB74: 715448.2962 | BC74: 703568.0367 | BD74: 671774.4716 | BE74: 649930.8432 | BF74: 620223.6639 | BG74: 593587.0292 | BH74: 563434.2625 | BI74: 545363.9236 | BJ74: 526209.7491 | BK74: 510048.4206 | BL74: 498201.28 | BM74: 492186.5858 | BN74: 485263.849 | BO74: 478800.6205 | BP74: 475046.053 | BQ74: 477848.527 | BR74: 466986.9848 | BS74: 454986.5418 | BT74: 453282.9685 | BU74: 457056.8409 | BV74: 462693.6664 | BW74: 462459.6438 | BX74: 475146.6524 | BY74: 486369.5448 | BZ74: 489663.7702
A75: 65 años | B75: 383853.9743 | C75: 386694.6728 | D75: 398703.0938 | E75: 390035.0781 | F75: 411242.3906 | G75: 409056.6094 | H75: 429116.3906 | I75: 419478.1562 | J75: 435613.5469 | K75: 436944.9688 | L75: 419030.0781 | M75: 417620.4375 | N75: 428216.1841 | O75: 385226.8263 | P75: 341702.9612 | Q75: 299361.7116 | R75: 446574.8521 | S75: 361466.6763 | T75: 390933.6516 | U75: 450431.8652 | V75: 455036.5991 | W75: 475733.8836 | X75: 453242.9645 | Y75: 471947.8529 | Z75: 512867.2345 | AA75: 487255.7742 | AB75: 466993.6407 | AC75: 475378.68 | AD75: 506092.5447 | AE75: 506511.3155 | AF75: 504757.2241 | AG75: 526964.344 | AH75: 541646.3556 | AI75: 578273.7252 | AJ75: 590984.0394 | AK75: 602795.1108 | AL75: 617662.6225 | AM75: 613770.3785 | AN75: 626134.1736 | AO75: 645341.4552 | AP75: 676045.1131 | AQ75: 666481.3533 | AR75: 669945.3957 | AS75: 683390.6608 | AT75: 676915.7728 | AU75: 681246.0276 | AV75: 685913.8079 | AW75: 694824.0624 | AX75: 703937.1205 | AY75: 705671.6584 | AZ75: 720059.4283 | BA75: 723353.5669 | BB75: 726391.7467 | BC75: 711076.352 | BD75: 699348.9444 | BE75: 667846.4386 | BF75: 646212.7122 | BG75: 616775.1676 | BH75: 590375.8213 | BI75: 560485.1438 | BJ75: 542581.3781 | BK75: 523597.5208 | BL75: 507582.754 | BM75: 495849.2689 | BN75: 489909.3948 | BO75: 483064.6037 | BP75: 476673.6824 | BQ75: 472971.4461 | BR75: 475787.2763 | BS75: 465015.9278 | BT75: 453112.1786 | BU75: 451444.8961 | BV75: 455226.5541 | BW75: 460856.1978 | BX75: 460645.4642 | BY75: 473289.7176 | BZ75: 484473.6431
A76: 66 años | B76: 371661.2285 | C76: 378775.4249 | D76: 381266.25 | E76: 393654.4062 | F76: 385161.4844 | G76: 406364.2344 | H76: 404293.2031 | I76: 424182.6094 | J76: 415081.4688 | K76: 431273.5781 | L76: 432646.1562 | M76: 415177.6719 | N76: 414818.4214 | O76: 425923.7765 | P76: 383708.3576 | Q76: 340621.3988 | R76: 298339.2257 | S76: 444576.8174 | T76: 360130.7102 | U76: 388737.4552 | V76: 447288.1829 | W76: 451975.2104 | X76: 472709.1865 | Y76: 449740.9111 | Z76: 467624.1448 | AA76: 508606.854 | AB76: 483377.9493 | AC76: 463569.9171 | AD76: 471933.7583 | AE76: 502360.1298 | AF76: 502821.1252 | AG76: 501090.2598 | AH76: 523110.2529 | AI76: 537679.1617 | AJ76: 574022.5332 | AK76: 586638.3512 | AL76: 598386.5712 | AM76: 613140.4754 | AN76: 609363.6669 | AO76: 621640.2927 | AP76: 640733.1703 | AQ76: 671241.4997 | AR76: 661820.0419 | AS76: 665305.2213 | AT76: 678646.1433 | AU76: 672254.5897 | AV76: 676628.8643 | AW76: 681317.9663 | AX76: 690244.4199 | AY76: 699340.1074 | AZ76: 701132.9609 | BA76: 715469.4307 | BB76: 718800.411 | BC76: 721888.0231 | BD76: 706735.3454 | BE76: 695162.9444 | BF76: 663950.4314 | BG76: 642526.7274 | BH76: 613356.1587 | BI76: 587192.542 | BJ76: 557560.587 | BK76: 539822.5895 | BL76: 521007.6662 | BM76: 505138.7052 | BN76: 493518.5798 | BO76: 487654.1086 | BP76: 480887.6773 | BQ76: 474569.7112 | BR76: 470920.7867 | BS76: 473752.5161 | BT76: 463071.1035 | BU76: 451263.5249 | BV76: 449633.7759 | BW76: 453425.6094 | BX76: 459050.744 | BY76: 458864.616 | BZ76: 471470.4617
A77: 67 años | B77: 368108.1868 | C77: 366471.4612 | D77: 372937.8281 | E77: 375504.75 | F77: 387871.7188 | G77: 379846.8906 | H77: 401182.0781 | I77: 399299.7969 | J77: 418899.8281 | K77: 410428.7812 | L77: 426327.6094 | M77: 428135.3438 | N77: 411714.79 | O77: 411924.0435 | P77: 422842.6798 | Q77: 381518.4857 | R77: 338815.1161 | S77: 296986.8586 | T77: 441642.1531 | U77: 357556.5651 | V77: 385551.1596 | W77: 443625.023 | X77: 448580.8681 | Y77: 468280.3739 | Z77: 445264.6344 | AA77: 463244.0654 | AB77: 503797.8634 | AC77: 479363.2284 | AD77: 459711.2475 | AE77: 468058.9121 | AF77: 498184.8159 | AG77: 498693.03 | AH77: 496995.5804 | AI77: 518821.4326 | AJ77: 533276.074 | AK77: 569319.8092 | AL77: 581842.0639 | AM77: 593527.5235 | AN77: 608169.2987 | AO77: 604513.5848 | AP77: 616705.4542 | AQ77: 635679.9195 | AR77: 665983.6578 | AS77: 656715.708 | AT77: 660226.4897 | AU77: 673468.1634 | AV77: 667171.3964 | AW77: 671592.2744 | AX77: 676306.3209 | AY77: 685248.8437 | AZ77: 694330.1035 | BA77: 696185.8365 | BB77: 710472.2367 | BC77: 713844.4447 | BD77: 716986.7009 | BE77: 702009.3154 | BF77: 690602.5418 | BG77: 659697.9954 | BH77: 638497.8259 | BI77: 609608.9665 | BJ77: 583695.4257 | BK77: 554336.3249 | BL77: 536774.3234 | BM77: 518138.3581 | BN77: 502424.4378 | BO77: 490924.8637 | BP77: 485140.9123 | BQ77: 478458.2206 | BR77: 472218.6646 | BS77: 468627.3046 | BT77: 471477.8677 | BU77: 460892.8737 | BV77: 449188.3185 | BW77: 447599.7221 | BX77: 451404.1643 | BY77: 457026.3609 | BZ77: 456867.622
A78: 68 años | B78: 340395.9696 | C78: 361979.1695 | D78: 360082.4688 | E78: 366769.4219 | F78: 369230.25 | G78: 382065.0312 | H78: 374315.2969 | I78: 395613.9219 | J78: 393977.3906 | K78: 413251.0469 | L78: 405112.0938 | M78: 421189.6406 | N78: 423805.547 | O78: 408303.3836 | P78: 408368.0759 | Q78: 419286.8064 | R78: 378713.7114 | S78: 336437.8976 | T78: 294700.3732 | U78: 437569.7627 | V78: 354224.8498 | W78: 381817.6863 | X78: 439887.756 | Y78: 444214.8169 | Z78: 462995.0169 | AA78: 440597.5655 | AB78: 458371.5288 | AC78: 498924.3709 | AD78: 474855.8229 | AE78: 455445.1439 | AF78: 463780.9018 | AG78: 493603.9604 | AH78: 494170.731 | AI78: 492521.8724 | AJ78: 514155.5416 | AK78: 528502.0919 | AL78: 564241.7639 | AM78: 576678.3484 | AN78: 588307.8259 | AO78: 602845.5943 | AP78: 599320.1646 | AQ78: 611435.6819 | AR78: 630295.5658 | AS78: 660395.2871 | AT78: 651293.0268 | AU78: 654837.927 | AV78: 667990.4313 | AW78: 661800.8024 | AX78: 666274.3715 | AY78: 671020.4952 | AZ78: 679983.3904 | BA78: 689057.1098 | BB78: 690982.4395 | BC78: 705224.6825 | BD78: 708644.9236 | BE78: 711848.5374 | BF78: 697056.2255 | BG78: 685823.0767 | BH78: 655236.5507 | BI78: 634268.2177 | BJ78: 605668.7878 | BK78: 580012.8616 | BL78: 550933.2655 | BM78: 533552.9817 | BN78: 515101.284 | BO78: 499547.3688 | BP78: 488172.6386 | BQ78: 482472.8997 | BR78: 475877.6001 | BS78: 469720.0979 | BT78: 466189.6439 | BU78: 469062.2822 | BV78: 458577.2475 | BW78: 446979.1058 | BX78: 445434.5584 | BY78: 449254.3788 | BZ78: 454876.3827
A79: 69 años | B79: 320982.7006 | C79: 334195.9957 | D79: 355117.9062 | E79: 353420.0312 | F79: 360060.0156 | G79: 362711.75 | H79: 375743.3438 | I79: 368323.7031 | J79: 389670.7656 | K79: 388082.9844 | L79: 407001.2656 | M79: 399490.4062 | N79: 416148.8334 | O79: 419203.8447 | P79: 404167.0013 | Q79: 404478.0154 | R79: 414830.2421 | S79: 375312.4005 | T79: 333437.8537 | U79: 291608.5537 | V79: 432844.4092 | W79: 350470.5157 | X79: 378038.1244 | Y79: 434709.8824 | Z79: 438683.0273 | AA79: 457808.935 | AB79: 435591.9975 | AC79: 453552.2224 | AD79: 493636.4951 | AE79: 469945.3249 | AF79: 450797.8173 | AG79: 459125.7015 | AH79: 488644.1941 | AI79: 489280.0559 | AJ79: 487693.7076 | AK79: 509137.4463 | AL79: 523381.9495 | AM79: 558814.5043 | AN79: 571172.9499 | AO79: 582753.0603 | AP79: 597194.7008 | AQ79: 593808.1252 | AR79: 605855.3258 | AS79: 624604.6565 | AT79: 654501.931 | AU79: 645576.4695 | AV79: 649163.3209 | AW79: 662236.3665 | AX79: 656165.0016 | AY79: 660697.1642 | AZ79: 665482.0426 | BA79: 674469.7122 | BB79: 683542.5505 | BC79: 685543.8711 | BD79: 699748.0458 | BE79: 703222.6896 | BF79: 706494.2793 | BG79: 691895.5863 | BH79: 680843.4545 | BI79: 650583.6254 | BJ79: 629854.2983 | BK79: 601550.6029 | BL79: 576158.637 | BM79: 547363.8576 | BN79: 530170.064 | BO79: 511906.9132 | BP79: 496517.1574 | BQ79: 485270.7834 | BR79: 479658.3951 | BS79: 473153.5503 | BT79: 467081.2234 | BU79: 463614.4894 | BV79: 466512.3132 | BW79: 456130.0282 | BX79: 444640.9992 | BY79: 443143.0376 | BZ79: 446980.9707
A80: 70 años | B80: 273013.3428 | C80: 314137.5287 | D80: 327060.7812 | E80: 347717.5938 | F80: 346264.5938 | G80: 353069.6094 | H80: 355781.25 | I80: 368895.6562 | J80: 361844.1094 | K80: 383004.6094 | L80: 381589.5781 | M80: 400525.4844 | N80: 394078.6809 | O80: 410975.3805 | P80: 413884.8714 | Q80: 399640.43 | R80: 399691.7294 | S80: 410074.3199 | T80: 371099.447 | U80: 329391.6215 | V80: 287944.0757 | W80: 427708.0994 | X80: 346387.3745 | Y80: 373352.9071 | Z80: 428771.8666 | AA80: 433115.9503 | AB80: 451960.9953 | AC80: 430582.9808 | AD80: 448228.7623 | AE80: 487920.7517 | AF80: 464631.6885 | AG80: 445771.4886 | AH80: 454097.1151 | AI80: 483310.9292 | AJ80: 484027.0558 | AK80: 482517.3751 | AL80: 503774.8109 | AM80: 517924.1104 | AN80: 553047.5983 | AO80: 565336.4047 | AP80: 576874.6219 | AQ80: 591228.4835 | AR80: 587990.1014 | AS80: 599977.7156 | AT80: 618621.7937 | AU80: 648318.9136 | AV80: 639581.5588 | AW80: 643219.2869 | AX80: 656222.5355 | AY80: 650280.9137 | AZ80: 654878.0591 | BA80: 659709.1293 | BB80: 668726.5987 | BC80: 677805.5308 | BD80: 679889.4414 | BE80: 694061.4923 | BF80: 697597.3691 | BG80: 700942.8921 | BH80: 686546.2086 | BI80: 675681.3889 | BJ80: 645755.393 | BK80: 625271.3719 | BL80: 597269.1203 | BM80: 572146.3362 | BN80: 543640.9351 | BO80: 526637.8569 | BP80: 508567.1792 | BQ80: 493345.0741 | BR80: 482230.4206 | BS80: 476708.473 | BT80: 470297.0635 | BU80: 464312.7467 | BV80: 460912.6346 | BW80: 463838.3186 | BX80: 453561.4195 | BY80: 442183.7513 | BZ80: 440734.732
A81: 71 años | B81: 269734.4906 | C81: 267007.9061 | D81: 306582.1562 | E81: 319511.7188 | F81: 339821.2812 | G81: 338740.1562 | H81: 345627.2031 | I81: 348214.75 | J81: 361680.9688 | K81: 355015.5156 | L81: 375905.4531 | M81: 374927.1719 | N81: 393851.5701 | O81: 388168.0687 | P81: 405105.1902 | Q81: 407947.7429 | R81: 394109.1257 | S81: 394424.095 | T81: 404449.5782 | U81: 366159.6157 | V81: 324995.9695 | W81: 283928.486 | X81: 422244.04 | Y81: 341556.4643 | Z81: 367722.6255 | AA81: 422625.8592 | AB81: 426910.4838 | AC81: 446135.6175 | AD81: 425085.5694 | AE81: 442523.3207 | AF81: 481807.7507 | AG81: 458940.9414 | AH81: 440387 | AI81: 448712.6887 | AJ81: 477617.6432 | AK81: 478422.8459 | AL81: 477001.6744 | AM81: 498072.8936 | AN81: 512130.978 | AO81: 546940.2022 | AP81: 559164.7589 | AQ81: 570665.901 | AR81: 584937.6823 | AS81: 581855.2066 | AT81: 593789.242 | AU81: 612330.1751 | AV81: 641826.6504 | AW81: 633287.7344 | AX81: 636982.7317 | AY81: 649923.8368 | AZ81: 644121.9549 | BA81: 648789.1166 | BB81: 653671.8772 | BC81: 662722.646 | BD81: 671813.0097 | BE81: 673985.2084 | BF81: 688129.8888 | BG81: 691732.4517 | BH81: 695157.9742 | BI81: 680971.7866 | BJ81: 670301.9634 | BK81: 640719.7616 | BL81: 620488.8997 | BM81: 592795.5457 | BN81: 567949.3727 | BO81: 539739.9543 | BP81: 522932.9778 | BQ81: 505059.6975 | BR81: 490009.9969 | BS81: 479030.845 | BT81: 473602.4689 | BU81: 467287.5995 | BV81: 461394.4812 | BW81: 458063.6461 | BX81: 461019.9494 | BY81: 450851.47 | BZ81: 439588.2578
A82: 72 años | B82: 252653.2688 | C82: 262712.4987 | D82: 260132.7812 | E82: 298766.3438 | F82: 311340.6562 | G82: 331611.9688 | H82: 330549.7188 | I82: 337711.7969 | J82: 340387.25 | K82: 353678.2812 | L82: 347576.9219 | M82: 368420.2969 | N82: 368215.6315 | O82: 387330.4184 | P82: 381666.9618 | Q82: 398722.6404 | R82: 401198.3782 | S82: 388165.2086 | T82: 388475.229 | U82: 397984.8914 | V82: 360552.1202 | W82: 319879.1183 | X82: 279578.7668 | Y82: 415665.6461 | Z82: 336029.1652 | AA82: 362104.6777 | AB82: 416252.4471 | AC82: 420731.124 | AD82: 439782.9729 | AE82: 419068.663 | AF82: 436299.5342 | AG82: 475152.7177 | AH82: 452740.7109 | AI82: 434522.4657 | AJ82: 442852.0753 | AK82: 471439.2843 | AL82: 472345.8391 | AM82: 471028.8106 | AN82: 491911.7331 | AO82: 505882.2742 | AP82: 540366.4051 | AQ82: 552532.5828 | AR82: 564002.1519 | AS82: 578197.3975 | AT82: 575282.8527 | AU82: 587169.8286 | AV82: 605608.9843 | AW82: 634901.0006 | AX82: 626575.9942 | AY82: 630337.2772 | AZ82: 643224.0206 | BA82: 637576.1223 | BB82: 642320.4272 | BC82: 647262.4644 | BD82: 656351.2603 | BE82: 665459.4608 | BF82: 667727.995 | BG82: 681850.0201 | BH82: 685526.8371 | BI82: 689040.148 | BJ82: 675077.8072 | BK82: 664614.4734 | BL82: 635392.6645 | BM82: 615427.9187 | BN82: 588057.123 | BO82: 563500.3399 | BP82: 535599.306 | BQ82: 518997.7642 | BR82: 501330.8358 | BS82: 486461.6733 | BT82: 475624.6681 | BU82: 470295.0393 | BV82: 464081.9048 | BW82: 458285.074 | BX82: 455027.8058 | BY82: 458018.1093 | BZ82: 447963.4085
A83: 73 años | B83: 242680.342 | C83: 245583.6098 | D83: 255005.6406 | E83: 253054.7188 | F83: 290269.5312 | G83: 303086.5938 | H83: 322920.6562 | I83: 321931.2812 | J83: 329229.3906 | K83: 331857.75 | L83: 345072.5938 | M83: 339764.3281 | N83: 360795.801 | O83: 361065.0316 | P83: 379804.3727 | Q83: 374740.2738 | R83: 391439.7406 | S83: 394157.9559 | T83: 381521.1111 | U83: 381714.86 | V83: 390794.4043 | W83: 354441.7521 | X83: 314520.271 | Y83: 274762.2765 | Z83: 408285.9283 | AA83: 330528.7137 | AB83: 356104.9654 | AC83: 409491.3234 | AD83: 413967.0193 | AE83: 432883.067 | AF83: 412543.4956 | AG83: 429564.7642 | AH83: 467958.9056 | AI83: 446032.4894 | AJ83: 428177.1603 | AK83: 436511.7888 | AL83: 464768.0007 | AM83: 465786.183 | AN83: 464587.0966 | AO83: 485275.8139 | AP83: 499159.3906 | AQ83: 533302.9309 | AR83: 545413.4283 | AS83: 556854.003 | AT83: 570975.1475 | AU83: 568239.1579 | AV83: 580082.6176 | AW83: 598417.682 | AX83: 627497.0948 | AY83: 619400.8858 | AZ83: 623235.2687 | BA83: 636072.723 | BB83: 630592.1361 | BC83: 635419.0591 | BD83: 640426.0488 | BE83: 649555.5558 | BF83: 658685.9249 | BG83: 661057.7122 | BH83: 675159.5331 | BI83: 678916.7588 | BJ83: 682524.967 | BK83: 668800.7118 | BL83: 658556.5818 | BM83: 629715.3722 | BN83: 610031.9484 | BO83: 583000.4264 | BP83: 558748.8679 | BQ83: 531171.9469 | BR83: 514787.0959 | BS83: 497337.4512 | BT83: 482658.8237 | BU83: 471971.7423 | BV83: 466746.5095 | BW83: 460640.9142 | BX83: 454946.1497 | BY83: 451766.9342 | BZ83: 454794.4076
A84: 74 años | B84: 239790.4714 | C84: 234861.7631 | D84: 237768.3594 | E84: 247062.6094 | F84: 245203.6562 | G84: 281474.7188 | H84: 294101.5312 | I84: 313575.3438 | J84: 312828.8438 | K84: 319968.9844 | L84: 322476.25 | M84: 336215.9062 | N84: 331801.1719 | O84: 352738.7428 | P84: 352894.751 | Q84: 371834.9432 | R84: 366678.3959 | S84: 383783.4722 | T84: 386198.2046 | U84: 374176.3391 | V84: 374286.5303 | W84: 383005.9391 | X84: 347863.2884 | Y84: 308302.4366 | Z84: 269148.8069 | AA84: 400652.5789 | AB84: 324498.0428 | AC84: 349721.7066 | AD84: 402198.1174 | AE84: 406693.0835 | AF84: 425458.5621 | AG84: 405530.0059 | AH84: 422337.4582 | AI84: 460242.8349 | AJ84: 438830.5639 | AK84: 421364.478 | AL84: 429703.5827 | AM84: 457614.1173 | AN84: 458751.8558 | AO84: 457682.2328 | AP84: 478169.2761 | AQ84: 491964.5255 | AR84: 525749.4923 | AS84: 537805.3757 | AT84: 549217.7948 | AU84: 563265.2102 | AV84: 560717.3372 | AW84: 572519.2651 | AX84: 590746.4946 | AY84: 619602.511 | AZ84: 611749.2396 | BA84: 615663.0558 | BB84: 628454.3233 | BC84: 623154.0618 | BD84: 628068.0966 | BE84: 633145.1285 | BF84: 642316.9751 | BG84: 651472.699 | BH84: 653953.9054 | BI84: 668036.131 | BJ84: 671879.4625 | BK84: 675588.2679 | BL84: 662116.8666 | BM84: 652104.0913 | BN84: 623664.3037 | BO84: 604277.983 | BP84: 577603.8896 | BQ84: 553674.2334 | BR84: 526438.6198 | BS84: 510282.5231 | BT84: 493062.1902 | BU84: 478584.7362 | BV84: 468056.144 | BW84: 462941.4084 | BX84: 456949.6745 | BY84: 451363.0918 | BZ84: 448266.8781
A85: 75 años | B85: 233305.3073 | C85: 231023.7816 | D85: 226716.6719 | E85: 229691.3906 | F85: 238462.5781 | G85: 237102.5938 | H85: 271994.9062 | I85: 284597.4688 | J85: 303719.0312 | K85: 302911.4062 | L85: 309912.5781 | M85: 312923.75 | N85: 327046.021 | O85: 323371.9048 | P85: 343688.1298 | Q85: 344499.9089 | R85: 362715.1882 | S85: 358325.2726 | T85: 375046.2087 | U85: 377334.7875 | V85: 365894.2287 | W85: 366384.2394 | X85: 374868.6012 | Y85: 340134.2974 | Z85: 301272.1649 | AA85: 263505.5506 | AB85: 392474.6828 | AC85: 318032.0802 | AD85: 342804.6248 | AE85: 394375.057 | AF85: 398899.8694 | AG85: 417502.2639 | AH85: 398024.3291 | AI85: 414614.4158 | AJ85: 452001.9187 | AK85: 431135.3626 | AL85: 414086.0612 | AM85: 422430.1501 | AN85: 449979.9493 | AO85: 451246.8583 | AP85: 450319.7034 | AQ85: 470597.4117 | AR85: 484303.3741 | AS85: 517711.7785 | AT85: 529714.1196 | AU85: 541099.4027 | AV85: 555073.6543 | AW85: 552723.8419 | AX85: 564485.9992 | AY85: 582601.0394 | AZ85: 611222.8039 | BA85: 603626.8772 | BB85: 607625.7347 | BC85: 620373.8224 | BD85: 615266.5181 | BE85: 620272.0053 | BF85: 625423.549 | BG85: 634639.0487 | BH85: 643822.9419 | BI85: 646419.5476 | BJ85: 660482.7629 | BK85: 664417.3233 | BL85: 668232.8465 | BM85: 655028.856 | BN85: 645260.3131 | BO85: 617243.8245 | BP85: 598170.8368 | BQ85: 571872.6157 | BR85: 548282.2248 | BS85: 521405.5459 | BT85: 505490.4609 | BU85: 488511.5131 | BV85: 474246.1646 | BW85: 463884.4854 | BX85: 458886.1162 | BY85: 453014.3611 | BZ85: 447542.0272
A86: 76 años | B86: 221222.9121 | C86: 223860.4725 | D86: 221948.9062 | E86: 218273.0781 | F86: 221080.4219 | G86: 229744.5469 | H86: 228430.5312 | I86: 261907.0938 | J86: 274505.4062 | K86: 292961.7188 | L86: 292417.9688 | M86: 299796.1719 | N86: 303212.9646 | O86: 317497.8394 | P86: 314175.424 | Q86: 334165.2604 | R86: 335004.1907 | S86: 353476.6608 | T86: 349031.848 | U86: 365497.4371 | V86: 367946.9235 | W86: 357207.11 | X86: 357810.1139 | Y86: 365911.2302 | Z86: 331882.8746 | AA86: 294024.4801 | AB86: 257348.4833 | AC86: 383628.3688 | AD86: 310963.3687 | AE86: 335283.9704 | AF86: 385871.2472 | AG86: 390426.8671 | AH86: 408838.7573 | AI86: 389854.0432 | AJ86: 406210.7165 | AK86: 443028.767 | AL86: 422745.7507 | AM86: 406146.6088 | AN86: 414489.4881 | AO86: 441647.5039 | AP86: 443050.4065 | AQ86: 442277.4558 | AR86: 462326.7109 | AS86: 475934.4548 | AT86: 508930.3106 | AU86: 520873.8114 | AV86: 532227.1667 | AW86: 546121.827 | AX86: 543982.0098 | AY86: 555700.9919 | AZ86: 573691.4482 | BA86: 602054.6293 | BB86: 594736.0218 | BC86: 598825.5811 | BD86: 611528.827 | BE86: 606631.9649 | BF86: 611733.0836 | BG86: 616963.6511 | BH86: 626222.2156 | BI86: 635435.3226 | BJ86: 638154.8932 | BK86: 652195.7126 | BL86: 656227.927 | BM86: 660157.4248 | BN86: 647244.8198 | BO86: 637740.8554 | BP86: 610185.266 | BQ86: 591453.4436 | BR86: 565564.3108 | BS86: 542343.7354 | BT86: 515858.1277 | BU86: 500205.8446 | BV86: 483490.241 | BW86: 469456.4164 | BX86: 459276.9088 | BY86: 454405.3101 | BZ86: 448664.4798
A87: 77 años | B87: 212975.4703 | C87: 211182.7017 | D87: 214116.4688 | E87: 212596.5938 | F87: 209266.4844 | G87: 212087.4531 | H87: 220299.5156 | I87: 219094.4688 | J87: 251440.2812 | K87: 263403.3438 | L87: 281372.4062 | M87: 281439.5312 | N87: 289391.1126 | O87: 293292.8123 | P87: 306839.177 | Q87: 304478.9547 | R87: 323774.6668 | S87: 325231.225 | T87: 343189.38 | U87: 339174.6646 | V87: 355304.1813 | W87: 357894.5333 | X87: 347690.3367 | Y87: 347939.8018 | Z87: 356134.4294 | AA87: 323280.226 | AB87: 286267.461 | AC87: 250968.8728 | AD87: 374031.3888 | AE87: 303332.9144 | AF87: 327171.6759 | AG87: 376701.4786 | AH87: 381291.3897 | AI87: 399487.9149 | AJ87: 381040.381 | AK87: 397149.8051 | AL87: 433349.4289 | AM87: 413688.2062 | AN87: 397573.2853 | AO87: 405909.956 | AP87: 432647.172 | AQ87: 434193.2924 | AR87: 433586.4696 | AS87: 453389.5441 | AT87: 466891.0004 | AU87: 499440.0231 | AV87: 511320.1258 | AW87: 522637.3458 | AX87: 536446.5609 | AY87: 534528.5147 | AZ87: 546201.3692 | BA87: 564055.6491 | BB87: 592136.9076 | BC87: 585114.9681 | BD87: 589300.985 | BE87: 601957.8118 | BF87: 597288.377 | BG87: 602489.1531 | BH87: 607803.1979 | BI87: 617104.2243 | BJ87: 626347.5215 | BK87: 629197.2484 | BL87: 643212.2076 | BM87: 647348.237 | BN87: 651398.3852 | BO87: 638800.1841 | BP87: 629580.0427 | BQ87: 602521.2255 | BR87: 584157.1658 | BS87: 558708.9969 | BT87: 535887.4384 | BU87: 509823.7331 | BV87: 494455.1239 | BW87: 478023.9598 | BX87: 464240.2279 | BY87: 454257.5552 | BZ87: 449522.7024
A88: 78 años | B88: 195199.64 | C88: 202271.4958 | D88: 200889.5156 | E88: 204074.0312 | F88: 202598.2812 | G88: 199900.8906 | H88: 202605.4844 | I88: 210407.4844 | J88: 209264.4062 | K88: 239994.4688 | L88: 251650.2812 | M88: 269780.0938 | N88: 270335.0021 | O88: 278718.0981 | P88: 282434.1841 | Q88: 295951.5678 | R88: 293669.8599 | S88: 312856.022 | T88: 314589.3348 | U88: 332045.0874 | V88: 328518.6851 | W88: 344543.5958 | X88: 347178.5849 | Y88: 336964.2294 | Z88: 337452.767 | AA88: 345893.5974 | AB88: 313672.6095 | AC88: 278142.1857 | AD88: 243951.9101 | AE88: 363666.1792 | AF88: 295081.8487 | AG88: 318407.5838 | AH88: 366799.4008 | AI88: 371430.2614 | AJ88: 389387.168 | AK88: 371527.5836 | AL88: 387376.2563 | AM88: 422906.0062 | AN88: 403911.1703 | AO88: 388319.4657 | AP88: 396646.4297 | AQ88: 422932.6301 | AR88: 424631.7536 | AS88: 424205.6338 | AT88: 443744.6625 | AU88: 457132.5469 | AV88: 489199.2775 | AW88: 501012.3974 | AX88: 512290.3636 | AY88: 526009.1612 | AZ88: 524326.9339 | BA88: 535951.6431 | BB88: 553658.5401 | BC88: 581434.3655 | BD88: 574730.9111 | BE88: 579020.5197 | BF88: 591630.273 | BG88: 587207.19 | BH88: 592512.9922 | BI88: 597916.1734 | BJ88: 607260.0969 | BK88: 616535.5739 | BL88: 619524.0035 | BM88: 633510.4628 | BN88: 637757.6423 | BO88: 641936.4413 | BP88: 629677.5001 | BQ88: 620762.198 | BR88: 594238.4017 | BS88: 576270.5373 | BT88: 551297.1462 | BU88: 528905.5883 | BV88: 503296.3469 | BW88: 488233.5667 | BX88: 472109.1532 | BY88: 458595.1845 | BZ88: 448824.9089
A89: 79 años | B89: 187585.8149 | C89: 184206.6629 | D89: 191212.2656 | E89: 190439.7344 | F89: 193632.5938 | G89: 192318.9688 | H89: 189791.2969 | I89: 192439.5156 | J89: 200256.4531 | K89: 198783.3438 | L89: 227927.6562 | M89: 239726.2188 | N89: 258097.0035 | O89: 259186.5168 | P89: 266914.7066 | Q89: 271264.4767 | R89: 283817.0151 | S89: 282611.9923 | T89: 300988.5629 | U89: 303042.5086 | V89: 320126.5202 | W89: 317209.2676 | X89: 333074.6963 | Y89: 335155.88 | Z89: 325496.0065 | AA89: 326362.1347 | AB89: 334366.2276 | AC89: 303667.7512 | AD89: 269347.884 | AE89: 236379.6633 | AF89: 352499.6829 | AG89: 286180.752 | AH89: 308954.6327 | AI89: 356116.1369 | AJ89: 360789.6857 | AK89: 378475.7026 | AL89: 361254.854 | AM89: 376823.8953 | AN89: 411622.5852 | AO89: 393339.9434 | AP89: 378312.3777 | AQ89: 386622.7094 | AR89: 412421.0356 | AS89: 414280.7405 | AT89: 414048.4085 | AU89: 433300.6181 | AV89: 446563.8461 | AW89: 478104.9093 | AX89: 489844.5398 | AY89: 501077.3304 | AZ89: 514697.3835 | BA89: 513265.464 | BB89: 524837.6964 | BC89: 542382.6815 | BD89: 569823.4897 | BE89: 563462.3895 | BF89: 567863.015 | BG89: 580422.8285 | BH89: 576267.2084 | BI89: 581683.243 | BJ89: 587181.4686 | BK89: 596567.9175 | BL89: 605876.8465 | BM89: 609013.1842 | BN89: 622966.5677 | BO89: 627333.0525 | BP89: 631648.5365 | BQ89: 619757.919 | BR89: 611171.1345 | BS89: 585226.7434 | BT89: 567688.2515 | BU89: 543229.7667 | BV89: 521304.5022 | BW89: 496188.4044 | BX89: 481457.6684 | BY89: 465666.6651 | BZ89: 452445.6589
A90: 80 años | B90: 166042.4191 | C90: 175439.1164 | D90: 172787.6562 | E90: 180116.9844 | F90: 179392.9531 | G90: 182636.1562 | H90: 181569.6562 | I90: 179044.7031 | J90: 181926.5469 | K90: 188955.4219 | L90: 187467.2812 | M90: 215596.8438 | N90: 227695.7506 | O90: 245732.1643 | P90: 246914.9239 | Q90: 254907.1973 | R90: 258547.5593 | S90: 271703.7746 | T90: 270722.618 | U90: 288367.8104 | V90: 290652.5779 | W90: 307636.7222 | X90: 305042.7463 | Y90: 320047.9816 | Z90: 322394.7187 | AA90: 313631.0932 | AB90: 314224.2402 | AC90: 322335.6658 | AD90: 292796.3122 | AE90: 259869.9314 | AF90: 228213.7586 | AG90: 340476.1079 | AH90: 276588.3217 | AI90: 298770.3504 | AJ90: 344604.4472 | AK90: 349324.0805 | AL90: 366707.5603 | AM90: 350180.4602 | AN90: 365450.6389 | AO90: 399454.2391 | AP90: 381933.2661 | AQ90: 367513.7178 | AR90: 375800.5612 | AS90: 401072.161 | AT90: 403100.7548 | AU90: 403076.1681 | AV90: 422017.4282 | AW90: 435144.2016 | AX90: 466113.5792 | AY90: 477772.5885 | AZ90: 488953.6943 | BA90: 502465.8344 | BB90: 501299.3298 | BC90: 512814.0242 | BD90: 530181.191 | BE90: 557255.1487 | BF90: 551261.2636 | BG90: 555780.1425 | BH90: 568286.3204 | BI90: 564419.9195 | BJ90: 569951.1624 | BK90: 575550.0256 | BL90: 584978.005 | BM90: 594321.0453 | BN90: 597614.4706 | BO90: 611529.257 | BP90: 616023.0061 | BQ90: 620483.2108 | BR90: 608991.2809 | BS90: 600757.88 | BT90: 575440.019 | BU90: 558365.9555 | BV90: 534464.9173 | BW90: 513044.5035 | BX90: 488462.6838 | BY90: 474091.7293 | BZ90: 458662.3579
A91: 81 años | B91: 151688.5655 | C91: 154320.2027 | D91: 163299.1562 | E91: 161609.8438 | F91: 168433.7031 | G91: 168177.1719 | H91: 171136.7188 | I91: 170345.3438 | J91: 168089.1094 | K91: 170670.5781 | L91: 176949.3906 | M91: 176302.2188 | N91: 203225.7292 | O91: 215635.0892 | P91: 232456.0037 | Q91: 234392.383 | R91: 241523.5806 | S91: 245928.3617 | T91: 258130.8934 | U91: 257818.9003 | V91: 274896.0582 | W91: 277571.3718 | X91: 294100.3586 | Y91: 291324.0448 | Z91: 306438.0473 | AA91: 309081.0903 | AB91: 300230.2498 | AC91: 301304.9213 | AD91: 309252.6798 | AE91: 281094.6755 | AF91: 249660.0606 | AG91: 219408.5259 | AH91: 327521.3836 | AI91: 266241.7801 | AJ91: 287782.9031 | AK91: 332176.9004 | AL91: 336941.1309 | AM91: 353982.0717 | AN91: 338205.4343 | AO91: 353150.4693 | AP91: 386281.7597 | AQ91: 369574.6717 | AR91: 355809.7583 | AS91: 364061.5467 | AT91: 388757.6779 | AU91: 390960.6425 | AV91: 391155.7924 | AW91: 409754.2839 | AX91: 422726.8813 | AY91: 453066.4954 | AZ91: 464632.6419 | BA91: 475750.6259 | BB91: 489139.9264 | BC91: 488253.6384 | BD91: 499701.1215 | BE91: 516868.1339 | BF91: 543533.1887 | BG91: 537933.2634 | BH91: 542576.2693 | BI91: 555020.5147 | BJ91: 551466.8081 | BK91: 557116.5122 | BL91: 562820.1845 | BM91: 572285.836 | BN91: 581660.8906 | BO91: 585120.066 | BP91: 598986.3158 | BQ91: 603614.7171 | BR91: 608226.6506 | BS91: 597168.912 | BT91: 589317.2559 | BU91: 564682.4912 | BV91: 548114.7244 | BW91: 524822.992 | BX91: 503954.1503 | BY91: 479957.1217 | BZ91: 465979.5769
A92: 82 años | B92: 133545.9653 | C92: 139259.5094 | D92: 142305.8125 | E92: 151545.3438 | F92: 149950.0312 | G92: 156786.4219 | H92: 156351.3906 | I92: 159286.2812 | J92: 158722.0312 | K92: 156412.5156 | L92: 158696.6094 | M92: 165099.3594 | N92: 164990.003 | O92: 190944.5667 | P92: 202400.2426 | Q92: 219078.1353 | R92: 220495.0921 | S92: 228433.5355 | T92: 232471.1361 | U92: 244229.7983 | V92: 244068.4578 | W92: 260972.0172 | X92: 263832.3526 | Y92: 279261.9039 | Z92: 277426.7447 | AA92: 292233.1208 | AB92: 293938.56 | AC92: 286146.9406 | AD92: 287355.8777 | AE92: 295206.289 | AF92: 268515.3467 | AG92: 238669.9137 | AH92: 209916.8577 | AI92: 313554.4509 | AJ92: 255069.4462 | AK92: 275909.019 | AL92: 318731.0823 | AM92: 323531.164 | AN92: 340178.2594 | AO92: 325209.1821 | AP92: 339791.5428 | AQ92: 371955.4494 | AR92: 356116.758 | AS92: 343053.5799 | AT92: 351251.1536 | AU92: 375307.5793 | AV92: 377686.3907 | AW92: 378110.3987 | AX92: 396321.7368 | AY92: 409113.1053 | AZ92: 438747.1314 | BA92: 450199.1863 | BB92: 461234.1633 | BC92: 474476.4377 | BD92: 473883.0778 | BE92: 485245.2808 | BF92: 502178.1768 | BG92: 528376.6501 | BH92: 523198.6106 | BI92: 527966.6947 | BJ92: 540332.9619 | BK92: 537115.6224 | BL92: 542882.8732 | BM92: 548690.9965 | BN92: 558184.479 | BO92: 567583.7285 | BP92: 571215.0223 | BQ92: 585015.553 | BR92: 589782.9717 | BS92: 594552.0801 | BT92: 583969.9548 | BU92: 576533.9896 | BV92: 552653.6725 | BW92: 536643.9829 | BX92: 514026.5771 | BY92: 493768.5433 | BZ92: 470420.5657
A93: 83 años | B93: 117316.2821 | C93: 121509.1379 | D93: 127179.6094 | E93: 130654.1875 | F93: 139172.5312 | G93: 138207.2188 | H93: 144660.1406 | I93: 144095.6094 | J93: 147072.8438 | K93: 146375.7188 | L93: 144131.9219 | M93: 146711.6406 | N93: 153279.8511 | O93: 153845.0097 | P93: 177520.735 | Q93: 189031.4757 | R93: 204211.7842 | S93: 207037.2834 | T93: 214035.0274 | U93: 218248.6644 | V93: 229792.9037 | W93: 230007.7212 | X93: 246365.0066 | Y93: 248484.107 | Z93: 263923.0533 | AA93: 262716.3001 | AB93: 276038.0848 | AC93: 278349.0461 | AD93: 271121.2992 | AE93: 272511.7015 | AF93: 280236.064 | AG93: 255092.7337 | AH93: 226926.8674 | AI93: 199759.4075 | AJ93: 298603.6291 | AK93: 243091.8454 | AL93: 263166.3351 | AM93: 304281.8667 | AN93: 309104.3505 | AO93: 325301.5011 | AP93: 311192.382 | AQ93: 325370.5944 | AR93: 356466.3653 | AS93: 341545.9911 | AT93: 329228.7152 | AU93: 337348.0618 | AV93: 360695.033 | AW93: 363245.7952 | AX93: 363902.7675 | AY93: 381676.7445 | AZ93: 394253.911 | BA93: 423098.1861 | BB93: 434409.0471 | BC93: 445335.0677 | BD93: 458399.5015 | BE93: 458107.5774 | BF93: 469360.3805 | BG93: 486018.2406 | BH93: 511682.962 | BI93: 506951.6303 | BJ93: 511841.2646 | BK93: 524106.8503 | BL93: 521246.8027 | BM93: 527125.7773 | BN93: 533033.4038 | BO93: 542539.2234 | BP93: 551949.259 | BQ93: 555754.9423 | BR93: 569465.7018 | BS93: 574372.4398 | BT93: 579299.7149 | BU93: 569234.9913 | BV93: 562247.9274 | BW93: 539197.6146 | BX93: 523800.2237 | BY93: 501926.9147 | BZ93: 482343.0816
A94: 84 años | B94: 105358.52 | C94: 105819.4689 | D94: 109793.4219 | E94: 115682.1406 | F94: 119011.5625 | G94: 126836.7188 | H94: 126412.4062 | I94: 132366.8594 | J94: 132119.8281 | K94: 134269.4062 | L94: 133382.4062 | M94: 132181.3281 | N94: 135131.9461 | O94: 141351.7527 | P94: 141463.4829 | Q94: 164368.8481 | R94: 174766.234 | S94: 189883.4216 | T94: 192362.7959 | U94: 199251.3734 | V94: 203775.0768 | W94: 215033.3234 | X94: 215287.5155 | Y94: 230089.342 | Z94: 233077.3656 | AA94: 247903.3892 | AB94: 246348.9858 | AC94: 259324.2574 | AD94: 261742.1389 | AE94: 255201.3352 | AF94: 256760.0161 | AG94: 264321.69 | AH94: 240805.1187 | AI94: 214407.6487 | AJ94: 188911.9364 | AK94: 282627.978 | AL94: 230272.9545 | AM94: 249510.8365 | AN94: 288772.4823 | AO94: 293597.9368 | AP94: 309280.4939 | AQ94: 296082.3713 | AR94: 309807.6573 | AS94: 339721.7072 | AT94: 325768.891 | AU94: 314241.9846 | AV94: 322252.7313 | AW94: 344809.9125 | AX94: 347523.2175 | AY94: 348412.5126 | AZ94: 365689.5393 | BA94: 378011.2713 | BB94: 405967.3317 | BC94: 417102.136 | BD94: 427885.4367 | BE94: 440732.349 | BF94: 440747.0244 | BG94: 451858.5531 | BH94: 468190.7509 | BI94: 493240.2978 | BJ94: 488979.2662 | BK94: 493982.4006 | BL94: 506116.1308 | BM94: 503633.0957 | BN94: 509612.7576 | BO94: 515610.1315 | BP94: 525106.1521 | BQ94: 534506.9878 | BR94: 538485.4017 | BS94: 552073.5427 | BT94: 557115.8887 | BU94: 562197.6512 | BV94: 552695.4213 | BW94: 546191.773 | BX94: 524056.2959 | BY94: 509331.5303 | BZ94: 488281.769
A95: 85 años | B95: 87358.86351 | C95: 93498.21715 | D95: 94714.70312 | E95: 98832.32812 | F95: 104101.6719 | G95: 107360.9375 | H95: 114395.9062 | I95: 114098.5938 | J95: 119749.5781 | K95: 119556.0469 | L95: 121108.9688 | M95: 120989.0938 | N95: 120320.7657 | O95: 123532.879 | P95: 128817.6532 | Q95: 129680.6385 | R95: 150378.7753 | S95: 161107.3141 | T95: 174642.2025 | U95: 177486.1782 | V95: 184417.7798 | W95: 188873.4213 | X95: 199246.0427 | Y95: 199080.7529 | Z95: 213940.1974 | AA95: 217094.2771 | AB95: 230068.5502 | AC95: 229406.555 | AD95: 241746.3687 | AE95: 244280.214 | AF95: 238432.1902 | AG95: 240140.5675 | AH95: 247499.5506 | AI95: 225679.7644 | AJ95: 201132.5628 | AK95: 177389.4906 | AL95: 265638.8763 | AM95: 216617.6042 | AN95: 234942.4243 | AO95: 272196.6615 | AP95: 276999.8877 | AQ95: 292096.811 | AR95: 279856.1261 | AS95: 293071.731 | AT95: 321681.0536 | AU95: 308741.7162 | AV95: 298044.7984 | AW95: 305909.7973 | AX95: 327585.886 | AY95: 330447.3124 | AZ95: 331563.7653 | BA95: 348273.8352 | BB95: 360290.3335 | BC95: 387246.533 | BD95: 398161.0694 | BE95: 408758.8351 | BF95: 421339.0724 | BG95: 421659.8761 | BH95: 432588.6063 | BI95: 448532.3058 | BJ95: 472871.0181 | BK95: 469100.156 | BL95: 474200.159 | BM95: 486161.2254 | BN95: 484070.1312 | BO95: 490131.927 | BP95: 496201.0013 | BQ95: 505655.9955 | BR95: 515018.7231 | BS95: 519161.9054 | BT95: 532584.8165 | BU95: 537751.7151 | BV95: 542979.3223 | BW95: 534084.9238 | BX95: 528100.5441 | BY95: 506974.2501 | BZ95: 492987.5669
A96: 86 años | B96: 75862.20935 | C96: 76875.99062 | D96: 82482.51562 | E96: 84152.54688 | F96: 87706.23438 | G96: 92799.20312 | H96: 95712.3125 | I96: 102281.0938 | J96: 101887.7812 | K96: 106841.2969 | L96: 106478.2656 | M96: 108641.5312 | N96: 108723.8308 | O96: 108599.0296 | P96: 111013.1249 | Q96: 116664.1041 | R96: 117294.7057 | S96: 137086.9783 | T96: 146423.1382 | U96: 159163.0645 | V96: 162463.6811 | W96: 169266.7216 | X96: 173568.7542 | Y96: 182301.5425 | Z96: 183220.9798 | AA96: 197118.6896 | AB96: 199478.3111 | AC96: 212197.2249 | AD96: 211755.4467 | AE96: 223436.2966 | AF96: 226060.9572 | AG96: 220908.6795 | AH96: 222747.6525 | AI96: 229863.4289 | AJ96: 209802.6661 | AK96: 187177.4058 | AL96: 165257.688 | AM96: 247731.2068 | AN96: 202203.3341 | AO96: 219541.8409 | AP96: 254643.4941 | AQ96: 259397.4315 | AR96: 273838.5959 | AS96: 262594.9673 | AT96: 275245.1297 | AU96: 302430.2552 | AV96: 290543.0401 | AW96: 280710.9107 | AX96: 288391.2129 | AY96: 309096.594 | AZ96: 312087.2904 | BA96: 313420.9096 | BB96: 329493.5553 | BC96: 341152.6239 | BD96: 366996.8074 | BE96: 377644.1265 | BF96: 388010.27 | BG96: 400271.0774 | BH96: 400892.8753 | BI96: 411593.7802 | BJ96: 427083.3562 | BK96: 450611.7989 | BL96: 447345.592 | BM96: 452522.208 | BN96: 464264.804 | BO96: 462576.1272 | BP96: 468696.7636 | BQ96: 474815.3651 | BR96: 484193.3613 | BS96: 493484.1374 | BT96: 497779.1615 | BU96: 510988.2272 | BV96: 516264.0794 | BW96: 521622.6483 | BX96: 513377.5967 | BY96: 507942.9137 | BZ96: 487916.1473
A97: 87 años | B97: 64165.50094 | C97: 65415.60134 | D97: 66873.5625 | E97: 72426.73438 | F97: 73612.39062 | G97: 77318.14062 | H97: 81521.73438 | I97: 84269.6875 | J97: 90323.28125 | K97: 89671.96875 | L97: 93606.01562 | M97: 93963.48438 | N97: 96408.89907 | O97: 96826.70911 | P97: 96308.06768 | Q97: 99258.06879 | R97: 104088.0798 | S97: 105625.5907 | T97: 123308.0783 | U97: 131948.6915 | V97: 143846.4052 | W97: 147747.9016 | X97: 153678.4977 | Y97: 156833.4905 | Z97: 165932.0107 | AA97: 167036.4849 | AB97: 178766.0498 | AC97: 181703.8251 | AD97: 193500.3922 | AE97: 193306.5056 | AF97: 204240.2413 | AG97: 206903.226 | AH97: 202430.6647 | AI97: 204357.8141 | AJ97: 211164.11 | AK97: 192928.0226 | AL97: 172309.5461 | AM97: 152301.1618 | AN97: 228558.1758 | AO97: 186735.2351 | AP97: 202976.0321 | AQ97: 235712.5303 | AR97: 240369.9513 | AS97: 254049.3708 | AT97: 243850.1847 | AU97: 255844.8041 | AV97: 281426.7048 | AW97: 270642.4456 | AX97: 261717.3898 | AY97: 269150.7582 | AZ97: 288745.8337 | BA97: 291834.3384 | BB97: 293366.2763 | BC97: 308690.2666 | BD97: 319909.0174 | BE97: 344469.0517 | BF97: 354772.8005 | BG97: 364833.0029 | BH97: 376690.0629 | BI97: 377600.6739 | BJ97: 388000.1126 | BK97: 402930.4087 | BL97: 425494.1904 | BM97: 422750.0909 | BN97: 427966.0944 | BO97: 439415.724 | BP97: 438139.539 | BQ97: 444279.3358 | BR97: 450408.1279 | BS97: 459649.9782 | BT97: 468812.4459 | BU97: 473235.4137 | BV97: 486152.7781 | BW97: 491508.5491 | BX97: 496972.9924 | BY97: 489436.4941 | BZ97: 484596.7427
A98: 88 años | B98: 49565.50495 | C98: 54850.21442 | D98: 55893 | E98: 57776.4375 | F98: 62407.95312 | G98: 63660.23438 | H98: 67085.04688 | I98: 70639.26562 | J98: 73219.0625 | K98: 78174.46875 | L98: 77454.15625 | M98: 81586.73438 | N98: 82263.67836 | O98: 84596.94886 | P98: 84574.32467 | Q98: 85033.82056 | R98: 87029.0807 | S98: 92366.09668 | T98: 93661.01838 | U98: 109650.0405 | V98: 117762.5326 | W98: 128873.4369 | X98: 132690.69 | Y98: 137182.4 | Z98: 140639.4662 | AA98: 149270.5773 | AB98: 149567.929 | AC98: 160842.0969 | AD98: 163680.3301 | AE98: 174556.5585 | AF98: 174586.9343 | AG98: 184727.147 | AH98: 187394.0111 | AI98: 183581.5327 | AJ98: 185566.851 | AK98: 192020.1472 | AL98: 175627.1481 | AM98: 157042.1992 | AN98: 138974.8166 | AO98: 208802.0816 | AP98: 170773.0264 | AQ98: 185850.887 | AR98: 216103.0718 | AS98: 220626.8912 | AT98: 233474.1318 | AU98: 224332.4718 | AV98: 235611.8733 | AW98: 259478.302 | AX98: 249809.9953 | AY98: 241803.9485 | AZ98: 248941.6159 | BA98: 267334.03 | BB98: 270487.2339 | BC98: 272192.3053 | BD98: 286688.6184 | BE98: 297403.2896 | BF98: 320559.667 | BG98: 330458.5906 | BH98: 340151.7566 | BI98: 351537.1067 | BJ98: 352713.4716 | BK98: 362749.9076 | BL98: 377038.518 | BM98: 398520.9818 | BN98: 396294.7184 | BO98: 401511.0937 | BP98: 412602.8108 | BQ98: 411731.4246 | BR98: 417848.3072 | BS98: 423946.0672 | BT98: 432996.0361 | BU98: 441976.3441 | BV98: 446495.6121 | BW98: 459051.1978 | BX98: 464451.9303 | BY98: 469988.642 | BZ98: 463189.0223
A99: 89 años | B99: 43877.39593 | C99: 41693.07214 | D99: 46271.15625 | E99: 47472 | F99: 48886.3125 | G99: 53262.17188 | H99: 54509.07812 | I99: 57331.95312 | J99: 60490.79688 | K99: 62466.4375 | L99: 66209.65625 | M99: 66427.34375 | N99: 70293.50813 | O99: 71192.86576 | P99: 72699.61105 | Q99: 73375.7776 | R99: 73678.31172 | S99: 76226.72586 | T99: 80766.67051 | U99: 82063.54731 | V99: 96217.1576 | W99: 103898.8843 | X99: 114012.907 | Y99: 116418.5398 | Z99: 121448.951 | AA99: 124903.4138 | AB99: 131441.9974 | AC99: 132653.9365 | AD99: 142856.7487 | AE99: 145587.7543 | AF99: 155498.0484 | AG99: 155722.8647 | AH99: 165018.8341 | AI99: 167647.1378 | AJ99: 164464.8463 | AK99: 166471.6096 | AL99: 172521.0228 | AM99: 157978.2795 | AN99: 141440.286 | AO99: 125331.1355 | AP99: 188537.1452 | AQ99: 154374.7738 | AR99: 168223.2372 | AS99: 195873.7304 | AT99: 200221.7833 | AU99: 212163.0016 | AV99: 204084.5316 | AW99: 214587.0138 | AX99: 236623.4293 | AY99: 228076.7985 | AZ99: 220997.9216 | BA99: 227786.9601 | BB99: 244882.2849 | BC99: 248060.4764 | BD99: 249906.8325 | BE99: 263493.0441 | BF99: 273634.7137 | BG99: 295262.2114 | BH99: 304690.2173 | BI99: 313949.7937 | BJ99: 324789.1013 | BK99: 326203.2153 | BL99: 335809.7456 | BM99: 349369.2644 | BN99: 369645.2835 | BO99: 367927.7062 | BP99: 373101.963 | BQ99: 383763.4747 | BR99: 383285.7895 | BS99: 389332.1335 | BT99: 395353.3932 | BU99: 404149.8112 | BV99: 412887.9176 | BW99: 417466.4887 | BX99: 429581.4829 | BY99: 434987.7229 | BZ99: 440554.9908
A100: 90 años | B100: 26592.33986 | C100: 35617.21708 | D100: 34372.26562 | E100: 38658.34375 | F100: 39498 | G100: 40925.1875 | H100: 44432.39062 | I100: 45630.92188 | J100: 48152.85938 | K100: 50531.32812 | L100: 52131.8125 | M100: 55713.84375 | N100: 56211.37092 | O100: 59882.91097 | P100: 60124.22134 | Q100: 62191.96418 | R100: 62390.7514 | S100: 63470.7462 | T100: 65636.22676 | U100: 69616.83529 | V100: 70854.76773 | W100: 83605.51585 | X100: 90569.81957 | Y100: 98406.67124 | Z100: 101542.7559 | AA100: 106015.6295 | AB100: 108230.9021 | AC100: 114813.2963 | AD100: 116012.1067 | AE100: 125136.8181 | AF100: 127722.5352 | AG100: 136634.5513 | AH100: 137015.9585 | AI100: 145428.2348 | AJ100: 147973.5518 | AK100: 145378.6822 | AL100: 147366.7871 | AM100: 152965.8935 | AN100: 140248.4073 | AO100: 125737.5279 | AP100: 111572.8969 | AQ100: 168058.4594 | AR100: 137776.5441 | AS100: 150343.8723 | AT100: 175309.0625 | AU100: 179438.2283 | AV100: 190408.952 | AW100: 183381.0218 | AX100: 193051.1201 | AY100: 213163.4708 | AZ100: 205725.9327 | BA100: 199566.1177 | BB100: 205954.2524 | BC100: 221669.8029 | BD100: 224829.1198 | BE100: 226779.1887 | BF100: 239379.1091 | BG100: 248881.0013 | BH100: 268867.2109 | BI100: 277758.3744 | BJ100: 286517.4443 | BK100: 296737.0026 | BL100: 298353.0101 | BM100: 307461.7249 | BN100: 320206.5921 | BO100: 339157.4325 | BP100: 337928.4758 | BQ100: 343012.5894 | BR100: 353169.6377 | BS100: 353064.8982 | BT100: 358987.7709 | BU100: 364881.7571 | BV100: 373359.1191 | BW100: 381790.869 | BX100: 386385.1019 | BY100: 397977.8482 | BZ100: 403343.8648
A101: 91 años | B101: 21257.50782 | C101: 21384.24962 | D101: 28565.25 | E101: 28043.98438 | F101: 31635.53125 | G101: 32380 | H101: 33513.0625 | I101: 36569.60938 | J101: 37704.76562 | K101: 39610.76562 | L101: 41256.85938 | M101: 43011.1875 | N101: 46244.09398 | O101: 46592.31264 | P101: 49322.45236 | Q101: 50377.25341 | R101: 51877.69002 | S101: 52791.55227 | T101: 53469.65551 | U101: 55540.49678 | V101: 59214.51945 | W101: 60576.76407 | X101: 71564.20167 | Y101: 76630.21361 | Z101: 84238.78389 | AA101: 87043.2173 | AB101: 90090.60356 | AC101: 92997.69867 | AD101: 98788.77233 | AE101: 99997.35335 | AF101: 108055.0769 | AG101: 110474.0435 | AH101: 118390.143 | AI101: 118900.1113 | AJ101: 126421.6813 | AK101: 128853.2083 | AL101: 126799.4981 | AM101: 128739.4917 | AN101: 133862.41 | AO101: 122907.0034 | AP101: 110356.766 | AQ101: 98076.14632 | AR101: 147936.6292 | AS101: 121448.05 | AT101: 132725.5602 | AU101: 155006.8148 | AV101: 158887.6468 | AW101: 168860.0423 | AX101: 162845.0398 | AY101: 171659.9726 | AZ101: 189820.715 | BA101: 183452.1036 | BB101: 178181.813 | BC101: 184135.9436 | BD101: 198440.2618 | BE101: 201542.8678 | BF101: 203560.6319 | BG101: 215137.0945 | BH101: 223959.4424 | BI101: 242252.7359 | BJ101: 250565.6541 | BK101: 258780.487 | BL101: 268333.3633 | BM101: 270114.7835 | BN101: 278681.0427 | BO101: 290560.8509 | BP101: 308119.5489 | BQ101: 307347.8129 | BR101: 312304.1233 | BS101: 321905.2698 | BT101: 322145.6606 | BU101: 327902.2363 | BV101: 333629.1827 | BW101: 341739.2863 | BX101: 349817.0138 | BY101: 354387.9601 | BZ101: 365399.9587
A102: 92 años | B102: 15661.1841 | C102: 16542.0099 | D102: 16786.79688 | E102: 22674.75 | F102: 22398.70312 | G102: 25463.71875 | H102: 25976 | I102: 26878.9375 | J102: 29523.82812 | K102: 30231.60938 | L102: 31680.67188 | M102: 33416.39062 | N102: 35060.88168 | O102: 37636.59855 | P102: 37606.90622 | Q102: 40621.41325 | R102: 41091.13301 | S102: 43182.50293 | T102: 43733.79232 | U102: 44378.9268 | V102: 46323.92608 | W102: 49852.65833 | X102: 51156.1867 | Y102: 59413.86671 | Z102: 64413.19869 | AA102: 71131.59226 | AB102: 72483.32944 | AC102: 76070.47741 | AD102: 78658.15633 | AE102: 83716.5095 | AF102: 84902.60657 | AG102: 91919.87694 | AH102: 94148.89364 | AI102: 101085.8842 | AJ102: 101687.9254 | AK102: 108324.9443 | AL102: 110611.2434 | AM102: 109040.233 | AN102: 110900.759 | AO102: 115529.2812 | AP102: 106239.1771 | AQ102: 95548.83303 | AR102: 85059.92868 | AS102: 128493.8685 | AT102: 105647.7819 | AU102: 115646.0321 | AV102: 135286.3526 | AW102: 138891.8004 | AX102: 147852.8603 | AY102: 142795.3523 | AZ102: 150742.8266 | BA102: 166953.3856 | BB102: 161596.0763 | BC102: 157169.0491 | BD102: 162661.2659 | BE102: 175541.4809 | BF102: 178550.0992 | BG102: 180598.1362 | BH102: 191126.7698 | BI102: 199238.3784 | BJ102: 215810.6599 | BK102: 223510.1795 | BL102: 231143.1361 | BM102: 239990.5491 | BN102: 241896.6736 | BO102: 249881.3959 | BP102: 260855.3122 | BQ102: 276973.4659 | BR102: 276619.2039 | BS102: 281408.4857 | BT102: 290408.5371 | BU102: 290958.5978 | BV102: 296506.3779 | BW102: 302025.9509 | BX102: 309723.5544 | BY102: 317402.3804 | BZ102: 321909.4536
A103: 93 años | B103: 12515.67798 | C103: 11997.36406 | D103: 12631.39062 | E103: 12910.95312 | F103: 17524.25 | G103: 17622.42188 | H103: 20055.90625 | I103: 20406 | J103: 21279.8125 | K103: 23292.04688 | L103: 23727.45312 | M103: 25149.57812 | N103: 26518.79554 | O103: 27806.83899 | P103: 29571.68116 | Q103: 30062.61729 | R103: 32430.98202 | S103: 33420.14072 | T103: 35006.19267 | U103: 35515.58485 | V103: 36416.8898 | W103: 38212.96853 | X103: 41292.07327 | Y103: 41603.45767 | Z103: 49092.47212 | AA103: 53186.15984 | AB103: 57875.29988 | AC103: 59961.98871 | AD103: 63058.95918 | AE103: 65339.41687 | AF103: 69686.86647 | AG103: 70822.59012 | AH103: 76837.18386 | AI103: 78858.89346 | AJ103: 84845.25819 | AK103: 85507.18928 | AL103: 91277.56977 | AM103: 93393.4586 | AN103: 92247.67349 | AO103: 94002.86871 | AP103: 98127.61226 | AQ103: 90395.81757 | AR103: 81451.21459 | AS103: 72647.82863 | AT103: 109922.5177 | AU103: 90535.8746 | AV103: 99282.8432 | AW103: 116358.237 | AX103: 119669.0843 | AY103: 127622.4786 | AZ103: 123460.7214 | BA103: 130544.0183 | BB103: 144834.6954 | BC103: 140423.9499 | BD103: 136789.2234 | BE103: 141802.7404 | BF103: 153270.4156 | BG103: 156153.7574 | BH103: 158198.7457 | BI103: 167675.5781 | BJ103: 175060.7002 | BK103: 189914.1667 | BL103: 196980.3982 | BM103: 204008.7302 | BN103: 212128.4651 | BO103: 214123.3379 | BP103: 221503.0787 | BQ103: 231551.8979 | BR103: 246210.4122 | BS103: 246234.1044 | BT103: 250828.0962 | BU103: 259198.3002 | BV103: 260025.1518 | BW103: 265332.4863 | BX103: 270616.0471 | BY103: 277870.7318 | BZ103: 285120.2922
A104: 94 años | B104: 8401.157991 | C104: 9438.91498 | D104: 8866.734375 | E104: 9485.859375 | F104: 9583.109375 | G104: 13277.75 | H104: 13547.14062 | I104: 15346.09375 | J104: 15613 | K104: 16221.6875 | L104: 17793.26562 | M104: 18363.29688 | N104: 19799.87816 | O104: 20448.85756 | P104: 21359.85732 | Q104: 23046.04074 | R104: 23271.16074 | S104: 25822.39568 | T104: 26619.73001 | U104: 27916.90104 | V104: 28630.24851 | W104: 29457.24428 | X104: 30971.34526 | Y104: 32909.36414 | Z104: 33791.66771 | AA104: 39785.18262 | AB104: 42468.21597 | AC104: 47062.73376 | AD104: 48847.67721 | AE104: 51509.58902 | AF104: 53499.81118 | AG104: 57195.59963 | AH104: 58267.32243 | AI104: 63365.23884 | AJ104: 65182.43421 | AK104: 70294.13584 | AL104: 70995.34245 | AM104: 75962.04722 | AN104: 77900.35653 | AO104: 77115.81097 | AP104: 78754.52933 | AQ104: 82396.00244 | AR104: 76059.45496 | AS104: 68678.50615 | AT104: 61386.58377 | AU104: 93054.8988 | AV104: 76797.51815 | AW104: 84385.95723 | AX104: 99099.8362 | AY104: 102119.3873 | AZ104: 109126.1395 | BA104: 105763.8475 | BB104: 112037.3978 | BC104: 124541.7219 | BD104: 120975.4172 | BE104: 118052.5463 | BF104: 122603.4656 | BG104: 132751.2646 | BH104: 135492.464 | BI104: 137508.8161 | BJ104: 145993.9667 | BK104: 152683.6831 | BL104: 165920.3264 | BM104: 172376.9463 | BN104: 178820.1228 | BO104: 186238.5109 | BP104: 188291.705 | BQ104: 195086.0411 | BR104: 204252.3337 | BS104: 217522.6115 | BT104: 217874.1496 | BU104: 222267.1829 | BV104: 230023.6892 | BW104: 231089.6793 | BX104: 236149.0973 | BY104: 241192.6951 | BZ104: 248010.2586
A105: 95 años | B105: 5727.076734 | C105: 6382.293511 | D105: 6834.265625 | E105: 6481.015625 | F105: 6776.328125 | G105: 6922.265625 | H105: 9689.25 | I105: 9990.859375 | J105: 11428.28125 | K105: 11507 | L105: 12014.5625 | M105: 13572.48438 | N105: 14104.09677 | O105: 15047.35176 | P105: 15112.20165 | Q105: 16331.9894 | R105: 17447.89703 | S105: 17987.59696 | T105: 20098.56662 | U105: 20793.33647 | V105: 21972.45257 | W105: 22699.45204 | X105: 23451.09306 | Y105: 24057.63248 | Z105: 25942.46853 | AA105: 26870.55367 | AB105: 30941.89921 | AC105: 33997.78742 | AD105: 37778.09217 | AE105: 39318.32714 | AF105: 41588.38117 | AG105: 43316.04421 | AH105: 46436.29715 | AI105: 47438.05533 | AJ105: 51728.01093 | AK105: 53353.19248 | AL105: 57689.62719 | AM105: 58412.08365 | AN105: 62661.66445 | AO105: 64426.65681 | AP105: 63939.2195 | AQ105: 65459.34835 | AR105: 68658.15435 | AS105: 63528.04559 | AT105: 57501.20111 | AU105: 51520.08349 | AV105: 78259.09341 | AW105: 64735.64049 | AX105: 71290.4536 | AY105: 83907.76995 | AZ105: 86653.08109 | BA105: 92804.78713 | BB105: 90132.5185 | BC105: 95674.88598 | BD105: 106578.3462 | BE105: 103741.1336 | BF105: 101435.1105 | BG105: 105557.9764 | BH105: 114517.17 | BI105: 117112.3154 | BJ105: 119084.242 | BK105: 126669.4683 | BL105: 132720.9261 | BM105: 144494.9286 | BN105: 150388.8771 | BO105: 156290.0017 | BP105: 163061.384 | BQ105: 165148.0943 | BR105: 171399.9825 | BS105: 179757.3585 | BT105: 191760.8854 | BU105: 192388.2628 | BV105: 196584.8008 | BW105: 203770.7534 | BX105: 205036.2153 | BY105: 209855.0098 | BZ105: 214666.9918
A106: 96 años | B106: 3701.080728 | C106: 4305.990204 | D106: 4610.90625 | E106: 4780.984375 | F106: 4479.296875 | G106: 4677.796875 | H106: 4732.421875 | I106: 6859.75 | J106: 7222.578125 | K106: 8300.46875 | L106: 8392 | M106: 8877.4375 | N106: 10207.21091 | O106: 10444.5838 | P106: 10877.06515 | Q106: 11184.86469 | R106: 12036.03128 | S106: 13184.47113 | T106: 13585.42978 | U106: 15315.3012 | V106: 15999.59364 | W106: 17197.72998 | X106: 17645.59527 | Y106: 17872.4832 | Z106: 18669.06571 | AA106: 20141.15568 | AB106: 20523.97981 | AC106: 24225.10819 | AD106: 26683.62953 | AE106: 29753.82454 | AF106: 31065.04038 | AG106: 32973.43778 | AH106: 34453.75372 | AI106: 37052.69324 | AJ106: 37973.27797 | AK106: 41535.62955 | AL106: 42972.08737 | AM106: 46605.91286 | AN106: 47327.31479 | AO106: 50922.33076 | AP106: 52512.08262 | AQ106: 52266.78736 | AR106: 53661.57472 | AS106: 56445.65218 | AT106: 52371.45763 | AU106: 47535.20927 | AV106: 42709.76751 | AW106: 65025.22761 | AX106: 53932.86491 | AY106: 59544.35813 | AZ106: 70259.67324 | BA106: 72739.41554 | BB106: 78100.04425 | BC106: 76032.56027 | BD106: 80896.92181 | BE106: 90332.0788 | BF106: 88135.15527 | BG106: 86371.04419 | BH106: 90087.12004 | BI106: 97948.53522 | BJ106: 100391.8356 | BK106: 102305.1634 | BL106: 109052.2962 | BM106: 114503.0346 | BN106: 124921.621 | BO106: 130282.2563 | BP106: 135668.15 | BQ106: 141827.8275 | BR106: 143926.2693 | BS106: 149662.2681 | BT106: 157258.3649 | BU106: 168078.0675 | BV106: 168940.8463 | BW106: 172939.1396 | BX106: 179582.1763 | BY106: 181015.1716 | BZ106: 185595.1265
A107: 97 años | B107: 2618.143383 | C107: 2677.871378 | D107: 2962.328125 | E107: 3194.59375 | F107: 3260.703125 | G107: 2961.578125 | H107: 3008.265625 | I107: 3065.578125 | J107: 4688.25 | K107: 4999.296875 | L107: 5812.65625 | M107: 6152 | N107: 6625.777408 | O107: 7364.739573 | P107: 7396.821143 | Q107: 7977.902415 | R107: 7923.902413 | S107: 8828.013443 | T107: 9636.907047 | U107: 9944.644915 | V107: 11622.35268 | W107: 12255.56183 | X107: 13280.81115 | Y107: 13101.69603 | Z107: 13646.98427 | AA107: 14327.5794 | AB107: 15034.35752 | AC107: 15794.60422 | AD107: 18701.24836 | AE107: 20677.6097 | AF107: 23152.4876 | AG107: 24267.50237 | AH107: 25864.82476 | AI107: 27131.05767 | AJ107: 29288.26581 | AK107: 30130.85359 | AL107: 33078.0304 | AM107: 34346.86773 | AN107: 37383.82372 | AO107: 38095.14869 | AP107: 41131.10925 | AQ107: 42561.64271 | AR107: 42506.98159 | AS107: 43785.39678 | AT107: 46208.04251 | AU107: 43011.15344 | AV107: 39165.54764 | AW107: 35302.9938 | AX107: 53888.54749 | AY107: 44835.34902 | AZ107: 49641.99555 | BA107: 58740.87483 | BB107: 60985.53221 | BC107: 65665.17617 | BD107: 64100.01825 | BE107: 68381.44179 | BF107: 76560.4203 | BG107: 74895.73885 | BH107: 73584.05557 | BI107: 76944.98702 | BJ107: 83865.04755 | BK107: 86168.36665 | BL107: 88021.5453 | BM107: 94046.96787 | BN107: 98976.76202 | BO107: 108230.0983 | BP107: 113127.4797 | BQ107: 118065.019 | BR107: 123693.534 | BS107: 125793.9884 | BT107: 131081.9218 | BU107: 138020.7628 | BV107: 147819.4704 | BW107: 148876.7526 | BX107: 152700.8637 | BY107: 158872.6105 | BZ107: 160444.8703
A108: 98 años | B108: 1671.133812 | C108: 1936.913183 | D108: 1833.921875 | E108: 1972.921875 | F108: 2159.28125 | G108: 2054.421875 | H108: 1845.859375 | I108: 1808.734375 | J108: 1948.734375 | K108: 3055.75 | L108: 3365.015625 | M108: 4212.84375 | N108: 4549.034604 | O108: 4602.111856 | P108: 5032.037791 | Q108: 5218.799834 | R108: 5441.148277 | S108: 5660.278336 | T108: 6309.119305 | U108: 6939.536208 | V108: 7328.568049 | W108: 8762.682864 | X108: 9313.669473 | Y108: 9708.226154 | Z108: 9823.96748 | AA108: 10170.4475 | AB108: 10390.54358 | AC108: 11330.51585 | AD108: 11949.87415 | AE108: 14203.48719 | AF108: 15767.50071 | AG108: 17731.59158 | AH108: 18663.65921 | AI108: 19980.02773 | AJ108: 21045.9595 | AK108: 22812.02772 | AL108: 23565.7468 | AM108: 25972.93761 | AN108: 27076.29677 | AO108: 29584.18164 | AP108: 30262.07579 | AQ108: 32797.30407 | AR108: 34066.17567 | AS108: 34149.51546 | AT108: 35303.88089 | AU108: 37391.17909 | AV108: 34928.32448 | AW108: 31919.50085 | AX108: 28874.53665 | AY108: 44196.52601 | AZ108: 36899.19995 | BA108: 40982.85564 | BB108: 48643.58778 | BC108: 50658.85661 | BD108: 54714.80781 | BE108: 53570.43397 | BF108: 57314.11206 | BG108: 64355.96735 | BH108: 63139.69191 | BI108: 62207.84533 | BJ108: 65230.08283 | BK108: 71287.09917 | BL108: 73442.67801 | BM108: 75220.19538 | BN108: 80575.28323 | BO108: 85014.0845 | BP108: 93194.44626 | BQ108: 97650.02524 | BR108: 102158.5065 | BS108: 107282.7435 | BT108: 109361.0679 | BU108: 114219.1251 | BV108: 120536.8165 | BW108: 129382.6679 | BX108: 130593.632 | BY108: 134235.2892 | BZ108: 139954.513
A109: 99 años | B109: 1374.288246 | C109: 1215.576432 | D109: 1298.28125 | E109: 1186.828125 | F109: 1253.515625 | G109: 1343.96875 | H109: 1200.140625 | I109: 1063.140625 | J109: 1062.203125 | K109: 1221.890625 | L109: 2016.25 | M109: 2463.734375 | N109: 3094.261689 | O109: 3107.37741 | P109: 3069.37555 | Q109: 3501.522166 | R109: 3469.454562 | S109: 3790.857686 | T109: 3872.35843 | U109: 4454.336209 | V109: 5009.013113 | W109: 5380.68994 | X109: 6530.111224 | Y109: 6625.940654 | Z109: 7184.220819 | AA109: 7266.936109 | AB109: 7298.074426 | AC109: 7719.53822 | AD109: 8453.719407 | AE109: 8963.085943 | AF109: 10701.12773 | AG109: 11937.8636 | AH109: 13491.32373 | AI109: 14272.37618 | AJ109: 15355.113 | AK109: 16253.5201 | AL109: 17700.45592 | AM109: 18373.13196 | AN109: 20340.54183 | AO109: 21301.5605 | AP109: 23375.55974 | AQ109: 24017.99384 | AR109: 26139.46333 | AS109: 27265.58092 | AT109: 27447.31212 | AU109: 28490.0345 | AV109: 30292.39192 | AW109: 28412.47818 | AX109: 26069.15822 | AY109: 23675.65339 | AZ109: 36348.34781 | BA109: 30465.7083 | BB109: 33951.99902 | BC109: 40431.38584 | BD109: 42248.09864 | BE109: 45782.7292 | BF109: 44971.11912 | BG109: 48266.00189 | BH109: 54364.85764 | BI109: 53503.91355 | BJ109: 52875.67459 | BK109: 55609.44524 | BL109: 60948.58683 | BM109: 62970.12536 | BN109: 64673.18064 | BO109: 69467.26159 | BP109: 73490.75231 | BQ109: 80774.48623 | BR109: 84855.70043 | BS109: 88999.60371 | BT109: 93696.12484 | BU109: 95746.97966 | BV109: 100240.5402 | BW109: 106036.2675 | BX109: 114081.49 | BY109: 115411.6077 | BZ109: 118896.8892
A110: 100 y más años | B110: 3226.397185 | C110: 2940.290441 | D110: 2870.125 | E110: 2798.09375 | F110: 2648.515625 | G110: 2505.21875 | H110: 2405.0625 | I110: 2138.796875 | J110: 1944.8125 | K110: 1842.359375 | L110: 1997.75 | M110: 3087 | N110: 4268.688976 | O110: 4720.998335 | P110: 4837.010616 | Q110: 5064.960868 | R110: 5385.078915 | S110: 5734.906889 | T110: 6366.440564 | U110: 6895.82733 | V110: 7825.998357 | W110: 9288.796205 | X110: 10763.27315 | Y110: 12086.04259 | Z110: 13604.61056 | AA110: 15479.12056 | AB110: 16463.8584 | AC110: 15674.21334 | AD110: 15458.866 | AE110: 15822.79608 | AF110: 16417.31824 | AG110: 17975.00504 | AH110: 19837.1611 | AI110: 22116.20698 | AJ110: 24160.71144 | AK110: 26256.27939 | AL110: 28264.91996 | AM110: 30581.92897 | AN110: 32592.15549 | AO110: 35261.89621 | AP110: 37703.08123 | AQ110: 40736.77379 | AR110: 43210.77811 | AS110: 46302.73323 | AT110: 49147.5936 | AU110: 51199.78337 | AV110: 53298.56002 | AW110: 55941.38868 | AX110: 56483.56278 | AY110: 55310.08935 | AZ110: 52953.25038 | BA110: 59877.28036 | BB110: 60600.86118 | BC110: 63448.26138 | BD110: 69730.18324 | BE110: 75196.43936 | BF110: 81275.74944 | BG110: 84852.93732 | BH110: 89504.85229 | BI110: 96767.70204 | BJ110: 101117.0483 | BK110: 103660.9421 | BL110: 107252.6743 | BM110: 113299.2902 | BN110: 118776.1242 | BO110: 123662.2499 | BP110: 130228.9329 | BQ110: 137413.1356 | BR110: 147215.174 | BS110: 156627.9195 | BT110: 165826.2306 | BU110: 175258.9455 | BV110: 183070.0055 | BW110: 191434.9572 | BX110: 201051.2343 | BY110: 213039.9473 | BZ110: 222104.336
A113: Pob+65 | B113: =((SUM(B75:B110))/1000)*1000 -> 5210690.334 | C113: 5348084.367 | D113: 5492773.953 | E113: 5633028.375 | F113: 5785398.516 | G113: 5936360.719 | H113: 6100512.297 | I113: 6249190.859 | J113: 6412569.125 | K113: 6565768.844 | L113: 6691691.859 | M113: 6826651.828 | N113: 6980546.788 | O113: 7092838.385 | P113: 7146674.644 | Q113: 7169882.394 | R113: 7324149.871 | S113: 7407159.419 | T113: 7506291.644 | U113: 7657965.811 | V113: 7810399.8 | W113: 7982996.045 | X113: 8128038.024 | Y113: 8262078.706 | Z113: 8440022.423 | AA113: 8592012.974 | AB113: 8699893.4 | AC113: 8825802.861 | AD113: 8976790.182 | AE113: 9123937.575 | AF113: 9265369.609 | AG113: 9425275.721 | AH113: =((SUM(AH75:AH110))/1000)*1000 -> 9596252.597 | AI113: 9800392.523 | AJ113: 10013831.85 | AK113: 10235781.96 | AL113: 10469415.88 | AM113: 10695903.05 | AN113: 10931525.26 | AO113: 11182879.19 | AP113: 11461092.28 | AQ113: 11725208.85 | AR113: 11988181.17 | AS113: 12259384.11 | AT113: 12518349.17 | AU113: 12775828.84 | AV113: 13031904.36 | AW113: 13290324.11 | AX113: 13551774.72 | AY113: 13808888 | AZ113: 14074581.64 | BA113: 14335365.64 | BB113: 14592537.91 | BC113: 14827247.66 | BD113: 15042338.89 | BE113: 15218341.38 | BF113: 15365164.59 | BG113: 15475768.73 | BH113: 15553073.64 | BI113: 15593075.12 | BJ113: 15608867.69 | BK113: 15600021.16 | BL113: 15569455.75 | BM113: 15521158.4 | BN113: =((SUM(BN75:BN110))/1000)*1000 -> 15461486.95 | BO113: 15390161.24 | BP113: 15307597.57 | BQ113: 15216830.58 | BR113: 15124184.12 | BS113: 15016804.25 | BT113: 14894296.15 | BU113: 14767443.18 | BV113: 14642814.63 | BW113: 14522600.34 | BX113: 14401171.91 | BY113: 14291367.66 | BZ113: 14193394.92
A114: Pob55_65 | B114: =((SUM(B65:B75))/1000)*1000 -> 4711312.32 | C114: 4729315.386 | D114: 4765445.469 | E114: 4737966.516 | F114: 4672247.5 | G114: 4541833.578 | H114: 4566963.844 | I114: 4481074.156 | J114: 4434606.359 | K114: 4432602.172 | L114: 4431992.562 | M114: 4474365.672 | N114: 4501412.052 | O114: 4554643.62 | P114: 4698988.662 | Q114: 4865882.294 | R114: 5054153.09 | S114: 5107341.146 | T114: 5281210.144 | U114: 5414678.934 | V114: 5478507.811 | W114: 5561413.551 | X114: 5641308.892 | Y114: 5769179.893 | Z114: 5882562.105 | AA114: 5973466.615 | AB114: 6108910.222 | AC114: 6261016.744 | AD114: 6416934.939 | AE114: 6561533.668 | AF114: 6737168.648 | AG114: 6902623.471 | AH114: =((SUM(AH65:AH75))/1000)*1000 -> 7048357.915 | AI114: 7193568.145 | AJ114: 7294563.918 | AK114: 7386150.94 | AL114: 7470060.302 | AM114: 7547465.629 | AN114: 7637885.816 | AO114: 7716911.515 | AP114: 7791685.852 | AQ114: 7838882.361 | AR114: 7898306.266 | AS114: 7937659.664 | AT114: 7950758.94 | AU114: 7936594.073 | AV114: 7895144.603 | AW114: 7817811.918 | AX114: 7703995.671 | AY114: 7549952.428 | AZ114: 7376149.344 | BA114: 7169035.35 | BB114: 6943056.407 | BC114: 6703138.594 | BD114: 6473740.097 | BE114: 6250303.381 | BF114: 6052937.512 | BG114: 5874505.69 | BH114: 5729506.433 | BI114: 5600430.643 | BJ114: 5489409.468 | BK114: 5395124.03 | BL114: 5324240.24 | BM114: 5275633.701 | BN114: =((SUM(BN65:BN75))/1000)*1000 -> 5238800.295 | BO114: 5221371.999 | BP114: 5222622.69 | BQ114: 5233714.048 | BR114: 5252760.62 | BS114: 5285348.808 | BT114: 5336290.657 | BU114: 5404048.33 | BV114: 5482156.056 | BW114: 5558985.055 | BX114: 5643246.653 | BY114: 5704959.062 | BZ114: 5746498.934
A115: Pob60_70 | B115: =((SUM(B70:B80))/1000)*1000 -> 4118809.15 | C115: 4243966.408 | D115: 4314233.641 | E115: 4389398.281 | F115: 4445385.094 | G115: 4485154.609 | H115: 4517895.062 | I115: 4561840.281 | J115: 4544101.922 | K115: 4487317.5 | L115: 4364886.984 | M115: 4395949.406 | N115: 4328579.809 | O115: 4306826.202 | P115: 4331557.35 | Q115: 4361594.12 | R115: 4429305.735 | S115: 4475550.248 | T115: 4532038.011 | U115: 4664496.508 | V115: 4808135.941 | W115: 4971119.571 | X115: 5006088.809 | Y115: 5144535.565 | Z115: 5248098.144 | AA115: 5298465.524 | AB115: 5368399.228 | AC115: 5437843.393 | AD115: 5565561.113 | AE115: 5688274.121 | AF115: 5783175.144 | AG115: 5916163.69 | AH115: =((SUM(AH70:AH80))/1000)*1000 -> 6062443.811 | AI115: 6212296.476 | AJ115: 6351964.772 | AK115: 6521648.825 | AL115: 6681484.854 | AM115: 6822634.789 | AN115: 6963011.824 | AO115: 7060970.302 | AP115: 7150397.307 | AQ115: 7232661.241 | AR115: 7309296.048 | AS115: 7398246.094 | AT115: 7476577.826 | AU115: 7551042.234 | AV115: 7599229.412 | AW115: 7659137.952 | AX115: 7699534.997 | AY115: 7714900.848 | AZ115: 7703794.635 | BA115: 7666165.548 | BB115: 7593857.721 | BC115: 7486161.417 | BD115: 7339647.482 | BE115: 7173979.428 | BF115: 6976205.017 | BG115: 6760202.904 | BH115: 6530710.419 | BI115: 6311402.312 | BJ115: 6097757.563 | BK115: 5909105.297 | BL115: 5738640.998 | BM115: 5600372.658 | BN115: =((SUM(BN70:BN80))/1000)*1000 -> 5477237.597 | BO115: 5371274.4 | BP115: 5281419.285 | BQ115: 5214190.468 | BR115: 5168515.252 | BS115: 5134183.534 | BT115: 5118729.627 | BU115: 5121437.461 | BV115: 5133663.961 | BW115: 5153600.883 | BX115: 5186771.415 | BY115: 5237758.019 | BZ115: 5305048.644
A116: Pob60_65 | B116: =((SUM(B70:B75))/1000)*1000 -> 2444647.722 | C116: 2488406.828 | D116: 2517768.406 | E116: 2552332.078 | F116: 2596797.031 | G116: 2601097.094 | H116: 2606579.891 | I116: 2605524.594 | J116: 2564628.359 | K116: 2461276.5 | L116: 2312210.281 | M116: 2331430.859 | N116: 2268013.537 | O116: 2230495.774 | P116: 2298586.364 | Q116: 2416048.983 | R116: 2598915.71 | S116: 2612161.954 | T116: 2731027.473 | U116: 2859632.55 | V116: 2900283.264 | W116: 2915523.036 | X116: 2920485.5 | Y116: 2974236.673 | Z116: 3004759.454 | AA116: 2995092.154 | AB116: 3035298.894 | AC116: 3111850.673 | AD116: 3217195.027 | AE116: 3304543.859 | AF116: 3402958.795 | AG116: 3517879.25 | AH116: =((SUM(AH70:AH75))/1000)*1000 -> 3605425.937 | AI116: 3690683.025 | AJ116: 3758789.86 | AK116: 3845533.751 | AL116: 3909857.695 | AM116: 3962549.827 | AN116: 4032950.484 | AO116: 4083881.365 | AP116: 4119569.195 | AQ116: 4129267.531 | AR116: 4157351.355 | AS116: 4191247.505 | AT116: 4213288.442 | AU116: 4256586.171 | AV116: 4298693.841 | AW116: 4338971.256 | AX116: 4354322.347 | AY116: 4348313.323 | AZ116: 4307988.079 | BA116: 4231274.329 | BB116: 4121333.485 | BC116: 3981854.864 | BD116: 3827643.025 | BE116: 3667674.448 | BF116: 3520504.17 | BG116: 3379316.627 | BH116: 3256230.22 | BI116: 3154067.572 | BJ116: 3075223.071 | BK116: 3008111.546 | BL116: 2956497.985 | BM116: 2924032.419 | BN116: =((SUM(BN70:BN75))/1000)*1000 -> 2892382.297 | BO116: 2854603.289 | BP116: 2822133.72 | BQ116: 2800073.779 | BR116: 2787609.385 | BS116: 2772221.592 | BT116: 2780612.725 | BU116: 2812291.544 | BV116: 2848839.672 | BW116: 2885628.099 | BX116: 2932679.53 | BY116: 2987285.874 | BZ116: 3034118.475
A117: Pob60_70 | B117: =((SUM(B70:B80))/1000)*1000 -> 4118809.15 | C117: 4243966.408 | D117: 4314233.641 | E117: 4389398.281 | F117: 4445385.094 | G117: 4485154.609 | H117: 4517895.062 | I117: 4561840.281 | J117: 4544101.922 | K117: 4487317.5 | L117: 4364886.984 | M117: 4395949.406 | N117: 4328579.809 | O117: 4306826.202 | P117: 4331557.35 | Q117: 4361594.12 | R117: 4429305.735 | S117: 4475550.248 | T117: 4532038.011 | U117: 4664496.508 | V117: 4808135.941 | W117: 4971119.571 | X117: 5006088.809 | Y117: 5144535.565 | Z117: 5248098.144 | AA117: 5298465.524 | AB117: 5368399.228 | AC117: 5437843.393 | AD117: 5565561.113 | AE117: 5688274.121 | AF117: 5783175.144 | AG117: 5916163.69 | AH117: =((SUM(AH70:AH80))/1000)*1000 -> 6062443.811 | AI117: 6212296.476 | AJ117: 6351964.772 | AK117: 6521648.825 | AL117: 6681484.854 | AM117: 6822634.789 | AN117: 6963011.824 | AO117: 7060970.302 | AP117: 7150397.307 | AQ117: 7232661.241 | AR117: 7309296.048 | AS117: 7398246.094 | AT117: 7476577.826 | AU117: 7551042.234 | AV117: 7599229.412 | AW117: 7659137.952 | AX117: 7699534.997 | AY117: 7714900.848 | AZ117: 7703794.635 | BA117: 7666165.548 | BB117: 7593857.721 | BC117: 7486161.417 | BD117: 7339647.482 | BE117: 7173979.428 | BF117: 6976205.017 | BG117: 6760202.904 | BH117: 6530710.419 | BI117: 6311402.312 | BJ117: 6097757.563 | BK117: 5909105.297 | BL117: 5738640.998 | BM117: 5600372.658 | BN117: =((SUM(BN70:BN80))/1000)*1000 -> 5477237.597 | BO117: 5371274.4 | BP117: 5281419.285 | BQ117: 5214190.468 | BR117: 5168515.252 | BS117: 5134183.534 | BT117: 5118729.627 | BU117: 5121437.461 | BV117: 5133663.961 | BW117: 5153600.883 | BX117: 5186771.415 | BY117: 5237758.019 | BZ117: 5305048.644
A118: Pob0_25 | B118: =((SUM(B10:B35))/1000)*1000 -> 15079292.43 | C118: 14796163.69 | D118: 14596617.14 | E118: 14413745.58 | F118: 14205798.81 | G118: 13986391.52 | H118: 13753735.44 | I118: 13508982.06 | J118: 13260998.62 | K118: 12997649.13 | L118: 12747238.73 | M118: 12497129.26 | N118: 12314777.27 | O118: 12315324.63 | P118: 12305517.28 | Q118: 12282794.12 | R118: 12291373.38 | S118: 12348129.45 | T118: 12480681.93 | U118: 12524308.5 | V118: 12461878.25 | W118: 12390893.16 | X118: 12335807.26 | Y118: 12231884.02 | Z118: 12094475.32 | AA118: 12019100.61 | AB118: 11978222.16 | AC118: 11934053.62 | AD118: 11890994.36 | AE118: 11836346.75 | AF118: 11787064.9 | AG118: 11744853.8 | AH118: =((SUM(AH10:AH35))/1000)*1000 -> 11699005.24 | AI118: 11643915.96 | AJ118: 11578138.53 | AK118: 11509607.65 | AL118: 11423609.61 | AM118: 11323366.81 | AN118: 11219046.72 | AO118: 11110174.73 | AP118: 10983809.74 | AQ118: 10850226.38 | AR118: 10713075.97 | AS118: 10568634.69 | AT118: 10424109.44 | AU118: 10267681.07 | AV118: 10139803.07 | AW118: 10023629.29 | AX118: 9914952.731 | AY118: 9827711.594 | AZ118: 9764277.246 | BA118: 9698704.177 | BB118: 9643510.82 | BC118: 9597472.253 | BD118: 9558793.315 | BE118: 9526458.946 | BF118: 9499264.893 | BG118: 9475890.528 | BH118: 9455152.812 | BI118: 9435917.402 | BJ118: 9417122.92 | BK118: 9397913.033 | BL118: 9377565.887 | BM118: 9355476.399 | BN118: =((SUM(BN10:BN35))/1000)*1000 -> 9331165.601 | BO118: 9304240.855 | BP118: 9274370.526 | BQ118: 9241271.774 | BR118: 9204765.691 | BS118: 9164788.577 | BT118: 9121366.281 | BU118: 9074638.066 | BV118: 9024857.886 | BW118: 8972441.598 | BX118: 8917971.344 | BY118: 8862072.851 | BZ118: 8805472.452
A120: Pob 65+ | B120: =B113/1000 -> 5210.690334 | C120: =C113/1000 -> 5348.084367 | D120: 5492.773953 | E120: 5633.028375 | F120: 5785.398516 | G120: 5936.360719 | H120: 6100.512297 | I120: 6249.190859 | J120: 6412.569125 | K120: 6565.768844 | L120: 6691.691859 | M120: 6826.651828 | N120: 6980.546788 | O120: 7092.838385 | P120: 7146.674644 | Q120: 7169.882394 | R120: 7324.149871 | S120: 7407.159419 | T120: 7506.291644 | U120: 7657.965811 | V120: 7810.3998 | W120: 7982.996045 | X120: 8128.038024 | Y120: 8262.078706 | Z120: 8440.022423 | AA120: 8592.012974 | AB120: 8699.8934 | AC120: 8825.802861 | AD120: 8976.790182 | AE120: 9123.937575 | AF120: 9265.369609 | AG120: 9425.275721 | AH120: 9596.252597 | AI120: 9800.392523 | AJ120: 10013.83185 | AK120: 10235.78196 | AL120: 10469.41588 | AM120: 10695.90305 | AN120: 10931.52526 | AO120: 11182.87919 | AP120: 11461.09228 | AQ120: 11725.20885 | AR120: 11988.18117 | AS120: 12259.38411 | AT120: 12518.34917 | AU120: 12775.82884 | AV120: 13031.90436 | AW120: 13290.32411 | AX120: 13551.77472 | AY120: 13808.888 | AZ120: 14074.58164 | BA120: 14335.36564 | BB120: 14592.53791 | BC120: 14827.24766 | BD120: 15042.33889 | BE120: 15218.34138 | BF120: 15365.16459 | BG120: 15475.76873 | BH120: 15553.07364 | BI120: 15593.07512 | BJ120: 15608.86769 | BK120: 15600.02116 | BL120: 15569.45575 | BM120: 15521.1584 | BN120: 15461.48695 | BO120: =BO113/1000 -> 15390.16124 | BP120: 15307.59757 | BQ120: 15216.83058 | BR120: 15124.18412 | BS120: 15016.80425 | BT120: 14894.29615 | BU120: 14767.44318 | BV120: 14642.81463 | BW120: 14522.60034 | BX120: 14401.17191 | BY120: 14291.36766 | BZ120: 14193.39492
C121: =C120/B120-1 -> 0.02636772164 | D121: =D120/C120-1 -> 0.0270544697 | E121: 0.02553435169 | F121: 0.02704941827 | G121: 0.02609365677 | H121: 0.02765188739 | I121: 0.02437148804 | J121: 0.02614390716 | K121: 0.02389053681 | L121: 0.01917871595 | M121: 0.02016828802 | N121: 0.02254325596 | O121: 0.01608636119 | P121: 0.007590227917 | Q121: 0.00324734935 | R121: 0.02151604013 | S121: 0.01133367691 | T121: 0.01338329837 | U121: 0.02020627151 | V121: 0.01990528463 | W121: 0.02209826 | X121: 0.01816886514 | Y121: 0.01649114849 | Z121: 0.02153740281 | AA121: 0.0180083112 | AB121: 0.01255589661 | AC121: 0.01447252919 | AD121: 0.01710748844 | AE121: 0.01639198317 | AF121: 0.01550120575 | AG121: 0.0172584709 | AH121: 0.01814025191 | AI121: 0.02127287963 | AJ121: 0.02177865103 | AK121: 0.02216435383 | AL121: 0.02282521448 | AM121: 0.02163321895 | AN121: 0.02202920227 | AO121: 0.02299349133 | AP121: 0.02487848504 | AQ121: 0.02304462423 | AR121: 0.02242794328 | AS121: 0.0226225261 | AT121: 0.02112382262 | AU121: 0.02056818138 | AV121: 0.02004375001 | AW121: 0.01982977652 | AX121: 0.01967225208 | AY121: 0.01897266472 | AZ121: 0.01924077007 | BA121: 0.01852872141 | BB121: 0.01793970776 | BC121: 0.01608423089 | BD121: 0.01450648387 | BE121: 0.011700474 | BF121: 0.009647779739 | BG121: 0.007198370147 | BH121: 0.004995222566 | BI121: 0.002571934154 | BJ121: 0.001012794016 | BK121: -0.000566763 | BL121: -0.001959318548 | BM121: -0.003102057996 | BN121: -0.003844522878 | BO121: -0.004613120869 | BP121: =BP120/BO120-1 -> -0.005364704775 | BQ121: -0.005929538475 | BR121: -0.006088420179 | BS121: -0.007099878776 | BT121: -0.008158067048 | BU121: -0.00851688241 | BV121: -0.008439412808 | BW121: -0.008209780478 | BX121: -0.008361342387 | BY121: -0.007624674613 | BZ121: -0.006855378877

Sheet AltJub (hidden)
A1: indice
B2: NACHO | C2: NACHO
A3: año | B3: AltJub | C3: Var % | D3: Pob60_70 | E3: Var % | F3: NACHO | J3: Resumen
A4: 1990 | B4: 213400 | D4: =TRANSPOSE(Pob!B117:BJ117) -> 4118809.15
A5: =A4+1 -> 1991 | B5: 226340 | C5: =100*(B5/B4-1) -> 6.063730084 | D5: 4243966.408 | E5: =100*(D5/D4-1) -> 3.038675819 | J5: Estadísticas de la regresión
A6: =A5+1 -> 1992 | B6: 229915 | C6: 1.579482195 | D6: 4314233.641 | E6: 1.655697193 | J6: Coeficiente de correlación múltiple | K6: 0.9026875325
A7: 1993 | B7: 238928 | C7: 3.920144401 | D7: 4389398.281 | E7: 1.742247798 | J7: Coeficiente de determinación R^2 | K7: 0.8148447813
A8: 1994 | B8: 246298 | C8: 3.084611264 | D8: 4445385.094 | E8: 1.275500853 | J8: R^2 ajustado | K8: 0.8074385726
A9: 1995 | B9: 249505 | C9: 1.302081219 | D9: 4485154.609 | E9: 0.8946247577 | J9: Error típico | K9: 18188.34037
A10: 1996 | B10: 239927 | C10: -3.838800826 | D10: 4517895.062 | E10: 0.7299737908 | J10: Observaciones | K10: 27
A11: 1997 | B11: 226313 | C11: -5.67422591 | D11: 4561840.281 | E11: 0.97269233
A12: 1998 | B12: 211462 | C12: -6.56215065 | D12: 4544101.922 | E12: -0.3888421839 | J12: ANÁLISIS DE VARIANZA
A13: 1999 | B13: 196338 | C13: -7.152112436 | D13: 4487317.5 | E13: -1.249629142 | K13: Grados de libertad | L13: Suma de cuadrados | M13: Promedio de los cuadrados | N13: F | O13: Valor crítico de F
A14: 2000 | B14: 207478 | C14: 5.673888906 | D14: 4364886.984 | E14: -2.728367574 | J14: Regresión | K14: 1 | L14: 3.639695781e+10 | M14: 3.639695781e+10 | N14: 110.0218491 | O14: 1.21256067e-10
A15: 2001 | B15: 197892 | C15: -4.620248894 | D15: 4395949.406 | E15: 0.7116432106 | J15: Residuos | K15: 25 | L15: 8270393131 | M15: 330815725.2
A16: 2002 | B16: 187753 | C16: -5.123501708 | D16: 4328579.809 | E16: -1.532538039 | J16: Total | K16: 26 | L16: 4.466735094e+10
A17: 2003 | B17: 190574 | C17: 1.502505952 | D17: 4306826.202 | E17: -0.5025576042
A18: 2004 | B18: 187104 | C18: -1.820815011 | D18: 4331557.35 | E18: 0.5742313697 | K18: Coeficientes | L18: Error típico | M18: Estadístico t | N18: Probabilidad | O18: Inferior 95% | P18: Superior 95% | Q18: Inferior 95.0% | R18: Superior 95.0%
A19: 2005 | B19: 265270 | C19: 41.77676586 | D19: 4361594.12 | E19: 0.693440435 | H19: qué pasó aquí? | J19: Intercepción | K19: -147808.6895 | L19: 37844.75092 | M19: -3.905658934 | N19: 0.0006310347262 | O19: -225751.4131 | P19: -69865.96601 | Q19: -225751.4131 | R19: -69865.96601
A20: 2006 | B20: 235129 | C20: -11.36238549 | D20: 4429305.735 | E20: 1.552451091 | J20: Variable X 1 | K20: 0.1506415215 | L20: 0.01436167926 | M20: 10.48913005 | N20: 1.21256067e-10 | O20: 0.1210630893 | P20: 0.1802199536 | Q20: 0.1210630893 | R20: 0.1802199536
A21: 2007 | B21: 231784 | C21: -1.422623326 | D21: 4475550.248 | E21: 1.044057809
A22: 2008 | B22: 269772 | C22: 16.38939702 | D22: 4532038.011 | E22: 1.262141189
A23: 2009 | B23: 287904 | C23: 6.721231262 | D23: 4664496.508 | E23: 2.922713735
A24: 2010 | B24: 288172 | C24: 0.09308658442 | D24: 4808135.941 | E24: 3.079419883
A25: 2011 | B25: 286143 | C25: -0.7040933887 | D25: 4971119.571 | E25: 3.389746705
A26: 2012 | B26: 308400 | C26: 7.778278693 | D26: 5006088.809 | E26: 0.7034479492
A27: 2013 | B27: 314204 | C27: 1.881971466 | D27: 5144535.565 | E27: 2.765567308
A28: 2014 | B28: 298496 | C28: -4.999299818 | D28: 5248098.144 | E28: 2.013059835 | M28: X1: altajubi(t-1)
A29: 2015 | B29: 289721 | C29: -2.939737886 | D29: 5298465.524 | E29: 0.959726333 | M29: X2: pob+65 (t)
A30: 2016 | B30: 307511 | C30: 6.140390238 | D30: 5368399.228 | E30: 1.319885997
A31: 2017 | B31: =B30*(1+C31%) -> 315432.5662 | C31: =F31*0.8 -> 2.576026941 | D31: 5437843.393 | E31: 1.29357303 | F31: 3.220033677 | M31: Datos históricos añadidos (estadísticas SS)
A32: 2018 | B32: =B31*(1+C32%) -> 322355.7653 | C32: =F32*0.8 -> 2.194826998 | D32: 5565561.113 | E32: 2.348683307 | F32: 2.743533748 | M32: Proyecciones en base a regresión
A33: 2019 | B33: 329029.5728 | C33: 2.070323599 | D33: 5688274.121 | E33: 2.204863191 | F33: 2.587904498
A34: 2020 | B34: 335565.74 | C34: 1.986498399 | D34: 5783175.144 | E34: 1.668362323 | F34: 2.483122999
A35: 2021 | B35: 343544.7081 | C35: 2.377766014 | D35: 5916163.69 | E35: 2.299576673 | F35: 2.972207517
A36: 2022 | B36: 354569.8412 | C36: 3.209228036 | D36: 6062443.811 | E36: 2.472550254 | F36: 4.011535045
A37: 2023 | B37: 367791.4459 | C37: =F37 -> 3.728914066 | D37: 6212296.476 | E37: 2.47181946 | F37: 3.728914066
A38: 2024 | B38: 380263.9711 | C38: 3.39119503 | D38: 6351964.772 | E38: 2.248255472 | F38: 3.39119503
A39: 2025 | B39: 391006.7817 | C39: 2.825092929 | D39: 6521648.825 | E39: 2.671363255 | F39: 2.825092929
A40: 2026 | B40: 398998.2918 | C40: 2.043829033 | D40: 6681484.854 | E40: 2.450853056 | F40: 2.043829033
A41: =A40+1 -> 2027 | B41: 408129.618 | C41: 2.288562724 | D41: 6822634.789 | E41: 2.112553385 | F41: 2.288562724
A42: 2028 | B42: 416348.8665 | C42: 2.013881905 | D42: 6963011.824 | E42: 2.057519408 | F42: 2.013881905
A43: 2029 | B43: 427758.3168 | C43: 2.740358204 | D43: 7060970.302 | E43: 1.406840616 | F43: 2.740358204
A44: 2030 | B44: 436459.9445 | C44: 2.034239272 | D44: 7150397.307 | E44: =100*(D44/D43-1) -> 1.266497392 | F44: 2.034239272
A45: 2031 | B45: 444896.0818 | C45: 1.93285486 | D45: 7232661.241 | E45: =100*(D45/D44-1) -> 1.15048061 | F45: 1.93285486
A46: 2032 | B46: 450901.7363 | C46: 1.349900518 | D46: 7309296.048 | E46: 1.059565823 | F46: 1.349900518
A47: 2033 | B47: 456558.8317 | C47: 1.254618236 | D47: 7398246.094 | E47: 1.216944083 | F47: 1.254618236
A48: 2034 | B48: 461970.8431 | C48: 1.185391901 | D48: 7476577.826 | E48: 1.058787874 | F48: 1.185391901
A49: 2035 | B49: 467009.7403 | C49: 1.090739226 | D49: 7551042.234 | E49: 0.9959691391 | F49: 1.090739226
A50: 2036 | B50: 473602.838 | C50: 1.411768771 | D50: 7599229.412 | E50: 0.6381526808 | F50: 1.411768771
A51: 2037 | B51: 480465.7321 | C51: 1.449082147 | D51: 7659137.952 | E51: 0.7883501907 | F51: 1.449082147
A52: 2038 | B52: 487379.765 | C52: 1.439027264 | D52: 7699534.997 | E52: 0.5274359201 | F52: 1.439027264
A53: 2039 | B53: 494589.3688 | C53: 1.479257913 | D53: 7714900.848 | E53: 0.1995685551 | F53: 1.479257913
A54: 2040 | B54: 499823.5349 | C54: 1.058285219 | D54: 7703794.635 | E54: -0.1439579395 | F54: 1.058285219
A55: 2041 | B55: 504048.0694 | C55: 0.8452051811 | D55: 7666165.548 | E55: -0.4884487343 | F55: 0.8452051811
A56: 2042 | B56: 503368.8411 | C56: -0.1347546667 | D56: 7593857.721 | E56: -0.9432072154 | F56: -0.1347546667
A57: 2043 | B57: 500031.4472 | C57: -0.6630116013 | D57: 7486161.417 | E57: -1.418202825 | F57: -0.6630116013
A58: 2044 | B58: 490774.9175 | C58: -1.851189513 | D58: 7339647.482 | E58: -1.957130311 | F58: -1.851189513
A59: 2045 | B59: 479761.2041 | C59: -2.244147585 | D59: 7173979.428 | E59: -2.257166369 | F59: -2.244147585
A60: 2046 | B60: 465099.0178 | C60: -3.056142544 | D60: 6976205.017 | E60: -2.756829916 | F60: -3.056142544
A61: 2047 | B61: 450757.0954 | C61: -3.083627761 | D61: 6760202.904 | E61: -3.096269559 | F61: -3.083627761
A62: 2048 | B62: 435067.5673 | C62: -3.480705739 | D62: 6530710.419 | E62: -3.394757363 | F62: -3.480705739
A63: 2049 | B63: 421286.5653 | C63: -3.167554428 | D63: 6311402.312 | E63: -3.358104897 | F63: -3.167554428
A64: 2050 | B64: 407950.4752 | C64: -3.165562632 | D64: 6097757.563 | E64: -3.385059907 | F64: -3.165562632

Sheet BajJub (hidden)
A1: indice
A3: año | B3: BajJub | C3: Var% | D3: BajJub(-1) | E3: N(-1) | F3: Var% | G3: Pob+65 | H3: BajJub | I3: Var% | J3: Pob+65(-1) | K3: Dummy
A4: 1990 | B4: 140129 | G4: =TRANSPOSE(Pob!$B$113:$BJ$113) -> 5210690.334 | H4: =+B4 -> 140129 | M4: Resumen
A5: =A4+1 -> 1991 | B5: 144198 | C5: =100*(B5/B4-1) -> 2.90375297 | D5: =B4 -> 140129 | E5: =NJub!B4 -> 2803825 | G5: 5348084.367 | H5: 144198 | I5: =100*(H5/H4-1) -> 2.90375297 | J5: =G4 -> 5210690.334 | K5: 0
A6: =A5+1 -> 1992 | B6: 146816 | C6: =100*(B6/B5-1) -> 1.815559162 | D6: =B5 -> 144198 | E6: =NJub!B5 -> 2877618 | F6: =100*(E6/E5-1) -> 2.631868965 | G6: 5492773.953 | H6: 146816 | I6: =100*(H6/H5-1) -> 1.815559162 | J6: =G5 -> 5348084.367 | K6: 0 | M6: Estadísticas de la regresión
A7: 1993 | B7: 154622 | C7: 5.316859198 | D7: 146816 | E7: =NJub!B6 -> 2963822 | F7: 2.995672115 | G7: 5633028.375 | H7: 154622 | I7: 5.316859198 | J7: 5492773.953 | K7: 0 | M7: Coeficiente de correlación múltiple | N7: 0.9994044334
A8: 1994 | B8: 161384 | C8: 4.373245722 | D8: 154622 | E8: =NJub!B7 -> 3058267 | F8: 3.186594876 | G8: 5785398.516 | H8: 161384 | I8: 4.373245722 | J8: 5633028.375 | K8: 0 | M8: Coeficiente de determinación R^2 | N8: 0.9988092215
A9: 1995 | B9: 160856 | C9: -0.3271699797 | D9: 161384 | E9: =NJub!B8 -> 3176361 | F9: 3.861467949 | G9: 5936360.719 | H9: 160856 | I9: -0.3271699797 | J9: 5785398.516 | K9: 0 | M9: R^2 ajustado | N9: 0.9570929391
A10: 1996 | B10: 155009 | C10: -3.634928134 | D10: 160856 | E10: =NJub!B9 -> 3265191 | F10: 2.796596483 | G10: 6100512.297 | H10: 155009 | I10: -3.634928134 | J10: 5936360.719 | K10: 0 | M10: Error típico | N10: 7757.182489
A11: 1997 | B11: 160981 | C11: 3.852679522 | D11: 155009 | E11: =NJub!B10 -> 3350335 | F11: 2.607626935 | G11: 6249190.859 | H11: 160981 | I11: 3.852679522 | J11: 6100512.297 | K11: 0 | M11: Observaciones | N11: 26
A12: 1998 | B12: 212408 | C12: 31.94600605 | D12: 160981 | E12: =NJub!B11 -> 3502531 | F12: 4.542709908 | G12: 6412569.125 | H12: 212408 | I12: 31.94600605 | J12: 6249190.859 | K12: 1
A13: 1999 | B13: 221018 | C13: 4.053519641 | D13: 212408 | E13: =NJub!B12 -> 4400863 | F13: 25.64808134 | G13: 6565768.844 | H13: 221018 | I13: 4.053519641 | J13: 6412569.125 | K13: 1 | M13: ANÁLISIS DE VARIANZA
A14: 2000 | B14: 213946 | C14: -3.199739388 | D14: 221018 | E14: =NJub!B13 -> 4450248 | F14: 1.122166266 | G14: 6691691.859 | H14: 213946 | I14: -3.199739388 | J14: 6565768.844 | K14: 1 | N14: Grados de libertad | O14: Suma de cuadrados | P14: Promedio de los cuadrados | Q14: F | R14: Valor crítico de F
A15: 2001 | B15: 205754 | C15: -3.82900358 | D15: 213946 | E15: =NJub!B14 -> 4493404 | F15: 0.9697437087 | G15: 6826651.828 | H15: 205754 | I15: -3.82900358 | J15: 6691691.859 | K15: 1 | M15: Regresión | N15: 2 | O15: 1.211353312e+12 | P15: 6.056766559e+11 | Q15: 10065.44126 | R15: 1.444590671e-34
A16: 2002 | B16: 211886 | C16: 2.980257978 | D16: 205754 | E16: =NJub!B15 -> 4545617 | F16: 1.161992111 | G16: 6980546.788 | H16: 211886 | I16: 2.980257978 | J16: 6826651.828 | K16: 1 | M16: Residuos | N16: 24 | O16: 1444173124 | P16: 60173880.17
A17: 2003 | B17: 217146 | C17: 2.482466987 | D17: 211886 | E17: =NJub!B16 -> 4575293 | F17: 0.6528486672 | G17: 7092838.385 | H17: 217146 | I17: 2.482466987 | J17: 6980546.788 | K17: 1 | M17: Total | N17: 26 | O17: 1212797484960
A18: 2004 | B18: 209819 | C18: -3.374227478 | D18: 217146 | E18: =NJub!B17 -> 4603381 | F18: 0.6139060384 | G18: 7146674.644 | H18: 209819 | I18: -3.374227478 | J18: 7092838.385 | K18: 1
A19: 2005 | B19: 226135 | C19: 7.776226176 | D19: 209819 | E19: =NJub!B18 -> 4619622 | F19: 0.3528059051 | G19: 7169882.394 | H19: 226135 | I19: 7.776226176 | J19: 7146674.644 | K19: 1 | N19: Coeficientes | O19: Error típico | P19: Estadístico t | Q19: Probabilidad | R19: Inferior 95% | S19: Superior 95% | T19: Inferior 95,0% | U19: Superior 95,0%
A20: 2006 | B20: 215848 | C20: -4.549052557 | D20: 226135 | E20: =NJub!B19 -> 4777953 | F20: 3.427358342 | G20: 7324149.871 | H20: 215848 | I20: -4.549052557 | J20: 7169882.394 | K20: 1 | M20: Intercepción | N20: 0
A21: 2007 | B21: 224885 | C21: 4.186742523 | D21: 215848 | E21: =NJub!B20 -> 4843473 | F21: 1.371298546 | G21: 7407159.419 | H21: 224885 | I21: 4.186742523 | J21: 7324149.871 | K21: 1 | M21: Variable X 1 | N21: 0.02746386364 | O21: 0.000509112109 | P21: 53.94462861 | Q21: 1.451879397e-26 | R21: 0.02641310789 | S21: 0.02851461939 | T21: 0.02641310789 | U21: 0.02851461939
A22: 2008 | B22: 232927 | C22: 3.576049981 | D22: 224885 | E22: =NJub!B21 -> 4900756 | F22: 1.182684408 | G22: 7506291.644 | H22: 232927 | I22: 3.576049981 | J22: 7407159.419 | K22: 1 | M22: Variable X 2 | N22: 30814.18179 | O22: 4158.049656 | P22: 7.41072963 | Q22: 1.189503827e-07 | R22: 22232.38909 | S22: 39395.9745 | T22: 22232.38909 | U22: 39395.9745
A23: 2009 | B23: 244146 | C23: 4.816530501 | D23: 232927 | E23: =NJub!B22 -> 4995691 | F23: 1.937150105 | G23: 7657965.811 | H23: 244146 | I23: 4.816530501 | J23: 7506291.644 | K23: 1
A24: 2010 | B24: 240624 | C24: -1.44257944 | D24: 244146 | E24: =NJub!B23 -> 5097112 | F24: 2.0301696 | G24: 7810399.8 | H24: 240624 | I24: -1.44257944 | J24: 7657965.811 | K24: 1
A25: 2011 | B25: 245951 | C25: 2.213827382 | D25: 240624 | E25: =NJub!B24 -> 5203364 | F25: 2.084552978 | G25: 7982996.045 | H25: 245951 | I25: 2.213827382 | J25: 7810399.8 | K25: 1
A26: 2012 | B26: 259530 | C26: 5.521018414 | D26: 245951 | E26: =NJub!B25 -> 5296851 | F26: 1.796664619 | G26: 8128038.024 | H26: 259530 | I26: 5.521018414 | J26: 7982996.045 | K26: 1
A27: 2013 | B27: 256718 | C27: -1.083497091 | D27: 259530 | E27: =NJub!B26 -> 5402863 | F27: 2.001415558 | G27: 8262078.706 | H27: 256718 | I27: -1.083497091 | J27: 8128038.024 | K27: 1
A28: 2014 | B28: 257207 | C28: 0.1904813842 | D28: 256718 | E28: =NJub!B27 -> 5523066 | F28: 2.224801924 | G28: 8440022.423 | H28: 257207 | I28: 0.1904813842 | J28: 8262078.706 | K28: 1 | M28: BajJub=N(-1)
A29: 2015 | B29: 277366 | C29: 7.837656051 | D29: 257207 | E29: =NJub!B28 -> 5621781 | F29: 1.787322476 | G29: 8592012.974 | H29: 277366 | I29: 7.837656051 | J29: 8440022.423 | K29: 1
A30: 2016 | B30: 263878 | C30: -4.862888746 | D30: 277366 | E30: =NJub!B29 -> 5686975 | F30: 1.159668084 | G30: 8699893.4 | H30: 263878 | I30: -4.862888746 | J30: 8592012.974 | K30: 1 | M30: Estadísticas de la regresión
A31: 2017 | B31: =$N$44+$N$45*E31 -> 271826.0747 | C31: 3.012026261 | D31: 263878 | E31: =NJub!B30 -> 5784326 | F31: 1.711823949 | G31: 8825802.861 | H31: =+$N$79+$N$78*G30 -> 269748.0523 | I31: 2.224532678 | J31: 8699893.4 | K31: 1 | M31: Coeficiente de correlación múltiple | N31: 0.9872285268
A32: 2018 | B32: 276441.4592 | C32: 1.697918258 | D32: 271826.0747 | E32: =NJub!B31 -> 5888644.514 | F32: 1.803468786 | G32: 8976790.182 | H32: =+$N$79+$N$78*G31 -> 273206.0298 | I32: 1.281928604 | J32: 8825802.861 | K32: 1 | M32: Coeficiente de determinación R^2 | N32: 0.9746201641
A33: 2019 | B33: 281210.1562 | C33: 1.725029614 | D33: 276441.4592 | E33: =NJub!B32 -> 5996428.249 | F33: 1.830365805 | G33: 9123937.575 | H33: 277352.7456 | I33: 1.517798041 | J33: 8976790.182 | K33: 1 | M33: R^2 ajustado | N33: 0.9735626709
A34: 2020 | B34: 286090.6599 | C34: 1.735536055 | D34: 281210.1562 | E34: =NJub!B33 -> 6106739.077 | F34: 1.839608892 | G34: 9265369.609 | H34: 281394.0016 | I34: 1.457081671 | J34: 9123937.575 | K34: 1 | M34: Error típico | N34: 6537.049864
A35: 2021 | B35: 291081.5464 | C35: 1.744512212 | D35: 286090.6599 | E35: =NJub!B34 -> 6219544.815 | F35: 1.847233639 | G35: 9425275.721 | H35: 285278.2909 | I35: 1.380373906 | J35: 9265369.609 | K35: 1 | M35: Observaciones | N35: 26
A36: 2022 | B36: 296253.5946 | C36: 1.776838223 | D36: =B35 -> 291081.5464 | E36: =NJub!B35 -> 6336445.232 | F36: 1.879565477 | G36: 9596252.597 | H36: 289669.9524 | I36: 1.539430652 | J36: 9425275.721 | K36: 1
A37: 2023 | B37: 301719.1287 | C37: 1.844883664 | D37: 296253.5946 | E37: =NJub!B36 -> 6459979.121 | F37: 1.949577157 | G37: 9800392.523 | H37: 294365.6613 | I37: 1.621054887 | J37: 9596252.597 | K37: 1 | M37: ANÁLISIS DE VARIANZA
A38: 2024 | B38: 307561.8758 | C38: 1.936485459 | D38: 301719.1287 | E38: =NJub!B37 -> 6592038.906 | F38: 2.044275718 | G38: 10013831.85 | H38: 299972.1603 | I38: 1.904603585 | J38: 9800392.523 | K38: 1 | N38: Grados de libertad | O38: Suma de cuadrados | P38: Promedio de los cuadrados | Q38: F | R38: Valor crítico de F
A39: 2025 | B39: 313708.3978 | C39: 1.99846681 | D39: 307561.8758 | E39: =NJub!B38 -> 6730964.717 | F39: 2.107478625 | G39: 10235781.96 | H39: 305834.058 | I39: 1.954147251 | J39: 10013831.85 | K39: 1 | M39: Regresión | N39: 1 | O39: 3.938414479e+10 | P39: 3.938414479e+10 | Q39: 921.6325907 | R39: 1.164999902e-20
A40: 2026 | B40: 320070.867 | C40: 2.028147554 | D40: 313708.3978 | E40: =NJub!B39 -> 6874771.44 | F40: 2.136494987 | G40: 10469415.88 | H40: 311929.6959 | I40: 1.993119382 | J40: 10235781.96 | K40: 1 | M40: Residuos | N40: 24 | O40: 1025592502 | P40: 42733020.93
A41: =A40+1 -> 2027 | B41: 326517.2156 | C41: 2.014037924 | D41: 320070.867 | E41: =NJub!B40 -> 7020474.036 | F41: 2.119380946 | G41: 10695903.05 | H41: 318346.2178 | I41: 2.057041067 | J41: 10469415.88 | K41: 1 | M41: Total | N41: 25 | O41: 4.040973729e+10
A42: 2028 | B42: 333083.6759 | C42: 2.011060963 | D42: 326517.2156 | E42: =NJub!B41 -> 7168891.436 | F42: 2.114065224 | G42: 10931525.26 | H42: 324566.4613 | I42: 1.953924118 | J42: 10695903.05 | K42: 1
A43: 2029 | B43: 339738.5785 | C43: 1.997967212 | D43: 333083.6759 | E43: =NJub!B42 -> 7319307.842 | F43: 2.098182216 | G43: 11182879.19 | H43: 331037.5898 | I43: 1.993776066 | J43: 10931525.26 | K43: 1 | N43: Coeficientes | O43: Error típico | P43: Estadístico t | Q43: Probabilidad | R43: Inferior 95% | S43: Superior 95% | T43: Inferior 95,0% | U43: Superior 95,0%
A44: 2030 | B44: 346611.9683 | C44: 2.023140796 | D44: 339738.5785 | E44: =NJub!B43 -> 7474662.569 | F44: 2.122533038 | G44: 11461092.28 | H44: 337940.7741 | I44: 2.085317372 | J44: 11182879.19 | K44: 1 | M44: Intercepción | N44: 15909.0004 | O44: 6596.455503 | P44: 2.411749824 | Q44: 0.02388681769 | R44: 2294.585372 | S44: 29523.41542 | T44: 2294.585372 | U44: 29523.41542
A45: 2031 | B45: 353564.927 | C45: =100*(B45/B44-1) -> 2.005977664 | E45: =NJub!B44 -> 7631815.739 | F45: 2.102478459 | G45: 11725208.85 | H45: 345581.6185 | I45: 2.261001028 | J45: 11461092.28 | K45: 1 | M45: Variable X 1 | N45: 0.04424319692 | O45: 0.001457362495 | P45: 30.35840231 | Q45: 1.164999902e-20 | R45: 0.04123534856 | S45: 0.04725104528 | T45: 0.04123534856 | U45: 0.04725104528
A46: 2032 | B46: 360553.072 | C46: 1.976481384 | E46: =NJub!B45 -> 7789764.202 | F46: 2.069605303 | G46: 11988181.17 | H46: 352835.3158 | I46: 2.098982397 | J46: 11725208.85 | K46: 1
A47: 2033 | B47: 367485.9995 | C47: 1.922859101 | E47: =NJub!B46 -> 7946464.623 | F47: 2.011619561 | G47: 12259384.11 | H47: 360057.5876 | I47: 2.046924286 | J47: 11988181.17 | K47: 1
A48: 2034 | B48: 374349.6787 | C48: 1.867738951 | E48: =NJub!B47 -> 8101599.867 | F48: 1.952254889 | G48: 12518349.17 | H48: 367505.9052 | I48: 2.068646194 | J48: 12259384.11 | K48: 1
A49: 2035 | B49: 381123.2651 | C49: 1.809427614 | E49: =NJub!B48 -> 8254698.805 | F49: 1.889737094 | G49: 12775828.84 | H49: 374618.1215 | I49: 1.93526585 | J49: 12518349.17 | K49: 1
A50: 2036 | B50: 387805.1213 | C50: 1.753200816 | E50: =NJub!B49 -> 8405724.424 | F50: 1.829571525 | G50: 13031904.36 | H50: 381689.5433 | I50: 1.887634746 | J50: 12775828.84 | K50: 1
A51: 2037 | B51: 394465.8149 | C51: 1.717536267 | E51: =NJub!B50 -> 8556271.718 | F51: 1.791009163 | G51: 13290324.11 | H51: 388722.4014 | I51: 1.842559795 | J51: 13031904.36 | K51: 1
A52: 2038 | B52: 401118.9888 | C52: 1.686628754 | E52: =NJub!B51 -> 8706649.049 | F52: 1.757509996 | G52: 13551774.72 | H52: 395819.6414 | I52: 1.825786221 | J52: 13290324.11 | K52: 1
A53: 2039 | B53: 407764.057 | C53: 1.656632663 | E53: =NJub!B52 -> 8856843.173 | F53: 1.725050852 | G53: 13808888 | H53: 403000.1209 | I53: 1.814078609 | J53: 13551774.72 | K53: 1
A54: 2040 | B54: 414410.4137 | C54: 1.629951592 | E54: =NJub!B53 -> 9007066.421 | F54: 1.696126317 | G54: 14074581.64 | H54: 410061.4799 | I54: 1.752197755 | J54: 13808888 | K54: 1
A55: 2041 | B55: 420975.9296 | C55: 1.584302823 | E55: =NJub!B54 -> 9155462.476 | F55: 1.647551468 | G55: 14335365.64 | H55: 417358.49 | I55: 1.779491724 | J55: 14074581.64 | K55: 1
A56: 2042 | B56: 427405.5093 | C56: 1.527303412 | E56: =NJub!B55 -> 9300786.055 | F56: 1.587288241 | G56: 14592537.91 | H56: 424520.6619 | I56: 1.716071915 | J56: 14335365.64 | K56: 1
A57: 2043 | B57: 433488.1604 | C57: 1.42315693 | E57: =NJub!B56 -> 9438268.234 | F57: 1.478178064 | G57: 14827247.66 | H57: 431583.6411 | I57: 1.663753937 | J57: 14592537.91 | K57: 1
A58: 2044 | B58: 439110.6658 | C58: 1.297037817 | E58: =NJub!B57 -> 9565350.04 | F58: 1.34645258 | G58: 15042338.89 | H58: 438029.7096 | I58: 1.493585005 | J58: 14827247.66 | K58: 1
A59: 2045 | B59: 444038.4381 | C59: 1.122216473 | E59: =NJub!B58 -> 9676729.248 | F59: 1.164402844 | G59: 15218341.38 | H59: 443936.9752 | I59: 1.34859928 | J59: 15042338.89 | K59: 1
A60: 2046 | B60: 448217.5721 | C60: 0.9411649228 | E60: =NJub!B59 -> 9771187.477 | F60: 0.9761379749 | G60: 15365164.59 | H60: 448770.7077 | I60: 1.088833054 | J60: 15218341.38 | K60: 1
A61: 2047 | B61: 451534.1443 | C61: 0.7399469488 | E61: =NJub!B60 -> 9846149.787 | F61: 0.7671770735 | G61: 15475768.73 | H61: 452803.0602 | I61: 0.8985329146 | J61: 15365164.59 | K61: 1
A62: 2048 | B62: 454037.7799 | C62: 0.5544731479 | E62: =NJub!B61 -> 9902737.822 | F62: 0.5747224693 | G62: 15553073.64 | H62: 455840.6924 | I62: 0.6708506246 | J62: 15475768.73 | K62: 1
A63: =A62+1 -> 2049 | B63: 455712.8661 | C63: 0.3689310052 | E63: =NJub!B62 -> 9940598.697 | F63: 0.3823273484 | G63: 15593075.12 | H63: 457963.7944 | I63: 0.4657552652 | J63: 15553073.64 | K63: 1
A64: 2050 | B64: 456684.3038 | C64: 0.2131688201 | E64: =NJub!B63 -> 9962555.468 | F64: 0.2208797638 | G64: 15608867.69 | H64: 459062.3951 | I64: 0.2398881081 | J64: 15593075.12 | K64: 1
M70: Dependent Variable: BAJJUB
M71: Method: Least Squares
M72: Date: 24/05/17 Time: 11:25
M73: Sample (adjusted): 1991 2016
M74: Included observations: 26 after adjustments
M76: Variable | N76: Coefficient | O76: Std. Error | P76: t-Statistic | Q76: Prob.
M78: POB65(-1) | N78: 0.027464 | O78: 0.000509 | P78: 53.94463 | Q78: 0
M79: DUMMY | N79: 30814.18 | O79: 4158.05 | P79: 7.410729 | Q79: 0
M81: R-squared | N81: 0.964262 | O81: Mean dependent var | Q81: 212348.4
M82: Adjusted R-squared | N82: 0.962773 | O82: S.D. dependent var | Q82: 40204.35
M83: S.E. of regression | N83: 7757.182 | O83: Akaike info criterion | Q83: 20.82443
M84: Sum squared resid | N84: 1440000000 | O84: Schwarz criterion | Q84: 20.92121
M85: Log likelihood | N85: -268.7176 | O85: Hannan-Quinn criter. | Q85: 20.8523
M86: Durbin-Watson stat | N86: 1.402345

Sheet NJub (hidden)
A1: indice
A3: año | B3: Njub | C3: Var % | D3: Pop65+ | E3: Var %
A4: 1990 | B4: 2803825 | D4: =TRANSPOSE(Pob!$B$113:$BJ$113) -> 5210690.334
A5: =A4+1 -> 1991 | B5: 2877618 | C5: =100*(B5/B4-1) -> 2.631868965 | D5: 5348084.367 | E5: =100*(D5/D4-1) -> 2.636772164
A6: =A5+1 -> 1992 | B6: 2963822 | C6: 2.995672115 | D6: 5492773.953 | E6: 2.70544697
A7: 1993 | B7: 3058267 | C7: 3.186594876 | D7: 5633028.375 | E7: 2.553435169
A8: 1994 | B8: 3176361 | C8: 3.861467949 | D8: 5785398.516 | E8: 2.704941827
A9: 1995 | B9: 3265191 | C9: 2.796596483 | D9: 5936360.719 | E9: 2.609365677
A10: 1996 | B10: 3350335 | C10: 2.607626935 | D10: 6100512.297 | E10: 2.765188739
A11: 1997 | B11: 3502531 | C11: 4.542709908 | D11: 6249190.859 | E11: 2.437148804
A12: 1998 | B12: 4400863 | C12: 25.64808134 | D12: 6412569.125 | E12: 2.614390716
A13: 1999 | B13: 4450248 | C13: 1.122166266 | D13: 6565768.844 | E13: 2.389053681
A14: 2000 | B14: 4493404 | C14: 0.9697437087 | D14: 6691691.859 | E14: 1.917871595
A15: 2001 | B15: 4545617 | C15: 1.161992111 | D15: 6826651.828 | E15: 2.016828802
A16: 2002 | B16: 4575293 | C16: 0.6528486672 | D16: 6980546.788 | E16: 2.254325596
A17: 2003 | B17: 4603381 | C17: 0.6139060384 | D17: 7092838.385 | E17: 1.608636119
A18: 2004 | B18: 4619622 | C18: 0.3528059051 | D18: 7146674.644 | E18: 0.7590227917
A19: 2005 | B19: 4777953 | C19: 3.427358342 | D19: 7169882.394 | E19: 0.324734935
A20: 2006 | B20: 4843473 | C20: 1.371298546 | D20: 7324149.871 | E20: 2.151604013
A21: 2007 | B21: 4900756 | C21: 1.182684408 | D21: 7407159.419 | E21: 1.133367691
A22: 2008 | B22: 4995691 | C22: 1.937150105 | D22: 7506291.644 | E22: 1.338329837
A23: 2009 | B23: 5097112 | C23: 2.0301696 | D23: 7657965.811 | E23: 2.020627151
A24: 2010 | B24: 5203364 | C24: 2.084552978 | D24: 7810399.8 | E24: 1.990528463
A25: 2011 | B25: 5296851 | C25: 1.796664619 | D25: 7982996.045 | E25: 2.209826
A26: 2012 | B26: 5402863 | C26: 2.001415558 | D26: 8128038.024 | E26: 1.816886514
A27: 2013 | B27: 5523066 | C27: 2.224801924 | D27: 8262078.706 | E27: 1.649114849
A28: 2014 | B28: 5621781 | C28: 1.787322476 | D28: 8440022.423 | E28: 2.153740281
A29: 2015 | B29: 5686975 | C29: 1.159668084 | D29: 8592012.974 | E29: 1.80083112
A30: 2016 | B30: 5784326 | C30: 1.711823949 | D30: 8699893.4 | E30: 1.255589661
A31: 2017 | B31: =B30+AltJub!B31-BajJub!H31+NInc!V31 -> 5888644.514 | C31: 1.803468786 | D31: 8825802.861 | E31: 1.447252919
A32: 2018 | B32: =B31+AltJub!B32-BajJub!H32+NInc!V32 -> 5996428.249 | C32: 1.830365805 | D32: 8976790.182 | E32: 1.710748844
A33: 2019 | B33: =B32+AltJub!B33-BajJub!H33+NInc!V33 -> 6106739.077 | C33: 1.839608892 | D33: 9123937.575 | E33: 1.639198317
A34: 2020 | B34: =B33+AltJub!B34-BajJub!H34+NInc!V34 -> 6219544.815 | C34: 1.847233639 | D34: 9265369.609 | E34: 1.550120575
A35: 2021 | B35: =B34+AltJub!B35-BajJub!H35+NInc!V35 -> 6336445.232 | C35: 1.879565477 | D35: 9425275.721 | E35: 1.72584709
A36: 2022 | B36: =B35+AltJub!B36-BajJub!H36+NInc!V36 -> 6459979.121 | C36: 1.949577157 | D36: 9596252.597 | E36: 1.814025191
A37: 2023 | B37: =B36+AltJub!B37-BajJub!H37+NInc!V37 -> 6592038.906 | C37: 2.044275718 | D37: 9800392.523 | E37: 2.127287963
A38: 2024 | B38: =B37+AltJub!B38-BajJub!H38+NInc!V38 -> 6730964.717 | C38: 2.107478625 | D38: 10013831.85 | E38: 2.177865103
A39: 2025 | B39: =B38+AltJub!B39-BajJub!H39+NInc!V39 -> 6874771.44 | C39: 2.136494987 | D39: 10235781.96 | E39: 2.216435383
A40: 2026 | B40: =B39+AltJub!B40-BajJub!H40+NInc!V40 -> 7020474.036 | C40: 2.119380946 | D40: 10469415.88 | E40: 2.282521448
A41: =A40+1 -> 2027 | B41: =B40+AltJub!B41-BajJub!H41+NInc!V41 -> 7168891.436 | C41: 2.114065224 | D41: 10695903.05 | E41: 2.163321895
A42: 2028 | B42: =B41+AltJub!B42-BajJub!H42+NInc!V42 -> 7319307.842 | C42: 2.098182216 | D42: 10931525.26 | E42: 2.202920227
A43: 2029 | B43: =B42+AltJub!B43-BajJub!H43+NInc!V43 -> 7474662.569 | C43: 2.122533038 | D43: 11182879.19 | E43: 2.299349133
A44: 2030 | B44: =B43+AltJub!B44-BajJub!H44+NInc!V44 -> 7631815.739 | C44: 2.102478459 | D44: 11461092.28 | E44: 2.487848504
A45: 2031 | B45: =B44+AltJub!B45-BajJub!H45+NInc!V45 -> 7789764.202 | C45: 2.069605303 | D45: 11725208.85 | E45: 2.304462423
A46: 2032 | B46: =B45+AltJub!B46-BajJub!H46+NInc!V46 -> 7946464.623 | C46: 2.011619561 | D46: 11988181.17 | E46: 2.242794328
A47: 2033 | B47: =B46+AltJub!B47-BajJub!H47+NInc!V47 -> 8101599.867 | C47: 1.952254889 | D47: 12259384.11 | E47: 2.26225261
A48: 2034 | B48: =B47+AltJub!B48-BajJub!H48+NInc!V48 -> 8254698.805 | C48: 1.889737094 | D48: 12518349.17 | E48: 2.112382262
A49: 2035 | B49: =B48+AltJub!B49-BajJub!H49+NInc!V49 -> 8405724.424 | C49: 1.829571525 | D49: 12775828.84 | E49: 2.056818138
A50: 2036 | B50: =B49+AltJub!B50-BajJub!H50+NInc!V50 -> 8556271.718 | C50: 1.791009163 | D50: 13031904.36 | E50: 2.004375001
A51: 2037 | B51: =B50+AltJub!B51-BajJub!H51+NInc!V51 -> 8706649.049 | C51: 1.757509996 | D51: 13290324.11 | E51: 1.982977652
A52: 2038 | B52: =B51+AltJub!B52-BajJub!H52+NInc!V52 -> 8856843.173 | C52: 1.725050852 | D52: 13551774.72 | E52: 1.967225208
A53: 2039 | B53: =B52+AltJub!B53-BajJub!H53+NInc!V53 -> 9007066.421 | C53: 1.696126317 | D53: 13808888 | E53: 1.897266472
A54: 2040 | B54: =B53+AltJub!B54-BajJub!H54+NInc!V54 -> 9155462.476 | C54: 1.647551468 | D54: 14074581.64 | E54: 1.924077007
A55: 2041 | B55: =B54+AltJub!B55-BajJub!H55+NInc!V55 -> 9300786.055 | C55: 1.587288241 | D55: 14335365.64 | E55: 1.852872141
A56: 2042 | B56: =B55+AltJub!B56-BajJub!H56+NInc!V56 -> 9438268.234 | C56: 1.478178064 | D56: 14592537.91 | E56: 1.793970776
A57: 2043 | B57: =B56+AltJub!B57-BajJub!H57+NInc!V57 -> 9565350.04 | C57: 1.34645258 | D57: 14827247.66 | E57: 1.608423089
A58: 2044 | B58: =B57+AltJub!B58-BajJub!H58+NInc!V58 -> 9676729.248 | C58: 1.164402844 | D58: 15042338.89 | E58: 1.450648387
A59: 2045 | B59: =B58+AltJub!B59-BajJub!H59+NInc!V59 -> 9771187.477 | C59: 0.9761379749 | D59: 15218341.38 | E59: 1.1700474
A60: 2046 | B60: =B59+AltJub!B60-BajJub!H60+NInc!V60 -> 9846149.787 | C60: 0.7671770735 | D60: 15365164.59 | E60: 0.9647779739
A61: 2047 | B61: =B60+AltJub!B61-BajJub!H61+NInc!V61 -> 9902737.822 | C61: 0.5747224693 | D61: 15475768.73 | E61: 0.7198370147
A62: 2048 | B62: =B61+AltJub!B62-BajJub!H62+NInc!V62 -> 9940598.697 | C62: 0.3823273484 | D62: 15553073.64 | E62: 0.4995222566
A63: 2049 | B63: =B62+AltJub!B63-BajJub!H63+NInc!V63 -> 9962555.468 | C63: 0.2208797638 | D63: 15593075.12 | E63: 0.2571934154
A64: 2050 | B64: =B63+AltJub!B64-BajJub!H64+NInc!V64 -> 9970077.548 | C64: 0.07550352092 | D64: 15608867.69 | E64: 0.1012794016

Sheet PmAltJub (hidden)
A1: indice
A3: año | B3: PmAltJub | C3: Var % | D3: AGEING | E3: Var % | F3: Nacho | G3: Var %
A4: 1990 | B4: 352.42
A5: =A4+1 -> 1991 | B5: 390.37 | C5: =100*(B5/B4-1) -> 10.76840134
A6: =A5+1 -> 1992 | B6: 425.16 | C6: 8.912057791
A7: 1993 | B7: 485.81 | C7: 14.2652178
A8: 1994 | B8: 500.41 | C8: 3.005290134
A9: 1995 | B9: 535.58 | C9: 7.028236846
A10: 1996 | B10: 554.83 | C10: 3.594234288
A11: 1997 | B11: 573.43 | C11: 3.352378206
A12: 1998 | B12: 598.2 | C12: 4.319620529
A13: 1999 | B13: 619.88 | C13: 3.624205951
A14: 2000 | B14: 644.86 | C14: 4.029812222
A15: 2001 | B15: 669.99 | C15: 3.896969885
A16: 2002 | B16: 715.34 | C16: 6.768757743
A17: 2003 | B17: 772.96 | C17: 8.054910951
A18: 2004 | B18: 856.13 | C18: 10.75993583
A19: 2005 | B19: 800.12 | C19: -6.542230736 | F19: =AVERAGE(C18:C20) -> 6.517634938 | H19: Cambio en la norma de concurrencia de Pensiones SOVI
A20: 2006 | B20: 922.82 | C20: 15.33519972
A21: 2007 | B21: 994.34 | C21: 7.750157127
A22: 2008 | B22: 1051.7 | C22: 5.768650562
A23: 2009 | B23: 1110.04 | C23: 5.54720928
A24: 2010 | B24: 1172.18 | C24: 5.597996469
A25: 2011 | B25: 1202.07 | C25: 2.549949666 | D25: =B25 -> 1202.07 | F25: =B25 -> 1202.07
A26: 2012 | B26: 1251.97 | C26: 4.151172561 | D26: =B26 -> 1251.97 | E26: =100*(D26/D25-1) -> 4.151172561 | F26: =B26 -> 1251.97 | G26: =100*(F26/F25-1) -> 4.151172561
A27: 2013 | B27: 1295.64 | C27: 3.48810275 | D27: 1296.180096 | E27: 3.531242406 | F27: =B27 -> 1295.64 | G27: 3.48810275
A28: 2014 | B28: 1314.68 | C28: 1.469544009 | D28: 1311.827285 | E28: 1.20717708 | F28: 1308.77667 | G28: 1.013913587
A29: 2015 | B29: 1342.94 | C29: 2.14957252 | D29: 1327.574262 | E29: 1.200384937 | F29: 1318.80548 | G29: 0.766273592
A30: 2016 | B30: 1332.37 | C30: -0.7870790951 | D30: 1343.420288 | E30: 1.193607544 | F30: 1344.16595 | G30: 1.922987915
A31: 2017 | B31: =B30*D31/D30 -> 1348.183195 | C31: 1.186847087 | D31: 1359.364633 | E31: 1.186847087 | F31: 1365.03833 | G31: 1.552812731
A32: 2018 | B32: =B31*D32/D31 -> 1364.09318 | C32: 1.180105614 | D32: 1375.406571 | E32: 1.180105614 | F32: 1380.66667 | G32: 1.144901184
A33: 2019 | B33: 1373.063224 | C33: 0.657582956 | D33: 1384.45101 | E33: 0.657582956 | F33: 1404.89786 | G33: 1.755035486
A34: 2020 | B34: 1381.562412 | C34: 0.618994654 | D34: 1393.020688 | E34: 0.618994654 | F34: 1438.26095 | G34: 2.374769793
A35: 2021 | B35: 1390.513197 | C35: 0.6478740674 | D35: 1402.045708 | E35: 0.6478740674 | F35: 1475.92548 | G35: 2.618754962
A36: 2022 | B36: 1399.427181 | C36: 0.6410571306 | D36: 1411.033622 | E36: 0.6410571306 | F36: 1489.88381 | G36: 0.9457340624
A37: 2023 | B37: 1408.303447 | C37: 0.63427853 | D37: 1419.983505 | E37: 0.63427853 | F37: 1508.32476 | G37: 1.23774417
A38: 2024 | B38: 1417.951156 | C38: 0.6850589416 | D38: 1429.711229 | E38: 0.6850589416 | F38: 1527.01381 | G38: 1.239060081
A39: 2025 | B39: 1427.569908 | C39: 0.6783556824 | D39: 1439.409757 | E39: 0.6783556824 | F39: 1550.35381 | G39: 1.528473407
A40: 2026 | B40: 1437.158797 | C40: 0.6716931393 | D40: 1449.078173 | E40: 0.6716931393 | F40: 1550.15119 | G40: -0.01306927481
A41: =A40+1 -> 2027 | B41: 1444.427595 | C41: 0.5057755512 | D41: 1456.407256 | E41: 0.5057755512 | F41: 1544.68643 | G41: -0.3525307748
A42: 2028 | B42: 1477.846612 | C42: 2.313651256 | D42: 1490.103441 | E42: 2.313651256 | F42: 1546.18286 | G42: 0.09687597243
A43: 2029 | B43: 1517.282233 | C43: 2.668451558 | D43: 1529.866129 | E43: 2.668451558 | F43: 1567.56667 | G43: 1.383006535
A44: 2030 | B44: 1556.68078 | C44: =100*(B44/B43-1) -> 2.596652498 | D44: 1569.591437 | E44: =100*(D44/D43-1) -> 2.596652498 | F44: 1580.11607 | G44: =100*(F44/F43-1) -> 0.8005656308
A45: 2031 | B45: 1600.212776 | C45: =100*(B45/B44-1) -> 2.796462611 | D45: 1613.484474 | E45: =100*(D45/D44-1) -> 2.796462611
A46: 2032 | B46: 1644.737412 | C46: 2.782419727 | D46: 1658.378384 | E46: 2.782419727
A47: 2033 | B47: 1693.156779 | C47: 2.943896523 | D47: 1707.199328 | E47: 2.943896523
A48: 2034 | B48: 1742.101725 | C48: 2.890750943 | D48: 1756.550209 | E48: 2.890750943
A49: 2035 | B49: 1791.891814 | C49: 2.85804715 | D49: 1806.753242 | E49: 2.85804715
A50: 2036 | B50: 1842.742184 | C50: 2.837803588 | D50: 1858.02535 | E50: 2.837803588
A51: 2037 | B51: 1897.31206 | C51: 2.961340793 | D51: 1913.047813 | E51: 2.961340793
A52: 2038 | B52: 1950.964104 | C52: 2.82779231 | D52: 1967.144832 | E52: 2.82779231
A53: 2039 | B53: 2003.793737 | C53: 2.707873092 | D53: 2020.412617 | E53: 2.707873092
A54: 2040 | B54: 2061.875942 | C54: 2.898611966 | D54: 2078.976539 | E54: 2.898611966
A55: 2041 | B55: 2121.177885 | C55: 2.876115986 | D55: 2138.770316 | E55: 2.876115986
A56: 2042 | B56: 2181.494631 | C56: 2.843549637 | D56: 2199.587311 | E56: 2.843549637
A57: 2043 | B57: 2244.298931 | C57: 2.87895733 | D57: 2262.912492 | E57: 2.87895733
A58: 2044 | B58: 2307.96744 | C58: 2.8368997 | D58: 2327.109049 | E58: 2.8368997
A59: 2045 | B59: 2375.530652 | C59: 2.927390136 | D59: 2395.23261 | E59: 2.927390136
A60: 2046 | B60: 2444.943344 | C60: 2.921986797 | D60: 2465.220991 | E60: 2.921986797
A61: 2047 | B61: 2517.262051 | C61: 2.957888885 | D61: 2538.139488 | E61: 2.957888885
A62: 2048 | B62: 2590.952045 | C62: 2.927386679 | D62: 2612.440646 | E62: 2.927386679
A63: 2049 | B63: 2667.145765 | C63: 2.940761502 | D63: 2689.266294 | E63: 2.940761502
A64: 2050 | B64: 2746.107188 | C64: 2.960521463 | D64: 2768.8826 | E64: 2.960521463
D65: 2850.81046 | E65: 2.958878055
D66: 2934.15336 | E66: 2.923480925
D67: 3021.639266 | E67: 2.981640548
D68: 3111.64836 | E68: 2.97881666
D69: 3206.038646 | E69: 3.03344963
D70: 3303.157638 | E70: 3.02925209
D71: 3404.127715 | E71: 3.056774395
D72: 3507.982634 | E72: 3.050852588
D73: 3614.845872 | E73: 3.046287537
D74: 3728.4851 | E74: 3.143681148
D75: 3850.454735 | E75: 3.271292012
D76: 3973.411956 | E76: 3.193316884
D77: 4101.086446 | E77: 3.213220566

Sheet PMBajJub (hidden)
A1: indice
A3: año | B3: PmBajJub | C3: Var % | D3: PmJub(t-1) | E3: PmBajJub/PmJub
A4: 1990 | B4: 262.22
A5: =A4+1 -> 1991 | B5: 288.05 | C5: =100*(B5/B4-1) -> 9.850507208 | D5: =PmJub!B4 -> 299.68 | E5: =100*B5/D5 -> 96.11919381 | I5: Resumen PmBajJub con PMJub(t-1)
A6: =A5+1 -> 1992 | B6: 309.14 | C6: 7.321645548 | D6: =PmJub!B5 -> 331.63 | E6: 93.21834575
A7: 1993 | B7: 338.34 | C7: 9.445558647 | D7: =PmJub!B6 -> 357.85 | E7: 94.54799497 | I7: Estadísticas de la regresión
A8: 1994 | B8: 353.7 | C8: 4.539812023 | D8: =PmJub!B7 -> 385.15 | E8: 91.83435025 | I8: Coeficiente de correlación múltiple | J8: 0.9970543362
A9: 1995 | B9: 373.77 | C9: 5.674300254 | D9: =PmJub!B8 -> 411.31 | E9: 90.87306411 | I9: Coeficiente de determinación R^2 | J9: 0.9941173493
A10: 1996 | B10: 397.56 | C10: 6.364876796 | D10: =PmJub!B9 -> 439.02 | E10: 90.5562389 | I10: R^2 ajustado | J10: 0.9938722388
A11: 1997 | B11: 416.19 | C11: 4.686085119 | D11: =PmJub!B10 -> 467.51 | E11: 89.0226947 | I11: Error típico | J11: 17.98865588
A12: 1998 | B12: 431.92 | C12: 3.779523775 | D12: =PmJub!B11 -> 487.18 | E12: 88.65716983 | I12: Observaciones | J12: 26
A13: 1999 | B13: 447.52 | C13: 3.611779959 | D13: =PmJub!B12 -> 492.63 | E13: 90.84302621
A14: 2000 | B14: 471.89 | C14: 5.445566679 | D14: =PmJub!B13 -> 509.77 | E14: 92.56919787 | I14: ANÁLISIS DE VARIANZA
A15: 2001 | B15: 502.05 | C15: 6.391320011 | D15: =PmJub!B14 -> 535.33 | E15: 93.78327387 | J15: Grados de libertad | K15: Suma de cuadrados | L15: Promedio de los cuadrados | M15: F | N15: Valor crítico de F
A16: 2002 | B16: 516.63 | C16: 2.904093218 | D16: =PmJub!B15 -> 564.98 | E16: 91.44217494 | I16: Regresión | J16: 1 | K16: 1312421.27 | L16: 1312421.27 | M16: 4055.79348 | N16: 2.775690078e-28
A17: 2003 | B17: 542.32 | C17: 4.972610959 | D17: =PmJub!B16 -> 588.35 | E17: 92.1764256 | I17: Residuos | J17: 24 | K17: 7766.201765 | L17: 323.5917402
A18: 2004 | B18: 573.86 | C18: 5.815754536 | D18: =PmJub!B17 -> 620.12 | E18: 92.54015352 | I18: Total | J18: 25 | K18: 1320187.472
A19: 2005 | B19: 608.51 | C19: 6.038058063 | D19: =PmJub!B18 -> 648.91 | E19: 93.77417516
A20: 2006 | B20: 657.01 | C20: 7.970288081 | D20: =PmJub!B19 -> 688.68 | E20: 95.40134751 | J20: Coeficientes | K20: Error típico | L20: Estadístico t | M20: Probabilidad | N20: Inferior 95% | O20: Superior 95% | P20: Inferior 95.0% | Q20: Superior 95.0%
A21: 2007 | B21: 702.08 | C21: 6.859865147 | D21: =PmJub!B20 -> 729.32 | E21: 96.26501399 | I21: Intercepción | J21: -39.38600282 | K21: 10.82470544 | L21: -3.638528831 | M21: 0.001306093334 | N21: -61.72709681 | O21: -17.04490884 | P21: -61.72709681 | Q21: -17.04490884
A22: 2008 | B22: 763.3 | C22: 8.719804011 | D22: =PmJub!B21 -> 770.62 | E22: 99.05011549 | I22: Variable X 1 | J22: 1.01324696 | K22: 0.01591026427 | L22: 63.68511192 | M22: 2.775690078e-28 | N22: 0.9804097889 | O22: 1.046084132 | P22: 0.9804097889 | Q22: 1.046084132
A23: 2009 | B23: 808.69 | C23: 5.946547884 | D23: =PmJub!B22 -> 822.24 | E23: 98.35206266
A24: 2010 | B24: 847.2 | C24: 4.76202253 | D24: =PmJub!B23 -> 862.55 | E24: 98.22039302
A25: 2011 | B25: 874.55 | C25: 3.228281398 | D25: =PmJub!B24 -> 893.21 | E25: 97.91090561
A26: 2012 | B26: 897.85 | C26: 2.664227317 | D26: =PmJub!B25 -> 923.73 | E26: 97.19831553
A27: 2013 | B27: 941.07 | C27: 4.813721668 | D27: =PmJub!B26 -> 956.36 | E27: 98.40122966
A28: 2014 | B28: 950.68 | C28: 1.021178021 | D28: =PmJub!B27 -> 988.45 | E28: 96.1788659
A29: 2015 | B29: 943.86 | C29: -0.7173812429 | D29: =PmJub!B28 -> 1008.73 | E29: 93.5691414
A30: 2016 | B30: 963.3 | C30: =100*(B30/B29-1) -> 2.059627487 | D30: =PmJub!B29 -> 1030.63 | E30: 93.46710265
A31: 2017 | B31: =$J$21+$J$22*D30 -> 1004.896712 | C31: =100*(B31/B30-1) -> 4.318147208 | D31: =PmJub!B30 -> 1052.01 | E31: 95.52159315
A32: 2018 | B32: =$J$21+$J$22*D31 -> 1026.559932 | C32: 2.155765837 | D32: =PmJub!B31 -> 1072.847958 | E32: 95.68549992
A33: 2019 | B33: 1047.67393 | C33: 2.056772042 | D33: =PmJub!B32 -> 1093.485475 | E33: 95.81050265
A34: 2020 | B34: 1068.584831 | C34: 1.99593599 | D34: =PmJub!B33 -> 1113.548276 | E34: 95.96214679
A35: 2021 | B35: 1088.913403 | C35: 1.902382609 | D35: =PmJub!B34 -> 1133.008345 | E35: 96.10815379
A36: 2022 | B36: 1108.631259 | C36: 1.810782774 | D36: =PmJub!B35 -> 1151.968245 | E36: 96.23800516
A37: 2023 | B37: 1127.84232 | C37: 1.732863007 | D37: =PmJub!B36 -> 1170.550435 | E37: =100*B37/D37 -> 96.35145025
A38: 2024 | B38: 1146.670668 | C38: 1.669413107 | D38: =PmJub!B37 -> 1188.820856 | E38: 96.45445415
A39: 2025 | B39: 1165.183116 | C39: 1.614452095 | D39: =PmJub!B38 -> 1206.778894 | E39: 96.55315666
A40: 2026 | B40: 1183.379044 | C40: 1.56163672 | D40: =PmJub!B39 -> 1224.358516 | E40: 96.65298421
A41: =A40+1 -> 2027 | B41: 1201.191542 | C41: 1.505223452 | D41: =PmJub!B40 -> 1241.481238 | E41: 96.7547077
A42: 2028 | B42: 1218.541088 | C42: 1.444361244 | D42: =PmJub!B41 -> 1258.064134 | E42: 96.85842355
A43: 2029 | B43: 1235.343657 | C43: 1.378908745 | D43: =PmJub!B42 -> 1275.606224 | E43: 96.8436524
A44: 2030 | B44: 1253.118126 | C44: 1.438827868 | D44: =PmJub!B43 -> 1294.560301 | E44: 96.79874514
A45: 2031 | B45: =$J$21+$J$22*D44 -> 1272.323287 | C45: 1.532589819 | D45: =PmJub!B44 -> 1314.7811 | E45: 96.77073144
A46: 2032 | B46: 1292.81195 | C46: 1.610334679 | D46: =PmJub!B45 -> 1336.415344 | E46: 96.73728726
A47: 2033 | B47: 1314.732782 | C47: 1.695593249 | D47: =PmJub!B46 -> 1359.355395 | E47: 96.71736963
A48: 2034 | B48: 1337.976719 | C48: 1.767959064 | D48: =PmJub!B47 -> 1383.722568 | E48: 96.69400142
A49: 2035 | B49: 1362.666683 | C49: 1.845320878 | D49: =PmJub!B48 -> 1409.452925 | E49: 96.68053889
A50: 2036 | B50: 1388.737889 | C50: 1.913248958 | D50: =PmJub!B49 -> 1436.491859 | E50: 96.67565331
A51: 2037 | B51: 1416.135007 | C51: 1.972806956 | D51: =PmJub!B50 -> 1464.885759 | E51: 96.67204413
A52: 2038 | B52: 1444.90504 | C52: 2.031588258 | D52: =PmJub!B51 -> 1494.77737 | E52: 96.66356131
A53: 2039 | B53: 1475.192624 | C53: 2.096164359 | D53: =PmJub!B52 -> 1526.0386 | E53: 96.66810681
A54: 2040 | B54: 1506.86797 | C54: 2.147200701 | D54: =PmJub!B53 -> 1558.554953 | E54: 96.68365989
A55: 2041 | B55: 1539.815067 | C55: 2.186462039 | D55: =PmJub!B54 -> 1592.438595 | E55: 96.69541238
A56: 2042 | B56: 1574.147564 | C56: 2.229650675 | D56: =PmJub!B55 -> 1627.629462 | E56: 96.71412325
A57: 2043 | B57: 1609.804602 | C57: 2.265164916 | D57: =PmJub!B56 -> 1663.836306 | E57: 96.75258291
A58: 2044 | B58: 1646.491077 | C58: 2.278939656 | D58: =PmJub!B57 -> 1700.968132 | E58: 96.79729128
A59: 2045 | B59: 1684.114787 | C59: 2.285084319 | D59: =PmJub!B58 -> 1738.661471 | E59: 96.86271968
A60: 2046 | B60: 1722.307448 | C60: 2.267818174 | D60: =PmJub!B59 -> 1776.945041 | E60: 96.92519509
A61: 2047 | B61: 1761.098159 | C61: 2.252252428 | D61: =PmJub!B60 -> 1815.622951 | E61: 96.99691
A62: 2048 | B62: 1800.288433 | C62: 2.225331608 | D62: =PmJub!B61 -> 1854.786612 | E62: 97.06175478
A63: =A62+1 -> 2049 | B63: 1839.970894 | C63: 2.204227967 | D63: =PmJub!B62 -> 1894.34082 | E63: 97.12987624
A64: 2050 | B64: 1880.049075 | C64: 2.178196468 | D64: =PmJub!B63 -> 1934.45991 | E64: 97.18728548

Sheet PmJub (hidden)
A1: indice
B2: Necesaria aproximación para PmAltViu
A3: año | B3: PmJub | C3: %var | D3: PmJub
A4: 1990 | B4: 299.68 | D4: 308.07
A5: =A4+1 -> 1991 | B5: 331.63 | C5: =100*(B5/B4-1) -> 10.66137213 | D5: 335.32
A6: =A5+1 -> 1992 | B6: 357.85 | C6: 7.906401713 | D6: 361.88
A7: 1993 | B7: 385.15 | C7: 7.628894788 | D7: 392.82
A8: 1994 | B8: 411.31 | C8: 6.792158899 | D8: 416.39
A9: 1995 | B9: 439.02 | C9: 6.737011014 | D9: 443.96
A10: 1996 | B10: 467.51 | C10: 6.489453783 | D10: 472.57
A11: 1997 | B11: 487.18 | C11: 4.207396633 | D11: 478.9
A12: 1998 | B12: 492.63 | C12: 1.118683033 | D12: 496.63
A13: 1999 | B13: 509.77 | C13: 3.479284656 | D13: 513.73
A14: 2000 | B14: 535.33 | C14: 5.014025933 | D14: 539.18
A15: 2001 | B15: 564.98 | C15: 5.538639718 | D15: 569.16
A16: 2002 | B16: 588.35 | C16: 4.136429608 | D16: 592.34
A17: 2003 | B17: 620.12 | C17: 5.39984703 | D17: 625.28
A18: 2004 | B18: 648.91 | C18: 4.64264981 | D18: 654.9
A19: 2005 | B19: 688.68 | C19: 6.128738962 | D19: 688.68
A20: 2006 | B20: 729.32 | C20: 5.901144218 | D20: 729.32
A21: 2007 | B21: 770.62 | C21: 5.662809192 | D21: 770.62
A22: 2008 | B22: 822.24 | C22: 6.698502504 | D22: 822.24
A23: 2009 | B23: 862.55 | C23: 4.902461568 | D23: 862.55
A24: 2010 | B24: 893.21 | C24: 3.554576546 | D24: 893.21
A25: 2011 | B25: 923.73 | C25: 3.416889645 | D25: 923.74
A26: 2012 | B26: 956.36 | C26: 3.532417481 | D26: 956.36
A27: 2013 | B27: 988.45 | C27: 3.355431009 | D27: 988.45
A28: 2014 | B28: 1008.73 | C28: 2.051697102 | D28: 1008.73
A29: 2015 | B29: 1030.63 | C29: =100*(B29/B28-1) -> 2.171046762 | D29: 1030.63
A30: 2016 | B30: 1052.01 | C30: =100*(B30/B29-1) -> 2.074459311 | D30: 1052.1
A31: 2017 | B31: =(AltJub!B31*PmAltJub!B31+NJub!B30*PmJub!B30*(1+Iter_Consol!AD31)-BajJub!B31*PMBajJub!B31)/(AltJub!B31+NJub!B30-BajJub!B31) -> 1072.847958 | C31: =100*(B31/B30-1) -> 1.980775665
A32: 2018 | B32: =(AltJub!B32*PmAltJub!B32+NJub!B31*PmJub!B31*(1+Iter_Consol!AD32)-BajJub!B32*PMBajJub!B32)/(AltJub!B32+NJub!B31-BajJub!B32) -> 1093.485475 | C32: 1.923619885
A33: 2019 | B33: =(AltJub!B33*PmAltJub!B33+NJub!B32*PmJub!B32*(1+Iter_Consol!AD33)-BajJub!B33*PMBajJub!B33)/(AltJub!B33+NJub!B32-BajJub!B33) -> 1113.548276 | C33: 1.83475696
A34: 2020 | B34: =(AltJub!B34*PmAltJub!B34+NJub!B33*PmJub!B33*(1+Iter_Consol!AD34)-BajJub!B34*PMBajJub!B34)/(AltJub!B34+NJub!B33-BajJub!B34) -> 1133.008345 | C34: 1.747573049
A35: 2021 | B35: =(AltJub!B35*PmAltJub!B35+NJub!B34*PmJub!B34*(1+Iter_Consol!AD35)-BajJub!B35*PMBajJub!B35)/(AltJub!B35+NJub!B34-BajJub!B35) -> 1151.968245 | C35: 1.673412205
A36: 2022 | B36: =(AltJub!B36*PmAltJub!B36+NJub!B35*PmJub!B35*(1+Iter_Consol!AD36)-BajJub!B36*PMBajJub!B36)/(AltJub!B36+NJub!B35-BajJub!B36) -> 1170.550435 | C36: 1.61308179
A37: 2023 | B37: =(AltJub!B37*PmAltJub!B37+NJub!B36*PmJub!B36*(1+Iter_Consol!AD37)-BajJub!B37*PMBajJub!B37)/(AltJub!B37+NJub!B36-BajJub!B37) -> 1188.820856 | C37: 1.560840142
A38: 2024 | B38: =(AltJub!B38*PmAltJub!B38+NJub!B37*PmJub!B37*(1+Iter_Consol!AD38)-BajJub!B38*PMBajJub!B38)/(AltJub!B38+NJub!B37-BajJub!B38) -> 1206.778894 | C38: 1.510575617
A39: 2025 | B39: =(AltJub!B39*PmAltJub!B39+NJub!B38*PmJub!B38*(1+Iter_Consol!AD39)-BajJub!B39*PMBajJub!B39)/(AltJub!B39+NJub!B38-BajJub!B39) -> 1224.358516 | C39: 1.456739293
A40: 2026 | B40: =(AltJub!B40*PmAltJub!B40+NJub!B39*PmJub!B39*(1+Iter_Consol!AD40)-BajJub!B40*PMBajJub!B40)/(AltJub!B40+NJub!B39-BajJub!B40) -> 1241.481238 | C40: 1.398505493
A41: =A40+1 -> 2027 | B41: =(AltJub!B41*PmAltJub!B41+NJub!B40*PmJub!B40*(1+Iter_Consol!AD41)-BajJub!B41*PMBajJub!B41)/(AltJub!B41+NJub!B40-BajJub!B41) -> 1258.064134 | C41: 1.335734777
A42: 2028 | B42: =(AltJub!B42*PmAltJub!B42+NJub!B41*PmJub!B41*(1+Iter_Consol!AD42)-BajJub!B42*PMBajJub!B42)/(AltJub!B42+NJub!B41-BajJub!B42) -> 1275.606224 | C42: 1.394371636
A43: 2029 | B43: =(AltJub!B43*PmAltJub!B43+NJub!B42*PmJub!B42*(1+Iter_Consol!AD43)-BajJub!B43*PMBajJub!B43)/(AltJub!B43+NJub!B42-BajJub!B43) -> 1294.560301 | C43: 1.485887774
A44: 2030 | B44: =(AltJub!B44*PmAltJub!B44+NJub!B43*PmJub!B43*(1+Iter_Consol!AD44)-BajJub!B44*PMBajJub!B44)/(AltJub!B44+NJub!B43-BajJub!B44) -> 1314.7811 | C44: 1.561982009
A45: 2031 | B45: =(AltJub!B45*PmAltJub!B45+NJub!B44*PmJub!B44*(1+Iter_Consol!AD45)-BajJub!B45*PMBajJub!B45)/(AltJub!B45+NJub!B44-BajJub!B45) -> 1336.415344 | C45: 1.645463582
A46: 2032 | B46: =(AltJub!B46*PmAltJub!B46+NJub!B45*PmJub!B45*(1+Iter_Consol!AD46)-BajJub!B46*PMBajJub!B46)/(AltJub!B46+NJub!B45-BajJub!B46) -> 1359.355395 | C46: 1.716536071
A47: 2033 | B47: =(AltJub!B47*PmAltJub!B47+NJub!B46*PmJub!B46*(1+Iter_Consol!AD47)-BajJub!B47*PMBajJub!B47)/(AltJub!B47+NJub!B46-BajJub!B47) -> 1383.722568 | C47: 1.792553505
A48: 2034 | B48: =(AltJub!B48*PmAltJub!B48+NJub!B47*PmJub!B47*(1+Iter_Consol!AD48)-BajJub!B48*PMBajJub!B48)/(AltJub!B48+NJub!B47-BajJub!B48) -> 1409.452925 | C48: 1.859502598
A49: 2035 | B49: =(AltJub!B49*PmAltJub!B49+NJub!B48*PmJub!B48*(1+Iter_Consol!AD49)-BajJub!B49*PMBajJub!B49)/(AltJub!B49+NJub!B48-BajJub!B49) -> 1436.491859 | C49: 1.918399225
A50: 2036 | B50: =(AltJub!B50*PmAltJub!B50+NJub!B49*PmJub!B49*(1+Iter_Consol!AD50)-BajJub!B50*PMBajJub!B50)/(AltJub!B50+NJub!B49-BajJub!B50) -> 1464.885759 | C50: 1.976614032
A51: 2037 | B51: =(AltJub!B51*PmAltJub!B51+NJub!B50*PmJub!B50*(1+Iter_Consol!AD51)-BajJub!B51*PMBajJub!B51)/(AltJub!B51+NJub!B50-BajJub!B51) -> 1494.77737 | C51: 2.040542157
A52: 2038 | B52: =(AltJub!B52*PmAltJub!B52+NJub!B51*PmJub!B51*(1+Iter_Consol!AD52)-BajJub!B52*PMBajJub!B52)/(AltJub!B52+NJub!B51-BajJub!B52) -> 1526.0386 | C52: 2.091363617
A53: 2039 | B53: =(AltJub!B53*PmAltJub!B53+NJub!B52*PmJub!B52*(1+Iter_Consol!AD53)-BajJub!B53*PMBajJub!B53)/(AltJub!B53+NJub!B52-BajJub!B53) -> 1558.554953 | C53: 2.13076873
A54: 2040 | B54: =(AltJub!B54*PmAltJub!B54+NJub!B53*PmJub!B53*(1+Iter_Consol!AD54)-BajJub!B54*PMBajJub!B54)/(AltJub!B54+NJub!B53-BajJub!B54) -> 1592.438595 | C54: 2.174042159
A55: 2041 | B55: =(AltJub!B55*PmAltJub!B55+NJub!B54*PmJub!B54*(1+Iter_Consol!AD55)-BajJub!B55*PMBajJub!B55)/(AltJub!B55+NJub!B54-BajJub!B55) -> 1627.629462 | C55: 2.209872734
A56: 2042 | B56: =(AltJub!B56*PmAltJub!B56+NJub!B55*PmJub!B55*(1+Iter_Consol!AD56)-BajJub!B56*PMBajJub!B56)/(AltJub!B56+NJub!B55-BajJub!B56) -> 1663.836306 | C56: 2.224513974
A57: 2043 | B57: =(AltJub!B57*PmAltJub!B57+NJub!B56*PmJub!B56*(1+Iter_Consol!AD57)-BajJub!B57*PMBajJub!B57)/(AltJub!B57+NJub!B56-BajJub!B57) -> 1700.968132 | C57: 2.231699444
A58: 2044 | B58: =(AltJub!B58*PmAltJub!B58+NJub!B57*PmJub!B57*(1+Iter_Consol!AD58)-BajJub!B58*PMBajJub!B58)/(AltJub!B58+NJub!B57-BajJub!B58) -> 1738.661471 | C58: 2.215993253
A59: 2045 | B59: =(AltJub!B59*PmAltJub!B59+NJub!B58*PmJub!B58*(1+Iter_Consol!AD59)-BajJub!B59*PMBajJub!B59)/(AltJub!B59+NJub!B58-BajJub!B59) -> 1776.945041 | C59: 2.201899048
A60: 2046 | B60: =(AltJub!B60*PmAltJub!B60+NJub!B59*PmJub!B59*(1+Iter_Consol!AD60)-BajJub!B60*PMBajJub!B60)/(AltJub!B60+NJub!B59-BajJub!B60) -> 1815.622951 | C60: 2.17665197
A61: 2047 | B61: =(AltJub!B61*PmAltJub!B61+NJub!B60*PmJub!B60*(1+Iter_Consol!AD61)-BajJub!B61*PMBajJub!B61)/(AltJub!B61+NJub!B60-BajJub!B61) -> 1854.786612 | C61: 2.157037155
A62: 2048 | B62: =(AltJub!B62*PmAltJub!B62+NJub!B61*PmJub!B61*(1+Iter_Consol!AD62)-BajJub!B62*PMBajJub!B62)/(AltJub!B62+NJub!B61-BajJub!B62) -> 1894.34082 | C62: 2.132547634
A63: 2049 | B63: =(AltJub!B63*PmAltJub!B63+NJub!B62*PmJub!B62*(1+Iter_Consol!AD63)-BajJub!B63*PMBajJub!B63)/(AltJub!B63+NJub!B62-BajJub!B63) -> 1934.45991 | C63: 2.117839061
A64: 2050 | B64: =(AltJub!B64*PmAltJub!B64+NJub!B63*PmJub!B63*(1+Iter_Consol!AD64)-BajJub!B64*PMBajJub!B64)/(AltJub!B64+NJub!B63-BajJub!B64) -> 1975.225307 | C64: 2.107327064

Sheet AltViu (hidden)
A1: indice
B2: NACHO | C2: NACHO
A3: año | B3: AltViu | C3: Var % | D3: AltViu(-1) | E3: Muj65+ | F3: Var%
A4: 1990 | B4: 117354 | E4: 3074173.08
A5: =A4+1 -> 1991 | B5: 119934 | C5: =100*(B5/B4-1) -> 2.198476405 | D5: =B4 -> 117354 | E5: 3150160.873 | F5: =100*(E5/E4-1) -> 2.471812444
A6: =A5+1 -> 1992 | B6: 119638 | C6: -0.246802408 | D6: =B5 -> 119934 | E6: 3228047.062 | F6: 2.472451183 | J6: Estadísticas de la regresión
A7: 1993 | B7: 160934 | C7: 34.51746101 | D7: 119638 | E7: 3304287.938 | F7: 2.361826625 | J7: Coeficiente de correlación múltiple | K7: 0.9955160992
A8: 1994 | B8: 118886 | C8: -26.12748083 | D8: 160934 | E8: 3387821.625 | F8: 2.528038993 | J8: Coeficiente de determinación R^2 | K8: 0.9910523037
A9: 1995 | B9: 120193 | C9: 1.099372508 | D9: 118886 | E9: 3470350.125 | F9: 2.436034394 | J9: R^2 ajustado | K9: 0.9510523037
A10: 1996 | B10: 120453 | C10: 0.216318754 | D10: 120193 | E10: 3560364.375 | F10: 2.593808888 | J10: Error típico | K10: 12330.35396
A11: 1997 | B11: 123023 | C11: 2.13361228 | D11: 120453 | E11: 3640109.469 | F11: 2.239801474 | J11: Observaciones | K11: 26
A12: 1998 | B12: 123064 | C12: 0.03332710144 | D12: 123023 | E12: 3728865.516 | F12: 2.438279608
A13: 1999 | B13: 127629 | C13: 3.709451992 | D13: 123064 | E13: 3812215.859 | F13: 2.235273528 | J13: ANÁLISIS DE VARIANZA
A14: 2000 | B14: 126546 | C14: -0.8485532285 | D14: 127629 | E14: 3881389.609 | F14: 1.814528677 | K14: Grados de libertad | L14: Suma de cuadrados | M14: Promedio de los cuadrados | N14: F | O14: Valor crítico de F
A15: 2001 | B15: 119188 | C15: -5.814486432 | D15: 126546 | E15: 3954543.391 | F15: 1.884731723 | J15: Regresión | K15: 1 | L15: 4.20994515e+11 | M15: 4.20994515e+11 | N15: 2769.015264 | O15: 2.622384384e-26
A16: 2002 | B16: 117110 | C16: -1.743464107 | D16: 119188 | E16: 4040544.961 | F16: 2.174753499 | J16: Residuos | K16: 25 | L16: 3800940721 | M16: 152037628.8
A17: 2003 | B17: 129160 | C17: 10.28947144 | D17: 117110 | E17: 4102870.849 | F17: 1.54251193 | J17: Total | K17: 26 | L17: 424795455696
A18: 2004 | B18: 127287 | C18: -1.450139362 | D18: 129160 | E18: 4133443.863 | F18: 0.7451614882
A19: 2005 | B19: 132486 | C19: 4.084470527 | D19: 127287 | E19: 4149317.102 | F19: 0.3840197104 | K19: Coeficientes | L19: Error típico | M19: Estadístico t | N19: Probabilidad | O19: Inferior 95% | P19: Superior 95% | Q19: Inferior 95,0% | R19: Superior 95,0%
A20: 2006 | B20: 128813 | C20: -2.772368401 | D20: 132486 | E20: 4230547.624 | F20: 1.957684109 | J20: Intercepción | K20: 0
A21: 2007 | B21: 131454 | C21: 2.050258902 | D21: 128813 | E21: 4273846.88 | F21: 1.023490591 | J21: Variable X 1 | K21: 0.9994586852 | L21: 0.01899337625 | M21: 52.62143351 | N21: 3.952076085e-27 | O21: 0.9603410946 | P21: 1.038576276 | Q21: 0.9603410946 | R21: 1.038576276
A22: 2008 | B22: 130138 | C22: -1.001110655 | D22: 131454 | E22: 4326529.361 | F22: 1.232671212
A23: 2009 | B23: 129615 | C23: -0.4018810801 | D23: 130138 | E23: 4405183.264 | F23: 1.817944514
A24: 2010 | B24: 127439 | C24: -1.678818038 | D24: 129615 | E24: 4485263.09 | F24: 1.817854601
A25: 2011 | B25: 128883 | C25: 1.133091126 | D25: 127439 | E25: 4576444.453 | F25: 2.032910021
A26: 2012 | B26: 131978 | C26: 2.401402823 | D26: 128883 | E26: 4652631.274 | F26: 1.664760098 | J26: Propuesta | K26: Modelización de altas en viudedad, para poder calcular posteriormente numpenv (siguiente pestaña)
A27: 2013 | B27: 129510 | C27: -1.870008638 | D27: 131978 | E27: 4721283.645 | F27: 1.475560104 | H27: 100 | K27: Regresión AR(1) sin intercepto
A28: 2014 | B28: 129705 | C28: 0.1505675237 | D28: 129510 | E28: 4813375.637 | F28: 1.950571055
A29: 2015 | B29: 132581 | C29: 2.217339347 | D29: 129705 | E29: 4892781.642 | F29: 1.649694739
A30: 2016 | B30: 130831 | C30: -1.319947805 | D30: 132581 | E30: 4947182.384 | F30: 1.111857145
A31: 2017 | B31: =B30*(1+C31%) -> 132404.157 | C31: 1.202434444 | D31: 130831 | E31: 5011195.992 | F31: 1.293940718
A32: 2018 | B32: =B31*(1+C32%) -> 134230.8692 | C32: 1.379648661 | D32: 132404.157 | E32: 5087065.958 | F32: 1.514009167
A33: 2019 | B33: =B32*(1+C33%) -> 136002.7934 | C33: 1.320057189 | D33: 134230.8692 | E33: 5161981.413 | F33: 1.47266529 | J33: Estadísticas de la regresión
A34: 2020 | B34: 137685.3257 | C34: 1.237130708 | D34: 136002.7934 | E34: 5234842.633 | F34: 1.411497141 | J34: Coeficiente de correlación múltiple | K34: 0.9960381833
A35: 2021 | B35: 139652.8053 | C35: 1.428968257 | D35: 137685.3257 | E35: 5316549.18 | F35: 1.560821461 | J35: Coeficiente de determinación R^2 | K35: 0.9920920626
A36: 2022 | B36: 141707.4666 | C36: 1.47126385 | D36: 139652.8053 | E36: 5404071.431 | F36: 1.646222906 | J36: R^2 ajustado | K36: 0.9500958985
A37: 2023 | B37: 143799.7134 | C37: 1.476454867 | D37: 141707.4666 | E37: 5508875.173 | F37: 1.939347828 | J37: Error típico | K37: 11830.84929
A38: 2024 | B38: 145993.5728 | C38: 1.525635433 | D38: 143799.7134 | E38: 5618300.496 | F38: 1.986346032 | J38: Observaciones | K38: 26
A39: 2025 | B39: 148154.7145 | C39: 1.480299214 | D39: 145993.5728 | E39: 5732290.217 | F39: 2.028900396
A40: 2026 | B40: 150674.0839 | C40: 1.700499023 | D40: 148154.7145 | E40: 5852766.781 | F40: 2.101717805 | J40: ANÁLISIS DE VARIANZA
A41: =A40+1 -> 2027 | B41: 153142.5389 | C41: 1.638274416 | D41: 150674.0839 | E41: 5969926.371 | F41: 2.001781291 | K41: Grados de libertad | L41: Suma de cuadrados | M41: Promedio de los cuadrados | N41: F | O41: Valor crítico de F
A42: 2028 | B42: 155545.1648 | C42: 1.568882141 | D42: 153142.5389 | E42: 6091862.17 | F42: 2.042500884 | J42: Regresión | K42: 2 | L42: 4.214361998e+11 | M42: 2.107180999e+11 | N42: 1505.462692 | O42: 4.138222294e-25
A43: 2029 | B43: 158301.0023 | C43: 1.771728139 | D43: 155545.1648 | E43: 6221542.153 | F43: 2.128741239 | J43: Residuos | K43: 24 | L43: 3359255879 | M43: 139968995
A44: 2030 | B44: 160990.2426 | C44: 1.698814434 | D44: 158301.0023 | E44: 6365858.103 | F44: =100*(E44/E43-1) -> 2.319617009 | J44: Total | K44: 26 | L44: 424795455696
A45: 2031 | B45: 163690.2321 | C45: 1.677113742
A46: 2032 | B46: 166322.8182 | C46: 1.608273229 | K46: Coeficientes | L46: Error típico | M46: Estadístico t | N46: Probabilidad | O46: Inferior 95% | P46: Superior 95% | Q46: Inferior 95,0% | R46: Superior 95,0%
A47: 2033 | B47: 169071.2369 | C47: 1.652460349 | J47: Intercepción | K47: 0
A48: 2034 | B48: 171773.6733 | C48: 1.598401046 | J48: Variable X 1 | K48: 0.7477354498 | L48: 0.1428713285 | M48: 5.233628453 | N48: 2.302567541e-05 | O48: 0.4528635205 | P48: 1.042607379 | Q48: 0.4528635205 | R48: 1.042607379
A49: 2035 | B49: 174415.9577 | C49: 1.538235966 | J49: Variable X 2 | K49: 0.007871034599 | L49: 0.004430895384 | M49: 1.776398203 | N49: 0.08834768185 | O49: -0.00127388401 | P49: 0.01701595321 | Q49: -0.00127388401 | R49: 0.01701595321
A50: 2036 | B50: 176876.0553 | C50: 1.41047733
A51: 2037 | B51: 179344.4002 | C51: 1.395522411
A52: 2038 | B52: 181827.6102 | C52: 1.384604094 | J52: Resumen
A53: 2039 | B53: 184076.187 | C53: 1.236653118
A54: 2040 | B54: 186148.8352 | C54: 1.125973042 | J54: Estadísticas de la regresión
A55: 2041 | B55: 188168.2388 | C55: 1.08483277 | J55: Coeficiente de correlación múltiple | K55: 0.2741606447
A56: 2042 | B56: 190110.4327 | C56: 1.032158217 | J56: Coeficiente de determinación R^2 | K56: 0.07516405911
A57: 2043 | B57: 191910.1235 | C57: 0.9466554557 | J57: R^2 ajustado | K57: 0.03817062148
A58: 2044 | B58: 193530.0389 | C58: 0.8441010482 | J58: Error típico | K58: 8286.622744
A59: 2045 | B59: 195029.9695 | C59: 0.7750376355 | J59: Observaciones | K59: 27
A60: 2046 | B60: 196415.3181 | C60: 0.7103260271
A61: 2047 | B61: 197523.243 | C61: 0.5640725229 | J61: ANÁLISIS DE VARIANZA
A62: 2048 | B62: 198441.9857 | C62: 0.4651314797 | K62: Grados de libertad | L62: Suma de cuadrados | M62: Promedio de los cuadrados | N62: F | O62: Valor crítico de F
A63: 2049 | B63: 199061.9301 | C63: 0.3124058325 | J63: Regresión | K63: 1 | L63: 139521350.2 | M63: 139521350.2 | N63: 2.031821423 | O63: 0.1664027148
A64: 2050 | B64: 199512.054 | C64: 0.2261225427 | J64: Residuos | K64: 25 | L64: 1716702913 | M64: 68668116.51
J65: Total | K65: 26 | L65: 1856224263
K67: Coeficientes | L67: Error típico | M67: Estadístico t | N67: Probabilidad | O67: Inferior 95% | P67: Superior 95% | Q67: Inferior 95.0% | R67: Superior 95.0%
J68: Intercepción | K68: 115559.6041 | L68: 8306.069236 | M68: 13.91267046 | N68: 2.834701462e-13 | O68: 98452.93431 | P68: 132666.2739 | Q68: 98452.93431 | R68: 132666.2739
J69: Variable X 1 | K69: 0.0554164151 | L69: 0.03887726099 | M69: 1.425419736 | N69: 0.1664027148 | O69: -0.02465280275 | P69: 0.1354856329 | Q69: -0.02465280275 | R69: 0.1354856329

Sheet BajViu (hidden)
A1: indice
A3: año | B3: BajViu | C3: Var % | D3: BajViu(-1) | E3: pob+65 | F3: BajViu | G3: Var %
A4: 1990 | B4: 59277 | E4: =BajJub!G4 -> 5210690.334 | F4: 59277 | I4: Resumen
A5: =A4+1 -> 1991 | B5: 63918 | C5: =100*(B5/B4-1) -> 7.82934359 | D5: =B4 -> 59277 | E5: =BajJub!G5 -> 5348084.367 | F5: 63918 | G5: =F5/F4*100-100 -> 7.82934359
A6: =A5+1 -> 1992 | B6: 68221 | C6: 6.732062956 | D6: =B5 -> 63918 | E6: =BajJub!G6 -> 5492773.953 | F6: 68221 | G6: 6.732062956 | I6: Estadísticas de la regresión
A7: 1993 | B7: 75059 | C7: 10.02330661 | D7: 68221 | E7: =BajJub!G7 -> 5633028.375 | F7: 75059 | G7: 10.02330661 | I7: Coeficiente de correlación múltiple | J7: 0.9721473769
A8: 1994 | B8: 82875 | C8: 10.41314166 | D8: 75059 | E8: =BajJub!G8 -> 5785398.516 | F8: 82875 | G8: 10.41314166 | I8: Coeficiente de determinación R^2 | J8: 0.9450705223
A9: 1995 | B9: 82134 | C9: -0.8941176471 | D9: 82875 | E9: =BajJub!G9 -> 5936360.719 | F9: 82134 | G9: -0.8941176471 | I9: R^2 ajustado | J9: 0.940294046
A10: 1996 | B10: 78213 | C10: -4.773906056 | D10: 82134 | E10: =BajJub!G10 -> 6100512.297 | F10: 78213 | G10: -4.773906056 | I10: Error típico | J10: 4334.548188
A11: 1997 | B11: 82191 | C11: 5.086111005 | D11: 78213 | E11: =BajJub!G11 -> 6249190.859 | F11: 82191 | G11: 5.086111005 | I11: Observaciones | J11: 26
A12: 1998 | B12: 86601 | C12: 5.365550973 | D12: 82191 | E12: =BajJub!G12 -> 6412569.125 | F12: 86601 | G12: 5.365550973
A13: 1999 | B13: 91956 | C13: 6.183531368 | D13: 86601 | E13: =BajJub!G13 -> 6565768.844 | F13: 91956 | G13: 6.183531368 | I13: ANÁLISIS DE VARIANZA
A14: 2000 | B14: 90386 | C14: -1.707338292 | D14: 91956 | E14: =BajJub!G14 -> 6691691.859 | F14: 90386 | G14: -1.707338292 | J14: Grados de libertad | K14: Suma de cuadrados | L14: Promedio de los cuadrados | M14: F | N14: Valor crítico de F
A15: 2001 | B15: 88340 | C15: -2.263624898 | D15: 90386 | E15: =BajJub!G15 -> 6826651.828 | F15: 88340 | G15: -2.263624898 | I15: Regresión | J15: 2 | K15: 7434884991 | L15: 3717442496 | M15: 197.8593547 | N15: 3.219310725e-15
A16: 2002 | B16: 93781 | C16: 6.159157799 | D16: 88340 | E16: =BajJub!G16 -> 6980546.788 | F16: 93781 | G16: 6.159157799 | I16: Residuos | J16: 23 | K16: 432131083.8 | L16: 18788307.99
A17: 2003 | B17: 99434 | C17: 6.02787345 | D17: 93781 | E17: =BajJub!G17 -> 7092838.385 | F17: 99434 | G17: 6.02787345 | I17: Total | J17: 25 | K17: 7867016075
A18: 2004 | B18: 95818 | C18: -3.63658306 | D18: 99434 | E18: =BajJub!G18 -> 7146674.644 | F18: 95818 | G18: -3.63658306
A19: 2005 | B19: 103853 | C19: 8.385689536 | D19: 95818 | E19: =BajJub!G19 -> 7169882.394 | F19: 103853 | G19: 8.385689536 | J19: Coeficientes | K19: Error típico | L19: Estadístico t | M19: Probabilidad | N19: Inferior 95% | O19: Superior 95% | P19: Inferior 95,0% | Q19: Superior 95,0%
A20: 2006 | B20: 99733 | C20: -3.96714587 | D20: 103853 | E20: =BajJub!G20 -> 7324149.871 | F20: 99733 | G20: -3.96714587 | I20: Intercepción | J20: 3318.26341 | K20: 4889.860668 | L20: 0.6786008098 | M20: 0.5041622055 | N20: -6797.184076 | O20: 13433.7109 | P20: -6797.184076 | Q20: 13433.7109
A21: 2007 | B21: 103459 | C21: 3.735975053 | D21: 99733 | E21: =BajJub!G21 -> 7407159.419 | F21: 103459 | G21: 3.735975053 | I21: Variable X 1 | J21: 0.3626192706 | K21: 0.1665989812 | L21: 2.176599568 | M21: 0.04002989 | N21: 0.01798302019 | O21: 0.7072555211 | P21: 0.01798302019 | Q21: 0.7072555211
A22: 2008 | B22: 106900 | C22: 3.325955209 | D22: 103459 | E22: =BajJub!G22 -> 7506291.644 | F22: 106900 | G22: 3.325955209 | I22: Variable X 2 | J22: 0.008778532937 | K22: 0.002478240382 | L22: 3.542244329 | M22: 0.001739212804 | N22: 0.003651902111 | O22: 0.01390516376 | P22: 0.003651902111 | Q22: 0.01390516376
A23: 2009 | B23: 110143 | C23: 3.033676333 | D23: 106900 | E23: =BajJub!G23 -> 7657965.811 | F23: 110143 | G23: 3.033676333
A24: 2010 | B24: 107754 | C24: -2.168998484 | D24: 110143 | E24: =BajJub!G24 -> 7810399.8 | F24: 107754 | G24: -2.168998484
A25: 2011 | B25: 110629 | C25: 2.668114409 | D25: 107754 | E25: =BajJub!G25 -> 7982996.045 | F25: 110629 | G25: 2.668114409
A26: 2012 | B26: 119878 | C26: 8.36037567 | D26: 110629 | E26: =BajJub!G26 -> 8128038.024 | F26: 119878 | G26: 8.36037567 | I26: Propuesta | J26: Modelización de bajas en viudedad, para poder calcular posteriormente numpenv (siguiente pestaña)
A27: 2013 | B27: 115345 | C27: -3.781344367 | D27: 119878 | E27: =BajJub!G27 -> 8262078.706 | F27: 115345 | G27: -3.781344367
A28: 2014 | B28: 118333 | C28: 2.590489401 | D28: 115345 | E28: =BajJub!G28 -> 8440022.423 | F28: 118333 | G28: 2.590489401
A29: 2015 | B29: 134287 | C29: 13.4822915 | D29: 118333 | E29: =BajJub!G29 -> 8592012.974 | F29: 134287 | G29: 13.4822915
A30: 2016 | B30: 125864 | C30: -6.272386754 | D30: 134287 | E30: =BajJub!G30 -> 8699893.4 | F30: 125864 | G30: =F30/F29*100-100 -> -6.272386754 | I30: Dependent Variable: BAJVIU
A31: 2017 | B31: =$J$20+$J$21*B30+$J$22*E31 -> 126436.5764 | C31: =B31/B30*100-100 -> 0.4549167391 | D31: 125864 | E31: =BajJub!G31 -> 8825802.861 | F31: =E30*$J$38+$J$39 -> 128723.6571 | G31: =F31/F30*100-100 -> 2.272021436 | I31: Method: Least Squares
A32: 2018 | B32: =$J$20+$J$21*B31+$J$22*E32 -> 127969.6508 | C32: =B32/B31*100-100 -> 1.212524451 | D32: 126436.5764 | E32: =BajJub!G32 -> 8976790.182 | F32: =E31*$J$38+$J$39 -> 130924.0508 | G32: 1.709393436 | I32: Date: 24/05/17 Time: 11:35
A33: 2019 | B33: =$J$20+$J$21*B32+$J$22*E33 -> 129817.3114 | C33: 1.443827151 | D33: 127969.6508 | E33: =BajJub!G33 -> 9123937.575 | F33: 133562.7052 | G33: 2.015408471 | I33: Sample (adjusted): 1991 2016
A34: 2020 | B34: 131728.8745 | C34: 1.472502451 | D34: 129817.3114 | E34: =BajJub!G34 -> 9265369.609 | F34: 136134.2531 | G34: 1.925348732 | I34: Included observations: 26 after adjustments
A35: 2021 | B35: 133825.7851 | C35: 1.591838306 | D35: 131728.8745 | E35: =BajJub!G35 -> 9425275.721 | F35: 138605.9193 | G35: 1.815609344
A36: 2022 | B36: 136087.0915 | C36: 1.689738907 | D36: 133825.7851 | E36: =BajJub!G36 -> 9596252.597 | F36: 141400.4385 | G36: 2.016161521 | I36: Variable | J36: Coefficient | K36: Std. Error | L36: t-Statistic | M36: Prob.
A37: 2023 | B37: 138699.1338 | C37: 1.919390224 | D37: 136087.0915 | E37: =BajJub!G37 -> 9800392.523 | F37: 144388.4304 | G37: 2.113141879
A38: 2024 | B38: 141519.9949 | C38: 2.033798614 | D38: 138699.1338 | E38: =BajJub!G38 -> 10013831.85 | F38: 147955.9797 | G38: 2.470800011 | I38: POB65(-1) | J38: 0.017476 | K38: 0.000764 | L38: 22.88185 | M38: 0
A39: 2025 | B39: 144491.2899 | C39: 2.099558409 | D39: 141519.9949 | E39: =BajJub!G39 -> 10235781.96 | F39: 151686.0454 | G39: 2.521064519 | I39: C | J39: -23315.68 | K39: 5332.224 | L39: -4.3726 | M39: 0.0002
A40: 2026 | B40: 147619.7017 | C40: 2.165121415 | D40: 144491.2899 | E40: =BajJub!G40 -> 10469415.88 | F40: 155564.8456 | G40: 2.557123929
A41: =A40+1 -> 2027 | B41: 150742.3492 | C41: 2.115332464 | D41: 147619.7017 | E41: =BajJub!G41 -> 10695903.05 | F41: 159647.832 | G41: 2.624620201 | I41: R-squared | J41: 0.956171 | K41: Mean dependent var | M41: 97504.04
A42: 2028 | B42: 153943.0987 | C42: 2.123324675 | D42: 150742.3492 | E42: =BajJub!G42 -> 10931525.26 | F42: 163605.9217 | G42: 2.479263054 | I42: Adjusted R-squared | J42: 0.954344 | K42: S.D. dependent var | M42: 17739.24
A43: 2029 | B43: 157310.2709 | C43: 2.18728364 | D43: 153943.0987 | E43: =BajJub!G43 -> 11182879.19 | F43: 167723.6555 | G43: 2.516861083 | I43: S.E. of regression | J43: 3790.37 | K43: Akaike info criterion | M43: 19.39212
A44: 2030 | B44: 160973.5752 | C44: 2.328712746 | D44: 157310.2709 | E44: =BajJub!G44 -> 11461092.28 | F44: 172116.3168 | G44: 2.61898734 | I44: Sum squared resid | J44: 345000000 | K44: Schwarz criterion | M44: 19.4889
A45: 2031 | B45: =$J$20+$J$21*B44+$J$22*E45 -> 164620.5159 | C45: 2.265552407 | D45: =B44 -> 160973.5752 | E45: =BajJub!G45 -> 11725208.85 | F45: 176978.3688 | G45: 2.82486408 | I45: Log likelihood | J45: -250.0975 | K45: Hannan-Quinn criter. | M45: 19.41999
A46: 2032 | B46: 168251.4781 | C46: 2.205655913 | D46: 164620.5159 | E46: =BajJub!G46 -> 11988181.17 | F46: 181594.0699 | G46: 2.60805946 | I46: F-statistic | J46: 523.579 | K46: Durbin-Watson stat | M46: 1.978833
A47: 2033 | B47: 171948.8989 | C47: 2.197556206 | D47: 168251.4781 | E47: =BajJub!G47 -> 12259384.11 | F47: 186189.7741 | G47: 2.530756787 | I47: Prob(F-statistic) | J47: 0
A48: 2034 | B48: 175562.9882 | C48: 2.101839165 | D48: 171948.8989 | E48: =BajJub!G48 -> 12518349.17 | F48: 190929.3167 | G48: 2.54554399
A49: 2035 | B49: 179133.8204 | C49: 2.033932255 | D49: 175562.9882 | E49: =BajJub!G49 -> 12775828.84 | F49: 195454.99 | G49: 2.370339655
A50: 2036 | B50: 182676.6404 | C50: 1.977750465 | D50: 179133.8204 | E50: =BajJub!G50 -> 13031904.36 | F50: 199954.7048 | G50: 2.30217444
A51: 2037 | B51: 186229.8815 | C51: 1.945098772 | D51: 182676.6404 | E51: =BajJub!G51 -> 13290324.11 | F51: 204429.8806 | G51: 2.238094763
A52: 2038 | B52: 189813.5079 | C52: 1.924302599 | D52: 186229.8815 | E52: =BajJub!G52 -> 13551774.72 | F52: 208946.0242 | G52: 2.209140638
A53: 2039 | B53: 193370.0773 | C53: 1.87371775 | D53: 189813.5079 | E53: =BajJub!G53 -> 13808888 | F53: 213515.135 | G53: 2.186742155
A54: 2040 | B54: 196992.1583 | C54: 1.873134152 | D54: 193370.0773 | E54: =BajJub!G54 -> 14074581.64 | F54: 218008.4466 | G54: 2.104446436
A55: 2041 | B55: 200594.8956 | C55: 1.828873463 | D55: 196992.1583 | E55: =BajJub!G55 -> 14335365.64 | F55: 222651.7087 | G55: 2.129854189
A56: 2042 | B56: 204158.9128 | C56: 1.776723783 | D56: 200594.8956 | E56: =BajJub!G56 -> 14592537.91 | F56: 227209.1699 | G56: 2.046901525
A57: 2043 | B57: 207511.7014 | C57: 1.642244534 | D57: 204158.9128 | E57: =BajJub!G57 -> 14827247.66 | F57: 231703.5125 | G57: 1.978063911
A58: 2044 | B58: 210615.6726 | C58: 1.495805378 | D58: 207511.7014 | E58: =BajJub!G58 -> 15042338.89 | F58: 235805.3 | G58: 1.770274231
A59: 2045 | B59: 213286.276 | C59: 1.267998453 | D59: 210615.6726 | E59: =BajJub!G59 -> 15218341.38 | F59: 239564.2344 | G59: 1.594083897
A60: 2046 | B60: 215543.5807 | C60: 1.058344996 | D60: 213286.276 | E60: =BajJub!G60 -> 15365164.59 | F60: 242640.054 | G60: 1.283922707
A61: 2047 | B61: 217333.0649 | C61: 0.8302192329 | D61: 215543.5807 | E61: =BajJub!G61 -> 15475768.73 | F61: 245205.9363 | G61: 1.057485069
A62: 2048 | B62: 218660.5901 | C62: 0.6108252188 | D62: 217333.0649 | E62: =BajJub!G62 -> 15553073.64 | F62: 247138.8543 | G62: 0.7882835202
A63: 2049 | B63: 219493.1306 | C63: 0.3807455789 | D63: 218660.5901 | E63: =BajJub!G63 -> 15593075.12 | F63: 248489.8349 | G63: 0.5466484
A64: 2050 | B64: 219933.6615 | C64: 0.2007037132 | D64: 219493.1306 | E64: =BajJub!G64 -> 15608867.69 | F64: 249188.9008 | G64: 0.2813257481

Sheet NViu (hidden)
A1: indice
A3: año | B3: NViu | C3: Var % | D3: Nviu
A4: 1990 | B4: =1541.042*(1000) -> 1541042 | D4: 1570974
A5: =A4+1 -> 1991 | B5: =1595.91*(1000) -> 1595910 | C5: =100*(B5/B4-1) -> 3.56044806 | D5: 1626859
A6: =A5+1 -> 1992 | B6: =1652.008*(1000) -> 1652008 | C6: 3.515110501 | D6: 1678159
A7: 1993 | B7: =1710.623*(1000) -> 1710623 | C7: 3.548106305 | D7: 1763609
A8: 1994 | B8: =1777.766*(1000) -> 1777766 | C8: 3.92506122 | D8: 1799337
A9: 1995 | B9: =1817.536*(1000) -> 1817536 | C9: 2.237077321 | D9: 1837241
A10: 1996 | B10: =1856.946*(1000) -> 1856946 | C10: 2.168320187 | D10: 1879340
A11: 1997 | B11: =1897.528*(1000) -> 1897528 | C11: 2.18541627 | D11: 1920188
A12: 1998 | B12: =1936.732*(1000) -> 1936732 | C12: 2.066056469 | D12: 1956655
A13: 1999 | B13: =1973.263*(1000) -> 1973263 | C13: 1.88621864 | D13: 1992332
A14: 2000 | B14: =2009.571*(1000) -> 2009571 | C14: 1.839998013 | D14: 2028497
A15: 2001 | B15: =2042.438*(1000) -> 2042438 | C15: 1.635523204 | D15: 2058491
A16: 2002 | B16: =2073.304*(1000) -> 2073304 | C16: 1.511233144 | D16: 2091794
A17: 2003 | B17: =2106.219*(1000) -> 2106219 | C17: 1.587562654 | D17: 2121893
A18: 2004 | B18: =2136.349*(1000) -> 2136349 | C18: 1.430525506
A19: 2005 | B19: 2183358 | C19: 2.200436352
A20: 2006 | B20: 2212486 | C20: 1.334091798
A21: 2007 | B21: 2240408 | C21: 1.262019285
A22: 2008 | B22: 2263259 | C22: 1.019948152
A23: 2009 | B23: 2282687 | C23: 0.8584081627
A24: 2010 | B24: 2302060 | C24: 0.8486927906
A25: 2011 | B25: 2319896 | C25: 0.7747843236
A26: 2012 | B26: 2331812 | C26: 0.5136437151
A27: 2013 | B27: 2345930 | C27: 0.6054518975
A28: 2014 | B28: 2356966 | C28: 0.4704317691
A29: 2015 | B29: 2354686 | C29: -0.09673453075
A30: 2016 | B30: 2359077 | C30: 0.1864792163
A31: 2017 | B31: =B30+AltViu!B31-BajViu!F31 -> 2362757.5 | C31: 0.1560144051
A32: 2018 | B32: =B31+AltViu!B32-BajViu!F32 -> 2366064.318 | C32: 0.139955894
A33: 2019 | B33: =B32+AltViu!B33-BajViu!F33 -> 2368504.407 | C33: 0.1031285663
A34: 2020 | B34: =B33+AltViu!B34-BajViu!F34 -> 2370055.479 | C34: 0.06548743063
A35: 2021 | B35: =B34+AltViu!B35-BajViu!F35 -> 2371102.365 | C35: 0.04417137362
A36: 2022 | B36: =B35+AltViu!B36-BajViu!F36 -> 2371409.393 | C36: 0.01294874889
A37: 2023 | B37: =B36+AltViu!B37-BajViu!F37 -> 2370820.676 | C37: -0.02482561666
A38: 2024 | B38: =B37+AltViu!B38-BajViu!F38 -> 2368858.269 | C38: -0.08277331972
A39: 2025 | B39: =B38+AltViu!B39-BajViu!F39 -> 2365326.938 | C39: -0.149073122
A40: 2026 | B40: =B39+AltViu!B40-BajViu!F40 -> 2360436.177 | C40: -0.2067689498
A41: =A40+1 -> 2027 | B41: =B40+AltViu!B41-BajViu!F41 -> 2353930.884 | C41: -0.2755970752
A42: 2028 | B42: =B41+AltViu!B42-BajViu!F42 -> 2345870.127 | C42: -0.3424381273
A43: 2029 | B43: =B42+AltViu!B43-BajViu!F43 -> 2336447.474 | C43: -0.4016698557
A44: 2030 | B44: =B43+AltViu!B44-BajViu!F44 -> 2325321.4 | C44: -0.4761962041
A45: 2031 | B45: =B44+AltViu!B45-BajViu!F45 -> 2312033.263 | C45: -0.5714537659
A46: 2032 | B46: =B45+AltViu!B46-BajViu!F46 -> 2296762.011 | C46: -0.6605117608
A47: 2033 | B47: =B46+AltViu!B47-BajViu!F47 -> 2279643.474 | C47: -0.7453335242
A48: 2034 | B48: =B47+AltViu!B48-BajViu!F48 -> 2260487.831 | C48: -0.8402911966
A49: 2035 | B49: =B48+AltViu!B49-BajViu!F49 -> 2239448.798 | C49: -0.9307297313
A50: 2036 | B50: =B49+AltViu!B50-BajViu!F50 -> 2216370.149 | C50: -1.030550446
A51: 2037 | B51: =B50+AltViu!B51-BajViu!F51 -> 2191284.668 | C51: -1.131827208
A52: 2038 | B52: =B51+AltViu!B52-BajViu!F52 -> 2164166.254 | C52: -1.237557786
A53: 2039 | B53: =B52+AltViu!B53-BajViu!F53 -> 2134727.306 | C53: -1.360290503
A54: 2040 | B54: =B53+AltViu!B54-BajViu!F54 -> 2102867.695 | C54: -1.492444086
A55: 2041 | B55: =B54+AltViu!B55-BajViu!F55 -> 2068384.225 | C55: -1.639830693
A56: 2042 | B56: =B55+AltViu!B56-BajViu!F56 -> 2031285.488 | C56: -1.793609559
A57: 2043 | B57: =B56+AltViu!B57-BajViu!F57 -> 1991492.099 | C57: -1.959024924
A58: 2044 | B58: =B57+AltViu!B58-BajViu!F58 -> 1949216.838 | C58: -2.122793318
A59: 2045 | B59: =B58+AltViu!B59-BajViu!F59 -> 1904682.573 | C59: -2.284726051
A60: 2046 | B60: =B59+AltViu!B60-BajViu!F60 -> 1858457.837 | C60: -2.426899711
A61: 2047 | B61: =B60+AltViu!B61-BajViu!F61 -> 1810775.143 | C61: -2.565712948
A62: 2048 | B62: =B61+AltViu!B62-BajViu!F62 -> 1762078.275 | C62: -2.689283025
A63: 2049 | B63: =B62+AltViu!B63-BajViu!F63 -> 1712650.37 | C63: -2.805091324
A64: 2050 | B64: =B63+AltViu!B64-BajViu!F64 -> 1662973.523 | C64: -2.900583076

Sheet PmAltViu (hidden)
A1: indice
A3: año | B3: PmAltViu | C3: Var % | D3: PmAltViu(-1) | E3: PmJub | F3: PmJub(-1) | G3: Ratio
A4: 1990 | B4: 199.45 | E4: =PmJub!B4 -> 299.68 | G4: =100*B4/E4 -> 66.55432461
A5: 1991 | B5: 229.44 | C5: =100*(B5/B4-1) -> 15.03634996 | D5: =B4 -> 199.45 | E5: =PmJub!B5 -> 331.63 | F5: =E4 -> 299.68 | G5: =100*B5/E5 -> 69.1855381 | I5: Resumen
A6: 1992 | B6: 250.84 | C6: 9.327057183 | D6: =B5 -> 229.44 | E6: =PmJub!B6 -> 357.85 | F6: =E5 -> 331.63 | G6: 70.09640911
A7: 1993 | B7: 267.93 | C7: 6.813107957 | D7: 250.84 | E7: =PmJub!B7 -> 385.15 | F7: 357.85 | G7: 69.5651045
A8: 1994 | B8: 282.56 | C8: 5.460381443 | D8: 267.93 | E8: =PmJub!B8 -> 411.31 | F8: 385.15 | G8: 68.69757604 | I8: Estadísticas de la regresión
A9: 1995 | B9: 298.97 | C9: 5.807616082 | D9: 282.56 | E9: =PmJub!B9 -> 439.02 | F9: 411.31 | G9: 68.09940322 | I9: R^2 | J9: 0.9971419862
A10: 1996 | B10: 315.28 | C10: 5.455396863 | D10: 298.97 | E10: =PmJub!B10 -> 467.51 | F10: 439.02 | G10: 67.43812967 | I10: R^2 ajustado | J10: 0.9967522571
A11: 1997 | B11: 322.67 | C11: 2.343948236 | D11: 315.28 | E11: =PmJub!B11 -> 487.18 | F11: 467.51 | G11: 66.23219344 | I11: Error típico | J11: 8.560707422
A12: 1998 | B12: 332.33 | C12: 2.993770726 | D12: 322.67 | E12: =PmJub!B12 -> 492.63 | F12: 487.18 | G12: 67.46036579 | I12: Observaciones | J12: 26
A13: 1999 | B13: 340.59 | C13: 2.485481299 | D13: 332.33 | E13: =PmJub!B13 -> 509.77 | F13: 492.63 | G13: 66.81248406
A14: 2000 | B14: 358.52 | C14: 5.26439414 | D14: 340.59 | E14: =PmJub!B14 -> 535.33 | F14: 509.77 | G14: 66.97177442 | I14: ANÁLISIS DE VARIANZA
A15: 2001 | B15: 374.87 | C15: 4.56041504 | D15: 358.52 | E15: =PmJub!B15 -> 564.98 | F15: 535.33 | G15: 66.35102128 | J15: Grados de libertad | K15: Suma de cuadrados | L15: Promedio de los cuadrados | M15: F | N15: Valor crítico de F
A16: 2002 | B16: 394.63 | C16: 5.271160669 | D16: 374.87 | E16: =PmJub!B16 -> 588.35 | F16: 564.98 | G16: 67.07402057 | I16: Regresión | J16: 3 | K16: 562515.7313 | L16: 187505.2438 | M16: 2558.55118 | N16: 4.014772802e-28
A17: 2003 | B17: 427.1 | C17: 8.227960368 | D17: 394.63 | E17: =PmJub!B17 -> 620.12 | F17: 588.35 | G17: 68.87376637 | I17: Residuos | J17: 22 | K17: 1612.285654 | L17: 73.28571156
A18: 2004 | B18: 468 | C18: 9.57621166 | D18: 427.1 | E18: =PmJub!B18 -> 648.91 | F18: 620.12 | G18: 72.12094127 | I18: Total | J18: 25 | K18: 564128.017
A19: 2005 | B19: 483.37 | C19: 3.284188034 | D19: 468 | E19: =PmJub!B19 -> 688.68 | F19: 648.91 | G19: 70.18789568
A20: 2006 | B20: 504.9 | C20: 4.454144858 | D20: 483.37 | E20: =PmJub!B20 -> 729.32 | F20: 688.68 | G20: 69.22887073 | J20: Coeficientes | K20: Error típico | L20: Estadístico t | M20: Probabilidad | N20: Inferior 95% | O20: Superior 95% | P20: Inferior 095% | Q20: Superior 095%
A21: 2007 | B21: 529.39 | C21: 4.850465439 | D21: 504.9 | E21: =PmJub!B21 -> 770.62 | F21: 729.32 | G21: 68.69663388 | I21: Intercepción | J21: 0.9979825727 | K21: 7.251830423 | L21: 0.1376180239 | M21: 0.8917940785 | N21: -14.04139323 | O21: 16.03735838 | P21: -14.04139323 | Q21: 16.03735838
A22: 2008 | B22: 566.64 | C22: 7.036400385 | D22: 529.39 | E22: =PmJub!B22 -> 822.24 | F22: 770.62 | G22: 68.91418564 | I22: Variable X 1 | J22: 0.6349618671 | K22: 0.1719408684 | L22: 3.69290834 | M22: 0.001271703578 | N22: 0.2783783308 | O22: 0.9915454034 | P22: 0.2783783308 | Q22: 0.9915454034
A23: 2009 | B23: 595.28 | C23: 5.054355499 | D23: 566.64 | E23: =PmJub!B23 -> 862.55 | F23: 822.24 | G23: 69.0139702 | I23: Variable X 2 | J23: 0.9632526254 | K23: 0.2600359938 | L23: 3.704304974 | M23: 0.001237124411 | N23: 0.4239709811 | O23: 1.50253427 | P23: 0.4239709811 | Q23: 1.50253427
A24: 2010 | B24: 608.46 | C24: 2.214084128 | D24: 595.28 | E24: =PmJub!B24 -> 893.21 | F24: 862.55 | G24: 68.12059874 | I24: Variable X 3 | J24: -0.7299907891 | K24: 0.2040642201 | L24: -3.577260084 | M24: 0.001681083725 | N24: -1.153194079 | O24: -0.306787499 | P24: -1.153194079 | Q24: -0.306787499
A25: 2011 | B25: 619.67 | C25: 1.842356112 | D25: 608.46 | E25: =PmJub!B25 -> 923.73 | F25: 893.21 | G25: 67.08345512
A26: 2012 | B26: 632.91 | C26: 2.136621105 | D26: 619.67 | E26: =PmJub!B26 -> 956.36 | F26: 923.73 | G26: 66.17905391
A27: 2013 | B27: 647.07 | C27: 2.237284922 | D27: 632.91 | E27: =PmJub!B27 -> 988.45 | F27: 956.36 | G27: 65.46309879
A28: 2014 | B28: 650.37 | C28: 0.5099911911 | D28: 647.07 | E28: =PmJub!B28 -> 1008.73 | F28: 988.45 | G28: 64.47414075
A29: 2015 | B29: 656.42 | C29: 0.9302397097 | D29: 650.37 | E29: =PmJub!B29 -> 1030.63 | F29: 1008.73 | G29: 63.69114037
A30: 2016 | B30: 696.05 | C30: 6.037293196 | D30: 656.42 | E30: =PmJub!B30 -> 1052.01 | F30: 1030.63 | G30: 66.16381974
A31: 2017 | B31: =$J$21+$J$22*D31+$J$23*E31+$J$24*F31 -> 708.4291924 | C31: 1.778491838 | D31: 696.05 | E31: =PmJub!B31 -> 1072.847958 | F31: 1052.01 | G31: 66.03258058
A32: 2018 | B32: =$J$21+$J$22*D32+$J$23*E32+$J$24*F32 -> 720.9571322 | C32: 1.768411003 | D32: 708.4291924 | E32: =PmJub!B32 -> 1093.485475 | F32: 1072.847958 | G32: 65.93202643
A33: 2019 | B33: 733.1722448 | C33: 1.694291105 | D33: 720.9571322 | E33: =PmJub!B33 -> 1113.548276 | F33: 1093.485475 | G33: 65.84108304
A34: 2020 | B34: 745.0276787 | C34: 1.617005284 | D34: 733.1722448 | E34: =PmJub!B34 -> 1133.008345 | F34: 1113.548276 | G34: 65.75659234
A35: 2021 | B35: 756.6129291 | C35: 1.555009386 | D35: 745.0276787 | E35: =PmJub!B35 -> 1151.968245 | F35: 1133.008345 | G35: 65.68001612
A36: 2022 | B36: 768.0279122 | C36: 1.508695228 | D36: 756.6129291 | E36: =PmJub!B36 -> 1170.550435 | F36: 1151.968245 | G36: 65.6125434
A37: 2023 | B37: 779.3101948 | C37: 1.468993819 | D37: 768.0279122 | E37: =PmJub!B37 -> 1188.820856 | F37: 1170.550435 | G37: 65.55320684
A38: 2024 | B38: 790.4349021 | C38: 1.427506968 | D38: 779.3101948 | E38: =PmJub!B38 -> 1206.778894 | F38: 1188.820856 | G38: 65.49956301
A39: 2025 | B39: 801.3230821 | C39: 1.377492309 | D39: 790.4349021 | E39: =PmJub!B39 -> 1224.358516 | F39: 1206.778894 | G39: 65.44840186
A40: 2026 | B40: 811.8972049 | C40: 1.319582951 | D40: 801.3230821 | E40: =PmJub!B40 -> 1241.481238 | F40: 1224.358516 | G40: 65.39746074
A41: 2027 | B41: 822.0854596 | C41: 1.25487004 | D41: 811.8972049 | E41: =PmJub!B41 -> 1258.064134 | F41: 1241.481238 | G41: 65.34527432
A42: 2028 | B42: 833.3467148 | C42: 1.369839966 | D42: 822.0854596 | E42: =PmJub!B42 -> 1275.606224 | F42: 1258.064134 | G42: 65.32946449
A43: 2029 | B43: 845.9491831 | C43: 1.512271907 | D43: 833.3467148 | E43: =PmJub!B43 -> 1294.560301 | F43: 1275.606224 | G43: 65.34644873
A44: 2030 | B44: 859.592706 | C44: 1.612806442 | D44: 845.9491831 | E44: =PmJub!B44 -> 1314.7811 | F44: 1294.560301 | G44: 65.37914991
A45: 2031 | B45: =$J$21+$J$22*D45+$J$23*E45+$J$24*F45 -> 874.3340683 | C45: 1.714924076 | D45: =B44 -> 859.592706 | E45: =PmJub!B45 -> 1336.415344 | F45: =E44 -> 1314.7811 | G45: 65.42382744
A46: 2032 | B46: 889.998537 | C46: 1.791588511 | D46: 874.3340683 | E46: =PmJub!B46 -> 1359.355395 | F46: 1336.415344 | G46: 65.47210098
A47: 2033 | B47: 906.6705942 | C47: 1.873267933 | D47: 889.998537 | E47: =PmJub!B47 -> 1383.722568 | F47: 1359.355395 | G47: 65.52401581
A48: 2034 | B48: 924.2537371 | C48: 1.939308832 | D48: 906.6705942 | E48: =PmJub!B48 -> 1409.452925 | F48: 1383.722568 | G48: 65.57535344
A49: 2035 | B49: 942.6807628 | C49: 1.993719363 | D49: 924.2537371 | E49: =PmJub!B49 -> 1436.491859 | F49: 1409.452925 | G49: 65.62381519
A50: 2036 | B50: 961.9935471 | C50: 2.048708858 | D50: 942.6807628 | E50: =PmJub!B50 -> 1464.885759 | F50: 1436.491859 | G50: 65.67020953
A51: 2037 | B51: 982.3223167 | C51: 2.113191886 | D51: 961.9935471 | E51: =PmJub!B51 -> 1494.77737 | F51: 1464.885759 | G51: 65.7169647
A52: 2038 | B52: 1003.522171 | C52: 2.15813629 | D52: 982.3223167 | E52: =PmJub!B52 -> 1526.0386 | F52: 1494.77737 | G52: 65.75994677
A53: 2039 | B53: 1025.484323 | C53: 2.188506884 | D53: 1003.522171 | E53: =PmJub!B53 -> 1558.554953 | F53: 1526.0386 | G53: 65.7971232
A54: 2040 | B54: 1048.33132 | C54: 2.227922639 | D54: 1025.484323 | E54: =PmJub!B54 -> 1592.438595 | F54: 1558.554953 | G54: 65.83182067
A55: 2041 | B55: 1072.00124 | C55: 2.25786635 | D55: 1048.33132 | E55: =PmJub!B55 -> 1627.629462 | F55: 1592.438595 | G55: 65.86273263
A56: 2042 | B56: 1096.218067 | C56: 2.259029729 | D56: 1072.00124 | E56: =PmJub!B56 -> 1663.836306 | F56: 1627.629462 | G56: 65.88497095
A57: 2043 | B57: 1120.931494 | C57: 2.254426152 | D57: 1096.218067 | E57: =PmJub!B57 -> 1700.968132 | F57: 1663.836306 | G57: 65.89961757
A58: 2044 | B58: 1145.825895 | C58: 2.220867276 | D58: 1120.931494 | E58: =PmJub!B58 -> 1738.661471 | F58: 1700.968132 | G58: 65.9027599
A59: 2045 | B59: 1170.993849 | C59: 2.196490292 | D59: 1145.825895 | E59: =PmJub!B59 -> 1776.945041 | F59: 1738.661471 | G59: 65.89927217
A60: 2046 | B60: 1196.284484 | C60: 2.159758167 | D60: 1170.993849 | E60: =PmJub!B60 -> 1815.622951 | F60: 1776.945041 | G60: 65.88837644
A61: 2047 | B61: 1221.833056 | C61: 2.135660183 | D61: 1196.284484 | E61: =PmJub!B61 -> 1854.786612 | F61: 1815.622951 | G61: 65.8745889
A62: 2048 | B62: 1247.567007 | C62: 2.106175711 | D62: 1221.833056 | E62: =PmJub!B62 -> 1894.34082 | F62: 1854.786612 | G62: 65.85757925
A63: 2049 | B63: 1273.677696 | C63: 2.092928762 | D63: 1247.567007 | E63: =PmJub!B63 -> 1934.45991 | F63: 1894.34082 | G63: 65.84151416
A64: 2050 | B64: 1300.237797 | C64: 2.085307893 | D64: 1273.677696 | E64: =PmJub!B64 -> 1975.225307 | F64: 1934.45991 | G64: 65.82731561

Sheet PmBajViu (hidden)
A1: indice
A3: año | B3: PmBajViu | C3: Var % | D3: PmVIu(-1)
A4: 1990 | B4: 166.3
A5: 1991 | B5: 189.7 | C5: =100*(B5/B4-1) -> 14.0709561 | D5: =PmViu!B4 -> 182.48 | G5: Resumen
A6: 1992 | B6: 209.01 | C6: 10.17923036 | D6: =PmViu!B5 -> 207.39
A7: 1993 | B7: 225.49 | C7: 7.884790201 | D7: =PmViu!B6 -> 228.09 | G7: Estadísticas de la regresión
A8: 1994 | B8: 236.17 | C8: 4.736351945 | D8: =PmViu!B7 -> 243.07 | G8: Coeficiente de correlación múltiple | H8: 0.9993103547
A9: 1995 | B9: 247.22 | C9: 4.678833044 | D9: =PmViu!B8 -> 256.78 | G9: Coeficiente de determinación R^2 | H9: 0.9986211851
A10: 1996 | B10: 257.46 | C10: 4.142059704 | D10: =PmViu!B9 -> 271.34 | G10: R^2 ajustado | H10: 0.9985637345
A11: 1997 | B11: 266.18 | C11: 3.386933893 | D11: =PmViu!B10 -> 286.74 | G11: Error típico | H11: 4.858509257
A12: 1998 | B12: 272.18 | C12: 2.254113758 | D12: =PmViu!B11 -> 296.52 | G12: Observaciones | H12: 26
A13: 1999 | B13: 278.78 | C13: 2.424865898 | D13: =PmViu!B12 -> 305.67
A14: 2000 | B14: 294.92 | C14: 5.789511443 | D14: =PmViu!B13 -> 314.81 | G14: ANÁLISIS DE VARIANZA
A15: 2001 | B15: 309.87 | C15: 5.069171301 | D15: =PmViu!B14 -> 331.52 | H15: Grados de libertad | I15: Suma de cuadrados | J15: Promedio de los cuadrados | K15: F | L15: Valor crítico de F
A16: 2002 | B16: 323.15 | C16: 4.285668183 | D16: =PmViu!B15 -> 348.84 | G16: Regresión | H16: 1 | I16: 410310.0162 | J16: 410310.0162 | K16: 17382.25232 | L16: 7.614826337e-36
A17: 2003 | B17: 345.22 | C17: 6.829645675 | D17: =PmViu!B16 -> 367.61 | G17: Residuos | H17: 24 | I17: 566.5226929 | J17: 23.6051122
A18: 2004 | B18: 373.76 | C18: 8.267191936 | D18: =PmViu!B17 -> 395.83 | G18: Total | H18: 25 | I18: 410876.5389
A19: 2005 | B19: 394.64 | C19: 5.586472603 | D19: =PmViu!B18 -> 432.09
A20: 2006 | B20: 413.04 | C20: 4.662477194 | D20: =PmViu!B19 -> 454.9 | H20: Coeficientes | I20: Error típico | J20: Estadístico t | K20: Probabilidad | L20: Inferior 95% | M20: Superior 95% | N20: Inferior 95,0% | O20: Superior 95,0%
A21: 2007 | B21: 434.11 | C21: 5.101200852 | D21: =PmViu!B20 -> 478.81 | G21: Intercepción | H21: 21.62247985 | I21: 2.86817628 | J21: 7.538755549 | K21: 8.881348704e-08 | L21: 15.70285495 | M21: 27.54210475 | N21: 15.70285495 | O21: 27.54210475
A22: 2008 | B22: 463.62 | C22: 6.797816222 | D22: =PmViu!B21 -> 500.6 | G22: Variable X 1 | H22: 0.8737045759 | I22: 0.006626917827 | J22: 131.84177 | K22: 7.614826337e-36 | L22: 0.8600272897 | M22: 0.8873818621 | N22: 0.8600272897 | O22: 0.8873818621
A23: 2009 | B23: 486.86 | C23: 5.012725939 | D23: =PmViu!B22 -> 531.51
A24: 2010 | B24: 505.11 | C24: 3.748510866 | D24: =PmViu!B23 -> 556.52
A25: 2011 | B25: 520.6 | C25: 3.066658748 | D25: =PmViu!B24 -> 574.25
A26: 2012 | B26: 536.02 | C26: 2.961966961 | D26: =PmViu!B25 -> 588.83
A27: 2013 | B27: 551.32 | C27: 2.854371106 | D27: =PmViu!B26 -> 603.95
A28: 2014 | B28: 559.75 | C28: 1.529057535 | D28: =PmViu!B27 -> 619.89
A29: 2015 | B29: 566.9 | C29: 1.277355962 | D29: =PmViu!B28 -> 626.24
A30: 2016 | B30: 574.5 | C30: 1.340624449 | D30: =PmViu!B29 -> 632.97
A31: 2017 | B31: =$H$21+$H$22*D31 -> 581.868065 | C31: 1.28251785 | D31: =PmViu!B30 -> 641.23
A32: 2018 | B32: =$H$21+$H$22*D32 -> 589.3247989 | C32: 1.281516266 | D32: =PmViu!B31 -> 649.764617
A33: 2019 | B33: 597.1171887 | C33: 1.322257226 | D33: =PmViu!B32 -> 658.6834094
A34: 2020 | B34: 605.2269317 | C34: 1.358149318 | D34: =PmViu!B33 -> 667.965429
A35: 2021 | B35: 613.6274427 | C35: 1.387993578 | D35: =PmViu!B34 -> 677.5802475
A36: 2022 | B36: 622.3099167 | C36: 1.414942262 | D36: =PmViu!B35 -> 687.5177874
A37: 2023 | B37: 631.2642361 | C37: 1.438884252 | D37: =PmViu!B36 -> 697.7664682
A38: 2024 | B38: 640.4870807 | C38: 1.461011751 | D38: =PmViu!B37 -> 708.3224902
A39: 2025 | B39: 649.9720252 | C39: 1.480895525 | D39: =PmViu!B38 -> 719.1784989
A40: 2026 | B40: 659.7047363 | C40: 1.497404608 | D40: =PmViu!B39 -> 730.3180893
A41: 2027 | B41: 669.6778197 | C41: 1.511749547 | D41: =PmViu!B40 -> 741.7327981
A42: 2028 | B42: 679.8628143 | C42: 1.520879797 | D42: =PmViu!B41 -> 753.3900504
A43: 2029 | B43: 690.3187302 | C43: 1.537944961 | D43: =PmViu!B42 -> 765.357386
A44: 2030 | B44: 701.133908 | C44: 1.566693368 | D44: =PmViu!B43 -> 777.7359154
A45: 2031 | B45: =$H$21+$H$22*D45 -> 712.3716045 | C45: 1.602788913 | D45: =PmViu!B44 -> 790.5980394
A46: 2032 | B46: 724.0918724 | C46: 1.645246355 | D46: =PmViu!B45 -> 804.0124911
A47: 2033 | B47: 736.3441592 | C47: 1.692090083 | D47: =PmViu!B46 -> 818.0358659
A48: 2034 | B48: 749.191184 | C48: 1.744703839 | D48: =PmViu!B47 -> 832.7399492
A49: 2035 | B49: 762.6790395 | C49: 1.80032225 | D49: =PmViu!B48 -> 848.1774963
A50: 2036 | B50: 776.8517638 | C50: 1.858281604 | D50: =PmViu!B49 -> 864.398911
A51: 2037 | B51: 791.7526176 | C51: 1.918107731 | D51: =PmViu!B50 -> 881.4537076
A52: 2038 | B52: 807.4431529 | C52: 1.981747195 | D52: =PmViu!B51 -> 899.4123354
A53: 2039 | B53: 823.9761222 | C53: 2.047570691 | D53: =PmViu!B52 -> 918.3351724
A54: 2040 | B54: 841.3857267 | C54: 2.112877305 | D54: =PmViu!B53 -> 938.2613637
A55: 2041 | B55: 859.7248436 | C55: 2.179632517 | D55: =PmViu!B54 -> 959.2514299
A56: 2042 | B56: 879.0440208 | C56: 2.247134929 | D56: =PmViu!B55 -> 981.3632258
A57: 2043 | B57: 899.3728633 | C57: 2.312608013 | D57: =PmViu!B56 -> 1004.630636
A58: 2044 | B58: 920.7261796 | C58: 2.374245123 | D58: =PmViu!B57 -> 1029.070609
A59: 2045 | B59: 943.0900737 | C59: 2.428940829 | D59: =PmViu!B58 -> 1054.66724
A60: 2046 | B60: 966.4486839 | C60: 2.476816452 | D60: =PmViu!B59 -> 1081.402376
A61: 2047 | B61: 990.7715187 | C61: 2.516722851 | D61: =PmViu!B60 -> 1109.241116
A62: 2048 | B62: 1016.023317 | C62: 2.548700434 | D62: =PmViu!B61 -> 1138.143103
A63: 2049 | B63: 1042.162573 | C63: 2.572702404 | D63: =PmViu!B62 -> 1168.060831
A64: 2050 | B64: 1069.153393 | C64: 2.589885781 | D64: =PmViu!B63 -> 1198.953219

Sheet PmViu (hidden)
A1: indice
A3: año | B3: PmViu | C3: Var %
A4: 1990 | B4: 182.48
A5: =A4+1 -> 1991 | B5: 207.39 | C5: =100*(B5/B4-1) -> 13.65081105
A6: =A5+1 -> 1992 | B6: 228.09 | C6: 9.98119485
A7: 1993 | B7: 243.07 | C7: 6.567582972
A8: 1994 | B8: 256.78 | C8: 5.640350516
A9: 1995 | B9: 271.34 | C9: 5.670223538
A10: 1996 | B10: 286.74 | C10: 5.675536228
A11: 1997 | B11: 296.52 | C11: 3.410755388
A12: 1998 | B12: 305.67 | C12: 3.085795225
A13: 1999 | B13: 314.81 | C13: 2.990152779
A14: 2000 | B14: 331.52 | C14: 5.307963534
A15: 2001 | B15: 348.84 | C15: 5.224420849
A16: 2002 | B16: 367.61 | C16: 5.380690288
A17: 2003 | B17: 395.83 | C17: 7.676613803
A18: 2004 | B18: 432.09 | C18: 9.160498194
A19: 2005 | B19: 454.9 | C19: 5.278992802
A20: 2006 | B20: 478.81 | C20: 5.256100242
A21: 2007 | B21: 500.6 | C21: 4.550865688
A22: 2008 | B22: 531.51 | C22: 6.174590491
A23: 2009 | B23: 556.52 | C23: 4.705461798
A24: 2010 | B24: 574.25 | C24: 3.185869331
A25: 2011 | B25: 588.83 | C25: 2.538963866
A26: 2012 | B26: 603.95 | C26: 2.56780395
A27: 2013 | B27: 619.89 | C27: 2.639291332
A28: 2014 | B28: 626.24 | C28: 1.024375292
A29: 2015 | B29: 632.97 | C29: 1.074667859
A30: 2016 | B30: 641.23 | C30: 1.304959161
A31: 2017 | B31: =(AltViu!B31*PmAltViu!B31+NViu!B30*PmViu!B30*(1+Iter_Consol!AD31)-BajViu!B31*PmBajViu!B31)/(AltViu!B31+NViu!B30-BajViu!B31) -> 649.764617 | C31: 1.330975932
A32: 2018 | B32: =(AltViu!B32*PmAltViu!B32+NViu!B31*PmViu!B31*(1+Iter_Consol!AD32)-BajViu!B32*PmBajViu!B32)/(AltViu!B32+NViu!B31-BajViu!B32) -> 658.6834094 | C32: 1.372618973
A33: 2019 | B33: =(AltViu!B33*PmAltViu!B33+NViu!B32*PmViu!B32*(1+Iter_Consol!AD33)-BajViu!B33*PmBajViu!B33)/(AltViu!B33+NViu!B32-BajViu!B33) -> 667.965429 | C33: 1.409177687
A34: 2020 | B34: =(AltViu!B34*PmAltViu!B34+NViu!B33*PmViu!B33*(1+Iter_Consol!AD34)-BajViu!B34*PmBajViu!B34)/(AltViu!B34+NViu!B33-BajViu!B34) -> 677.5802475 | C34: 1.439418585
A35: 2021 | B35: =(AltViu!B35*PmAltViu!B35+NViu!B34*PmViu!B34*(1+Iter_Consol!AD35)-BajViu!B35*PmBajViu!B35)/(AltViu!B35+NViu!B34-BajViu!B35) -> 687.5177874 | C35: 1.46662183
A36: 2022 | B36: =(AltViu!B36*PmAltViu!B36+NViu!B35*PmViu!B35*(1+Iter_Consol!AD36)-BajViu!B36*PmBajViu!B36)/(AltViu!B36+NViu!B35-BajViu!B36) -> 697.7664682 | C36: 1.490678652
A37: 2023 | B37: =(AltViu!B37*PmAltViu!B37+NViu!B36*PmViu!B36*(1+Iter_Consol!AD37)-BajViu!B37*PmBajViu!B37)/(AltViu!B37+NViu!B36-BajViu!B37) -> 708.3224902 | C37: 1.512830211
A38: 2024 | B38: =(AltViu!B38*PmAltViu!B38+NViu!B37*PmViu!B37*(1+Iter_Consol!AD38)-BajViu!B38*PmBajViu!B38)/(AltViu!B38+NViu!B37-BajViu!B38) -> 719.1784989 | C38: 1.532636461
A39: 2025 | B39: =(AltViu!B39*PmAltViu!B39+NViu!B38*PmViu!B38*(1+Iter_Consol!AD39)-BajViu!B39*PmBajViu!B39)/(AltViu!B39+NViu!B38-BajViu!B39) -> 730.3180893 | C39: 1.548932617
A40: 2026 | B40: =(AltViu!B40*PmAltViu!B40+NViu!B39*PmViu!B39*(1+Iter_Consol!AD40)-BajViu!B40*PmBajViu!B40)/(AltViu!B40+NViu!B39-BajViu!B40) -> 741.7327981 | C40: 1.562977698
A41: =A40+1 -> 2027 | B41: =(AltViu!B41*PmAltViu!B41+NViu!B40*PmViu!B40*(1+Iter_Consol!AD41)-BajViu!B41*PmBajViu!B41)/(AltViu!B41+NViu!B40-BajViu!B41) -> 753.3900504 | C41: 1.571624218
A42: 2028 | B42: =(AltViu!B42*PmAltViu!B42+NViu!B41*PmViu!B41*(1+Iter_Consol!AD42)-BajViu!B42*PmBajViu!B42)/(AltViu!B42+NViu!B41-BajViu!B42) -> 765.357386 | C42: 1.588464782
A43: 2029 | B43: =(AltViu!B43*PmAltViu!B43+NViu!B42*PmViu!B42*(1+Iter_Consol!AD43)-BajViu!B43*PmBajViu!B43)/(AltViu!B43+NViu!B42-BajViu!B43) -> 777.7359154 | C43: 1.617352835
A44: 2030 | B44: =(AltViu!B44*PmAltViu!B44+NViu!B43*PmViu!B43*(1+Iter_Consol!AD44)-BajViu!B44*PmBajViu!B44)/(AltViu!B44+NViu!B43-BajViu!B44) -> 790.5980394 | C44: 1.653790662
A45: 2031 | B45: =(AltViu!B45*PmAltViu!B45+NViu!B44*PmViu!B44*(1+Iter_Consol!AD45)-BajViu!B45*PmBajViu!B45)/(AltViu!B45+NViu!B44-BajViu!B45) -> 804.0124911 | C45: 1.696747406
A46: 2032 | B46: =(AltViu!B46*PmAltViu!B46+NViu!B45*PmViu!B45*(1+Iter_Consol!AD46)-BajViu!B46*PmBajViu!B46)/(AltViu!B46+NViu!B45-BajViu!B46) -> 818.0358659 | C46: 1.744173753
A47: 2033 | B47: =(AltViu!B47*PmAltViu!B47+NViu!B46*PmViu!B46*(1+Iter_Consol!AD47)-BajViu!B47*PmBajViu!B47)/(AltViu!B47+NViu!B46-BajViu!B47) -> 832.7399492 | C47: 1.797486376
A48: 2034 | B48: =(AltViu!B48*PmAltViu!B48+NViu!B47*PmViu!B47*(1+Iter_Consol!AD48)-BajViu!B48*PmBajViu!B48)/(AltViu!B48+NViu!B47-BajViu!B48) -> 848.1774963 | C48: 1.853825694
A49: 2035 | B49: =(AltViu!B49*PmAltViu!B49+NViu!B48*PmViu!B48*(1+Iter_Consol!AD49)-BajViu!B49*PmBajViu!B49)/(AltViu!B49+NViu!B48-BajViu!B49) -> 864.398911 | C49: 1.912502373
A50: 2036 | B50: =(AltViu!B50*PmAltViu!B50+NViu!B49*PmViu!B49*(1+Iter_Consol!AD50)-BajViu!B50*PmBajViu!B50)/(AltViu!B50+NViu!B49-BajViu!B50) -> 881.4537076 | C50: 1.97302383
A51: 2037 | B51: =(AltViu!B51*PmAltViu!B51+NViu!B50*PmViu!B50*(1+Iter_Consol!AD51)-BajViu!B51*PmBajViu!B51)/(AltViu!B51+NViu!B50-BajViu!B51) -> 899.4123354 | C51: 2.037387517
A52: 2038 | B52: =(AltViu!B52*PmAltViu!B52+NViu!B51*PmViu!B51*(1+Iter_Consol!AD52)-BajViu!B52*PmBajViu!B52)/(AltViu!B52+NViu!B51-BajViu!B52) -> 918.3351724 | C52: 2.103911225
A53: 2039 | B53: =(AltViu!B53*PmAltViu!B53+NViu!B52*PmViu!B52*(1+Iter_Consol!AD53)-BajViu!B53*PmBajViu!B53)/(AltViu!B53+NViu!B52-BajViu!B53) -> 938.2613637 | C53: 2.169816845
A54: 2040 | B54: =(AltViu!B54*PmAltViu!B54+NViu!B53*PmViu!B53*(1+Iter_Consol!AD54)-BajViu!B54*PmBajViu!B54)/(AltViu!B54+NViu!B53-BajViu!B54) -> 959.2514299 | C54: 2.237123579
A55: 2041 | B55: =(AltViu!B55*PmAltViu!B55+NViu!B54*PmViu!B54*(1+Iter_Consol!AD55)-BajViu!B55*PmBajViu!B55)/(AltViu!B55+NViu!B54-BajViu!B55) -> 981.3632258 | C55: 2.305109506
A56: 2042 | B56: =(AltViu!B56*PmAltViu!B56+NViu!B55*PmViu!B55*(1+Iter_Consol!AD56)-BajViu!B56*PmBajViu!B56)/(AltViu!B56+NViu!B55-BajViu!B56) -> 1004.630636 | C56: 2.370927425
A57: 2043 | B57: =(AltViu!B57*PmAltViu!B57+NViu!B56*PmViu!B56*(1+Iter_Consol!AD57)-BajViu!B57*PmBajViu!B57)/(AltViu!B57+NViu!B56-BajViu!B57) -> 1029.070609 | C57: 2.432732215
A58: 2044 | B58: =(AltViu!B58*PmAltViu!B58+NViu!B57*PmViu!B57*(1+Iter_Consol!AD58)-BajViu!B58*PmBajViu!B58)/(AltViu!B58+NViu!B57-BajViu!B58) -> 1054.66724 | C58: 2.487354251
A59: 2045 | B59: =(AltViu!B59*PmAltViu!B59+NViu!B58*PmViu!B58*(1+Iter_Consol!AD59)-BajViu!B59*PmBajViu!B59)/(AltViu!B59+NViu!B58-BajViu!B59) -> 1081.402376 | C59: 2.534935603
A60: 2046 | B60: =(AltViu!B60*PmAltViu!B60+NViu!B59*PmViu!B59*(1+Iter_Consol!AD60)-BajViu!B60*PmBajViu!B60)/(AltViu!B60+NViu!B59-BajViu!B60) -> 1109.241116 | C60: 2.574318406
A61: 2047 | B61: =(AltViu!B61*PmAltViu!B61+NViu!B60*PmViu!B60*(1+Iter_Consol!AD61)-BajViu!B61*PmBajViu!B61)/(AltViu!B61+NViu!B60-BajViu!B61) -> 1138.143103 | C61: 2.605563951
A62: 2048 | B62: =(AltViu!B62*PmAltViu!B62+NViu!B61*PmViu!B61*(1+Iter_Consol!AD62)-BajViu!B62*PmBajViu!B62)/(AltViu!B62+NViu!B61-BajViu!B62) -> 1168.060831 | C62: 2.628643835
A63: 2049 | B63: =(AltViu!B63*PmAltViu!B63+NViu!B62*PmViu!B62*(1+Iter_Consol!AD63)-BajViu!B63*PmBajViu!B63)/(AltViu!B63+NViu!B62-BajViu!B63) -> 1198.953219 | C63: 2.644758444
A64: =A63+1 -> 2050 | B64: =(AltViu!B64*PmAltViu!B64+NViu!B63*PmViu!B63*(1+Iter_Consol!AD64)-BajViu!B64*PmBajViu!B64)/(AltViu!B64+NViu!B63-BajViu!B64) -> 1230.797799 | C64: 2.65603191

Sheet NInc (hidden)
A1: indice
D2: check | I2: NACHO | J2: NACHO | O2: mortalidad | V2: datos DGOSS | Z2: mortalidad
A3: año | B3: NInc | C3: %Var | D3: Nincm65 | E3: %Var | I3: AltInc | J3: %Var | K3: AltInc(-1) | O3: BajIncMort | P3: %Var | Q3: BajInc(-1) | R3: Pop55_65 | T3: Pop64 | V3: BajIncM65 | W3: %Var | X3: BajIncTot | Y3: %Var | Z3: BajIncMort | AA3: %Var | AB3: BajTot64 | AC3: BajMort64
A4: 1990 | B4: 1567871 | D4: =B4 -> 1567871 | I4: 86235 | O4: 63226 | R4: =TRANSPOSE(Pob!B114:BJ114) -> 4711312.32 | T4: =TRANSPOSE(Pob!B74:BJ74) -> 391627.7098 | V4: =V5/(1+S5%) -> 45219.69984 | X4: =O4+V4 -> 108445.6998 | Z4: 63226 | AE4: Resumen BajInc
A5: 1991 | B5: 1588784 | C5: =100*(B5/B4-1) -> 1.333846981 | D5: 1588784 | E5: =100*(D5/D4-1) -> 1.333846981 | I5: 87027 | J5: =100*(I5/I4-1) -> 0.9184205949 | K5: =I4 -> 86235 | O5: 65783 | P5: =100*(O5/O4-1) -> 4.044222314 | Q5: =O4 -> 63226 | R5: 4729315.386 | S5: =100*(R5/R4-1) -> 0.3821242277 | T5: 403805.3677 | U5: 3.109498525 | V5: 45392.49527 | W5: =100*(V5/V4-1) -> 0.3821242277 | X5: =O5+V5 -> 111175.4953 | Y5: 2.517200251 | Z5: 65783 | AA5: =100*(Z5/Z4-1) -> 4.044222314
A6: 1992 | B6: 1613374 | C6: =100*(B6/B5-1) -> 1.547724549 | D6: 1613374 | E6: 1.547724549 | I6: 93644 | J6: 7.603387454 | K6: 87027 | O6: 67506 | P6: =100*(O6/O5-1) -> 2.619217731 | Q6: 65783 | R6: 4765445.469 | S6: 0.7639601114 | T6: 394648.6719 | U6: -2.267601307 | V6: 45739.27582 | W6: 0.7639601114 | X6: 113245.2758 | Y6: 1.861723712 | Z6: 67506 | AA6: =100*(Z6/Z5-1) -> 2.619217731 | AE6: Estadísticas de la regresión
A7: 1993 | B7: 1638414 | C7: 1.552026994 | D7: 1638414 | E7: 1.552026994 | I7: 97004 | J7: 3.588056896 | K7: 93644 | O7: 70881 | P7: 4.999555595 | Q7: 67506 | R7: 4737966.516 | S7: -0.5766292638 | T7: 415906.5469 | U7: 5.386531494 | V7: 45475.52978 | W7: -0.5766292638 | X7: 116356.5298 | Y7: 2.747358711 | Z7: 70881 | AA7: 4.999555595 | AE7: Coeficiente de correlación múltiple | AF7: 0.8642588162
A8: 1994 | B8: 1658166 | C8: 1.205556105 | D8: 1658166 | E8: 1.205556105 | I8: 88694 | J8: -8.566657045 | K8: 97004 | O8: 75391 | P8: 6.362777049 | Q8: 70881 | R8: 4672247.5 | S8: -1.387072184 | T8: 413441.0156 | U8: -0.592808954 | V8: 44844.75135 | W8: -1.387072184 | X8: 120235.7514 | Y8: 3.333909651 | Z8: 75391 | AA8: 6.362777049 | AE8: Coeficiente de determinación R^2 | AF8: 0.7469433013
A9: 1995 | B9: 1672280 | C9: 0.8511813654 | D9: 1672280 | E9: 0.8511813654 | I9: 86708 | J9: -2.239159357 | K9: 88694 | O9: 77295 | P9: 2.525500391 | Q9: 75391 | R9: 4541833.578 | S9: -2.791246009 | T9: 433939.1719 | U9: 4.9579397 | V9: 43593.02402 | W9: -2.791246009 | X9: 120888.024 | Y9: 0.5424947741 | Z9: 77295 | AA9: 2.525500391 | AE9: R^2 ajustado | AF9: 0.7311272577
A10: 1996 | B10: 1684042 | C10: 0.7033511134 | D10: 1684042 | E10: 0.7033511134 | I10: 91962 | J10: 6.059417816 | K10: 86708 | O10: 74842 | P10: -3.173555857 | Q10: 77295 | R10: 4566963.844 | S10: 0.5533066149 | T10: 423480.8438 | U10: -2.410090815 | V10: 43834.2271 | W10: 0.5533066149 | X10: 118676.2271 | Y10: -1.829624508 | Z10: 74842 | AA10: -3.173555857 | AE10: Error típico | AF10: 1119.596678
A11: 1997 | B11: 1626580 | C11: -3.412147678 | D11: 1626580 | E11: -3.412147678 | I11: 100912 | J11: 9.732280725 | K11: 91962 | O11: 74471 | P11: -0.4957109644 | Q11: 74842 | R11: 4481074.156 | S11: -1.880673691 | T11: 439573.5156 | U11: 3.800094411 | V11: 43009.84833 | W11: -1.880673691 | X11: 117480.8483 | Y11: -1.007260516 | Z11: 74471 | AA11: -0.4957109644 | AE11: Observaciones | AF11: 18
A12: 1998 | B12: 804549 | C12: -50.53738519 | D12: 804549 | E12: -50.53738519 | I12: 86406 | J12: -14.3749009 | K12: 100912 | O12: 28336 | P12: -61.95028937 | Q12: 74471 | R12: 4434606.359 | S12: -1.036978975 | T12: 440958.7812 | U12: 0.3151385549 | V12: 42563.84524 | W12: -1.036978975 | X12: 70899.84524 | Y12: -39.64986953 | Z12: 28336 | AA12: -61.95028937
A13: 1999 | B13: 798017 | C13: -0.8118834279 | D13: 798017 | E13: -0.8118834279 | I13: 82510 | J13: -4.508946138 | K13: 86406 | O13: 27792 | P13: -1.919819311 | Q13: 28336 | R13: 4432602.172 | S13: -0.04519425937 | T13: 422418.4844 | U13: -4.204541935 | V13: 42544.60883 | W13: -0.04519425937 | X13: 70336.60883 | Y13: -0.7944113456 | Z13: 27792 | AA13: -1.919819311 | AE13: ANÁLISIS DE VARIANZA
A14: 2000 | B14: 792618 | C14: -0.6765520033 | D14: 792618 | E14: -0.6765520033 | I14: 78257 | J14: -5.154526724 | K14: 82510 | O14: 26623 | P14: -4.206246402 | Q14: 27792 | R14: 4431992.562 | S14: -0.01375285558 | T14: 420967.5625 | U14: -0.3434797313 | V14: 42538.75773 | W14: -0.01375285558 | X14: 69161.75773 | Y14: -1.670326617 | Z14: 26623 | AA14: -4.206246402 | AF14: Grados de libertad | AG14: Suma de cuadrados | AH14: Promedio de los cuadrados | AI14: F | AJ14: Valor crítico de F
A15: 2001 | B15: 788618 | C15: -0.5046567199 | D15: 788618 | E15: -0.5046567199 | I15: 80929 | J15: 3.414391045 | K15: 78257 | O15: 25379 | P15: -4.672651467 | Q15: 26623 | R15: 4474365.672 | S15: 0.9560735669 | T15: 431147.8438 | U15: 2.418305389 | V15: 42945.45955 | W15: 0.9560735669 | X15: 68324.45955 | Y15: -1.21063751 | Z15: 25379 | AA15: -4.672651467 | AE15: Regresión | AF15: 1 | AG15: 59198810.92 | AH15: 59198810.92 | AI15: 47.22693722 | AJ15: 3.752657554e-06
A16: 2002 | B16: 787388 | C16: -0.1559690497 | D16: 787388 | E16: -0.1559690497 | I16: 79853 | J16: -1.329560479 | K16: 80929 | O16: 24426 | P16: -3.755073092 | Q16: 25379 | R16: 4501412.052 | S16: 0.6044740686 | T16: 386273.1211 | U16: -10.40819833 | V16: 43205.05371 | W16: 0.6044740686 | X16: 67631.05371 | Y16: -1.014872036 | Z16: 24426 | AA16: -3.755073092 | AE16: Residuos | AF16: 16 | AG16: 20055947.52 | AH16: 1253496.72
A17: 2003 | B17: 796720 | C17: 1.185184433 | D17: 796720 | E17: 1.185184433 | I17: 85825 | J17: 7.478742189 | K17: 79853 | O17: 24809 | P17: 1.56800131 | Q17: 24426 | R17: 4554643.62 | S17: 1.182552654 | T17: 342227.6758 | U17: -11.40266896 | V17: 43715.97622 | W17: 1.182552654 | X17: 68524.97622 | Y17: 1.321763392 | Z17: 24809 | AA17: 1.56800131 | AE17: Total | AF17: 17 | AG17: 79254758.44
A18: 2004 | B18: 815097 | C18: 2.306581986 | D18: =B18 -> 815097 | E18: 2.306581986 | I18: 83702 | J18: -2.473638217 | K18: 85825 | O18: 23932 | P18: -3.535007457 | Q18: 24809 | R18: 4698988.662 | S18: 3.169184125 | T18: 299606.7464 | U18: -12.45396923 | V18: 45101.416 | W18: 3.169184125 | X18: 69033.416 | Y18: 0.7419773151 | Z18: 23932 | AA18: -3.535007457
A19: 2005 | B19: 845667 | C19: 3.75047387 | D19: =B19 -> 845667 | E19: 3.75047387 | I19: 86125 | J19: 2.894793434 | K19: 83702 | O19: 24400 | P19: 1.955540699 | Q19: 23932 | R19: 4865882.294 | S19: 3.55169259 | T19: 447912.8493 | U19: 49.50025484 | V19: 46703.27965 | W19: 3.55169259 | X19: 71103.27965 | Y19: 2.998350321 | Z19: 24400 | AA19: 1.955540699 | AF19: Coeficientes | AG19: Error típico | AH19: Estadístico t | AI19: Probabilidad | AJ19: Inferior 95% | AK19: Superior 95% | AL19: Inferior 95,0% | AM19: Superior 95,0%
A20: 2006 | B20: 878333 | C20: 3.862749758 | D20: =D19+I20-X20 -> 873204.6763 | E20: 3.256326226 | I20: 99873 | J20: 15.9628447 | K20: 86125 | O20: 23825 | P20: -2.356557377 | Q20: 24400 | R20: 5054153.09 | S20: 3.869201601 | T20: 362459.7009 | U20: -19.0780748 | V20: 48510.3237 | W20: 3.869201601 | X20: 72335.3237 | Y20: 1.732752765 | Z20: 23825 | AA20: -2.356557377 | AE20: Intercepción | AF20: 1632.808423 | AG20: 3714.574573 | AH20: 0.4395680828 | AI20: 0.6661292113 | AJ20: -6241.737898 | AK20: 9507.354744 | AL20: -6241.737898 | AM20: 9507.354744
A21: 2007 | B21: 902484 | C21: 2.749640512 | D21: 896729.8477 | E21: 2.694118809 | I21: 98808 | J21: -1.06635427 | K21: 99873 | O21: 26262 | P21: 10.22875131 | Q21: 23825 | R21: 5107341.146 | S21: 1.052363369 | T21: 391947.497 | U21: 8.135468859 | V21: 49020.82857 | W21: 1.052363369 | X21: 75282.82857 | Y21: 4.074779411 | Z21: 26262 | AA21: 10.22875131 | AE21: Variable X 1 | AF21: 0.02937267688 | AG21: 0.004274138953 | AH21: 6.872185768 | AI21: 3.752657554e-06 | AJ21: 0.02031190707 | AK21: 0.0384334467 | AL21: 0.02031190707 | AM21: 0.0384334467
A22: 2008 | B22: 916291 | C22: 1.529888619 | D22: 915629.2052 | E22: 2.107586525 | I22: 97396 | J22: -1.429034086 | K22: 98808 | O22: 27807 | P22: 5.883024903 | Q22: 26262 | R22: 5281210.144 | S22: 3.404295762 | T22: 452421.69 | U22: 15.42915657 | V22: 50689.64256 | W22: =100*(V22/V21-1) -> 3.404295762 | X22: 78496.64256 | Y22: 4.268986767 | Z22: 27807 | AA22: 5.883024903
A23: 2009 | B23: 930831 | C23: 1.586832131 | D23: 933365.5143 | E23: 1.937062409 | I23: 98056 | J23: 0.6776458992 | K23: 97396 | O23: 28349 | P23: 1.949149495 | Q23: 27807 | R23: 5414678.934 | S23: 2.527238766 | T23: 457590.7147 | U23: 1.142523632 | V23: 51970.69086 | W23: 2.527238766 | X23: 80319.69086 | Y23: 2.32245385 | Z23: 28349 | AA23: 1.949149495
A24: 2010 | B24: 935514 | C24: 0.5030988439 | D24: 942364.1868 | E24: 0.9641102375 | I24: 90949 | J24: -7.24789916 | K24: 98056 | O24: 29367 | P24: 3.590955589 | Q24: 28349 | R24: 5478507.811 | S24: 1.17881185 | T24: 478523.3647 | U24: 4.574535568 | V24: 52583.32752 | W24: 1.17881185 | X24: 81950.32752 | Y24: 2.030182941 | Z24: 29367 | AA24: 3.590955589 | AB24: 54368 | AC24: 1774
A25: 2011 | B25: 941490 | C25: 0.6387932196 | D25: 946595.1207 | E25: 0.4489701562 | I25: 86851 | J25: -4.505821944 | K25: 90949 | O25: 29241 | P25: -0.4290530187 | Q25: 29367 | R25: 5561413.551 | S25: 1.513290529 | T25: 455807.8003 | U25: -4.747012614 | V25: 53379.06604 | W25: 1.513290529 | X25: 82620.06604 | Y25: 0.8172493457 | Z25: 29241 | AA25: -0.4290530187 | AB25: 58836 | AC25: 1632
A26: 2012 | B26: 940843 | C26: -0.06872085736 | D26: 946304.2103 | E26: -0.03073229568 | I26: 84136 | J26: -3.126043454 | K26: 86851 | O26: 30281 | P26: 3.556649909 | Q26: 29241 | R26: 5641308.892 | S26: 1.436601331 | T26: 475189.9125 | U26: 4.252255503 | V26: 54145.91041 | W26: 1.436601331 | X26: 84426.91041 | Y26: 2.186931649 | Z26: 30281 | AA26: 3.556649909 | AB26: 62737 | AC26: 1850 | AE26: Resumen BajInc
A27: 2013 | B27: 932045 | C27: -0.9351188243 | D27: 941351.9798 | E27: -0.523323309 | I27: 79481 | J27: -5.532708947 | K27: 84136 | O27: 29060 | P27: -4.032231432 | Q27: 30281 | R27: 5769179.893 | S27: 2.266690294 | T27: 517209.7866 | U27: 8.842753798 | V27: 55373.23051 | W27: 2.266690294 | X27: 84433.23051 | Y27: 0.007485878154 | Z27: 29060 | AA27: -4.032231432 | AB27: 58966 | AC27: 1813
A28: 2014 | B28: 928967 | C28: -0.3302415656 | D28: 937317.4942 | E28: -0.4285841723 | I28: 81573 | J28: 2.63207559 | K28: 79481 | O28: 29146 | P28: 0.2959394357 | Q28: 29060 | R28: 5882562.105 | S28: 1.965309003 | T28: 490943.4822 | U28: -5.078462363 | V28: 56461.48559 | W28: 1.965309003 | X28: 85607.48559 | Y28: 1.390749918 | Z28: 29146 | AA28: 0.2959394357 | AB28: 55173 | AC28: 1590 | AE28: Estadísticas de la regresión
A29: 2015 | B29: 934846 | C29: 0.6328534813 | D29: 937917.497 | E29: 0.06401276055 | I29: 86957 | J29: 6.600223113 | K29: 81573 | O29: 29023 | P29: -0.4220133123 | Q29: 29146 | R29: 5973466.615 | S29: 1.545321729 | T29: 470183.1828 | U29: -4.228653632 | V29: 57333.9972 | W29: 1.545321729 | X29: 86356.9972 | Y29: 0.875521107 | Z29: 29023 | AA29: -0.4220133123 | AB29: 55897 | AC29: 1654 | AE29: Coeficiente de correlación múltiple | AF29: 0.9092915517
A30: 2016 | B30: 943155 | C30: 0.8888094938 | D30: 940959.497 | E30: 0.3243355636 | I30: 89674 | J30: 3.124532815 | K30: 86957 | O30: 27998 | P30: -3.53168177 | Q30: 29023 | R30: 6108910.222 | S30: 2.267420495 | T30: 478566.0319 | U30: 1.782890021 | V30: =AB30-AC30 -> 58634 | W30: 2.267420495 | X30: 86632 | Y30: 0.318448779 | Z30: 27998 | AA30: -3.53168177 | AB30: 60230 | AC30: 1596 | AE30: Coeficiente de determinación R^2 | AF30: 0.8268111261
A31: 2017 | B31: =B30+I31-X31 -> 946532.7726 | C31: 0.358135473 | D31: =B30+I31-X31 -> 946532.7726 | E31: 0.5922970755 | I31: =I30*(1+J31%) -> 90887.04577 | J31: 1.352728513 | K31: 89674 | O31: =$AF$42+$AF$43*Q31+$AF$44*R31 -> 28875.27315 | P31: 3.133342191 | Q31: 27998 | R31: 6261016.744 | S31: 2.489912549 | T31: 509639.7603 | U31: 6.493091104 | V31: =V30*(1+W31%) -> 58634 | W31: 0 | X31: =O31+V31 -> 87509.27315 | Y31: =100*(X31/X30-1) -> 1.012643303 | Z31: =R30*$AF$56+$AF$57+$AF$58 -> 29774.21626 | AA31: 6.344082648 | AE31: R^2 ajustado | AF31: 0.8037192762
A32: 2018 | B32: =B31+I32-X32 -> 950243.6603 | C32: 0.3920506281 | D32: 950243.6603 | E32: 0.3920506281 | I32: 91999.72903 | J32: 1.224248463 | K32: 90887.04577 | O32: 29654.84135 | P32: 2.699777753 | Q32: =O31 -> 28875.27315 | R32: 6416934.939 | S32: 2.490301515 | T32: 510028.9232 | U32: 0.07636038577 | V32: =V31*(1+W32%) -> 58634 | W32: 0 | X32: =O32+V32 -> 88288.84135 | Y32: 0.8908406762 | Z32: =R31*$AF$56+$AF$57+$AF$58 -> 30151.59254 | AA32: 1.26746 | AE32: Error típico | AF32: 956.5926465
A33: 2019 | B33: 954318.788 | C33: 0.4288508182 | D33: 954318.788 | E33: 0.4288508182 | I33: 93063.21818 | J33: 1.155969877 | K33: 91999.72903 | O33: 30354.09047 | P33: 2.357959416 | Q33: 29654.84135 | R33: 6561533.668 | S33: 2.253392482 | T33: 508267.9209 | U33: -0.345274985 | V33: 58634 | W33: 0 | X33: 88988.09047 | Y33: 0.7920016993 | Z33: 30538.42558 | AA33: 1.282960563 | AE33: Observaciones | AF33: 18
A34: 2020 | B34: 958684.6161 | C34: 0.4574811025 | D34: 958684.6161 | E34: 0.4574811025 | I34: 94030.54143 | J34: 1.039425962 | K34: 93063.21818 | O34: 31030.71332 | P34: 2.229099404 | Q34: 30354.09047 | R34: 6737168.648 | S34: 2.676736696 | T34: 530672.3876 | U34: 4.408003289 | V34: 58634 | W34: 0 | X34: 89664.71332 | Y34: 0.7603521394 | Z34: 30897.17503 | AA34: 1.174747686
A35: 2021 | B35: 963190.7706 | C35: 0.4700351323 | D35: 963190.7706 | E35: 0.4700351323 | I35: 94820.75857 | J35: 0.8403834759 | K35: 94030.54143 | O35: 31680.60406 | P35: 2.094346768 | Q35: 31030.71332 | R35: 6902623.471 | S35: 2.455850999 | T35: 545479.271 | U35: 2.790211764 | V35: 58634 | W35: 0 | X35: 90314.60406 | Y35: 0.7248010031 | Z35: 31332.92541 | AA35: 1.410324354 | AE35: ANÁLISIS DE VARIANZA
A36: 2022 | B36: 967777.555 | C36: 0.4762072577 | D36: 967777.555 | E36: 0.4762072577 | I36: 95511.4199 | J36: 0.7283862158 | K36: 94820.75857 | O36: 32290.63555 | P36: 1.925567714 | Q36: 31680.60406 | R36: 7048357.915 | S36: 2.111290645 | T36: 582398.3157 | U36: 6.768184731 | V36: 58634 | W36: 0 | X36: 90924.63555 | Y36: 0.6754516502 | Z36: 31743.41883 | AA36: 1.31010243 | AF36: Grados de libertad | AG36: Suma de cuadrados | AH36: Promedio de los cuadrados | AI36: F | AJ36: Valor crítico de F
